Workbook

Sheet Instructions
B2: ARInc Reserves Analysis Spreadsheet!
B3: =Main!D7 -> Analysis File V4.1, 9/14
B9: This File will enable you to:
B10: 1) | C10: Work with Reserve Data
B11: 2) | C11: Compute your Percent Funded
B12: 3) | C12: Test various Funding Plans
B14: This file is provided and intended only for same-year adjustments of Reserve Study information,
B15: not multi-year updating of Reserve Studies. Multi-year use is not intended or supported.
B17: Think of the Main sheet as your control panel, where you enter information about
B18: your association and test your Funding Plan ideas.
B20: The left-most portion of the Data Sheet is where your Reserve Component data goes.
B22: Only make entries in cells that are colored orange, as shown below:
C23: 25.55
B25: Macros are provided to print key pages, add rows, and delete rows.

Sheet Main
D7: Analysis File V4.1, 9/14
D9: Starting Information:
C10: Client #: | D10: 24907-1
C11: Name: | D11: Admiral's Cove Beach Club
C12: Location: | D12: Coupeville, WA
C13: # Units: | D13: 500
C14: Base Yr: | D14: 2022
C15: Period Start: | D15: 2022-01-01
C16: Period End: | D16: 2022-12-31 | E16: date problem?
C17: Site Inspection Date: | D17: N/A
C18: Total Assessmts. | D18: $0.00 | E18: Per Unit: | F18: =D18/D13 -> $0.00
C19: Budgeted Res Contribs. | D19: $0.00 | E19: Per Unit: | F19: =D19/D13 -> $0.00
C20: Starting Reserve Bal: | D20: $444,123
C21: Interest: | D21: 1.00%
C22: Inflation: | D22: 3.00%
D24: Status:
C25: Proportional FFB: | D25: =Data!DV$77+(1-D61)*(Data!DW77-Data!DV77) -> $473,400
C26: Percent Funded: | D26: =D20/D25 -> 93.8%
C27: Swain Factor: | D27: =10*STDEV(Data!BB77:BF77,Data!BI77:BM77,Data!BP77:BT77,Data!BW77:CA77,Data!CD77:CH77,Data!CK77:CP77)/SUM(Data!BB77:BF77,Data!BI77:BM77,Data!BP77:BT77,Data!BW77:CA77,Data!CD77:CH77,Data!CK77:CP77)/31 -> 1.690%
A29: TempStorage | D29: Recommendation:
A30: $50,400 | C30: Recommended Contrib Rate: | D30: $59,930 | E30: Per Unit: | F30: =D30/D13 -> $119.86
C31: Alternate Contrib Rate: | D31: $49,890 | E31: Per Unit: | F31: =D31/D13 -> $99.78
C32: Annual Increase: | D32: 3.00%
C33: # of Years: | D33: 10
C34: Secondary Increase: | D34: 2.00%
C35: # of Years: | D35: 30
C36: 1st Yr S.A.: | D36: $0 | E36: Per Unit: | F36: =D36/D$13 -> $0.00
C37: 2nd Yr S.A.: | D37: $0 | E37: Per Unit: | F37: =D37/D$13 -> $0.00
C38: 3rd Yr S.A.: | D38: $0 | E38: Per Unit: | F38: =D38/D$13 -> $0.00
C39: 4th Yr S.A.: | D39: $0 | E39: Per Unit: | F39: =D39/D$13 -> $0.00
C40: 5th Yr S.A.: | D40: $0 | E40: Per Unit: | F40: =D40/D$13 -> $0.00
C42: Minimum Balance(Full): | D42: =MIN('30-yr'!C14:C43) -> $94,767.98
C43: Min Margin (Full): | D43: =Solver!MinEndBalanceMargin -> 13.5%
C44: Minimum Balance(Alt): | D44: =MIN(Data!BB7:BF7,Data!BI7:BM7,Data!BP7:BT7,Data!BW7:CA7,Data!CD7:CH7,Data!CK7:CP7) -> $1,965.38
C45: Min Margin (Alt): | D45: =MIN(Data!BB9:BF9,Data!BI9:BM9,Data!BP9:BT9,Data!BW9:CA9,Data!CD9:CH9,Data!CK9:CP9) -> 0.3%
D46: System Defaults:
C47: Current Annual Increase: | D47: 3.00%
C48: Budget Cycles Per Year: | D48: 1
C50: Project Manager Notes:
C59: Risk of Special Assessment: | D59: =OFFSET(C77,MATCH(PercentFunded,C77:C87,-1)-1,1) -> under 1%
C60: Text Budget Cycles: | D60: =LOOKUP(D48,C89:C91,D89:D91) -> Annual | E60: (Monthly/Annual/Quarterly)
C61: Initial Year Fraction: | D61: =ROUND((EndDate-StartDate)/30,0)/12 -> 1.00
C62: System Information
C63: Period Start: | D63: =D15 -> 2022-01-01
C64: Period End: | D64: =D16 -> 2022-12-31
C65: SI Date: | D65: =D17 -> N/A
C66: Cycles this first Yr: | D66: =IF(D48=12,ROUND((D16-D15)/30,0),D48) -> 1
C67: Annualized Cmpnded Int.: | D67: =(1+(D21/12))^12-1 -> 0.01004596089
C68: Deficit per unit: | D68: =(FullyFunded-StartingBalance)/NumUnits -> 59
C69: Solver Success: | D69: Success
C70: Solver Cycle1: | D70: 45
C71: Solver Cycle2: | D71: 14
C72: Solver Cycle3: | D72: 2
C73: Expense total, first 5 yrs: | D73: =SUM(Data!BB77:BF77) -> $306,536
C74: Expense total, second 5 yrs: | D74: =SUM(Data!BI77:BM77) -> $791,912
C75: Expense total, first 10 years: | D75: =D73+D74 -> $1,098,449
C76: Special Assmt Risk Ranges - lookup based on Percent Funded
B77: up to | C77: 99999999 | D77: under 1%
B78: up to | C78: 1 | D78: under 1%
B79: up to | C79: 0.9 | D79: approx 1%
B80: up to | C80: 0.8 | D80: approx 2%
B81: up to | C81: 0.7 | D81: approx 3%
B82: up to | C82: 0.6 | D82: approx 6%
B83: up to | C83: 0.5 | D83: approx 13%
B84: up to | C84: 0.4 | D84: approx 20%
B85: up to | C85: 0.3 | D85: approx 35%
B86: up to | C86: 0.2 | D86: approx 48%
B87: up to | C87: 0.1 | D87: approx 58%
C89: 1 | D89: Annual
C90: 4 | D90: Quarterly
C91: 12 | D91: Monthly

Sheet Data
BA2: Year Increment | BB2: 0 | BC2: 1 | BD2: 2 | BE2: 3 | BF2: 4 | BH2: Year Increment | BI2: 5 | BJ2: 6 | BK2: 7 | BL2: 8 | BM2: 9 | BO2: Year Increment | BP2: 10 | BQ2: 11 | BR2: 12 | BS2: 13 | BT2: 14 | BV2: Year Increment | BW2: 15 | BX2: 16 | BY2: 17 | BZ2: 18 | CA2: 19 | CC2: Year Increment | CD2: 20 | CE2: 21 | CF2: 22 | CG2: 23 | CH2: 24 | CJ2: Year Increment | CK2: 25 | CL2: 26 | CM2: 27 | CN2: 28 | CO2: 29 | CP2: 30
BA3: Inflation | BB3: =(1+Main!$D$22)^BB2 -> 1.000 | BC3: =(1+Main!$D$22)^BC2 -> 1.030 | BD3: =(1+Main!$D$22)^BD2 -> 1.061 | BE3: =(1+Main!$D$22)^BE2 -> 1.093 | BF3: =(1+Main!$D$22)^BF2 -> 1.126 | BH3: Inflation | BI3: =(1+Main!$D$22)^BI2 -> 1.159 | BJ3: =(1+Main!$D$22)^BJ2 -> 1.194 | BK3: =(1+Main!$D$22)^BK2 -> 1.230 | BL3: =(1+Main!$D$22)^BL2 -> 1.267 | BM3: =(1+Main!$D$22)^BM2 -> 1.305 | BO3: Inflation | BP3: =(1+Main!$D$22)^BP2 -> 1.344 | BQ3: =(1+Main!$D$22)^BQ2 -> 1.384 | BR3: =(1+Main!$D$22)^BR2 -> 1.426 | BS3: =(1+Main!$D$22)^BS2 -> 1.469 | BT3: =(1+Main!$D$22)^BT2 -> 1.513 | BV3: Inflation | BW3: =(1+Main!$D$22)^BW2 -> 1.558 | BX3: =(1+Main!$D$22)^BX2 -> 1.605 | BY3: =(1+Main!$D$22)^BY2 -> 1.653 | BZ3: =(1+Main!$D$22)^BZ2 -> 1.702 | CA3: =(1+Main!$D$22)^CA2 -> 1.754 | CC3: Inflation | CD3: =(1+Main!$D$22)^CD2 -> 1.806 | CE3: =(1+Main!$D$22)^CE2 -> 1.860 | CF3: =(1+Main!$D$22)^CF2 -> 1.916 | CG3: =(1+Main!$D$22)^CG2 -> 1.974 | CH3: =(1+Main!$D$22)^CH2 -> 2.033 | CJ3: Inflation | CK3: =(1+Main!$D$22)^CK2 -> 2.094 | CL3: =(1+Main!$D$22)^CL2 -> 2.157 | CM3: =(1+Main!$D$22)^CM2 -> 2.221 | CN3: =(1+Main!$D$22)^CN2 -> 2.288 | CO3: =(1+Main!$D$22)^CO2 -> 2.357 | CP3: =(1+Main!$D$22)^CP2 -> 2.427
BA4: Alt Contribution rate (total) | BB4: =Main!$D48*Main!$D61*Main!$D31 -> $49,890 | BC4: =IF(BC2<=Main!$D33,(Main!$D31*Main!$D48)*(1+Main!$D32),IF(BC2<=(Main!$D33+Main!$D35),(Main!$D31*Main!$D48)*(1+Main!$D34),(Main!$D31*Main!$D48))) -> $51,387 | BD4: =IF(BD2<=Main!$D33,BC4*(1+Main!$D32),IF(BD2<=(Main!$D35),BC4*(1+Main!$D34),BC4)) -> $52,928 | BE4: =IF(BE2<=Main!$D33,BD4*(1+Main!$D32),IF(BE2<=(Main!$D35),BD4*(1+Main!$D34),BD4)) -> $54,516 | BF4: =IF(BF2<=Main!$D33,BE4*(1+Main!$D32),IF(BF2<=(Main!$D35),BE4*(1+Main!$D34),BE4)) -> $56,152 | BH4: Alt Contribution rate (total) | BI4: =IF(BI2<=Main!$D33,BF4*(1+Main!$D32),IF(BI2<=(Main!$D35),BF4*(1+Main!$D34),BF4)) -> $57,836 | BJ4: =IF(BJ2<=Main!$D33,BI4*(1+Main!$D32),IF(BJ2<=(Main!$D35),BI4*(1+Main!$D34),BI4)) -> $59,571 | BK4: =IF(BK2<=Main!$D33,BJ4*(1+Main!$D32),IF(BK2<=(Main!$D35),BJ4*(1+Main!$D34),BJ4)) -> $61,358 | BL4: =IF(BL2<=Main!$D33,BK4*(1+Main!$D32),IF(BL2<=(Main!$D35),BK4*(1+Main!$D34),BK4)) -> $63,199 | BM4: =IF(BM2<=Main!$D33,BL4*(1+Main!$D32),IF(BM2<=(Main!$D35),BL4*(1+Main!$D34),BL4)) -> $65,095 | BO4: Alt Contribution rate (total) | BP4: =IF(BP2<=Main!$D33,BM4*(1+Main!$D32),IF(BP2<=(Main!$D35),BM4*(1+Main!$D34),BM4)) -> $67,048 | BQ4: =IF(BQ2<=Main!$D33,BP4*(1+Main!$D32),IF(BQ2<=(Main!$D35),BP4*(1+Main!$D34),BP4)) -> $68,389 | BR4: =IF(BR2<=Main!$D33,BQ4*(1+Main!$D32),IF(BR2<=(Main!$D35),BQ4*(1+Main!$D34),BQ4)) -> $69,757 | BS4: =IF(BS2<=Main!$D33,BR4*(1+Main!$D32),IF(BS2<=(Main!$D35),BR4*(1+Main!$D34),BR4)) -> $71,152 | BT4: =IF(BT2<=Main!$D33,BS4*(1+Main!$D32),IF(BT2<=(Main!$D35),BS4*(1+Main!$D34),BS4)) -> $72,575 | BV4: Alt Contribution rate (total) | BW4: =IF(BW2<=Main!$D33,BT4*(1+Main!$D32),IF(BW2<=(Main!$D35),BT4*(1+Main!$D34),BT4)) -> $74,026 | BX4: =IF(BX2<=Main!$D33,BW4*(1+Main!$D32),IF(BX2<=(Main!$D35),BW4*(1+Main!$D34),BW4)) -> $75,507 | BY4: =IF(BY2<=Main!$D33,BX4*(1+Main!$D32),IF(BY2<=(Main!$D35),BX4*(1+Main!$D34),BX4)) -> $77,017 | BZ4: =IF(BZ2<=Main!$D33,BY4*(1+Main!$D32),IF(BZ2<=(Main!$D35),BY4*(1+Main!$D34),BY4)) -> $78,557 | CA4: =IF(CA2<=Main!$D33,BZ4*(1+Main!$D32),IF(CA2<=(Main!$D35),BZ4*(1+Main!$D34),BZ4)) -> $80,129 | CC4: Alt Contribution rate (total) | CD4: =IF(CD2<=Main!$D33,CA4*(1+Main!$D32),IF(CD2<=(Main!$D35),CA4*(1+Main!$D34),CA4)) -> $81,731 | CE4: =IF(CE2<=Main!$D33,CD4*(1+Main!$D32),IF(CE2<=(Main!$D35),CD4*(1+Main!$D34),CD4)) -> $83,366 | CF4: =IF(CF2<=Main!$D33,CE4*(1+Main!$D32),IF(CF2<=(Main!$D35),CE4*(1+Main!$D34),CE4)) -> $85,033 | CG4: =IF(CG2<=Main!$D33,CF4*(1+Main!$D32),IF(CG2<=(Main!$D35),CF4*(1+Main!$D34),CF4)) -> $86,734 | CH4: =IF(CH2<=Main!$D33,CG4*(1+Main!$D32),IF(CH2<=(Main!$D35),CG4*(1+Main!$D34),CG4)) -> $88,468 | CJ4: Alt Contribution rate (total) | CK4: =IF(CK2<=Main!$D33,CH4*(1+Main!$D32),IF(CK2<=(Main!$D35),CH4*(1+Main!$D34),CH4)) -> $90,238 | CL4: =IF(CL2<=Main!$D33,CK4*(1+Main!$D32),IF(CL2<=(Main!$D35),CK4*(1+Main!$D34),CK4)) -> $92,043 | CM4: =IF(CM2<=Main!$D33,CL4*(1+Main!$D32),IF(CM2<=(Main!$D35),CL4*(1+Main!$D34),CL4)) -> $93,883 | CN4: =IF(CN2<=Main!$D33,CM4*(1+Main!$D32),IF(CN2<=(Main!$D35),CM4*(1+Main!$D34),CM4)) -> $95,761 | CO4: =IF(CO2<=Main!$D33,CN4*(1+Main!$D32),IF(CO2<=(Main!$D35),CN4*(1+Main!$D34),CN4)) -> $97,676 | CP4: =IF(CP2<=Main!$D33,CO4*(1+Main!$D32),IF(CP2<=(Main!$D35),CO4*(1+Main!$D34),CO4)) -> $99,630
BA5: Alt Interest Earnings | BB5: =IF((BB7+(BB4+BB26-BB77)/2)>0,(BB7+(BB4+BB26-BB77)/2)*Main!$D67,0) -> $4,404 | BC5: =IF((BC7+(BC4+BC26-BC77)/2)>0,(BC7+(BC4+BC26-BC77)/2)*Main!$D67,0) -> $4,586 | BD5: =IF((BD7+(BD4+BD26-BD77)/2)>0,(BD7+(BD4+BD26-BD77)/2)*Main!$D67,0) -> $4,267 | BE5: =IF((BE7+(BE4+BE26-BE77)/2)>0,(BE7+(BE4+BE26-BE77)/2)*Main!$D67,0) -> $3,859 | BF5: =IF((BF7+(BF4+BF26-BF77)/2)>0,(BF7+(BF4+BF26-BF77)/2)*Main!$D67,0) -> $4,111 | BH5: Alt Interest Earnings | BI5: =IF((BI7+(BI4+BI26-BI77)/2)>0,(BI7+(BI4+BI26-BI77)/2)*Main!$D67,0) -> $5,079 | BJ5: =IF((BJ7+(BJ4+BJ26-BJ77)/2)>0,(BJ7+(BJ4+BJ26-BJ77)/2)*Main!$D67,0) -> $6,152 | BK5: =IF((BK7+(BK4+BK26-BK77)/2)>0,(BK7+(BK4+BK26-BK77)/2)*Main!$D67,0) -> $3,201 | BL5: =IF((BL7+(BL4+BL26-BL77)/2)>0,(BL7+(BL4+BL26-BL77)/2)*Main!$D67,0) -> $151 | BM5: =IF((BM7+(BM4+BM26-BM77)/2)>0,(BM7+(BM4+BM26-BM77)/2)*Main!$D67,0) -> $536 | BO5: Alt Interest Earnings | BP5: =IF((BP7+(BP4+BP26-BP77)/2)>0,(BP7+(BP4+BP26-BP77)/2)*Main!$D67,0) -> $1,015 | BQ5: =IF((BQ7+(BQ4+BQ26-BQ77)/2)>0,(BQ7+(BQ4+BQ26-BQ77)/2)*Main!$D67,0) -> $1,507 | BR5: =IF((BR7+(BR4+BR26-BR77)/2)>0,(BR7+(BR4+BR26-BR77)/2)*Main!$D67,0) -> $1,781 | BS5: =IF((BS7+(BS4+BS26-BS77)/2)>0,(BS7+(BS4+BS26-BS77)/2)*Main!$D67,0) -> $2,030 | BT5: =IF((BT7+(BT4+BT26-BT77)/2)>0,(BT7+(BT4+BT26-BT77)/2)*Main!$D67,0) -> $2,590 | BV5: Alt Interest Earnings | BW5: =IF((BW7+(BW4+BW26-BW77)/2)>0,(BW7+(BW4+BW26-BW77)/2)*Main!$D67,0) -> $3,045 | BX5: =IF((BX7+(BX4+BX26-BX77)/2)>0,(BX7+(BX4+BX26-BX77)/2)*Main!$D67,0) -> $3,415 | BY5: =IF((BY7+(BY4+BY26-BY77)/2)>0,(BY7+(BY4+BY26-BY77)/2)*Main!$D67,0) -> $3,639 | BZ5: =IF((BZ7+(BZ4+BZ26-BZ77)/2)>0,(BZ7+(BZ4+BZ26-BZ77)/2)*Main!$D67,0) -> $2,396 | CA5: =IF((CA7+(CA4+CA26-CA77)/2)>0,(CA7+(CA4+CA26-CA77)/2)*Main!$D67,0) -> $1,505 | CC5: Alt Interest Earnings | CD5: =IF((CD7+(CD4+CD26-CD77)/2)>0,(CD7+(CD4+CD26-CD77)/2)*Main!$D67,0) -> $1,995 | CE5: =IF((CE7+(CE4+CE26-CE77)/2)>0,(CE7+(CE4+CE26-CE77)/2)*Main!$D67,0) -> $2,310 | CF5: =IF((CF7+(CF4+CF26-CF77)/2)>0,(CF7+(CF4+CF26-CF77)/2)*Main!$D67,0) -> $2,893 | CG5: =IF((CG7+(CG4+CG26-CG77)/2)>0,(CG7+(CG4+CG26-CG77)/2)*Main!$D67,0) -> $3,460 | CH5: =IF((CH7+(CH4+CH26-CH77)/2)>0,(CH7+(CH4+CH26-CH77)/2)*Main!$D67,0) -> $3,882 | CJ5: Alt Interest Earnings | CK5: =IF((CK7+(CK4+CK26-CK77)/2)>0,(CK7+(CK4+CK26-CK77)/2)*Main!$D67,0) -> $3,931 | CL5: =IF((CL7+(CL4+CL26-CL77)/2)>0,(CL7+(CL4+CL26-CL77)/2)*Main!$D67,0) -> $4,035 | CM5: =IF((CM7+(CM4+CM26-CM77)/2)>0,(CM7+(CM4+CM26-CM77)/2)*Main!$D67,0) -> $3,969 | CN5: =IF((CN7+(CN4+CN26-CN77)/2)>0,(CN7+(CN4+CN26-CN77)/2)*Main!$D67,0) -> $3,913 | CO5: =IF((CO7+(CO4+CO26-CO77)/2)>0,(CO7+(CO4+CO26-CO77)/2)*Main!$D67,0) -> $4,420 | CP5: =IF((CP7+(CP4+CP26-CP77)/2)>0,(CP7+(CP4+CP26-CP77)/2)*Main!$D67,0) -> $4,472
BA6: Alt Starting Balance (for charts) | BB6: =Main!D20 -> $444,123 | BC6: =IF(BB7+BB5+BB4+BB26-BB77>0,BB7+BB5+BB26+BB4-BB77,0) -> $436,967 | BD6: =IF(BC7+BC5+BC4+BC26-BC77>0,BC7+BC5+BC26+BC4-BC77,0) -> $480,527 | BE6: =IF(BD7+BD5+BD4+BD26-BD77>0,BD7+BD5+BD26+BD4-BD77,0) -> $373,283 | BF6: =IF(BE7+BE5+BE4+BE26-BE77>0,BE7+BE5+BE26+BE4-BE77,0) -> $398,877 | BH6: Alt Starting Balance (for charts) | BI6: =IF(BF7+BF5+BF4+BF26-BF77>0,BF7+BF5+BF4+BF26-BF77,0) -> $423,686 | BJ6: =IF(BI7+BI5+BI4+BI26-BI77>0,BI7+BI5+BI26+BI4-BI77,0) -> $592,473 | BK6: =IF(BJ7+BJ5+BJ4+BJ26-BJ77>0,BJ7+BJ5+BJ26+BJ4-BJ77,0) -> $638,434 | BL6: =IF(BK7+BK5+BK4+BK26-BK77>0,BK7+BK5+BK26+BK4-BK77,0) -> $1,965 | BM6: =IF(BL7+BL5+BL4+BL26-BL77>0,BL7+BL5+BL26+BL4-BL77,0) -> $28,326 | BO6: Alt Starting Balance (for charts) | BP6: =IF(BM7+BM5+BM4+BM26-BM77>0,BM7+BM5+BM4+BM26-BM77,0) -> $78,953 | BQ6: =IF(BP7+BP5+BP4+BP26-BP77>0,BP7+BP5+BP26+BP4-BP77,0) -> $124,169 | BR6: =IF(BQ7+BQ5+BQ4+BQ26-BQ77>0,BQ7+BQ5+BQ26+BQ4-BQ77,0) -> $177,385 | BS6: =IF(BR7+BR5+BR4+BR26-BR77>0,BR7+BR5+BR26+BR4-BR77,0) -> $178,990 | BT6: =IF(BS7+BS5+BS4+BS26-BS77>0,BS7+BS5+BS26+BS4-BS77,0) -> $227,206 | BV6: Alt Starting Balance (for charts) | BW6: =IF(BT7+BT5+BT4+BT26-BT77>0,BT7+BT5+BT4+BT26-BT77,0) -> $291,027 | BX6: =IF(BW7+BW5+BW4+BW26-BW77>0,BW7+BW5+BW26+BW4-BW77,0) -> $318,165 | BY6: =IF(BX7+BX5+BX4+BX26-BX77>0,BX7+BX5+BX26+BX4-BX77,0) -> $365,073 | BZ6: =IF(BY7+BY5+BY4+BY26-BY77>0,BY7+BY5+BY26+BY4-BY77,0) -> $363,087 | CA6: =IF(BZ7+BZ5+BZ4+BZ26-BZ77>0,BZ7+BZ5+BZ26+BZ4-BZ77,0) -> $116,322 | CC6: Alt Starting Balance (for charts) | CD6: =IF(CA7+CA5+CA4+CA26-CA77>0,CA7+CA5+CA4+CA26-CA77,0) -> $184,804 | CE6: =IF(CD7+CD5+CD4+CD26-CD77>0,CD7+CD5+CD26+CD4-CD77,0) -> $214,347 | CF6: =IF(CE7+CE5+CE4+CE26-CE77>0,CE7+CE5+CE26+CE4-CE77,0) -> $247,841 | CG6: =IF(CF7+CF5+CF4+CF26-CF77>0,CF7+CF5+CF26+CF4-CF77,0) -> $330,977 | CH6: =IF(CG7+CG5+CG4+CG26-CG77>0,CG7+CG5+CG26+CG4-CG77,0) -> $361,371 | CJ6: Alt Starting Balance (for charts) | CK6: =IF(CH7+CH5+CH4+CH26-CH77>0,CH7+CH5+CH4+CH26-CH77,0) -> $415,302 | CL6: =IF(CK7+CK5+CK4+CK26-CK77>0,CK7+CK5+CK26+CK4-CK77,0) -> $371,281 | CM6: =IF(CL7+CL5+CL4+CL26-CL77>0,CL7+CL5+CL26+CL4-CL77,0) -> $435,980 | CN6: =IF(CM7+CM5+CM4+CM26-CM77>0,CM7+CM5+CM26+CM4-CM77,0) -> $358,240 | CO6: =IF(CN7+CN5+CN4+CN26-CN77>0,CN7+CN5+CN26+CN4-CN77,0) -> $424,739 | CP6: =IF(CO7+CO5+CO4+CO26-CO77>0,CO7+CO5+CO26+CO4-CO77,0) -> $459,674
BA7: Alt Starting Balance (for calcs) | BB7: =Main!D20 -> $444,123 | BC7: =BB7+BB5+BB4+BB26-BB77 -> $436,967 | BD7: =BC7+BC5+BC4+BC26-BC77 -> $480,527 | BE7: =BD7+BD5+BD4+BD26-BD77 -> $373,283 | BF7: =BE7+BE5+BE4+BE26-BE77 -> $398,877 | BH7: Alt Starting Balance (for calcs) | BI7: =BF7+BF5+BF4+BF26-BF77 -> $423,686 | BJ7: =BI7+BI5+BI4+BI26-BI77 -> $592,473 | BK7: =BJ7+BJ5+BJ4+BJ26-BJ77 -> $638,434 | BL7: =BK7+BK5+BK4+BK26-BK77 -> $1,965 | BM7: =BL7+BL5+BL4+BL26-BL77 -> $28,326 | BO7: Alt Starting Balance (for calcs) | BP7: =BM7+BM5+BM4+BM26-BM77 -> $78,953 | BQ7: =BP7+BP5+BP4+BP26-BP77 -> $124,169 | BR7: =BQ7+BQ5+BQ4+BQ26-BQ77 -> $177,385 | BS7: =BR7+BR5+BR4+BR26-BR77 -> $178,990 | BT7: =BS7+BS5+BS4+BS26-BS77 -> $227,206 | BV7: Alt Starting Balance (for calcs) | BW7: =BT7+BT5+BT4+BT26-BT77 -> $291,027 | BX7: =BW7+BW5+BW4+BW26-BW77 -> $318,165 | BY7: =BX7+BX5+BX4+BX26-BX77 -> $365,073 | BZ7: =BY7+BY5+BY4+BY26-BY77 -> $363,087 | CA7: =BZ7+BZ5+BZ4+BZ26-BZ77 -> $116,322 | CC7: Alt Starting Balance (for calcs) | CD7: =CA7+CA5+CA4+CA26-CA77 -> $184,804 | CE7: =CD7+CD5+CD4+CD26-CD77 -> $214,347 | CF7: =CE7+CE5+CE4+CE26-CE77 -> $247,841 | CG7: =CF7+CF5+CF4+CF26-CF77 -> $330,977 | CH7: =CG7+CG5+CG4+CG26-CG77 -> $361,371 | CJ7: Alt Starting Balance (for calcs) | CK7: =CH7+CH5+CH4+CH26-CH77 -> $415,302 | CL7: =CK7+CK5+CK4+CK26-CK77 -> $371,281 | CM7: =CL7+CL5+CL4+CL26-CL77 -> $435,980 | CN7: =CM7+CM5+CM4+CM26-CM77 -> $358,240 | CO7: =CN7+CN5+CN4+CN26-CN77 -> $424,739 | CP7: =CO7+CO5+CO4+CO26-CO77 -> $459,674
BA8: Alt Percent Funded | BB8: =IF(BB6/DV77<0,0,BB6/DV77) -> 94% | BC8: =IF(BC6/DW77<0,0,BC6/DW77) -> 93% | BD8: =IF(BD6/DX77<0,0,BD6/DX77) -> 92% | BE8: =IF(BE6/DY77<0,0,BE6/DY77) -> 87% | BF8: =IF(BF6/DZ77<0,0,BF6/DZ77) -> 83% | BH8: Alt Percent Funded | BI8: =IF(BI6/EA77<0,0,BI6/EA77) -> 76% | BJ8: =IF(BJ6/EB77<0,0,BJ6/EB77) -> 84% | BK8: =IF(BK6/EC77<0,0,BK6/EC77) -> 59% | BL8: =IF(BL6/ED77<0,0,BL6/ED77) -> 0% | BM8: =IF(BM6/EE77<0,0,BM6/EE77) -> 6% | BO8: Alt Percent Funded | BP8: =IF(BP6/EF77<0,0,BP6/EF77) -> 15% | BQ8: =IF(BQ6/EG77<0,0,BQ6/EG77) -> 22% | BR8: =IF(BR6/EH77<0,0,BR6/EH77) -> 29% | BS8: =IF(BS6/EI77<0,0,BS6/EI77) -> 30% | BT8: =IF(BT6/EJ77<0,0,BT6/EJ77) -> 35% | BV8: Alt Percent Funded | BW8: =IF(BW6/EK77<0,0,BW6/EK77) -> 41% | BX8: =IF(BX6/EL77<0,0,BX6/EL77) -> 43% | BY8: =IF(BY6/EM77<0,0,BY6/EM77) -> 46% | BZ8: =IF(BZ6/EN77<0,0,BZ6/EN77) -> 46% | CA8: =IF(CA6/EO77<0,0,CA6/EO77) -> 22% | CC8: Alt Percent Funded | CD8: =IF(CD6/EP77<0,0,CD6/EP77) -> 30% | CE8: =IF(CE6/EQ77<0,0,CE6/EQ77) -> 34% | CF8: =IF(CF6/ER77<0,0,CF6/ER77) -> 37% | CG8: =IF(CG6/ES77<0,0,CG6/ES77) -> 44% | CH8: =IF(CH6/ET77<0,0,CH6/ET77) -> 46% | CJ8: Alt Percent Funded | CK8: =IF(CK6/EU77<0,0,CK6/EU77) -> 49% | CL8: 46% | CM8: 49% | CN8: 44% | CO8: 48% | CP8: 49%
BA9: Alt Min Expense Margin | BB9: =IF(BB77>0,(BB5+BB7+BB4-BB77)/BB77,1) -> 711% | BC9: =IF(BC77>0,(BC5+BC7+BC4-BC77)/BC77,1) -> 3872% | BD9: =IF(BD77>0,(BD5+BD7+BD4-BD77)/BD77,1) -> 227% | BE9: =IF(BE77>0,(BE5+BE7+BE4-BE77)/BE77,1) -> 1217% | BF9: =IF(BF77>0,(BF5+BF7+BF4-BF77)/BF77,1) -> 1195% | BH9: Alt Min Expense Margin | BI9: =IF(BI77>0,(BI5+BI7+BI4-BI77)/BI77,1) -> 2444% | BJ9: =IF(BJ77>0,(BJ5+BJ7+BJ4-BJ77)/BJ77,1) -> 3231% | BK9: =IF(BK77>0,(BK5+BK7+BK4-BK77)/BK77,1) -> 0% | BL9: =IF(BL77>0,(BL5+BL7+BL4-BL77)/BL77,1) -> 77% | BM9: =IF(BM77>0,(BM5+BM7+BM4-BM77)/BM77,1) -> 526% | BO9: Alt Min Expense Margin | BP9: =IF(BP77>0,(BP5+BP7+BP4-BP77)/BP77,1) -> 543% | BQ9: =IF(BQ77>0,(BQ5+BQ7+BQ4-BQ77)/BQ77,1) -> 1063% | BR9: =IF(BR77>0,(BR5+BR7+BR4-BR77)/BR77,1) -> 256% | BS9: =IF(BS77>0,(BS5+BS7+BS4-BS77)/BS77,1) -> 910% | BT9: =IF(BT77>0,(BT5+BT7+BT4-BT77)/BT77,1) -> 2565% | BV9: Alt Min Expense Margin | BW9: =IF(BW77>0,(BW5+BW7+BW4-BW77)/BW77,1) -> 637% | BX9: =IF(BX77>0,(BX5+BX7+BX4-BX77)/BX77,1) -> 1140% | BY9: =IF(BY77>0,(BY5+BY7+BY4-BY77)/BY77,1) -> 439% | BZ9: =IF(BZ77>0,(BZ5+BZ7+BZ4-BZ77)/BZ77,1) -> 35% | CA9: =IF(CA77>0,(CA5+CA7+CA4-CA77)/CA77,1) -> 1405% | CC9: Alt Min Expense Margin | CD9: =IF(CD77>0,(CD5+CD7+CD4-CD77)/CD77,1) -> 396% | CE9: =IF(CE77>0,(CE5+CE7+CE4-CE77)/CE77,1) -> 475% | CF9: =IF(CF77>0,(CF5+CF7+CF4-CF77)/CF77,1) -> 6909% | CG9: =IF(CG77>0,(CG5+CG7+CG4-CG77)/CG77,1) -> 604% | CH9: =IF(CH77>0,(CH5+CH7+CH4-CH77)/CH77,1) -> 1081% | CJ9: Alt Min Expense Margin | CK9: =IF(CK77>0,(CK5+CK7+CK4-CK77)/CK77,1) -> 269% | CL9: 1389% | CM9: 204% | CN9: 1280% | CO9: 684% | CP9: 338%
BA10: Current Contribution rate (period) | BB10: =Main!D19 -> $0 | BC10: =BB10*(1+Main!$D47) -> $0 | BD10: =BC10*(1+Main!$D47) -> $0 | BE10: =BD10*(1+Main!$D47) -> $0 | BF10: =BE10*(1+Main!$D47) -> $0 | BH10: Current Contribution rate (period) | BI10: =BF10*(1+Main!$D47) -> $0 | BJ10: =BI10*(1+Main!$D47) -> $0 | BK10: =BJ10*(1+Main!$D47) -> $0 | BL10: =BK10*(1+Main!$D47) -> $0 | BM10: =BL10*(1+Main!$D47) -> $0 | BO10: Current Contribution rate (period) | BP10: =BM10*(1+Main!$D47) -> $0 | BQ10: =BP10*(1+Main!$D47) -> $0 | BR10: =BQ10*(1+Main!$D47) -> $0 | BS10: =BR10*(1+Main!$D47) -> $0 | BT10: =BS10*(1+Main!$D47) -> $0 | BV10: Current Contribution rate (period) | BW10: =BT10*(1+Main!$D47) -> $0 | BX10: =BW10*(1+Main!$D47) -> $0 | BY10: =BX10*(1+Main!$D47) -> $0 | BZ10: =BY10*(1+Main!$D47) -> $0 | CA10: =BZ10*(1+Main!$D47) -> $0 | CC10: Current Contribution rate (period) | CD10: =CA10*(1+Main!$D47) -> $0 | CE10: =CD10*(1+Main!$D47) -> $0 | CF10: =CE10*(1+Main!$D47) -> $0 | CG10: =CF10*(1+Main!$D47) -> $0 | CH10: =CG10*(1+Main!$D47) -> $0 | CJ10: Current Contribution rate (period) | CK10: =CH10*(1+Main!$D47) -> $0 | CL10: =CK10*(1+Main!$D47) -> $0 | CM10: =CL10*(1+Main!$D47) -> $0 | CN10: =CM10*(1+Main!$D47) -> $0 | CO10: =CN10*(1+Main!$D47) -> $0 | CP10: =CO10*(1+Main!$D47) -> $0
BA11: Current Contribution rate (total) | BB11: =Main!D48*Main!D19*Main!D61 -> $0 | BC11: =BC10*Main!$D48 -> $0 | BD11: =BD10*Main!$D48 -> $0 | BE11: =BE10*Main!$D48 -> $0 | BF11: =BF10*Main!$D48 -> $0 | BH11: Current Contribution rate (total) | BI11: =BI10*Main!$D48 -> $0 | BJ11: =BJ10*Main!$D48 -> $0 | BK11: =BK10*Main!$D48 -> $0 | BL11: =BL10*Main!$D48 -> $0 | BM11: =BM10*Main!$D48 -> $0 | BO11: Current Contribution rate (total) | BP11: =BP10*Main!$D48 -> $0 | BQ11: =BQ10*Main!$D48 -> $0 | BR11: =BR10*Main!$D48 -> $0 | BS11: =BS10*Main!$D48 -> $0 | BT11: =BT10*Main!$D48 -> $0 | BV11: Current Contribution rate (total) | BW11: =BW10*Main!$D48 -> $0 | BX11: =BX10*Main!$D48 -> $0 | BY11: =BY10*Main!$D48 -> $0 | BZ11: =BZ10*Main!$D48 -> $0 | CA11: =CA10*Main!$D48 -> $0 | CC11: Current Contribution rate (total) | CD11: =CD10*Main!$D48 -> $0 | CE11: =CE10*Main!$D48 -> $0 | CF11: =CF10*Main!$D48 -> $0 | CG11: =CG10*Main!$D48 -> $0 | CH11: =CH10*Main!$D48 -> $0 | CJ11: Current Contribution rate (total) | CK11: =CK10*Main!$D48 -> $0 | CL11: =CL10*Main!$D48 -> $0 | CM11: =CM10*Main!$D48 -> $0 | CN11: =CN10*Main!$D48 -> $0 | CO11: =CO10*Main!$D48 -> $0 | CP11: =CP10*Main!$D48 -> $0
BA12: Current Interest Earnings | BB12: =IF((BB14+(BB11-BB77)/2)>0,(BB14+(BB11-BB77)/2)*Main!$D67,0) -> $4,153 | BC12: =IF((BC14+(BC11-BC77)/2)>0,(BC14+(BC11-BC77)/2)*Main!$D67,0) -> $3,824 | BD12: =IF((BD14+(BD11-BD77)/2)>0,(BD14+(BD11-BD77)/2)*Main!$D67,0) -> $2,974 | BE12: =IF((BE14+(BE11-BE77)/2)>0,(BE14+(BE11-BE77)/2)*Main!$D67,0) -> $2,013 | BF12: =IF((BF14+(BF11-BF77)/2)>0,(BF14+(BF11-BF77)/2)*Main!$D67,0) -> $1,691 | BH12: Current Interest Earnings | BI12: =IF((BI14+(BI11-BI77)/2)>0,(BI14+(BI11-BI77)/2)*Main!$D67,0) -> $1,433 | BJ12: =IF((BJ14+(BJ11-BJ77)/2)>0,(BJ14+(BJ11-BJ77)/2)*Main!$D67,0) -> $1,252 | BK12: =IF((BK14+(BK11-BK77)/2)>0,(BK14+(BK11-BK77)/2)*Main!$D67,0) -> $0 | BL12: =IF((BL14+(BL11-BL77)/2)>0,(BL14+(BL11-BL77)/2)*Main!$D67,0) -> $0 | BM12: =IF((BM14+(BM11-BM77)/2)>0,(BM14+(BM11-BM77)/2)*Main!$D67,0) -> $0 | BO12: Current Interest Earnings | BP12: =IF((BP14+(BP11-BP77)/2)>0,(BP14+(BP11-BP77)/2)*Main!$D67,0) -> $0 | BQ12: =IF((BQ14+(BQ11-BQ77)/2)>0,(BQ14+(BQ11-BQ77)/2)*Main!$D67,0) -> $0 | BR12: =IF((BR14+(BR11-BR77)/2)>0,(BR14+(BR11-BR77)/2)*Main!$D67,0) -> $0 | BS12: =IF((BS14+(BS11-BS77)/2)>0,(BS14+(BS11-BS77)/2)*Main!$D67,0) -> $0 | BT12: =IF((BT14+(BT11-BT77)/2)>0,(BT14+(BT11-BT77)/2)*Main!$D67,0) -> $0 | BV12: Current Interest Earnings | BW12: =IF((BW14+(BW11-BW77)/2)>0,(BW14+(BW11-BW77)/2)*Main!$D67,0) -> $0 | BX12: =IF((BX14+(BX11-BX77)/2)>0,(BX14+(BX11-BX77)/2)*Main!$D67,0) -> $0 | BY12: =IF((BY14+(BY11-BY77)/2)>0,(BY14+(BY11-BY77)/2)*Main!$D67,0) -> $0 | BZ12: =IF((BZ14+(BZ11-BZ77)/2)>0,(BZ14+(BZ11-BZ77)/2)*Main!$D67,0) -> $0 | CA12: =IF((CA14+(CA11-CA77)/2)>0,(CA14+(CA11-CA77)/2)*Main!$D67,0) -> $0 | CC12: Current Interest Earnings | CD12: =IF((CD14+(CD11-CD77)/2)>0,(CD14+(CD11-CD77)/2)*Main!$D67,0) -> $0 | CE12: =IF((CE14+(CE11-CE77)/2)>0,(CE14+(CE11-CE77)/2)*Main!$D67,0) -> $0 | CF12: =IF((CF14+(CF11-CF77)/2)>0,(CF14+(CF11-CF77)/2)*Main!$D67,0) -> $0 | CG12: =IF((CG14+(CG11-CG77)/2)>0,(CG14+(CG11-CG77)/2)*Main!$D67,0) -> $0 | CH12: =IF((CH14+(CH11-CH77)/2)>0,(CH14+(CH11-CH77)/2)*Main!$D67,0) -> $0 | CJ12: Current Interest Earnings | CK12: =IF((CK14+(CK11-CK77)/2)>0,(CK14+(CK11-CK77)/2)*Main!$D67,0) -> $0 | CL12: =IF((CL14+(CL11-CL77)/2)>0,(CL14+(CL11-CL77)/2)*Main!$D67,0) -> $0 | CM12: =IF((CM14+(CM11-CM77)/2)>0,(CM14+(CM11-CM77)/2)*Main!$D67,0) -> $0 | CN12: =IF((CN14+(CN11-CN77)/2)>0,(CN14+(CN11-CN77)/2)*Main!$D67,0) -> $0 | CO12: =IF((CO14+(CO11-CO77)/2)>0,(CO14+(CO11-CO77)/2)*Main!$D67,0) -> $0 | CP12: =IF((CP14+(CP11-CP77)/2)>0,(CP14+(CP11-CP77)/2)*Main!$D67,0) -> $0
BA13: Current Starting Balance (for charts) | BB13: =Main!D20 -> $444,123 | BC13: =IF(BB14+BB12+BB11-BB77>0,BB14+BB12+BB11-BB77, 0) -> $386,826 | BD13: =IF(BC14+BC12+BC11-BC77>0,BC14+BC12+BC11-BC77, 0) -> $378,238 | BE13: =IF(BD14+BD12+BD11-BD77>0,BD14+BD12+BD11-BD77, 0) -> $216,772 | BF13: =IF(BE14+BE12+BE11-BE77>0,BE14+BE12+BE11-BE77, 0) -> $186,004 | BH13: Current Starting Balance (for charts) | BI13: =IF(BF14+BF12+BF11-BF77>0,BF14+BF12+BF11-BF77, 0) -> $152,241 | BJ13: =IF(BI14+BI12+BI11-BI77>0,BI14+BI12+BI11-BI77, 0) -> $134,546 | BK13: =IF(BJ14+BJ12+BJ11-BJ77>0,BJ14+BJ12+BJ11-BJ77, 0) -> $116,037 | BL13: =IF(BK14+BK12+BK11-BK77>0,BK14+BK12+BK11-BK77, 0) -> $0 | BM13: =IF(BL14+BL12+BL11-BL77>0,BL14+BL12+BL11-BL77, 0) -> $0 | BO13: Current Starting Balance (for charts) | BP13: =IF(BM14+BM12+BM11-BM77>0,BM14+BM12+BM11-BM77, 0) -> $0 | BQ13: =IF(BP14+BP12+BP11-BP77>0,BP14+BP12+BP11-BP77, 0) -> $0 | BR13: =IF(BQ14+BQ12+BQ11-BQ77>0,BQ14+BQ12+BQ11-BQ77, 0) -> $0 | BS13: =IF(BR14+BR12+BR11-BR77>0,BR14+BR12+BR11-BR77, 0) -> $0 | BT13: =IF(BS14+BS12+BS11-BS77>0,BS14+BS12+BS11-BS77, 0) -> $0 | BV13: Current Starting Balance (for charts) | BW13: =IF(BT14+BT12+BT11-BT77>0,BT14+BT12+BT11-BT77, 0) -> $0 | BX13: =IF(BW14+BW12+BW11-BW77>0,BW14+BW12+BW11-BW77, 0) -> $0 | BY13: =IF(BX14+BX12+BX11-BX77>0,BX14+BX12+BX11-BX77, 0) -> $0 | BZ13: =IF(BY14+BY12+BY11-BY77>0,BY14+BY12+BY11-BY77, 0) -> $0 | CA13: =IF(BZ14+BZ12+BZ11-BZ77>0,BZ14+BZ12+BZ11-BZ77, 0) -> $0 | CC13: Current Starting Balance (for charts) | CD13: =IF(CA14+CA12+CA11-CA77>0,CA14+CA12+CA11-CA77, 0) -> $0 | CE13: =IF(CD14+CD12+CD11-CD77>0,CD14+CD12+CD11-CD77, 0) -> $0 | CF13: =IF(CE14+CE12+CE11-CE77>0,CE14+CE12+CE11-CE77, 0) -> $0 | CG13: =IF(CF14+CF12+CF11-CF77>0,CF14+CF12+CF11-CF77, 0) -> $0 | CH13: =IF(CG14+CG12+CG11-CG77>0,CG14+CG12+CG11-CG77, 0) -> $0 | CJ13: Current Starting Balance (for charts) | CK13: =IF(CH14+CH12+CH11-CH77>0,CH14+CH12+CH11-CH77, 0) -> $0 | CL13: =IF(CK14+CK12+CK11-CK77>0,CK14+CK12+CK11-CK77, 0) -> $0 | CM13: =IF(CL14+CL12+CL11-CL77>0,CL14+CL12+CL11-CL77, 0) -> $0 | CN13: =IF(CM14+CM12+CM11-CM77>0,CM14+CM12+CM11-CM77, 0) -> $0 | CO13: =IF(CN14+CN12+CN11-CN77>0,CN14+CN12+CN11-CN77, 0) -> $0 | CP13: =IF(CO14+CO12+CO11-CO77>0,CO14+CO12+CO11-CO77, 0) -> $0
BA14: Current Starting Balance (for calcs) | BB14: =Main!D20 -> $444,123 | BC14: =BB14+BB12+BB11-BB77 -> $386,826 | BD14: =BC14+BC12+BC11-BC77 -> $378,238 | BE14: =BD14+BD12+BD11-BD77 -> $216,772 | BF14: =BE14+BE12+BE11-BE77 -> $186,004 | BH14: Current Starting Balance (for calcs) | BI14: =BF14+BF12+BF11-BF77 -> $152,241 | BJ14: =BI14+BI12+BI11-BI77 -> $134,546 | BK14: =BJ14+BJ12+BJ11-BJ77 -> $116,037 | BL14: =BK14+BK12+BK11-BK77 -> -$584,991 | BM14: =BL14+BL12+BL11-BL77 -> -$621,981 | BO14: Current Starting Balance (for calcs) | BP14: =BM14+BM12+BM11-BM77 -> -$636,986 | BQ14: =BP14+BP12+BP11-BP77 -> -$659,832 | BR14: =BQ14+BQ12+BQ11-BQ77 -> -$676,513 | BS14: =BR14+BR12+BR11-BR77 -> -$746,446 | BT14: =BS14+BS12+BS11-BS77 -> -$771,411 | BV14: Current Starting Balance (for calcs) | BW14: =BT14+BT12+BT11-BT77 -> -$782,756 | BX14: =BW14+BW12+BW11-BW77 -> -$832,688 | BY14: =BX14+BX12+BX11-BX77 -> -$864,702 | BZ14: =BY14+BY12+BY11-BY77 -> -$947,345 | CA14: =BZ14+BZ12+BZ11-BZ77 -> -$1,275,063 | CC14: Current Starting Balance (for calcs) | CD14: =CA14+CA12+CA11-CA77 -> -$1,288,214 | CE14: =CD14+CD12+CD11-CD77 -> -$1,342,398 | CF14: =CE14+CE12+CE11-CE77 -> -$1,394,579 | CG14: =CF14+CF12+CF11-CF77 -> -$1,399,369 | CH14: =CG14+CG12+CG11-CG77 -> -$1,459,169 | CJ14: Current Starting Balance (for calcs) | CK14: =CH14+CH12+CH11-CH77 -> -$1,497,589 | CL14: =CK14+CK12+CK11-CK77 -> -$1,635,778 | CM14: =CL14+CL12+CL11-CL77 -> -$1,667,156 | CN14: =CM14+CM12+CM11-CM77 -> -$1,842,749 | CO14: =CN14+CN12+CN11-CN77 -> -$1,875,924 | CP14: =CO14+CO12+CO11-CO77 -> -$1,943,086
BA15: Current Percent Funded | BB15: =IF(BB13/DV77<0,0,BB13/DV77) -> 94% | BC15: =IF(BC13/DW77<0,0,BC13/DW77) -> 82% | BD15: =IF(BD13/DX77<0,0,BD13/DX77) -> 72% | BE15: =IF(BE13/DY77<0,0,BE13/DY77) -> 50% | BF15: =IF(BF13/DZ77<0,0,BF13/DZ77) -> 39% | BH15: Current Percent Funded | BI15: =IF(BI13/EA77<0,0,BI13/EA77) -> 27% | BJ15: =IF(BJ13/EB77<0,0,BJ13/EB77) -> 19% | BK15: =IF(BK13/EC77<0,0,BK13/EC77) -> 11% | BL15: =IF(BL13/ED77<0,0,BL13/ED77) -> 0% | BM15: =IF(BM13/EE77<0,0,BM13/EE77) -> 0% | BO15: Current Percent Funded | BP15: =IF(BP13/EF77<0,0,BP13/EF77) -> 0% | BQ15: =IF(BQ13/EG77<0,0,BQ13/EG77) -> 0% | BR15: =IF(BR13/EH77<0,0,BR13/EH77) -> 0% | BS15: =IF(BS13/EI77<0,0,BS13/EI77) -> 0% | BT15: =IF(BT13/EJ77<0,0,BT13/EJ77) -> 0% | BV15: Current Percent Funded | BW15: =IF(BW13/EK77<0,0,BW13/EK77) -> 0% | BX15: =IF(BX13/EL77<0,0,BX13/EL77) -> 0% | BY15: =IF(BY13/EM77<0,0,BY13/EM77) -> 0% | BZ15: =IF(BZ13/EN77<0,0,BZ13/EN77) -> 0% | CA15: =IF(CA13/EO77<0,0,CA13/EO77) -> 0% | CC15: Current Percent Funded | CD15: =IF(CD13/EP77<0,0,CD13/EP77) -> 0% | CE15: =IF(CE13/EQ77<0,0,CE13/EQ77) -> 0% | CF15: =IF(CF13/ER77<0,0,CF13/ER77) -> 0% | CG15: =IF(CG13/ES77<0,0,CG13/ES77) -> 0% | CH15: =IF(CH13/ET77<0,0,CH13/ET77) -> 0% | CJ15: Current Percent Funded | CK15: =IF(CK13/EU77<0,0,CK13/EU77) -> 0% | CL15: 0% | CM15: 0% | CN15: 0% | CO15: 0% | CP15: 0%
BA16: Recommended Annual Avg. Balance | BB16: =BB24+(BB25+BB26-BB77)/2 -> $443,363 | BC16: =BC24+(BC25+BC26-BC77)/2 -> $471,715 | BD16: =BD24+(BD25+BD26-BD77)/2 -> $450,682 | BE16: =BE24+(BE25+BE26-BE77)/2 -> $421,133 | BF16: =BF24+(BF25+BF26-BF77)/2 -> $457,715 | BH16: Recommended Annual Avg. Balance | BI16: =BI24+(BI25+BI26-BI77)/2 -> $565,986 | BJ16: =BJ24+(BJ25+BJ26-BJ77)/2 -> $685,245 | BK16: =BK24+(BK25+BK26-BK77)/2 -> $404,367 | BL16: =BL24+(BL25+BL26-BL77)/2 -> $114,232 | BM16: =BM24+(BM25+BM26-BM77)/2 -> $166,438 | BO16: Recommended Annual Avg. Balance | BP16: =BP24+(BP25+BP26-BP77)/2 -> $228,553 | BQ16: =BQ24+(BQ25+BQ26-BQ77)/2 -> $292,432 | BR16: =BR24+(BR25+BR26-BR77)/2 -> $335,036 | BS16: =BS24+(BS25+BS26-BS77)/2 -> $375,585 | BT16: =BT24+(BT25+BT26-BT77)/2 -> $447,529 | BV16: Recommended Annual Avg. Balance | BW16: =BW24+(BW25+BW26-BW77)/2 -> $509,438 | BX16: =BX24+(BX25+BX26-BX77)/2 -> $563,395 | BY16: =BY24+(BY25+BY26-BY77)/2 -> $603,336 | BZ16: =BZ24+(BZ25+BZ26-BZ77)/2 -> $497,658 | CA16: =CA24+(CA25+CA26-CA77)/2 -> $427,533 | CC16: Recommended Annual Avg. Balance | CD16: =CD24+(CD25+CD26-CD77)/2 -> $495,377 | CE16: =CE24+(CE25+CE26-CE77)/2 -> $546,332 | CF16: =CF24+(CF25+CF26-CF77)/2 -> $624,479 | CG16: =CG24+(CG25+CG26-CG77)/2 -> $701,624 | CH16: =CH24+(CH25+CH26-CH77)/2 -> $764,793 | CJ16: Recommended Annual Avg. Balance | CK16: =CK24+(CK25+CK26-CK77)/2 -> $791,506 | CL16: $824,155 | CM16: $840,620 | CN16: $858,585 | CO16: $933,225 | CP16: $963,142
BA17: Recommended Periodic Reserve Contribs | BB17: =Main!D30 -> $59,930 | BC17: =BC25/Main!$D48 -> $61,728 | BD17: =BD25/Main!$D48 -> $63,580 | BE17: =BE25/Main!$D48 -> $65,487 | BF17: =BF25/Main!$D48 -> $67,452 | BH17: Recommended Periodic Reserve Contribs | BI17: =BI25/Main!$D48 -> $69,475 | BJ17: =BJ25/Main!$D48 -> $71,560 | BK17: =BK25/Main!$D48 -> $73,706 | BL17: =BL25/Main!$D48 -> $75,918 | BM17: =BM25/Main!$D48 -> $78,195 | BO17: Recommended Periodic Reserve Contribs | BP17: =BP25/Main!$D48 -> $80,541 | BQ17: =BQ25/Main!$D48 -> $82,152 | BR17: =BR25/Main!$D48 -> $83,795 | BS17: =BS25/Main!$D48 -> $85,471 | BT17: =BT25/Main!$D48 -> $87,180 | BV17: Recommended Periodic Reserve Contribs | BW17: =BW25/Main!$D48 -> $88,924 | BX17: =BX25/Main!$D48 -> $90,702 | BY17: =BY25/Main!$D48 -> $92,516 | BZ17: =BZ25/Main!$D48 -> $94,367 | CA17: =CA25/Main!$D48 -> $96,254 | CC17: Recommended Periodic Reserve Contribs | CD17: =CD25/Main!$D48 -> $98,179 | CE17: =CE25/Main!$D48 -> $100,142 | CF17: =CF25/Main!$D48 -> $102,145 | CG17: =CG25/Main!$D48 -> $104,188 | CH17: =CH25/Main!$D48 -> $106,272 | CJ17: Recommended Periodic Reserve Contribs | CK17: =CK25/Main!$D48 -> $108,397 | CL17: =CL25/Main!$D48 -> $110,565 | CM17: =CM25/Main!$D48 -> $112,777 | CN17: =CN25/Main!$D48 -> $115,032 | CO17: =CO25/Main!$D48 -> $117,333 | CP17: =CP25/Main!$D48 -> $119,680
BA18: Recommended Percent Funded | BB18: =IF(BB24/DV77<0,0,BB24/DV77) -> 93.8% | BC18: =IF(BC24/DW77<0,0,BC24/DW77) -> 94.8% | BD18: =IF(BD24/DX77<0,0,BD24/DX77) -> 95.4% | BE18: =IF(BE24/DY77<0,0,BE24/DY77) -> 94.0% | BF18: =IF(BF24/DZ77<0,0,BF24/DZ77) -> 91.7% | BH18: Recommended Percent Funded | BI18: =IF(BI24/EA77<0,0,BI24/EA77) -> 86.3% | BJ18: =IF(BJ24/EB77<0,0,BJ24/EB77) -> 93.7% | BK18: =IF(BK24/EC77<0,0,BK24/EC77) -> 66.1% | BL18: =IF(BL24/ED77<0,0,BL24/ED77) -> 21.4% | BM18: =IF(BM24/EE77<0,0,BM24/EE77) -> 29.0% | BO18: Recommended Percent Funded | BP18: =IF(BP24/EF77<0,0,BP24/EF77) -> 39.0% | BQ18: =IF(BQ24/EG77<0,0,BQ24/EG77) -> 46.9% | BR18: =IF(BR24/EH77<0,0,BR24/EH77) -> 54.2% | BS18: =IF(BS24/EI77<0,0,BS24/EI77) -> 57.2% | BT18: =IF(BT24/EJ77<0,0,BT24/EJ77) -> 62.9% | BV18: Recommended Percent Funded | BW18: =IF(BW24/EK77<0,0,BW24/EK77) -> 68.5% | BX18: =IF(BX24/EL77<0,0,BX24/EL77) -> 71.9% | BY18: =IF(BY24/EM77<0,0,BY24/EM77) -> 75.6% | BZ18: =IF(BZ24/EN77<0,0,BZ24/EN77) -> 77.6% | CA18: =IF(CA24/EO77<0,0,CA24/EO77) -> 71.4% | CC18: Recommended Percent Funded | CD18: =IF(CD24/EP77<0,0,CD24/EP77) -> 77.8% | CE18: =IF(CE24/EQ77<0,0,CE24/EQ77) -> 81.9% | CF18: =IF(CF24/ER77<0,0,CF24/ER77) -> 85.6% | CG18: =IF(CG24/ES77<0,0,CG24/ES77) -> 89.5% | CH18: =IF(CH24/ET77<0,0,CH24/ET77) -> 92.1% | CJ18: Recommended Percent Funded | CK18: =IF(CK24/EU77<0,0,CK24/EU77) -> 94.6% | CL18: 96.4% | CM18: 98.4% | CN18: 100.4% | CO18: 102.1% | CP18: 103.6%
BA19: Reference Point | BB19: 100% | BC19: 100% | BD19: 100% | BE19: 100% | BF19: 100% | BH19: Reference Point | BI19: 100% | BJ19: 100% | BK19: 100% | BL19: 100% | BM19: 100% | BO19: Reference Point | BP19: 100% | BQ19: 100% | BR19: 100% | BS19: 100% | BT19: 100% | BV19: Reference Point | BW19: 100% | BX19: 100% | BY19: 100% | BZ19: 100% | CA19: 100% | CC19: Reference Point | CD19: 100% | CE19: 100% | CF19: 100% | CG19: 100% | CH19: 100% | CJ19: Reference Point | CK19: 100% | CL19: 100% | CM19: 100% | CN19: 100% | CO19: 100% | CP19: 100%
AZ21: Table 6: 30-Year Income/Expense Detail (yrs 0 through 4) | BF21: =Main!$D$10 -> 24907-1 | BG21: Table 6: 30-Year Income/Expense Detail (yrs 5 through 9) | BM21: =Main!$D$10 -> 24907-1 | BN21: Table 6: 30-Year Income/Expense Detail (yrs 10 through 14) | BT21: =Main!$D$10 -> 24907-1 | BU21: Table 6: 30-Year Income/Expense Detail (yrs 15 through 19) | CA21: =Main!$D$10 -> 24907-1 | CB21: Table 6: 30-Year Income/Expense Detail (yrs 20 through 24) | CH21: =Main!$D$10 -> 24907-1 | CI21: Table 6: 30-Year Income/Expense Detail (yrs 25 through 29) | CO21: =Main!$D$10 -> 24907-1
BB22: 1 | BC22: 1 | BD22: 1 | BE22: 1 | BF22: 1 | BI22: 1 | BJ22: 1 | BK22: 1 | BL22: 1 | BM22: 1 | BP22: 1 | BQ22: 1 | BR22: 1 | BS22: 1 | BT22: 1 | BW22: 1 | BX22: 1 | BY22: 1 | BZ22: 1 | CA22: 1 | CD22: 1 | CE22: 1 | CF22: 1 | CG22: 1 | CH22: 1 | CK22: 1 | CL22: 1 | CM22: 1 | CN22: 1 | CO22: 1
BA23: Fiscal Year | BB23: =Main!D14 -> 2022 | BC23: =BB23+1 -> 2023 | BD23: =BC23+1 -> 2024 | BE23: 2025 | BF23: 2026 | BH23: Fiscal Year | BI23: =BF23+1 -> 2027 | BJ23: 2028 | BK23: 2029 | BL23: 2030 | BM23: 2031 | BO23: Fiscal Year | BP23: =BM23+1 -> 2032 | BQ23: 2033 | BR23: 2034 | BS23: 2035 | BT23: 2036 | BV23: Fiscal Year | BW23: =BT23+1 -> 2037 | BX23: 2038 | BY23: 2039 | BZ23: 2040 | CA23: 2041 | CC23: Fiscal Year | CD23: =CA23+1 -> 2042 | CE23: 2043 | CF23: 2044 | CG23: 2045 | CH23: 2046 | CJ23: Fiscal Year | CK23: =CH23+1 -> 2047 | CL23: 2048 | CM23: 2049 | CN23: 2050 | CO23: 2051 | CP23: 2052
BA24: Starting Reserve Balance | BB24: =Main!D20 -> $444,123 | BC24: =+BB79 -> $447,057 | BD24: $501,112 | BE24: $404,780 | BF24: $441,716 | BH24: Starting Reserve Balance | BI24: =+BF79 -> $478,312 | BJ24: $659,346 | BK24: $718,027 | BL24: $94,768 | BM24: $134,843 | BO24: Starting Reserve Balance | BP24: =+BM79 -> $199,706 | BQ24: $259,696 | BR24: $328,105 | BS24: $345,332 | BT24: $409,611 | BV24: Starting Reserve Balance | BW24: =+BT79 -> $489,943 | BX24: $534,051 | BY24: $598,399 | BZ24: $614,334 | CA24: $385,982 | CC24: Starting Reserve Balance | CD24: =+CA79 -> $473,379 | CE24: $522,351 | CF24: $575,801 | CG24: $679,430 | CH24: $730,867 | CJ24: Starting Reserve Balance | CK24: =+CH79 -> $806,402 | CL24: $784,562 | CM24: $872,028 | CN24: $817,657 | CO24: $908,139 | CP24: $967,685 | FD24: RowCount | FE24: =COUNTA(F30:F77)-1 -> 46
BA25: Annual Reserve Contribution | BB25: =Main!D48*Main!D30*Main!D61 -> $59,930 | BC25: =IF(BC2<=Main!$D33,(Main!$D30*Main!$D48)*(1+Main!$D32),IF(BC2<=(Main!$D33+Main!$D35),(Main!$D30*Main!$D48)*(1+Main!$D34),(Main!$D30*Main!$D48))) -> $61,728 | BD25: =IF(BD2<=Main!$D33,BC25*(1+Main!$D32),IF(BD2<=(Main!$D33+Main!$D35),BC25*(1+Main!$D34),BC25)) -> $63,580 | BE25: =IF(BE2<=Main!$D33,BD25*(1+Main!$D32),IF(BE2<=(Main!$D33+Main!$D35),BD25*(1+Main!$D34),BD25)) -> $65,487 | BF25: =IF(BF2<=Main!$D33,BE25*(1+Main!$D32),IF(BF2<=(Main!$D33+Main!$D35),BE25*(1+Main!$D34),BE25)) -> $67,452 | BH25: Annual Reserve Contribution | BI25: =IF(BI2<=Main!$D33,BF25*(1+Main!$D32),IF(BI2<=(Main!$D33+Main!$D35),BF25*(1+Main!$D34),BF25)) -> $69,475 | BJ25: =IF(BJ2<=Main!$D33,BI25*(1+Main!$D32),IF(BJ2<=(Main!$D33+Main!$D35),BI25*(1+Main!$D34),BI25)) -> $71,560 | BK25: =IF(BK2<=Main!$D33,BJ25*(1+Main!$D32),IF(BK2<=(Main!$D33+Main!$D35),BJ25*(1+Main!$D34),BJ25)) -> $73,706 | BL25: =IF(BL2<=Main!$D33,BK25*(1+Main!$D32),IF(BL2<=(Main!$D33+Main!$D35),BK25*(1+Main!$D34),BK25)) -> $75,918 | BM25: =IF(BM2<=Main!$D33,BL25*(1+Main!$D32),IF(BM2<=(Main!$D33+Main!$D35),BL25*(1+Main!$D34),BL25)) -> $78,195 | BO25: Annual Reserve Contribution | BP25: =IF(BP2<=Main!$D33,BM25*(1+Main!$D32),IF(BP2<=(Main!$D33+Main!$D35),BM25*(1+Main!$D34),BM25)) -> $80,541 | BQ25: =IF(BQ2<=Main!$D33,BP25*(1+Main!$D32),IF(BQ2<=(Main!$D33+Main!$D35),BP25*(1+Main!$D34),BP25)) -> $82,152 | BR25: =IF(BR2<=Main!$D33,BQ25*(1+Main!$D32),IF(BR2<=(Main!$D33+Main!$D35),BQ25*(1+Main!$D34),BQ25)) -> $83,795 | BS25: =IF(BS2<=Main!$D33,BR25*(1+Main!$D32),IF(BS2<=(Main!$D33+Main!$D35),BR25*(1+Main!$D34),BR25)) -> $85,471 | BT25: =IF(BT2<=Main!$D33,BS25*(1+Main!$D32),IF(BT2<=(Main!$D33+Main!$D35),BS25*(1+Main!$D34),BS25)) -> $87,180 | BV25: Annual Reserve Contribution | BW25: =IF(BW2<=Main!$D33,BT25*(1+Main!$D32),IF(BW2<=(Main!$D33+Main!$D35),BT25*(1+Main!$D34),BT25)) -> $88,924 | BX25: =IF(BX2<=Main!$D33,BW25*(1+Main!$D32),IF(BX2<=(Main!$D33+Main!$D35),BW25*(1+Main!$D34),BW25)) -> $90,702 | BY25: =IF(BY2<=Main!$D33,BX25*(1+Main!$D32),IF(BY2<=(Main!$D33+Main!$D35),BX25*(1+Main!$D34),BX25)) -> $92,516 | BZ25: =IF(BZ2<=Main!$D33,BY25*(1+Main!$D32),IF(BZ2<=(Main!$D33+Main!$D35),BY25*(1+Main!$D34),BY25)) -> $94,367 | CA25: =IF(CA2<=Main!$D33,BZ25*(1+Main!$D32),IF(CA2<=(Main!$D33+Main!$D35),BZ25*(1+Main!$D34),BZ25)) -> $96,254 | CC25: Annual Reserve Contribution | CD25: =IF(CD2<=Main!$D33,CA25*(1+Main!$D32),IF(CD2<=(Main!$D33+Main!$D35),CA25*(1+Main!$D34),CA25)) -> $98,179 | CE25: =IF(CE2<=Main!$D33,CD25*(1+Main!$D32),IF(CE2<=(Main!$D33+Main!$D35),CD25*(1+Main!$D34),CD25)) -> $100,142 | CF25: =IF(CF2<=Main!$D33,CE25*(1+Main!$D32),IF(CF2<=(Main!$D33+Main!$D35),CE25*(1+Main!$D34),CE25)) -> $102,145 | CG25: =IF(CG2<=Main!$D33,CF25*(1+Main!$D32),IF(CG2<=(Main!$D33+Main!$D35),CF25*(1+Main!$D34),CF25)) -> $104,188 | CH25: =IF(CH2<=Main!$D33,CG25*(1+Main!$D32),IF(CH2<=(Main!$D33+Main!$D35),CG25*(1+Main!$D34),CG25)) -> $106,272 | CJ25: Annual Reserve Contribution | CK25: =IF(CK2<=Main!$D33,CH25*(1+Main!$D32),IF(CK2<=(Main!$D33+Main!$D35),CH25*(1+Main!$D34),CH25)) -> $108,397 | CL25: =IF(CL2<=Main!$D33,CK25*(1+Main!$D32),IF(CL2<=(Main!$D33+Main!$D35),CK25*(1+Main!$D34),CK25)) -> $110,565 | CM25: =IF(CM2<=Main!$D33,CL25*(1+Main!$D32),IF(CM2<=(Main!$D33+Main!$D35),CL25*(1+Main!$D34),CL25)) -> $112,777 | CN25: =IF(CN2<=Main!$D33,CM25*(1+Main!$D32),IF(CN2<=(Main!$D33+Main!$D35),CM25*(1+Main!$D34),CM25)) -> $115,032 | CO25: =IF(CO2<=Main!$D33,CN25*(1+Main!$D32),IF(CO2<=(Main!$D33+Main!$D35),CN25*(1+Main!$D34),CN25)) -> $117,333 | CP25: =IF(CP2<=Main!$D33,CO25*(1+Main!$D32),IF(CP2<=(Main!$D33+Main!$D35),CO25*(1+Main!$D34),CO25)) -> $119,680 | FD25: Years
C26: Raw Data for Reserve Analysis goes below double line | N26: Table 1: Executive Summary | R26: =Main!$D$10 -> 24907-1 | S26: Table 2: Reserve Component List Detail | Y26: =Main!$D$10 -> 24907-1 | Z26: Table 3: Fully Funded Balance | AH26: =Main!$D$10 -> 24907-1 | AJ26: Table 4: Component Significance | AO26: =Main!$D$10 -> 24907-1 | AQ26: Accounting - Tax Summary | AX26: =Main!$D$10 -> 24907-1 | BA26: Recommended Special Assessments | BB26: =Main!D36 -> $0 | BC26: =Main!D37 -> $0 | BD26: =Main!D38 -> $0 | BE26: =Main!D39 -> $0 | BF26: =Main!D40 -> $0 | BH26: Recommended Special Assessments | BI26: $125,000 | BJ26: $0 | BK26: $0 | BL26: $0 | BM26: $0 | BO26: Recommended Special Assessments | BP26: $0 | BQ26: $0 | BR26: $0 | BS26: $0 | BT26: $0 | BV26: Recommended Special Assessments | BW26: $0 | BX26: $0 | BY26: $0 | BZ26: $0 | CA26: $0 | CC26: Recommended Special Assessments | CD26: $0 | CE26: $0 | CF26: $0 | CG26: $0 | CH26: $0 | CJ26: Recommended Special Assessments | CK26: $0 | CL26: $0 | CM26: $0 | CN26: $0 | CO26: $0 | CP26: $0 | CQ26: RUL Calculations | DV26: FFB Calculations | FD26: Inflation
BA27: Interest Earnings | BB27: =IF(BB16>0,BB16*Main!$D67,0) -> $4,454 | BC27: =IF(BC16>0,BC16*Main!$D67,0) -> $4,739 | BD27: =IF(BD16>0,BD16*Main!$D67,0) -> $4,528 | BE27: =IF(BE16>0,BE16*Main!$D67,0) -> $4,231 | BF27: =IF(BF16>0,BF16*Main!$D67,0) -> $4,598 | BH27: Interest Earnings | BI27: =IF(BI16>0,BI16*Main!$D67,0) -> $5,686 | BJ27: =IF(BJ16>0,BJ16*Main!$D67,0) -> $6,884 | BK27: =IF(BK16>0,BK16*Main!$D67,0) -> $4,062 | BL27: =IF(BL16>0,BL16*Main!$D67,0) -> $1,148 | BM27: =IF(BM16>0,BM16*Main!$D67,0) -> $1,672 | BO27: Interest Earnings | BP27: =IF(BP16>0,BP16*Main!$D67,0) -> $2,296 | BQ27: =IF(BQ16>0,BQ16*Main!$D67,0) -> $2,938 | BR27: =IF(BR16>0,BR16*Main!$D67,0) -> $3,366 | BS27: =IF(BS16>0,BS16*Main!$D67,0) -> $3,773 | BT27: =IF(BT16>0,BT16*Main!$D67,0) -> $4,496 | BV27: Interest Earnings | BW27: =IF(BW16>0,BW16*Main!$D67,0) -> $5,118 | BX27: =IF(BX16>0,BX16*Main!$D67,0) -> $5,660 | BY27: =IF(BY16>0,BY16*Main!$D67,0) -> $6,061 | BZ27: =IF(BZ16>0,BZ16*Main!$D67,0) -> $4,999 | CA27: =IF(CA16>0,CA16*Main!$D67,0) -> $4,295 | CC27: Interest Earnings | CD27: =IF(CD16>0,CD16*Main!$D67,0) -> $4,977 | CE27: =IF(CE16>0,CE16*Main!$D67,0) -> $5,488 | CF27: =IF(CF16>0,CF16*Main!$D67,0) -> $6,273 | CG27: =IF(CG16>0,CG16*Main!$D67,0) -> $7,048 | CH27: =IF(CH16>0,CH16*Main!$D67,0) -> $7,683 | CJ27: Interest Earnings | CK27: =IF(CK16>0,CK16*Main!$D67,0) -> $7,951 | CL27: =IF(CL16>0,CL16*Main!$D67,0) -> $8,279 | CM27: =IF(CM16>0,CM16*Main!$D67,0) -> $8,445 | CN27: =IF(CN16>0,CN16*Main!$D67,0) -> $8,625 | CO27: =IF(CO16>0,CO16*Main!$D67,0) -> $9,375 | CP27: =IF(CP16>0,CP16*Main!$D67,0) -> $9,676 | DV27: 0 | DW27: 1 | DX27: 2 | DY27: 3 | DZ27: 4 | EA27: 5 | EB27: 6 | EC27: 7 | ED27: 8 | EE27: 9 | EF27: 10 | EG27: 11 | EH27: 12 | EI27: 13 | EJ27: 14 | EK27: 15 | EL27: 16 | EM27: 17 | EN27: 18 | EO27: 19 | EP27: 20 | EQ27: 21 | ER27: 22 | ES27: 23 | ET27: 24 | EU27: 25 | EV27: 26 | EW27: 27 | EX27: 28 | EY27: 29 | EZ27: 30
I28: Remaining | P28: Useful | Q28: Rem. | R28: Current | W28: Rem. | AB28: Current | AH28: Fully | AM28: Current | AU28: Current | AV28: Fully | AW28: Current | AX28: Proportional | BA28: Total Income | BB28: =SUM(BB24:BB27) -> $508,507 | BC28: $513,524 | BD28: $569,220 | BE28: $474,498 | BF28: $513,766 | BH28: Total Income | BI28: $678,474 | BJ28: $737,789 | BK28: $795,796 | BL28: $171,833 | BM28: $214,710 | BO28: Total Income | BP28: $282,543 | BQ28: $344,785 | BR28: $415,266 | BS28: $434,576 | BT28: $501,287 | BV28: Total Income | BW28: $583,984 | BX28: $630,413 | BY28: $696,977 | BZ28: $713,700 | CA28: $486,531 | CC28: Total Income | CD28: $576,535 | CE28: $627,982 | CF28: $684,220 | CG28: $790,666 | CH28: $844,822 | CJ28: Total Income | CK28: $922,751 | CL28: $903,406 | CM28: $993,250 | CN28: $941,314 | CO28: $1,034,847 | CP28: $1,097,040 | CQ28: 0 | CR28: 1 | CS28: 2 | CT28: 3 | CU28: 4 | CV28: 5 | CW28: 6 | CX28: 7 | CY28: 8 | CZ28: 9 | DA28: 10 | DB28: 11 | DC28: 12 | DD28: 13 | DE28: 14 | DF28: 15 | DG28: 16 | DH28: 17 | DI28: 18 | DJ28: 19 | DK28: 20 | DL28: 21 | DM28: 22 | DN28: 23 | DO28: 24 | DP28: 25 | DQ28: 26 | DR28: 27 | DS28: 28 | DT28: 29 | DU28: 30 | DV28: =(1+Main!$D$22)^DV27 -> 1 | DW28: =(1+Main!$D$22)^DW27 -> 1.03 | DX28: =(1+Main!$D$22)^DX27 -> 1.0609 | DY28: =(1+Main!$D$22)^DY27 -> 1.092727 | DZ28: =(1+Main!$D$22)^DZ27 -> 1.12550881 | EA28: =(1+Main!$D$22)^EA27 -> 1.159274074 | EB28: =(1+Main!$D$22)^EB27 -> 1.194052297 | EC28: =(1+Main!$D$22)^EC27 -> 1.229873865 | ED28: =(1+Main!$D$22)^ED27 -> 1.266770081 | EE28: =(1+Main!$D$22)^EE27 -> 1.304773184 | EF28: =(1+Main!$D$22)^EF27 -> 1.343916379 | EG28: =(1+Main!$D$22)^EG27 -> 1.384233871 | EH28: =(1+Main!$D$22)^EH27 -> 1.425760887 | EI28: =(1+Main!$D$22)^EI27 -> 1.468533713 | EJ28: =(1+Main!$D$22)^EJ27 -> 1.512589725 | EK28: =(1+Main!$D$22)^EK27 -> 1.557967417 | EL28: =(1+Main!$D$22)^EL27 -> 1.604706439 | EM28: =(1+Main!$D$22)^EM27 -> 1.652847632 | EN28: =(1+Main!$D$22)^EN27 -> 1.702433061 | EO28: =(1+Main!$D$22)^EO27 -> 1.753506053 | EP28: =(1+Main!$D$22)^EP27 -> 1.806111235 | EQ28: =(1+Main!$D$22)^EQ27 -> 1.860294572 | ER28: =(1+Main!$D$22)^ER27 -> 1.916103409 | ES28: =(1+Main!$D$22)^ES27 -> 1.973586511 | ET28: =(1+Main!$D$22)^ET27 -> 2.032794106 | EU28: =(1+Main!$D$22)^EU27 -> 2.09377793 | EV28: =(1+Main!$D$22)^EV27 -> 2.156591268 | EW28: =(1+Main!$D$22)^EW27 -> 2.221289006 | EX28: =(1+Main!$D$22)^EX27 -> 2.287927676 | EY28: =(1+Main!$D$22)^EY27 -> 2.356565506 | EZ28: =(1+Main!$D$22)^EZ27 -> 2.427262471 | FD28: Remaining | FE28: Inflation
C29: Additional | H29: Useful | I29: Useful | J29: | --- Current Cost Est --- | | P29: Life | Q29: Useful | R29: Cost | V29: Useful | W29: Useful | X29: [ --- Current Cost Estimate --- ] | AB29: Cost | AD29: Effective | AF29: Useful | AH29: Funded | AL29: Useful | AM29: Cost | AN29: Deterioration | AO29: Deterioration | AP29: Fully Funded | AU29: Cost | AV29: Funded | AW29: Fund | AX29: Reserve | FD29: Useful | FE29: Adjusted
C30: Sort 1 | D30: Category | E30: # | F30: Component Title | G30: Description | H30: Life | I30: Life | J30: Best | K30: Worst | M30: Cost | N30: # | O30: Component | P30: (yrs) | Q30: Life (yrs) | R30: Estimate | S30: # | T30: Component | U30: Quantity | V30: Life | W30: Life | X30: Best Case | Y30: Worst Case | Z30: # | AA30: Component | AB30: Estimate | AC30: X | AD30: Age | AE30: / | AF30: Life | AG30: = | AH30: Balance | AJ30: # | AK30: Component | AL30: Life | AM30: Estimate | AN30: Cost/yr | AO30: Significance | AP30: Running Total | AQ30: # | AR30: Component | AS30: UL | AT30: RUL | AU30: Estimate | AV30: Balance | AW30: Balance | AX30: Contribs | AZ30: # | BA30: Component | BG30: # | BH30: Component | BN30: # | BO30: Component | BU30: # | BV30: Component | CB30: # | CC30: Component | CI30: # | CJ30: Component | CQ30: =Main!D14 -> 2022 | CR30: =CQ30+1 -> 2023 | CS30: 2024 | CT30: 2025 | CU30: 2026 | CV30: 2027 | CW30: 2028 | CX30: 2029 | CY30: 2030 | CZ30: 2031 | DA30: 2032 | DB30: 2033 | DC30: 2034 | DD30: 2035 | DE30: 2036 | DF30: 2037 | DG30: 2038 | DH30: 2039 | DI30: 2040 | DJ30: 2041 | DK30: 2042 | DL30: 2043 | DM30: 2044 | DN30: 2045 | DO30: 2046 | DP30: 2047 | DQ30: 2048 | DR30: 2049 | DS30: 2050 | DT30: 2051 | DU30: 2052 | DV30: =Main!AI14 -> 0 | DW30: =DV30+1 -> 1 | DX30: =DW30+1 -> 2 | DY30: 3 | DZ30: 4 | EA30: 5 | EB30: 6 | EC30: 7 | ED30: 8 | EE30: 9 | EF30: 10 | EG30: 11 | EH30: 12 | EI30: 13 | EJ30: 14 | EK30: 15 | EL30: 16 | EM30: 17 | EN30: 18 | EO30: 19 | EP30: 20 | EQ30: 21 | ER30: 22 | ES30: 23 | ET30: 24 | EU30: 25 | EV30: 26 | EW30: 27 | EX30: 28 | EY30: 29 | EZ30: 30 | FD30: Life | FE30: Cost
A31: =AND(ISBLANK(E31),ISBLANK(G31)) -> TRUE | C31: 1 | F31: Site Components | M31: =(J31+K31)/2 -> $0 | O31: =F31 -> Site Components | T31: =F31 -> Site Components | AA31: =F31 -> Site Components | AK31: =F31 -> Site Components | AP31: =SUM(AV$31:AV31) -> $0 | AR31: =F31 -> Site Components | BA31: =$F31 -> Site Components | BH31: =$F31 -> Site Components | BO31: =$F31 -> Site Components | BV31: =$F31 -> Site Components | CC31: =$F31 -> Site Components | CJ31: =$F31 -> Site Components | CQ31: =IF(H31=0,I31,IF($I31>$H31,$H31,$I31)) -> 0 | CR31: =IF(AND($H31>0,$I31-CR$28>=$H31),$H31,IF(CQ31=999,999,IF(CQ31-1<0,IF($H31=0,999,$H31-1),CQ31-1))) -> 999 | CS31: 999 | CT31: 999 | CU31: 999 | CV31: 999 | CW31: 999 | CX31: 999 | CY31: 999 | CZ31: 999 | DA31: 999 | DB31: 999 | DC31: 999 | DD31: 999 | DE31: 999 | DF31: 999 | DG31: 999 | DH31: 999 | DI31: 999 | DJ31: 999 | DK31: 999 | DL31: 999 | DM31: 999 | DN31: 999 | DO31: 999 | DP31: 999 | DQ31: 999 | DR31: 999 | DS31: 999 | DT31: 999 | DU31: 999 | DV31: =IF($H31>0,$M31*($H31-CQ31)/$H31,$M31/(CQ31+1)) -> 0.0 | DW31: =IF(CR31=999,0,IF($H31>0,DW$28*$M31*($H31-CR31)/$H31,DW$28*$M31/(CR31+1))) -> 0.0 | DX31: =IF(CS31=999,0,IF($H31>0,DX$28*$M31*($H31-CS31)/$H31,DX$28*$M31/(CS31+1))) -> 0.0 | DY31: =IF(CT31=999,0,IF($H31>0,DY$28*$M31*($H31-CT31)/$H31,DY$28*$M31/(CT31+1))) -> 0.0 | DZ31: =IF(CU31=999,0,IF($H31>0,DZ$28*$M31*($H31-CU31)/$H31,DZ$28*$M31/(CU31+1))) -> 0.0 | EA31: =IF(CV31=999,0,IF($H31>0,EA$28*$M31*($H31-CV31)/$H31,EA$28*$M31/(CV31+1))) -> 0.0 | EB31: =IF(CW31=999,0,IF($H31>0,EB$28*$M31*($H31-CW31)/$H31,EB$28*$M31/(CW31+1))) -> 0.0 | EC31: =IF(CX31=999,0,IF($H31>0,EC$28*$M31*($H31-CX31)/$H31,EC$28*$M31/(CX31+1))) -> 0.0 | ED31: =IF(CY31=999,0,IF($H31>0,ED$28*$M31*($H31-CY31)/$H31,ED$28*$M31/(CY31+1))) -> 0.0 | EE31: =IF(CZ31=999,0,IF($H31>0,EE$28*$M31*($H31-CZ31)/$H31,EE$28*$M31/(CZ31+1))) -> 0.0 | EF31: =IF(DA31=999,0,IF($H31>0,EF$28*$M31*($H31-DA31)/$H31,EF$28*$M31/(DA31+1))) -> 0.0 | EG31: =IF(DB31=999,0,IF($H31>0,EG$28*$M31*($H31-DB31)/$H31,EG$28*$M31/(DB31+1))) -> 0.0 | EH31: =IF(DC31=999,0,IF($H31>0,EH$28*$M31*($H31-DC31)/$H31,EH$28*$M31/(DC31+1))) -> 0.0 | EI31: =IF(DD31=999,0,IF($H31>0,EI$28*$M31*($H31-DD31)/$H31,EI$28*$M31/(DD31+1))) -> 0.0 | EJ31: =IF(DE31=999,0,IF($H31>0,EJ$28*$M31*($H31-DE31)/$H31,EJ$28*$M31/(DE31+1))) -> 0.0 | EK31: =IF(DF31=999,0,IF($H31>0,EK$28*$M31*($H31-DF31)/$H31,EK$28*$M31/(DF31+1))) -> 0.0 | EL31: =IF(DG31=999,0,IF($H31>0,EL$28*$M31*($H31-DG31)/$H31,EL$28*$M31/(DG31+1))) -> 0.0 | EM31: =IF(DH31=999,0,IF($H31>0,EM$28*$M31*($H31-DH31)/$H31,EM$28*$M31/(DH31+1))) -> 0.0 | EN31: =IF(DI31=999,0,IF($H31>0,EN$28*$M31*($H31-DI31)/$H31,EN$28*$M31/(DI31+1))) -> 0.0 | EO31: =IF(DJ31=999,0,IF($H31>0,EO$28*$M31*($H31-DJ31)/$H31,EO$28*$M31/(DJ31+1))) -> 0.0 | EP31: =IF(DK31=999,0,IF($H31>0,EP$28*$M31*($H31-DK31)/$H31,EP$28*$M31/(DK31+1))) -> 0.0 | EQ31: =IF(DL31=999,0,IF($H31>0,EQ$28*$M31*($H31-DL31)/$H31,EQ$28*$M31/(DL31+1))) -> 0.0 | ER31: =IF(DM31=999,0,IF($H31>0,ER$28*$M31*($H31-DM31)/$H31,ER$28*$M31/(DM31+1))) -> 0.0 | ES31: =IF(DN31=999,0,IF($H31>0,ES$28*$M31*($H31-DN31)/$H31,ES$28*$M31/(DN31+1))) -> 0.0 | ET31: =IF(DO31=999,0,IF($H31>0,ET$28*$M31*($H31-DO31)/$H31,ET$28*$M31/(DO31+1))) -> 0.0 | EU31: =IF(DP31=999,0,IF($H31>0,EU$28*$M31*($H31-DP31)/$H31,EU$28*$M31/(DP31+1))) -> 0.0 | EV31: =IF(DQ31=999,0,IF($H31>0,EV$28*$M31*($H31-DQ31)/$H31,EV$28*$M31/(DQ31+1))) -> 0.0 | EW31: =IF(DR31=999,0,IF($H31>0,EW$28*$M31*($H31-DR31)/$H31,EW$28*$M31/(DR31+1))) -> 0.0 | EX31: =IF(DS31=999,0,IF($H31>0,EX$28*$M31*($H31-DS31)/$H31,EX$28*$M31/(DS31+1))) -> 0.0 | EY31: =IF(DT31=999,0,IF($H31>0,EY$28*$M31*($H31-DT31)/$H31,EY$28*$M31/(DT31+1))) -> 0.0 | EZ31: =IF(DU31=999,0,IF($H31>0,EZ$28*$M31*($H31-DU31)/$H31,EZ$28*$M31/(DU31+1))) -> 0.0 | FD31: =MAX(0,I31-Years) -> 0 | FE31: =K31*(1+Inflation/100)^Years -> $0
A32: FALSE | C32: 2 | E32: 106 | F32: Gravel Parking Lot - Replenish | G32: ~20,000 GSF | H32: 5 | I32: 1 | J32: $11,100 | K32: $13,000 | M32: =(J32+K32)/2 -> $12,050 | N32: =E32 -> 106 | O32: =F32 -> Gravel Parking Lot - Replenish | P32: =H32 -> 5 | Q32: =I32 -> 1 | R32: =M32 -> $12,050 | S32: =E32 -> 106 | T32: =F32 -> Gravel Parking Lot - Replenish | U32: =G32 -> ~20,000 GSF | V32: =H32 -> 5 | W32: =I32 -> 1 | X32: =J32 -> $11,100 | Y32: =K32 -> $13,000 | Z32: =E32 -> 106 | AA32: =F32 -> Gravel Parking Lot - Replenish | AB32: =M32 -> $12,050 | AC32: X | AD32: =IF(H32-I32<0,0,H32-I32) -> 4 | AE32: / | AF32: =H32 -> 5 | AG32: = | AH32: =DV32+(1-Main!$D$61)*(DW32-DV32) -> $9,640 | AJ32: =E32 -> 106 | AK32: =F32 -> Gravel Parking Lot - Replenish | AL32: =H32 -> 5 | AM32: =M32 -> $12,050 | AN32: =IF(H32>0,M32/H32,0) -> $2,410 | AO32: =AN32/AN$77 -> 6.7% | AP32: =SUM(AV$31:AV32) -> $9,640 | AQ32: =E32 -> 106 | AR32: =F32 -> Gravel Parking Lot - Replenish | AS32: =H32 -> 5 | AT32: =I32 -> 1 | AU32: =M32 -> $12,050 | AV32: =DV32+(1-Main!$D$61)*(DW32-DV32) -> $9,640 | AW32: =IF(Main!D$26>1,Main!D$26*AV32,IF((AP32-AV32)>=Main!D$20,0,IF(AP32<=Main!D$20,AV32,Main!D$20-AP32+AV32))) -> $9,640 | AX32: =AO32*Main!RecommendContrib -> $4,008.45 | AZ32: =$E32 -> 106 | BA32: Gravel Parking Lot - Replenish | BB32: =IF(CQ32=0,$M32*BB$3,0) -> $0 | BC32: =IF(CR32=0,$M32*BC$3,0) -> $12,412 | BD32: =IF(CS32=0,$M32*BD$3,0) -> $0 | BE32: =IF(CT32=0,$M32*BE$3,0) -> $0 | BF32: =IF(CU32=0,$M32*BF$3,0) -> $0 | BG32: =$E32 -> 106 | BH32: Gravel Parking Lot - Replenish | BI32: =IF(CV32=0,$M32*BI$3,0) -> $0 | BJ32: =IF(CW32=0,$M32*BJ$3,0) -> $14,388 | BK32: =IF(CX32=0,$M32*BK$3,0) -> $0 | BL32: =IF(CY32=0,$M32*BL$3,0) -> $0 | BM32: =IF(CZ32=0,$M32*BM$3,0) -> $0 | BN32: =$E32 -> 106 | BO32: Gravel Parking Lot - Replenish | BP32: =IF(DA32=0,$M32*BP$3,0) -> $0 | BQ32: =IF(DB32=0,$M32*BQ$3,0) -> $16,680 | BR32: =IF(DC32=0,$M32*BR$3,0) -> $0 | BS32: =IF(DD32=0,$M32*BS$3,0) -> $0 | BT32: =IF(DE32=0,$M32*BT$3,0) -> $0 | BU32: =$E32 -> 106 | BV32: Gravel Parking Lot - Replenish | BW32: =IF(DF32=0,$M32*BW$3,0) -> $0 | BX32: =IF(DG32=0,$M32*BX$3,0) -> $19,337 | BY32: =IF(DH32=0,$M32*BY$3,0) -> $0 | BZ32: =IF(DI32=0,$M32*BZ$3,0) -> $0 | CA32: =IF(DJ32=0,$M32*CA$3,0) -> $0 | CB32: =$E32 -> 106 | CC32: Gravel Parking Lot - Replenish | CD32: =IF(DK32=0,$M32*CD$3,0) -> $0 | CE32: =IF(DL32=0,$M32*CE$3,0) -> $22,417 | CF32: =IF(DM32=0,$M32*CF$3,0) -> $0 | CG32: =IF(DN32=0,$M32*CG$3,0) -> $0 | CH32: =IF(DO32=0,$M32*CH$3,0) -> $0 | CI32: =$E32 -> 106 | CJ32: Gravel Parking Lot - Replenish | CK32: =IF(DP32=0,$M32*CK$3,0) -> $0 | CL32: =IF(DQ32=0,$M32*CL$3,0) -> $25,987 | CM32: =IF(DR32=0,$M32*CM$3,0) -> $0 | CN32: =IF(DS32=0,$M32*CN$3,0) -> $0 | CO32: =IF(DT32=0,$M32*CO$3,0) -> $0 | CP32: =IF(DU32=0,$M32*CP$3,0) -> $0 | CQ32: =IF(H32=0,I32,IF($I32>$H32,$H32,$I32)) -> 1 | CR32: 0 | CS32: 4 | CT32: 3 | CU32: 2 | CV32: 1 | CW32: 0 | CX32: 4 | CY32: 3 | CZ32: 2 | DA32: 1 | DB32: 0 | DC32: 4 | DD32: 3 | DE32: 2 | DF32: 1 | DG32: 0 | DH32: 4 | DI32: 3 | DJ32: 2 | DK32: 1 | DL32: 0 | DM32: 4 | DN32: 3 | DO32: 2 | DP32: 1 | DQ32: 0 | DR32: 4 | DS32: 3 | DT32: 2 | DU32: 1 | DV32: 9640.0 | DW32: 12411.5 | DX32: 2556.8 | DY32: 5266.9 | DZ32: 8137.4 | EA32: 11175.4 | EB32: 14388.3 | EC32: 2964.0 | ED32: 6105.8 | EE32: 9433.5 | EF32: 12955.4 | EG32: 16680.0 | EH32: 3436.1 | EI32: 7078.3 | EJ32: 10936.0 | EK32: 15018.8 | EL32: 19336.7 | EM32: 3983.4 | EN32: 8205.7 | EO32: 12677.8 | EP32: 17410.9 | EQ32: 22416.5 | ER32: 4617.8 | ES32: 9512.7 | ET32: 14697.1 | EU32: 20184.0 | EV32: 25986.9 | EW32: 5353.3 | EX32: 11027.8 | EY32: 17038.0 | EZ32: 23398.8 | FD32: 1 | FE32: $13,000
A33: FALSE | C33: 3 | E33: 120 | F33: Asphalt - Resurface/Overlay | G33: ~35,000 GSF | H33: 30 | I33: 18 | J33: $75,000 | K33: $95,000 | M33: $85,000 | N33: =E33 -> 120 | O33: Asphalt - Resurface/Overlay | P33: =H33 -> 30 | Q33: =I33 -> 18 | R33: =M33 -> $85,000 | S33: =E33 -> 120 | T33: Asphalt - Resurface/Overlay | U33: =G33 -> ~35,000 GSF | V33: =H33 -> 30 | W33: =I33 -> 18 | X33: =J33 -> $75,000 | Y33: =K33 -> $95,000 | Z33: =E33 -> 120 | AA33: Asphalt - Resurface/Overlay | AB33: =M33 -> $85,000 | AC33: X | AD33: =IF(H33-I33<0,0,H33-I33) -> 12 | AE33: / | AF33: =H33 -> 30 | AG33: = | AH33: =DV33+(1-Main!$D$61)*(DW33-DV33) -> $34,000 | AJ33: =E33 -> 120 | AK33: Asphalt - Resurface/Overlay | AL33: =H33 -> 30 | AM33: =M33 -> $85,000 | AN33: =IF(H33>0,M33/H33,0) -> $2,833 | AO33: 7.9% | AP33: =SUM(AV$31:AV33) -> $43,640 | AQ33: =E33 -> 120 | AR33: Asphalt - Resurface/Overlay | AS33: =H33 -> 30 | AT33: =I33 -> 18 | AU33: =M33 -> $85,000 | AV33: =DV33+(1-Main!$D$61)*(DW33-DV33) -> $34,000 | AW33: =IF(Main!D$26>1,Main!D$26*AV33,IF((AP33-AV33)>=Main!D$20,0,IF(AP33<=Main!D$20,AV33,Main!D$20-AP33+AV33))) -> $34,000 | AX33: =AO33*Main!RecommendContrib -> $4,712.57 | AZ33: 120 | BA33: Asphalt - Resurface/Overlay | BB33: =IF(CQ33=0,$M33*BB$3,0) -> $0 | BC33: =IF(CR33=0,$M33*BC$3,0) -> $0 | BD33: =IF(CS33=0,$M33*BD$3,0) -> $0 | BE33: =IF(CT33=0,$M33*BE$3,0) -> $0 | BF33: =IF(CU33=0,$M33*BF$3,0) -> $0 | BG33: 120 | BH33: Asphalt - Resurface/Overlay | BI33: =IF(CV33=0,$M33*BI$3,0) -> $0 | BJ33: =IF(CW33=0,$M33*BJ$3,0) -> $0 | BK33: =IF(CX33=0,$M33*BK$3,0) -> $0 | BL33: =IF(CY33=0,$M33*BL$3,0) -> $0 | BM33: =IF(CZ33=0,$M33*BM$3,0) -> $0 | BN33: 120 | BO33: Asphalt - Resurface/Overlay | BP33: =IF(DA33=0,$M33*BP$3,0) -> $0 | BQ33: =IF(DB33=0,$M33*BQ$3,0) -> $0 | BR33: =IF(DC33=0,$M33*BR$3,0) -> $0 | BS33: =IF(DD33=0,$M33*BS$3,0) -> $0 | BT33: =IF(DE33=0,$M33*BT$3,0) -> $0 | BU33: 120 | BV33: Asphalt - Resurface/Overlay | BW33: =IF(DF33=0,$M33*BW$3,0) -> $0 | BX33: =IF(DG33=0,$M33*BX$3,0) -> $0 | BY33: =IF(DH33=0,$M33*BY$3,0) -> $0 | BZ33: =IF(DI33=0,$M33*BZ$3,0) -> $144,707 | CA33: =IF(DJ33=0,$M33*CA$3,0) -> $0 | CB33: 120 | CC33: Asphalt - Resurface/Overlay | CD33: =IF(DK33=0,$M33*CD$3,0) -> $0 | CE33: =IF(DL33=0,$M33*CE$3,0) -> $0 | CF33: =IF(DM33=0,$M33*CF$3,0) -> $0 | CG33: =IF(DN33=0,$M33*CG$3,0) -> $0 | CH33: =IF(DO33=0,$M33*CH$3,0) -> $0 | CI33: 120 | CJ33: Asphalt - Resurface/Overlay | CK33: =IF(DP33=0,$M33*CK$3,0) -> $0 | CL33: =IF(DQ33=0,$M33*CL$3,0) -> $0 | CM33: =IF(DR33=0,$M33*CM$3,0) -> $0 | CN33: =IF(DS33=0,$M33*CN$3,0) -> $0 | CO33: =IF(DT33=0,$M33*CO$3,0) -> $0 | CP33: =IF(DU33=0,$M33*CP$3,0) -> $0 | CQ33: 18 | CR33: =IF(AND($H33>0,$I33-CR$28>=$H33),$H33,IF(CQ33=999,999,IF(CQ33-1<0,IF($H33=0,999,$H33-1),CQ33-1))) -> 17 | CS33: 16 | CT33: 15 | CU33: 14 | CV33: 13 | CW33: 12 | CX33: 11 | CY33: 10 | CZ33: 9 | DA33: 8 | DB33: 7 | DC33: 6 | DD33: 5 | DE33: 4 | DF33: 3 | DG33: 2 | DH33: 1 | DI33: 0 | DJ33: 29 | DK33: 28 | DL33: 27 | DM33: 26 | DN33: 25 | DO33: 24 | DP33: 23 | DQ33: 22 | DR33: 21 | DS33: 20 | DT33: 19 | DU33: 18 | DV33: 34000.0 | DW33: 37938.3 | DX33: 42082.4 | DY33: 46440.9 | DZ33: 51023.1 | EA33: 55838.4 | EB33: 60896.7 | EC33: 66208.2 | ED33: 71783.6 | EE33: 77634.0 | EF33: 83770.8 | EG33: 90205.9 | EH33: 96951.7 | EI33: 104021.1 | EJ33: 111427.4 | EK33: 119184.5 | EL33: 127306.7 | EM33: 135809.0 | EN33: 144706.8 | EO33: 4968.3 | EP33: 10234.6 | EQ33: 15812.5 | ER33: 21715.8 | ES33: 27959.1 | ET33: 34557.5 | EU33: 41526.6 | EV33: 48882.7 | EW33: 56642.9 | EX33: 64824.6 | EY33: 73446.3 | EZ33: 82526.9 | FD33: 18 | FE33: $95,000
A34: =AND(ISBLANK(E34),ISBLANK(G34)) -> FALSE | C34: 4 | E34: 121 | F34: Asphalt - Coating | G34: ~35,000 GSF | H34: 10 | I34: 0 | J34: $8,000 | K34: $12,000 | M34: $10,000 | N34: 121 | O34: Asphalt - Coating | P34: 10 | Q34: 0 | R34: $10,000 | S34: 121 | T34: Asphalt - Coating | U34: ~35,000 GSF | V34: 10 | W34: 0 | X34: $8,000 | Y34: $12,000 | Z34: 121 | AA34: Asphalt - Coating | AB34: $10,000 | AC34: X | AD34: 10 | AE34: / | AF34: 10 | AG34: = | AH34: =DV34+(1-Main!$D$61)*(DW34-DV34) -> $10,000 | AJ34: 121 | AK34: Asphalt - Coating | AL34: 10 | AM34: $10,000 | AN34: $1,000 | AO34: 2.8% | AP34: =SUM(AV$31:AV34) -> $53,640 | AQ34: 121 | AR34: Asphalt - Coating | AS34: 10 | AT34: 0 | AU34: $10,000 | AV34: =DV34+(1-Main!$D$61)*(DW34-DV34) -> $10,000 | AW34: =IF(Main!D$26>1,Main!D$26*AV34,IF((AP34-AV34)>=Main!D$20,0,IF(AP34<=Main!D$20,AV34,Main!D$20-AP34+AV34))) -> $10,000 | AX34: =AO34*Main!RecommendContrib -> $1,663.26 | AZ34: 121 | BA34: Asphalt - Coating | BB34: $10,000 | BC34: $0 | BD34: $0 | BE34: $0 | BF34: $0 | BG34: 121 | BH34: Asphalt - Coating | BI34: $0 | BJ34: $0 | BK34: $0 | BL34: $0 | BM34: $0 | BN34: 121 | BO34: Asphalt - Coating | BP34: $13,439 | BQ34: $0 | BR34: $0 | BS34: $0 | BT34: $0 | BU34: 121 | BV34: Asphalt - Coating | BW34: $0 | BX34: $0 | BY34: $0 | BZ34: $0 | CA34: $0 | CB34: 121 | CC34: Asphalt - Coating | CD34: $18,061 | CE34: $0 | CF34: $0 | CG34: $0 | CH34: $0 | CI34: 121 | CJ34: Asphalt - Coating | CK34: $0 | CL34: $0 | CM34: $0 | CN34: $0 | CO34: $0 | CP34: $24,273 | CQ34: 0 | CR34: =IF(AND($H34>0,$I34-CR$28>=$H34),$H34,IF(CQ34=999,999,IF(CQ34-1<0,IF($H34=0,999,$H34-1),CQ34-1))) -> 9 | CS34: 8 | CT34: 7 | CU34: 6 | CV34: 5 | CW34: 4 | CX34: 3 | CY34: 2 | CZ34: 1 | DA34: 0 | DB34: 9 | DC34: 8 | DD34: 7 | DE34: 6 | DF34: 5 | DG34: 4 | DH34: 3 | DI34: 2 | DJ34: 1 | DK34: 0 | DL34: 9 | DM34: 8 | DN34: 7 | DO34: 6 | DP34: 5 | DQ34: 4 | DR34: 3 | DS34: 2 | DT34: 1 | DU34: 0 | DV34: 10000.0 | DW34: 1030.0 | DX34: 2121.8 | DY34: 3278.2 | DZ34: 4502.0 | EA34: 5796.4 | EB34: 7164.3 | EC34: 8609.1 | ED34: 10134.2 | EE34: 11743.0 | EF34: 13439.2 | EG34: 1384.2 | EH34: 2851.5 | EI34: 4405.6 | EJ34: 6050.4 | EK34: 7789.8 | EL34: 9628.2 | EM34: 11569.9 | EN34: 13619.5 | EO34: 15781.6 | EP34: 18061.1 | EQ34: 1860.3 | ER34: 3832.2 | ES34: 5920.8 | ET34: 8131.2 | EU34: 10468.9 | EV34: 12939.5 | EW34: 15549.0 | EX34: 18303.4 | EY34: 21209.1 | EZ34: 24272.6 | FD34: 0 | FE34: $12,000
A35: FALSE | C35: 5 | E35: 125 | F35: Culverts/Ditch - Repair/Maintain | G35: Piping, Frch Drains, Open | H35: 2 | I35: 0 | J35: $2,000 | K35: $3,000 | M35: $2,500 | N35: 125 | O35: Culverts/Ditch - Repair/Maintain | P35: 2 | Q35: 0 | R35: $2,500 | S35: 125 | T35: Culverts/Ditch - Repair/Maintain | U35: Piping, Frch Drains, Open | V35: 2 | W35: 0 | X35: $2,000 | Y35: $3,000 | Z35: 125 | AA35: Culverts/Ditch - Repair/Maintain | AB35: $2,500 | AC35: X | AD35: 2 | AE35: / | AF35: 2 | AG35: = | AH35: =DV35+(1-Main!$D$61)*(DW35-DV35) -> $2,500 | AJ35: 125 | AK35: Culverts/Ditch - Repair/Maintain | AL35: 2 | AM35: $2,500 | AN35: $1,250 | AO35: 3.5% | AP35: =SUM(AV$31:AV35) -> $56,140 | AQ35: 125 | AR35: Culverts/Ditch - Repair/Maintain | AS35: 2 | AT35: 0 | AU35: $2,500 | AV35: =DV35+(1-Main!$D$61)*(DW35-DV35) -> $2,500 | AW35: =IF(Main!D$26>1,Main!D$26*AV35,IF((AP35-AV35)>=Main!D$20,0,IF(AP35<=Main!D$20,AV35,Main!D$20-AP35+AV35))) -> $2,500 | AX35: =AO35*Main!RecommendContrib -> $2,079.07 | AZ35: 125 | BA35: Culverts/Ditch - Repair/Maintain | BB35: $2,500 | BC35: $0 | BD35: $2,652 | BE35: $0 | BF35: $2,814 | BG35: 125 | BH35: Culverts/Ditch - Repair/Maintain | BI35: $0 | BJ35: $2,985 | BK35: $0 | BL35: $3,167 | BM35: $0 | BN35: 125 | BO35: Culverts/Ditch - Repair/Maintain | BP35: $3,360 | BQ35: $0 | BR35: $3,564 | BS35: $0 | BT35: $3,781 | BU35: 125 | BV35: Culverts/Ditch - Repair/Maintain | BW35: $0 | BX35: $4,012 | BY35: $0 | BZ35: $4,256 | CA35: $0 | CB35: 125 | CC35: Culverts/Ditch - Repair/Maintain | CD35: $4,515 | CE35: $0 | CF35: $4,790 | CG35: $0 | CH35: $5,082 | CI35: 125 | CJ35: Culverts/Ditch - Repair/Maintain | CK35: $0 | CL35: $5,391 | CM35: $0 | CN35: $5,720 | CO35: $0 | CP35: $6,068 | CQ35: 0 | CR35: =IF(AND($H35>0,$I35-CR$28>=$H35),$H35,IF(CQ35=999,999,IF(CQ35-1<0,IF($H35=0,999,$H35-1),CQ35-1))) -> 1 | CS35: 0 | CT35: 1 | CU35: 0 | CV35: 1 | CW35: 0 | CX35: 1 | CY35: 0 | CZ35: 1 | DA35: 0 | DB35: 1 | DC35: 0 | DD35: 1 | DE35: 0 | DF35: 1 | DG35: 0 | DH35: 1 | DI35: 0 | DJ35: 1 | DK35: 0 | DL35: 1 | DM35: 0 | DN35: 1 | DO35: 0 | DP35: 1 | DQ35: 0 | DR35: 1 | DS35: 0 | DT35: 1 | DU35: 0 | DV35: 2500.0 | DW35: 1287.5 | DX35: 2652.3 | DY35: 1365.9 | DZ35: 2813.8 | EA35: 1449.1 | EB35: 2985.1 | EC35: 1537.3 | ED35: 3166.9 | EE35: 1631.0 | EF35: 3359.8 | EG35: 1730.3 | EH35: 3564.4 | EI35: 1835.7 | EJ35: 3781.5 | EK35: 1947.5 | EL35: 4011.8 | EM35: 2066.1 | EN35: 4256.1 | EO35: 2191.9 | EP35: 4515.3 | EQ35: 2325.4 | ER35: 4790.3 | ES35: 2467.0 | ET35: 5082.0 | EU35: 2617.2 | EV35: 5391.5 | EW35: 2776.6 | EX35: 5719.8 | EY35: 2945.7 | EZ35: 6068.2 | FD35: 0 | FE35: $3,000
A36: FALSE | C36: 6 | E36: 182 | F36: Lake Outlfow Structure - Repr/Replc | G36: Tide gate, etc. | H36: 40 | I36: 2 | J36: $120,000 | K36: $160,000 | M36: $140,000 | N36: 182 | O36: Lake Outlfow Structure - Repr/Replc | P36: 40 | Q36: 2 | R36: $140,000 | S36: 182 | T36: Lake Outlfow Structure - Repr/Replc | U36: Tide gate, etc. | V36: 40 | W36: 2 | X36: $120,000 | Y36: $160,000 | Z36: 182 | AA36: Lake Outlfow Structure - Repr/Replc | AB36: $140,000 | AC36: X | AD36: 38 | AE36: / | AF36: 40 | AG36: = | AH36: =DV36+(1-Main!$D$61)*(DW36-DV36) -> $133,000 | AJ36: 182 | AK36: Lake Outlfow Structure - Repr/Replc | AL36: 40 | AM36: $140,000 | AN36: $3,500 | AO36: 9.7% | AP36: =SUM(AV$31:AV36) -> $189,140 | AQ36: 182 | AR36: Lake Outlfow Structure - Repr/Replc | AS36: 40 | AT36: 2 | AU36: $140,000 | AV36: =DV36+(1-Main!$D$61)*(DW36-DV36) -> $133,000 | AW36: =IF(Main!D$26>1,Main!D$26*AV36,IF((AP36-AV36)>=Main!D$20,0,IF(AP36<=Main!D$20,AV36,Main!D$20-AP36+AV36))) -> $133,000 | AX36: =AO36*Main!RecommendContrib -> $5,821.41 | AZ36: 182 | BA36: Lake Outlfow Structure - Repr/Replc | BB36: $0 | BC36: $0 | BD36: $148,526 | BE36: $0 | BF36: $0 | BG36: 182 | BH36: Lake Outlfow Structure - Repr/Replc | BI36: $0 | BJ36: $0 | BK36: $0 | BL36: $0 | BM36: $0 | BN36: 182 | BO36: Lake Outlfow Structure - Repr/Replc | BP36: $0 | BQ36: $0 | BR36: $0 | BS36: $0 | BT36: $0 | BU36: 182 | BV36: Lake Outlfow Structure - Repr/Replc | BW36: $0 | BX36: $0 | BY36: $0 | BZ36: $0 | CA36: $0 | CB36: 182 | CC36: Lake Outlfow Structure - Repr/Replc | CD36: $0 | CE36: $0 | CF36: $0 | CG36: $0 | CH36: $0 | CI36: 182 | CJ36: Lake Outlfow Structure - Repr/Replc | CK36: $0 | CL36: $0 | CM36: $0 | CN36: $0 | CO36: $0 | CP36: $0 | CQ36: 2 | CR36: =IF(AND($H36>0,$I36-CR$28>=$H36),$H36,IF(CQ36=999,999,IF(CQ36-1<0,IF($H36=0,999,$H36-1),CQ36-1))) -> 1 | CS36: 0 | CT36: 39 | CU36: 38 | CV36: 37 | CW36: 36 | CX36: 35 | CY36: 34 | CZ36: 33 | DA36: 32 | DB36: 31 | DC36: 30 | DD36: 29 | DE36: 28 | DF36: 27 | DG36: 26 | DH36: 25 | DI36: 24 | DJ36: 23 | DK36: 22 | DL36: 21 | DM36: 20 | DN36: 19 | DO36: 18 | DP36: 17 | DQ36: 16 | DR36: 15 | DS36: 14 | DT36: 13 | DU36: 12 | DV36: 133000.0 | DW36: 140595.0 | DX36: 148526.0 | DY36: 3824.5 | DZ36: 7878.6 | EA36: 12172.4 | EB36: 16716.7 | EC36: 21522.8 | ED36: 26602.2 | EE36: 31966.9 | EF36: 37629.7 | EG36: 43603.4 | EH36: 49901.6 | EI36: 56538.5 | EJ36: 63528.8 | EK36: 70887.5 | EL36: 78630.6 | EM36: 86774.5 | EN36: 95336.3 | EO36: 104333.6 | EP36: 113785.0 | EQ36: 123709.6 | ER36: 134127.2 | ES36: 145058.6 | ET36: 156525.1 | EU36: 168549.1 | EV36: 181153.7 | EW36: 194362.8 | EX36: 208201.4 | EY36: 222695.4 | EZ36: 237871.7 | FD36: 2 | FE36: $160,000
A37: FALSE | C37: 7 | E37: 183 | F37: South Side Outflow | G37: Miscellaneous | H37: 15 | I37: 0 | J37: $15,000 | K37: $25,000 | M37: $20,000 | N37: 183 | O37: South Side Outflow | P37: 15 | Q37: 0 | R37: $20,000 | S37: 183 | T37: South Side Outflow | U37: Miscellaneous | V37: 15 | W37: 0 | X37: $15,000 | Y37: $25,000 | Z37: 183 | AA37: South Side Outflow | AB37: $20,000 | AC37: X | AD37: 15 | AE37: / | AF37: 15 | AG37: = | AH37: =DV37+(1-Main!$D$61)*(DW37-DV37) -> $20,000 | AJ37: 183 | AK37: South Side Outflow | AL37: 15 | AM37: $20,000 | AN37: $1,333 | AO37: 3.7% | AP37: =SUM(AV$31:AV37) -> $209,140 | AQ37: 183 | AR37: South Side Outflow | AS37: 15 | AT37: 0 | AU37: $20,000 | AV37: =DV37+(1-Main!$D$61)*(DW37-DV37) -> $20,000 | AW37: =IF(Main!D$26>1,Main!D$26*AV37,IF((AP37-AV37)>=Main!D$20,0,IF(AP37<=Main!D$20,AV37,Main!D$20-AP37+AV37))) -> $20,000 | AX37: =AO37*Main!RecommendContrib -> $2,217.68 | AZ37: 183 | BA37: South Side Outflow | BB37: $20,000 | BC37: $0 | BD37: $0 | BE37: $0 | BF37: $0 | BG37: 183 | BH37: South Side Outflow | BI37: $0 | BJ37: $0 | BK37: $0 | BL37: $0 | BM37: $0 | BN37: 183 | BO37: South Side Outflow | BP37: $0 | BQ37: $0 | BR37: $0 | BS37: $0 | BT37: $0 | BU37: 183 | BV37: South Side Outflow | BW37: $31,159 | BX37: $0 | BY37: $0 | BZ37: $0 | CA37: $0 | CB37: 183 | CC37: South Side Outflow | CD37: $0 | CE37: $0 | CF37: $0 | CG37: $0 | CH37: $0 | CI37: 183 | CJ37: South Side Outflow | CK37: $0 | CL37: $0 | CM37: $0 | CN37: $0 | CO37: $0 | CP37: $48,545 | CQ37: 0 | CR37: =IF(AND($H37>0,$I37-CR$28>=$H37),$H37,IF(CQ37=999,999,IF(CQ37-1<0,IF($H37=0,999,$H37-1),CQ37-1))) -> 14 | CS37: 13 | CT37: 12 | CU37: 11 | CV37: 10 | CW37: 9 | CX37: 8 | CY37: 7 | CZ37: 6 | DA37: 5 | DB37: 4 | DC37: 3 | DD37: 2 | DE37: 1 | DF37: 0 | DG37: 14 | DH37: 13 | DI37: 12 | DJ37: 11 | DK37: 10 | DL37: 9 | DM37: 8 | DN37: 7 | DO37: 6 | DP37: 5 | DQ37: 4 | DR37: 3 | DS37: 2 | DT37: 1 | DU37: 0 | DV37: 20000.0 | DW37: 1373.3 | DX37: 2829.1 | DY37: 4370.9 | DZ37: 6002.7 | EA37: 7728.5 | EB37: 9552.4 | EC37: 11478.8 | ED37: 13512.2 | EE37: 15657.3 | EF37: 17918.9 | EG37: 20302.1 | EH37: 22812.2 | EI37: 25454.6 | EJ37: 28235.0 | EK37: 31159.3 | EL37: 2139.6 | EM37: 4407.6 | EN37: 6809.7 | EO37: 9352.0 | EP37: 12040.7 | EQ37: 14882.4 | ER37: 17883.6 | ES37: 21051.6 | ET37: 24393.5 | EU37: 27917.0 | EV37: 31630.0 | EW37: 35540.6 | EX37: 39657.4 | EY37: 43989.2 | EZ37: 48545.2 | FD37: 0 | FE37: $25,000
A38: FALSE | C38: 8 | E38: 184 | F38: Tide Gate, Misc - Replace/Maintain | G38: (1) SS flapper, pipes etc | H38: 15 | I38: 8 | J38: $1,800 | K38: $2,800 | M38: $2,300 | N38: 184 | O38: Tide Gate, Misc - Replace/Maintain | P38: 15 | Q38: 8 | R38: $2,300 | S38: 184 | T38: Tide Gate, Misc - Replace/Maintain | U38: (1) SS flapper, pipes etc | V38: 15 | W38: 8 | X38: $1,800 | Y38: $2,800 | Z38: 184 | AA38: Tide Gate, Misc - Replace/Maintain | AB38: $2,300 | AC38: X | AD38: 7 | AE38: / | AF38: 15 | AG38: = | AH38: =DV38+(1-Main!$D$61)*(DW38-DV38) -> $1,073 | AJ38: 184 | AK38: Tide Gate, Misc - Replace/Maintain | AL38: 15 | AM38: $2,300 | AN38: $153 | AO38: 0.4% | AP38: =SUM(AV$31:AV38) -> $210,213 | AQ38: 184 | AR38: Tide Gate, Misc - Replace/Maintain | AS38: 15 | AT38: 8 | AU38: $2,300 | AV38: =DV38+(1-Main!$D$61)*(DW38-DV38) -> $1,073 | AW38: =IF(Main!D$26>1,Main!D$26*AV38,IF((AP38-AV38)>=Main!D$20,0,IF(AP38<=Main!D$20,AV38,Main!D$20-AP38+AV38))) -> $1,073 | AX38: =AO38*Main!RecommendContrib -> $255.03 | AZ38: 184 | BA38: Tide Gate, Misc - Replace/Maintain | BB38: $0 | BC38: $0 | BD38: $0 | BE38: $0 | BF38: $0 | BG38: 184 | BH38: Tide Gate, Misc - Replace/Maintain | BI38: $0 | BJ38: $0 | BK38: $0 | BL38: $2,914 | BM38: $0 | BN38: 184 | BO38: Tide Gate, Misc - Replace/Maintain | BP38: $0 | BQ38: $0 | BR38: $0 | BS38: $0 | BT38: $0 | BU38: 184 | BV38: Tide Gate, Misc - Replace/Maintain | BW38: $0 | BX38: $0 | BY38: $0 | BZ38: $0 | CA38: $0 | CB38: 184 | CC38: Tide Gate, Misc - Replace/Maintain | CD38: $0 | CE38: $0 | CF38: $0 | CG38: $4,539 | CH38: $0 | CI38: 184 | CJ38: Tide Gate, Misc - Replace/Maintain | CK38: $0 | CL38: $0 | CM38: $0 | CN38: $0 | CO38: $0 | CP38: $0 | CQ38: 8 | CR38: =IF(AND($H38>0,$I38-CR$28>=$H38),$H38,IF(CQ38=999,999,IF(CQ38-1<0,IF($H38=0,999,$H38-1),CQ38-1))) -> 7 | CS38: 6 | CT38: 5 | CU38: 4 | CV38: 3 | CW38: 2 | CX38: 1 | CY38: 0 | CZ38: 14 | DA38: 13 | DB38: 12 | DC38: 11 | DD38: 10 | DE38: 9 | DF38: 8 | DG38: 7 | DH38: 6 | DI38: 5 | DJ38: 4 | DK38: 3 | DL38: 2 | DM38: 1 | DN38: 0 | DO38: 14 | DP38: 13 | DQ38: 12 | DR38: 11 | DS38: 10 | DT38: 9 | DU38: 8 | DV38: 1073.3 | DW38: 1263.5 | DX38: 1464.0 | DY38: 1675.5 | DZ38: 1898.4 | EA38: 2133.1 | EB38: 2380.1 | EC38: 2640.1 | ED38: 2913.6 | EE38: 200.1 | EF38: 412.1 | EG38: 636.7 | EH38: 874.5 | EI38: 1125.9 | EJ38: 1391.6 | EK38: 1672.2 | EL38: 1968.4 | EM38: 2280.9 | EN38: 2610.4 | EO38: 2957.6 | EP38: 3323.2 | EQ38: 3708.2 | ER38: 4113.2 | ES38: 4539.2 | ET38: 311.7 | EU38: 642.1 | EV38: 992.0 | EW38: 1362.4 | EX38: 1754.1 | EY38: 2168.0 | EZ38: 2605.3 | FD38: 8 | FE38: $2,800
A39: FALSE | C39: 9 | E39: 200 | F39: Entry Sign/Monument - Replace | G39: (1), wood | H39: 20 | I39: 0 | J39: $2,500 | K39: $3,500 | M39: $3,000 | N39: 200 | O39: Entry Sign/Monument - Replace | P39: 20 | Q39: 0 | R39: $3,000 | S39: 200 | T39: Entry Sign/Monument - Replace | U39: (1), wood | V39: 20 | W39: 0 | X39: $2,500 | Y39: $3,500 | Z39: 200 | AA39: Entry Sign/Monument - Replace | AB39: $3,000 | AC39: X | AD39: 20 | AE39: / | AF39: 20 | AG39: = | AH39: =DV39+(1-Main!$D$61)*(DW39-DV39) -> $3,000 | AJ39: 200 | AK39: Entry Sign/Monument - Replace | AL39: 20 | AM39: $3,000 | AN39: $150 | AO39: 0.4% | AP39: =SUM(AV$31:AV39) -> $213,213 | AQ39: 200 | AR39: Entry Sign/Monument - Replace | AS39: 20 | AT39: 0 | AU39: $3,000 | AV39: =DV39+(1-Main!$D$61)*(DW39-DV39) -> $3,000 | AW39: =IF(Main!D$26>1,Main!D$26*AV39,IF((AP39-AV39)>=Main!D$20,0,IF(AP39<=Main!D$20,AV39,Main!D$20-AP39+AV39))) -> $3,000 | AX39: =AO39*Main!RecommendContrib -> $249.49 | AZ39: 200 | BA39: Entry Sign/Monument - Replace | BB39: $3,000 | BC39: $0 | BD39: $0 | BE39: $0 | BF39: $0 | BG39: 200 | BH39: Entry Sign/Monument - Replace | BI39: $0 | BJ39: $0 | BK39: $0 | BL39: $0 | BM39: $0 | BN39: 200 | BO39: Entry Sign/Monument - Replace | BP39: $0 | BQ39: $0 | BR39: $0 | BS39: $0 | BT39: $0 | BU39: 200 | BV39: Entry Sign/Monument - Replace | BW39: $0 | BX39: $0 | BY39: $0 | BZ39: $0 | CA39: $0 | CB39: 200 | CC39: Entry Sign/Monument - Replace | CD39: $5,418 | CE39: $0 | CF39: $0 | CG39: $0 | CH39: $0 | CI39: 200 | CJ39: Entry Sign/Monument - Replace | CK39: $0 | CL39: $0 | CM39: $0 | CN39: $0 | CO39: $0 | CP39: $0 | CQ39: 0 | CR39: =IF(AND($H39>0,$I39-CR$28>=$H39),$H39,IF(CQ39=999,999,IF(CQ39-1<0,IF($H39=0,999,$H39-1),CQ39-1))) -> 19 | CS39: 18 | CT39: 17 | CU39: 16 | CV39: 15 | CW39: 14 | CX39: 13 | CY39: 12 | CZ39: 11 | DA39: 10 | DB39: 9 | DC39: 8 | DD39: 7 | DE39: 6 | DF39: 5 | DG39: 4 | DH39: 3 | DI39: 2 | DJ39: 1 | DK39: 0 | DL39: 19 | DM39: 18 | DN39: 17 | DO39: 16 | DP39: 15 | DQ39: 14 | DR39: 13 | DS39: 12 | DT39: 11 | DU39: 10 | DV39: 3000.0 | DW39: 154.5 | DX39: 318.3 | DY39: 491.7 | DZ39: 675.3 | EA39: 869.5 | EB39: 1074.6 | EC39: 1291.4 | ED39: 1520.1 | EE39: 1761.4 | EF39: 2015.9 | EG39: 2284.0 | EH39: 2566.4 | EI39: 2863.6 | EJ39: 3176.4 | EK39: 3505.4 | EL39: 3851.3 | EM39: 4214.8 | EN39: 4596.6 | EO39: 4997.5 | EP39: 5418.3 | EQ39: 279.0 | ER39: 574.8 | ES39: 888.1 | ET39: 1219.7 | EU39: 1570.3 | EV39: 1940.9 | EW39: 2332.4 | EX39: 2745.5 | EY39: 3181.4 | EZ39: 3640.9 | FD39: 0 | FE39: $3,500
A40: FALSE | C40: 10 | E40: 220 | F40: Basketball Court/Eqp - Replace | G40: 60' x 20', misc | H40: 15 | I40: 14 | J40: $4,000 | K40: $6,000 | M40: $5,000 | N40: 220 | O40: Basketball Court/Eqp - Replace | P40: 15 | Q40: 14 | R40: $5,000 | S40: 220 | T40: Basketball Court/Eqp - Replace | U40: 60' x 20', misc | V40: 15 | W40: 14 | X40: $4,000 | Y40: $6,000 | Z40: 220 | AA40: Basketball Court/Eqp - Replace | AB40: $5,000 | AC40: X | AD40: 1 | AE40: / | AF40: 15 | AG40: = | AH40: =DV40+(1-Main!$D$61)*(DW40-DV40) -> $333 | AJ40: 220 | AK40: Basketball Court/Eqp - Replace | AL40: 15 | AM40: $5,000 | AN40: $333 | AO40: 0.9% | AP40: =SUM(AV$31:AV40) -> $213,547 | AQ40: 220 | AR40: Basketball Court/Eqp - Replace | AS40: 15 | AT40: 14 | AU40: $5,000 | AV40: =DV40+(1-Main!$D$61)*(DW40-DV40) -> $333 | AW40: =IF(Main!D$26>1,Main!D$26*AV40,IF((AP40-AV40)>=Main!D$20,0,IF(AP40<=Main!D$20,AV40,Main!D$20-AP40+AV40))) -> $333 | AX40: =AO40*Main!RecommendContrib -> $554.42 | AZ40: 220 | BA40: Basketball Court/Eqp - Replace | BB40: $0 | BC40: $0 | BD40: $0 | BE40: $0 | BF40: $0 | BG40: 220 | BH40: Basketball Court/Eqp - Replace | BI40: $0 | BJ40: $0 | BK40: $0 | BL40: $0 | BM40: $0 | BN40: 220 | BO40: Basketball Court/Eqp - Replace | BP40: $0 | BQ40: $0 | BR40: $0 | BS40: $0 | BT40: $7,563 | BU40: 220 | BV40: Basketball Court/Eqp - Replace | BW40: $0 | BX40: $0 | BY40: $0 | BZ40: $0 | CA40: $0 | CB40: 220 | CC40: Basketball Court/Eqp - Replace | CD40: $0 | CE40: $0 | CF40: $0 | CG40: $0 | CH40: $0 | CI40: 220 | CJ40: Basketball Court/Eqp - Replace | CK40: $0 | CL40: $0 | CM40: $0 | CN40: $0 | CO40: $11,783 | CP40: $0 | CQ40: 14 | CR40: =IF(AND($H40>0,$I40-CR$28>=$H40),$H40,IF(CQ40=999,999,IF(CQ40-1<0,IF($H40=0,999,$H40-1),CQ40-1))) -> 13 | CS40: 12 | CT40: 11 | CU40: 10 | CV40: 9 | CW40: 8 | CX40: 7 | CY40: 6 | CZ40: 5 | DA40: 4 | DB40: 3 | DC40: 2 | DD40: 1 | DE40: 0 | DF40: 14 | DG40: 13 | DH40: 12 | DI40: 11 | DJ40: 10 | DK40: 9 | DL40: 8 | DM40: 7 | DN40: 6 | DO40: 5 | DP40: 4 | DQ40: 3 | DR40: 2 | DS40: 1 | DT40: 0 | DU40: 14 | DV40: 333.3 | DW40: 686.7 | DX40: 1060.9 | DY40: 1457.0 | DZ40: 1875.8 | EA40: 2318.5 | EB40: 2786.1 | EC40: 3279.7 | ED40: 3800.3 | EE40: 4349.2 | EF40: 4927.7 | EG40: 5536.9 | EH40: 6178.3 | EI40: 6853.2 | EJ40: 7562.9 | EK40: 519.3 | EL40: 1069.8 | EM40: 1652.8 | EN40: 2269.9 | EO40: 2922.5 | EP40: 3612.2 | EQ40: 4340.7 | ER40: 5109.6 | ES40: 5920.8 | ET40: 6776.0 | EU40: 7677.2 | EV40: 8626.4 | EW40: 9625.6 | EX40: 10677.0 | EY40: 11782.8 | EZ40: 809.1 | FD40: 14 | FE40: $6,000
A41: FALSE | C41: 11 | E41: 230 | F41: Play Equipment - Replace | G41: (4) Large Pieces, misc | H41: 20 | I41: 3 | J41: $20,000 | K41: $30,000 | M41: $25,000 | N41: 230 | O41: Play Equipment - Replace | P41: 20 | Q41: 3 | R41: $25,000 | S41: 230 | T41: Play Equipment - Replace | U41: (4) Large Pieces, misc | V41: 20 | W41: 3 | X41: $20,000 | Y41: $30,000 | Z41: 230 | AA41: Play Equipment - Replace | AB41: $25,000 | AC41: X | AD41: 17 | AE41: / | AF41: 20 | AG41: = | AH41: =DV41+(1-Main!$D$61)*(DW41-DV41) -> $21,250 | AJ41: 230 | AK41: Play Equipment - Replace | AL41: 20 | AM41: $25,000 | AN41: $1,250 | AO41: 3.5% | AP41: =SUM(AV$31:AV41) -> $234,797 | AQ41: 230 | AR41: Play Equipment - Replace | AS41: 20 | AT41: 3 | AU41: $25,000 | AV41: =DV41+(1-Main!$D$61)*(DW41-DV41) -> $21,250 | AW41: =IF(Main!D$26>1,Main!D$26*AV41,IF((AP41-AV41)>=Main!D$20,0,IF(AP41<=Main!D$20,AV41,Main!D$20-AP41+AV41))) -> $21,250 | AX41: =AO41*Main!RecommendContrib -> $2,079.07 | AZ41: 230 | BA41: Play Equipment - Replace | BB41: $0 | BC41: $0 | BD41: $0 | BE41: $27,318 | BF41: $0 | BG41: 230 | BH41: Play Equipment - Replace | BI41: $0 | BJ41: $0 | BK41: $0 | BL41: $0 | BM41: $0 | BN41: 230 | BO41: Play Equipment - Replace | BP41: $0 | BQ41: $0 | BR41: $0 | BS41: $0 | BT41: $0 | BU41: 230 | BV41: Play Equipment - Replace | BW41: $0 | BX41: $0 | BY41: $0 | BZ41: $0 | CA41: $0 | CB41: 230 | CC41: Play Equipment - Replace | CD41: $0 | CE41: $0 | CF41: $0 | CG41: $49,340 | CH41: $0 | CI41: 230 | CJ41: Play Equipment - Replace | CK41: $0 | CL41: $0 | CM41: $0 | CN41: $0 | CO41: $0 | CP41: $0 | CQ41: 3 | CR41: =IF(AND($H41>0,$I41-CR$28>=$H41),$H41,IF(CQ41=999,999,IF(CQ41-1<0,IF($H41=0,999,$H41-1),CQ41-1))) -> 2 | CS41: 1 | CT41: 0 | CU41: 19 | CV41: 18 | CW41: 17 | CX41: 16 | CY41: 15 | CZ41: 14 | DA41: 13 | DB41: 12 | DC41: 11 | DD41: 10 | DE41: 9 | DF41: 8 | DG41: 7 | DH41: 6 | DI41: 5 | DJ41: 4 | DK41: 3 | DL41: 2 | DM41: 1 | DN41: 0 | DO41: 19 | DP41: 18 | DQ41: 17 | DR41: 16 | DS41: 15 | DT41: 14 | DU41: 13 | DV41: 21250.0 | DW41: 23175.0 | DX41: 25196.4 | DY41: 27318.2 | DZ41: 1406.9 | EA41: 2898.2 | EB41: 4477.7 | EC41: 6149.4 | ED41: 7917.3 | EE41: 9785.8 | EF41: 11759.3 | EG41: 13842.3 | EH41: 16039.8 | EI41: 18356.7 | EJ41: 20798.1 | EK41: 23369.5 | EL41: 26076.5 | EM41: 28924.8 | EN41: 31920.6 | EO41: 35070.1 | EP41: 38379.9 | EQ41: 41856.6 | ER41: 45507.5 | ES41: 49339.7 | ET41: 2541.0 | EU41: 5234.4 | EV41: 8087.2 | EW41: 11106.4 | EX41: 14299.5 | EY41: 17674.2 | EZ41: 21238.5 | FD41: 3 | FE41: $30,000
A42: FALSE | C42: 12 | E42: 231 | F42: Play Equipment Area - Bark | G42: Bark | H42: 10 | I42: 0 | J42: $1,500 | K42: $2,500 | M42: $2,000 | N42: 231 | O42: Play Equipment Area - Bark | P42: 10 | Q42: 0 | R42: $2,000 | S42: 231 | T42: Play Equipment Area - Bark | U42: Bark | V42: 10 | W42: 0 | X42: $1,500 | Y42: $2,500 | Z42: 231 | AA42: Play Equipment Area - Bark | AB42: $2,000 | AC42: X | AD42: 10 | AE42: / | AF42: 10 | AG42: = | AH42: =DV42+(1-Main!$D$61)*(DW42-DV42) -> $2,000 | AJ42: 231 | AK42: Play Equipment Area - Bark | AL42: 10 | AM42: $2,000 | AN42: $200 | AO42: 0.6% | AP42: =SUM(AV$31:AV42) -> $236,797 | AQ42: 231 | AR42: Play Equipment Area - Bark | AS42: 10 | AT42: 0 | AU42: $2,000 | AV42: =DV42+(1-Main!$D$61)*(DW42-DV42) -> $2,000 | AW42: =IF(Main!D$26>1,Main!D$26*AV42,IF((AP42-AV42)>=Main!D$20,0,IF(AP42<=Main!D$20,AV42,Main!D$20-AP42+AV42))) -> $2,000 | AX42: =AO42*Main!RecommendContrib -> $332.65 | AZ42: 231 | BA42: Play Equipment Area - Bark | BB42: $2,000 | BC42: $0 | BD42: $0 | BE42: $0 | BF42: $0 | BG42: 231 | BH42: Play Equipment Area - Bark | BI42: $0 | BJ42: $0 | BK42: $0 | BL42: $0 | BM42: $0 | BN42: 231 | BO42: Play Equipment Area - Bark | BP42: $2,688 | BQ42: $0 | BR42: $0 | BS42: $0 | BT42: $0 | BU42: 231 | BV42: Play Equipment Area - Bark | BW42: $0 | BX42: $0 | BY42: $0 | BZ42: $0 | CA42: $0 | CB42: 231 | CC42: Play Equipment Area - Bark | CD42: $3,612 | CE42: $0 | CF42: $0 | CG42: $0 | CH42: $0 | CI42: 231 | CJ42: Play Equipment Area - Bark | CK42: $0 | CL42: $0 | CM42: $0 | CN42: $0 | CO42: $0 | CP42: $4,855 | CQ42: 0 | CR42: =IF(AND($H42>0,$I42-CR$28>=$H42),$H42,IF(CQ42=999,999,IF(CQ42-1<0,IF($H42=0,999,$H42-1),CQ42-1))) -> 9 | CS42: 8 | CT42: 7 | CU42: 6 | CV42: 5 | CW42: 4 | CX42: 3 | CY42: 2 | CZ42: 1 | DA42: 0 | DB42: 9 | DC42: 8 | DD42: 7 | DE42: 6 | DF42: 5 | DG42: 4 | DH42: 3 | DI42: 2 | DJ42: 1 | DK42: 0 | DL42: 9 | DM42: 8 | DN42: 7 | DO42: 6 | DP42: 5 | DQ42: 4 | DR42: 3 | DS42: 2 | DT42: 1 | DU42: 0 | DV42: 2000.0 | DW42: 206.0 | DX42: 424.4 | DY42: 655.6 | DZ42: 900.4 | EA42: 1159.3 | EB42: 1432.9 | EC42: 1721.8 | ED42: 2026.8 | EE42: 2348.6 | EF42: 2687.8 | EG42: 276.8 | EH42: 570.3 | EI42: 881.1 | EJ42: 1210.1 | EK42: 1558.0 | EL42: 1925.6 | EM42: 2314.0 | EN42: 2723.9 | EO42: 3156.3 | EP42: 3612.2 | EQ42: 372.1 | ER42: 766.4 | ES42: 1184.2 | ET42: 1626.2 | EU42: 2093.8 | EV42: 2587.9 | EW42: 3109.8 | EX42: 3660.7 | EY42: 4241.8 | EZ42: 4854.5 | FD42: 0 | FE42: $2,500
A43: FALSE | C43: 13 | E43: 232 | F43: BBQ/Firepit Picnic Tables - Replace | G43: Unknown | H43: 20 | I43: 8 | J43: $8,000 | K43: $10,000 | M43: $9,000 | N43: 232 | O43: BBQ/Firepit Picnic Tables - Replace | P43: 20 | Q43: 8 | R43: $9,000 | S43: 232 | T43: BBQ/Firepit Picnic Tables - Replace | U43: Unknown | V43: 20 | W43: 8 | X43: $8,000 | Y43: $10,000 | Z43: 232 | AA43: BBQ/Firepit Picnic Tables - Replace | AB43: $9,000 | AC43: X | AD43: 12 | AE43: / | AF43: 20 | AG43: = | AH43: =DV43+(1-Main!$D$61)*(DW43-DV43) -> $5,400 | AJ43: 232 | AK43: BBQ/Firepit Picnic Tables - Replace | AL43: 20 | AM43: $9,000 | AN43: $450 | AO43: 1.2% | AP43: =SUM(AV$31:AV43) -> $242,197 | AQ43: 232 | AR43: BBQ/Firepit Picnic Tables - Replace | AS43: 20 | AT43: 8 | AU43: $9,000 | AV43: =DV43+(1-Main!$D$61)*(DW43-DV43) -> $5,400 | AW43: =IF(Main!D$26>1,Main!D$26*AV43,IF((AP43-AV43)>=Main!D$20,0,IF(AP43<=Main!D$20,AV43,Main!D$20-AP43+AV43))) -> $5,400 | AX43: =AO43*Main!RecommendContrib -> $748.47 | AZ43: 232 | BA43: BBQ/Firepit Picnic Tables - Replace | BB43: $0 | BC43: $0 | BD43: $0 | BE43: $0 | BF43: $0 | BG43: 232 | BH43: BBQ/Firepit Picnic Tables - Replace | BI43: $0 | BJ43: $0 | BK43: $0 | BL43: $11,401 | BM43: $0 | BN43: 232 | BO43: BBQ/Firepit Picnic Tables - Replace | BP43: $0 | BQ43: $0 | BR43: $0 | BS43: $0 | BT43: $0 | BU43: 232 | BV43: BBQ/Firepit Picnic Tables - Replace | BW43: $0 | BX43: $0 | BY43: $0 | BZ43: $0 | CA43: $0 | CB43: 232 | CC43: BBQ/Firepit Picnic Tables - Replace | CD43: $0 | CE43: $0 | CF43: $0 | CG43: $0 | CH43: $0 | CI43: 232 | CJ43: BBQ/Firepit Picnic Tables - Replace | CK43: $0 | CL43: $0 | CM43: $0 | CN43: $20,591 | CO43: $0 | CP43: $0 | CQ43: 8 | CR43: =IF(AND($H43>0,$I43-CR$28>=$H43),$H43,IF(CQ43=999,999,IF(CQ43-1<0,IF($H43=0,999,$H43-1),CQ43-1))) -> 7 | CS43: 6 | CT43: 5 | CU43: 4 | CV43: 3 | CW43: 2 | CX43: 1 | CY43: 0 | CZ43: 19 | DA43: 18 | DB43: 17 | DC43: 16 | DD43: 15 | DE43: 14 | DF43: 13 | DG43: 12 | DH43: 11 | DI43: 10 | DJ43: 9 | DK43: 8 | DL43: 7 | DM43: 6 | DN43: 5 | DO43: 4 | DP43: 3 | DQ43: 2 | DR43: 1 | DS43: 0 | DT43: 19 | DU43: 18 | DV43: 5400.0 | DW43: 6025.5 | DX43: 6683.7 | DY43: 7375.9 | DZ43: 8103.7 | EA43: 8868.4 | EB43: 9671.8 | EC43: 10515.4 | ED43: 11400.9 | EE43: 587.1 | EF43: 1209.5 | EG43: 1868.7 | EH43: 2566.4 | EI43: 3304.2 | EJ43: 4084.0 | EK43: 4907.6 | EL43: 5776.9 | EM43: 6694.0 | EN43: 7660.9 | EO43: 8679.9 | EP43: 9753.0 | EQ43: 10882.7 | ER43: 12071.5 | ES43: 13321.7 | ET43: 14636.1 | EU43: 16017.4 | EV43: 17468.4 | EW43: 18992.0 | EX43: 20591.3 | EY43: 1060.5 | EZ43: 2184.5 | FD43: 8 | FE43: $10,000
A44: FALSE | C44: 14 | E44: 233 | F44: Septic Systems - Replacement | G44: Unknown | H44: 50 | I44: 18 | J44: $90,000 | K44: $110,000 | M44: $100,000 | N44: 233 | O44: Septic Systems - Replacement | P44: 50 | Q44: 18 | R44: $100,000 | S44: 233 | T44: Septic Systems - Replacement | U44: Unknown | V44: 50 | W44: 18 | X44: $90,000 | Y44: $110,000 | Z44: 233 | AA44: Septic Systems - Replacement | AB44: $100,000 | AC44: X | AD44: 32 | AE44: / | AF44: 50 | AG44: = | AH44: =DV44+(1-Main!$D$61)*(DW44-DV44) -> $64,000 | AJ44: 233 | AK44: Septic Systems - Replacement | AL44: 50 | AM44: $100,000 | AN44: $2,000 | AO44: 5.6% | AP44: =SUM(AV$31:AV44) -> $306,197 | AQ44: 233 | AR44: Septic Systems - Replacement | AS44: 50 | AT44: 18 | AU44: $100,000 | AV44: =DV44+(1-Main!$D$61)*(DW44-DV44) -> $64,000 | AW44: =IF(Main!D$26>1,Main!D$26*AV44,IF((AP44-AV44)>=Main!D$20,0,IF(AP44<=Main!D$20,AV44,Main!D$20-AP44+AV44))) -> $64,000 | AX44: =AO44*Main!RecommendContrib -> $3,326.52 | AZ44: 233 | BA44: Septic Systems - Replacement | BB44: $0 | BC44: $0 | BD44: $0 | BE44: $0 | BF44: $0 | BG44: 233 | BH44: Septic Systems - Replacement | BI44: $0 | BJ44: $0 | BK44: $0 | BL44: $0 | BM44: $0 | BN44: 233 | BO44: Septic Systems - Replacement | BP44: $0 | BQ44: $0 | BR44: $0 | BS44: $0 | BT44: $0 | BU44: 233 | BV44: Septic Systems - Replacement | BW44: $0 | BX44: $0 | BY44: $0 | BZ44: $170,243 | CA44: $0 | CB44: 233 | CC44: Septic Systems - Replacement | CD44: $0 | CE44: $0 | CF44: $0 | CG44: $0 | CH44: $0 | CI44: 233 | CJ44: Septic Systems - Replacement | CK44: $0 | CL44: $0 | CM44: $0 | CN44: $0 | CO44: $0 | CP44: $0 | CQ44: 18 | CR44: =IF(AND($H44>0,$I44-CR$28>=$H44),$H44,IF(CQ44=999,999,IF(CQ44-1<0,IF($H44=0,999,$H44-1),CQ44-1))) -> 17 | CS44: 16 | CT44: 15 | CU44: 14 | CV44: 13 | CW44: 12 | CX44: 11 | CY44: 10 | CZ44: 9 | DA44: 8 | DB44: 7 | DC44: 6 | DD44: 5 | DE44: 4 | DF44: 3 | DG44: 2 | DH44: 1 | DI44: 0 | DJ44: 49 | DK44: 48 | DL44: 47 | DM44: 46 | DN44: 45 | DO44: 44 | DP44: 43 | DQ44: 42 | DR44: 41 | DS44: 40 | DT44: 39 | DU44: 38 | DV44: 64000.0 | DW44: 67980.0 | DX44: 72141.2 | DY44: 76490.9 | DZ44: 81036.6 | EA44: 85786.3 | EB44: 90748.0 | EC44: 95930.2 | ED44: 101341.6 | EE44: 106991.4 | EF44: 112889.0 | EG44: 119044.1 | EH44: 125467.0 | EI44: 132168.0 | EJ44: 139158.3 | EK44: 146448.9 | EL44: 154051.8 | EM44: 161979.1 | EN44: 170243.3 | EO44: 3507.0 | EP44: 7224.4 | EQ44: 11161.8 | ER44: 15328.8 | ES44: 19735.9 | ET44: 24393.5 | EU44: 29312.9 | EV44: 34505.5 | EW44: 39983.2 | EX44: 45758.6 | EY44: 51844.4 | EZ44: 58254.3 | FD44: 18 | FE44: $110,000
A45: FALSE | C45: 15 | E45: 234 | F45: Bluff - Hydroseed | G45: Hydroseed | H45: 5 | I45: 3 | J45: $2,000 | K45: $4,000 | M45: $3,000 | N45: 234 | O45: Bluff - Hydroseed | P45: 5 | Q45: 3 | R45: $3,000 | S45: 234 | T45: Bluff - Hydroseed | U45: Hydroseed | V45: 5 | W45: 3 | X45: $2,000 | Y45: $4,000 | Z45: 234 | AA45: Bluff - Hydroseed | AB45: $3,000 | AC45: X | AD45: 2 | AE45: / | AF45: 5 | AG45: = | AH45: =DV45+(1-Main!$D$61)*(DW45-DV45) -> $1,200 | AJ45: 234 | AK45: Bluff - Hydroseed | AL45: 5 | AM45: $3,000 | AN45: $600 | AO45: 1.7% | AP45: =SUM(AV$31:AV45) -> $307,397 | AQ45: 234 | AR45: Bluff - Hydroseed | AS45: 5 | AT45: 3 | AU45: $3,000 | AV45: =DV45+(1-Main!$D$61)*(DW45-DV45) -> $1,200 | AW45: =IF(Main!D$26>1,Main!D$26*AV45,IF((AP45-AV45)>=Main!D$20,0,IF(AP45<=Main!D$20,AV45,Main!D$20-AP45+AV45))) -> $1,200 | AX45: =AO45*Main!RecommendContrib -> $997.96 | AZ45: 234 | BA45: Bluff - Hydroseed | BB45: $0 | BC45: $0 | BD45: $0 | BE45: $3,278 | BF45: $0 | BG45: 234 | BH45: Bluff - Hydroseed | BI45: $0 | BJ45: $0 | BK45: $0 | BL45: $3,800 | BM45: $0 | BN45: 234 | BO45: Bluff - Hydroseed | BP45: $0 | BQ45: $0 | BR45: $0 | BS45: $4,406 | BT45: $0 | BU45: 234 | BV45: Bluff - Hydroseed | BW45: $0 | BX45: $0 | BY45: $0 | BZ45: $5,107 | CA45: $0 | CB45: 234 | CC45: Bluff - Hydroseed | CD45: $0 | CE45: $0 | CF45: $0 | CG45: $5,921 | CH45: $0 | CI45: 234 | CJ45: Bluff - Hydroseed | CK45: $0 | CL45: $0 | CM45: $0 | CN45: $6,864 | CO45: $0 | CP45: $0 | CQ45: 3 | CR45: =IF(AND($H45>0,$I45-CR$28>=$H45),$H45,IF(CQ45=999,999,IF(CQ45-1<0,IF($H45=0,999,$H45-1),CQ45-1))) -> 2 | CS45: 1 | CT45: 0 | CU45: 4 | CV45: 3 | CW45: 2 | CX45: 1 | CY45: 0 | CZ45: 4 | DA45: 3 | DB45: 2 | DC45: 1 | DD45: 0 | DE45: 4 | DF45: 3 | DG45: 2 | DH45: 1 | DI45: 0 | DJ45: 4 | DK45: 3 | DL45: 2 | DM45: 1 | DN45: 0 | DO45: 4 | DP45: 3 | DQ45: 2 | DR45: 1 | DS45: 0 | DT45: 4 | DU45: 3 | DV45: 1200.0 | DW45: 1854.0 | DX45: 2546.2 | DY45: 3278.2 | DZ45: 675.3 | EA45: 1391.1 | EB45: 2149.3 | EC45: 2951.7 | ED45: 3800.3 | EE45: 782.9 | EF45: 1612.7 | EG45: 2491.6 | EH45: 3421.8 | EI45: 4405.6 | EJ45: 907.6 | EK45: 1869.6 | EL45: 2888.5 | EM45: 3966.8 | EN45: 5107.3 | EO45: 1052.1 | EP45: 2167.3 | EQ45: 3348.5 | ER45: 4598.6 | ES45: 5920.8 | ET45: 1219.7 | EU45: 2512.5 | EV45: 3881.9 | EW45: 5331.1 | EX45: 6863.8 | EY45: 1413.9 | EZ45: 2912.7 | FD45: 3 | FE45: $4,000
A46: FALSE | C46: 16 | E46: 235 | F46: Chain Link Fence - Replace | G46: ~100 LF | H46: 25 | I46: 8 | J46: $6,000 | K46: $8,000 | M46: $7,000 | N46: 235 | O46: Chain Link Fence - Replace | P46: 25 | Q46: 8 | R46: $7,000 | S46: 235 | T46: Chain Link Fence - Replace | U46: ~100 LF | V46: 25 | W46: 8 | X46: $6,000 | Y46: $8,000 | Z46: 235 | AA46: Chain Link Fence - Replace | AB46: $7,000 | AC46: X | AD46: 17 | AE46: / | AF46: 25 | AG46: = | AH46: =DV46+(1-Main!$D$61)*(DW46-DV46) -> $4,760 | AJ46: 235 | AK46: Chain Link Fence - Replace | AL46: 25 | AM46: $7,000 | AN46: $280 | AO46: 0.8% | AP46: =SUM(AV$31:AV46) -> $312,157 | AQ46: 235 | AR46: Chain Link Fence - Replace | AS46: 25 | AT46: 8 | AU46: $7,000 | AV46: =DV46+(1-Main!$D$61)*(DW46-DV46) -> $4,760 | AW46: =IF(Main!D$26>1,Main!D$26*AV46,IF((AP46-AV46)>=Main!D$20,0,IF(AP46<=Main!D$20,AV46,Main!D$20-AP46+AV46))) -> $4,760 | AX46: =AO46*Main!RecommendContrib -> $465.71 | AZ46: 235 | BA46: Chain Link Fence - Replace | BB46: $0 | BC46: $0 | BD46: $0 | BE46: $0 | BF46: $0 | BG46: 235 | BH46: Chain Link Fence - Replace | BI46: $0 | BJ46: $0 | BK46: $0 | BL46: $8,867 | BM46: $0 | BN46: 235 | BO46: Chain Link Fence - Replace | BP46: $0 | BQ46: $0 | BR46: $0 | BS46: $0 | BT46: $0 | BU46: 235 | BV46: Chain Link Fence - Replace | BW46: $0 | BX46: $0 | BY46: $0 | BZ46: $0 | CA46: $0 | CB46: 235 | CC46: Chain Link Fence - Replace | CD46: $0 | CE46: $0 | CF46: $0 | CG46: $0 | CH46: $0 | CI46: 235 | CJ46: Chain Link Fence - Replace | CK46: $0 | CL46: $0 | CM46: $0 | CN46: $0 | CO46: $0 | CP46: $0 | CQ46: 8 | CR46: =IF(AND($H46>0,$I46-CR$28>=$H46),$H46,IF(CQ46=999,999,IF(CQ46-1<0,IF($H46=0,999,$H46-1),CQ46-1))) -> 7 | CS46: 6 | CT46: 5 | CU46: 4 | CV46: 3 | CW46: 2 | CX46: 1 | CY46: 0 | CZ46: 24 | DA46: 23 | DB46: 22 | DC46: 21 | DD46: 20 | DE46: 19 | DF46: 18 | DG46: 17 | DH46: 16 | DI46: 15 | DJ46: 14 | DK46: 13 | DL46: 12 | DM46: 11 | DN46: 10 | DO46: 9 | DP46: 8 | DQ46: 7 | DR46: 6 | DS46: 5 | DT46: 4 | DU46: 3 | DV46: 4760.0 | DW46: 5191.2 | DX46: 5644.0 | DY46: 6119.3 | DZ46: 6618.0 | EA46: 7141.1 | EB46: 7689.7 | EC46: 8264.8 | ED46: 8867.4 | EE46: 365.3 | EF46: 752.6 | EG46: 1162.8 | EH46: 1596.9 | EI46: 2055.9 | EJ46: 2541.2 | EK46: 3053.6 | EL46: 3594.5 | EM46: 4165.2 | EN46: 4766.8 | EO46: 5400.8 | EP46: 6068.5 | EQ46: 6771.5 | ER46: 7511.1 | ES46: 8289.1 | ET46: 9106.9 | EU46: 9966.4 | EV46: 10869.2 | EW46: 11817.3 | EX46: 12812.4 | EY46: 13856.6 | EZ46: 14951.9 | FD46: 8 | FE46: $8,000
A47: TRUE | C47: 17 | F47: Pool | M47: =(J47+K47)/2 -> $0 | O47: =F47 -> Pool | T47: =F47 -> Pool | AA47: =F47 -> Pool | AK47: =F47 -> Pool | AP47: =SUM(AV$31:AV47) -> $312,157 | AR47: =F47 -> Pool | BA47: Pool | BH47: Pool | BO47: Pool | BV47: Pool | CC47: Pool | CJ47: Pool | CQ47: =IF(H47=0,I47,IF($I47>$H47,$H47,$I47)) -> 0 | CR47: 999 | CS47: 999 | CT47: 999 | CU47: 999 | CV47: 999 | CW47: 999 | CX47: 999 | CY47: 999 | CZ47: 999 | DA47: 999 | DB47: 999 | DC47: 999 | DD47: 999 | DE47: 999 | DF47: 999 | DG47: 999 | DH47: 999 | DI47: 999 | DJ47: 999 | DK47: 999 | DL47: 999 | DM47: 999 | DN47: 999 | DO47: 999 | DP47: 999 | DQ47: 999 | DR47: 999 | DS47: 999 | DT47: 999 | DU47: 999 | DV47: =IF($H47>0,$M47*($H47-CQ47)/$H47,$M47/(CQ47+1)) -> 0.0 | DW47: =IF(CR47=999,0,IF($H47>0,DW$28*$M47*($H47-CR47)/$H47,DW$28*$M47/(CR47+1))) -> 0.0 | DX47: =IF(CS47=999,0,IF($H47>0,DX$28*$M47*($H47-CS47)/$H47,DX$28*$M47/(CS47+1))) -> 0.0 | DY47: =IF(CT47=999,0,IF($H47>0,DY$28*$M47*($H47-CT47)/$H47,DY$28*$M47/(CT47+1))) -> 0.0 | DZ47: =IF(CU47=999,0,IF($H47>0,DZ$28*$M47*($H47-CU47)/$H47,DZ$28*$M47/(CU47+1))) -> 0.0 | EA47: =IF(CV47=999,0,IF($H47>0,EA$28*$M47*($H47-CV47)/$H47,EA$28*$M47/(CV47+1))) -> 0.0 | EB47: 0.0 | EC47: 0.0 | ED47: 0.0 | EE47: 0.0 | EF47: 0.0 | EG47: 0.0 | EH47: 0.0 | EI47: 0.0 | EJ47: 0.0 | EK47: 0.0 | EL47: 0.0 | EM47: 0.0 | EN47: 0.0 | EO47: 0.0 | EP47: 0.0 | EQ47: 0.0 | ER47: 0.0 | ES47: 0.0 | ET47: 0.0 | EU47: 0.0 | EV47: 0.0 | EW47: 0.0 | EX47: 0.0 | EY47: 0.0 | EZ47: 0.0 | FD47: 0 | FE47: $0
A48: FALSE | C48: 18 | E48: 301 | F48: Pool Deck - Resurface | G48: ~5,325 SF, concrete | H48: 50 | I48: 47 | J48: $90,000 | K48: $110,000 | M48: $100,000 | N48: 301 | O48: Pool Deck - Resurface | P48: 50 | Q48: 47 | R48: $100,000 | S48: 301 | T48: Pool Deck - Resurface | U48: ~5,325 SF, concrete | V48: 50 | W48: 47 | X48: $90,000 | Y48: $110,000 | Z48: 301 | AA48: Pool Deck - Resurface | AB48: $100,000 | AC48: X | AD48: 3 | AE48: / | AF48: 50 | AG48: = | AH48: =DV48+(1-Main!$D$61)*(DW48-DV48) -> $6,000 | AJ48: 301 | AK48: Pool Deck - Resurface | AL48: 50 | AM48: $100,000 | AN48: $2,000 | AO48: =AN48/AN$77 -> 5.6% | AP48: =SUM(AV$31:AV48) -> $318,157 | AQ48: 301 | AR48: Pool Deck - Resurface | AS48: 50 | AT48: 47 | AU48: $100,000 | AV48: =DV48+(1-Main!$D$61)*(DW48-DV48) -> $6,000 | AW48: =IF(Main!D$26>1,Main!D$26*AV48,IF((AP48-AV48)>=Main!D$20,0,IF(AP48<=Main!D$20,AV48,Main!D$20-AP48+AV48))) -> $6,000 | AX48: =AO48*Main!RecommendContrib -> $3,326.52 | AZ48: 301 | BA48: Pool Deck - Resurface | BB48: $0 | BC48: $0 | BD48: $0 | BE48: $0 | BF48: $0 | BG48: 301 | BH48: Pool Deck - Resurface | BI48: $0 | BJ48: $0 | BK48: $0 | BL48: $0 | BM48: $0 | BN48: 301 | BO48: Pool Deck - Resurface | BP48: $0 | BQ48: $0 | BR48: $0 | BS48: $0 | BT48: $0 | BU48: 301 | BV48: Pool Deck - Resurface | BW48: $0 | BX48: $0 | BY48: $0 | BZ48: $0 | CA48: $0 | CB48: 301 | CC48: Pool Deck - Resurface | CD48: $0 | CE48: $0 | CF48: $0 | CG48: $0 | CH48: $0 | CI48: 301 | CJ48: Pool Deck - Resurface | CK48: $0 | CL48: $0 | CM48: $0 | CN48: $0 | CO48: $0 | CP48: $0 | CQ48: 47 | CR48: =IF(AND($H48>0,$I48-CR$28>=$H48),$H48,IF(CQ48=999,999,IF(CQ48-1<0,IF($H48=0,999,$H48-1),CQ48-1))) -> 46 | CS48: 45 | CT48: 44 | CU48: 43 | CV48: 42 | CW48: 41 | CX48: 40 | CY48: 39 | CZ48: 38 | DA48: 37 | DB48: 36 | DC48: 35 | DD48: 34 | DE48: 33 | DF48: 32 | DG48: 31 | DH48: 30 | DI48: 29 | DJ48: 28 | DK48: 27 | DL48: 26 | DM48: 25 | DN48: 24 | DO48: 23 | DP48: 22 | DQ48: 21 | DR48: 20 | DS48: 19 | DT48: 18 | DU48: 17 | DV48: 6000.0 | DW48: 8240.0 | DX48: 10609.0 | DY48: 13112.7 | DZ48: 15757.1 | EA48: 18548.4 | EB48: 21492.9 | EC48: 24597.5 | ED48: 27868.9 | EE48: 31314.6 | EF48: 34941.8 | EG48: 38758.5 | EH48: 42772.8 | EI48: 46993.1 | EJ48: 51428.1 | EK48: 56086.8 | EL48: 60978.8 | EM48: 66113.9 | EN48: 71502.2 | EO48: 77154.3 | EP48: 83081.1 | EQ48: 89294.1 | ER48: 95805.2 | ES48: 102626.5 | ET48: 109770.9 | EU48: 117251.6 | EV48: 125082.3 | EW48: 133277.3 | EX48: 141851.5 | EY48: 150820.2 | EZ48: 160199.3 | FD48: 47 | FE48: $110,000
A49: FALSE | C49: 19 | E49: 302 | F49: Pool Furniture - Maintain/Replace | G49: Assorted pieces | H49: 20 | I49: 20 | J49: $9,000 | K49: $11,000 | M49: $10,000 | N49: 302 | O49: Pool Furniture - Maintain/Replace | P49: 20 | Q49: 20 | R49: $10,000 | S49: 302 | T49: Pool Furniture - Maintain/Replace | U49: Assorted pieces | V49: 20 | W49: 20 | X49: $9,000 | Y49: $11,000 | Z49: 302 | AA49: Pool Furniture - Maintain/Replace | AB49: $10,000 | AC49: X | AD49: 0 | AE49: / | AF49: 20 | AG49: = | AH49: =DV49+(1-Main!$D$61)*(DW49-DV49) -> $0 | AJ49: 302 | AK49: Pool Furniture - Maintain/Replace | AL49: 20 | AM49: $10,000 | AN49: $500 | AO49: 1.4% | AP49: =SUM(AV$31:AV49) -> $318,157 | AQ49: 302 | AR49: Pool Furniture - Maintain/Replace | AS49: 20 | AT49: 20 | AU49: $10,000 | AV49: =DV49+(1-Main!$D$61)*(DW49-DV49) -> $0 | AW49: =IF(Main!D$26>1,Main!D$26*AV49,IF((AP49-AV49)>=Main!D$20,0,IF(AP49<=Main!D$20,AV49,Main!D$20-AP49+AV49))) -> $0 | AX49: =AO49*Main!RecommendContrib -> $831.63 | AZ49: 302 | BA49: Pool Furniture - Maintain/Replace | BB49: $0 | BC49: $0 | BD49: $0 | BE49: $0 | BF49: $0 | BG49: 302 | BH49: Pool Furniture - Maintain/Replace | BI49: $0 | BJ49: $0 | BK49: $0 | BL49: $0 | BM49: $0 | BN49: 302 | BO49: Pool Furniture - Maintain/Replace | BP49: $0 | BQ49: $0 | BR49: $0 | BS49: $0 | BT49: $0 | BU49: 302 | BV49: Pool Furniture - Maintain/Replace | BW49: $0 | BX49: $0 | BY49: $0 | BZ49: $0 | CA49: $0 | CB49: 302 | CC49: Pool Furniture - Maintain/Replace | CD49: $18,061 | CE49: $0 | CF49: $0 | CG49: $0 | CH49: $0 | CI49: 302 | CJ49: Pool Furniture - Maintain/Replace | CK49: $0 | CL49: $0 | CM49: $0 | CN49: $0 | CO49: $0 | CP49: $0 | CQ49: 20 | CR49: =IF(AND($H49>0,$I49-CR$28>=$H49),$H49,IF(CQ49=999,999,IF(CQ49-1<0,IF($H49=0,999,$H49-1),CQ49-1))) -> 19 | CS49: 18 | CT49: 17 | CU49: 16 | CV49: 15 | CW49: 14 | CX49: 13 | CY49: 12 | CZ49: 11 | DA49: 10 | DB49: 9 | DC49: 8 | DD49: 7 | DE49: 6 | DF49: 5 | DG49: 4 | DH49: 3 | DI49: 2 | DJ49: 1 | DK49: 0 | DL49: 19 | DM49: 18 | DN49: 17 | DO49: 16 | DP49: 15 | DQ49: 14 | DR49: 13 | DS49: 12 | DT49: 11 | DU49: 10 | DV49: 0.0 | DW49: 515.0 | DX49: 1060.9 | DY49: 1639.1 | DZ49: 2251.0 | EA49: 2898.2 | EB49: 3582.2 | EC49: 4304.6 | ED49: 5067.1 | EE49: 5871.5 | EF49: 6719.6 | EG49: 7613.3 | EH49: 8554.6 | EI49: 9545.5 | EJ49: 10588.1 | EK49: 11684.8 | EL49: 12837.7 | EM49: 14049.2 | EN49: 15321.9 | EO49: 16658.3 | EP49: 18061.1 | EQ49: 930.1 | ER49: 1916.1 | ES49: 2960.4 | ET49: 4065.6 | EU49: 5234.4 | EV49: 6469.8 | EW49: 7774.5 | EX49: 9151.7 | EY49: 10604.5 | EZ49: 12136.3 | FD49: 20 | FE49: $11,000
A50: FALSE | C50: 20 | E50: 303 | F50: Pool Fence (Newer) - Repair/Replace | G50: ~215 Ln. Ft., Wood | H50: 15 | I50: 0 | J50: $6,500 | K50: $8,600 | M50: $7,550 | N50: 303 | O50: Pool Fence (Newer) - Repair/Replace | P50: 15 | Q50: 0 | R50: $7,550 | S50: 303 | T50: Pool Fence (Newer) - Repair/Replace | U50: ~215 Ln. Ft., Wood | V50: 15 | W50: 0 | X50: $6,500 | Y50: $8,600 | Z50: 303 | AA50: Pool Fence (Newer) - Repair/Replace | AB50: $7,550 | AC50: X | AD50: 15 | AE50: / | AF50: 15 | AG50: = | AH50: =DV50+(1-Main!$D$61)*(DW50-DV50) -> $7,550 | AJ50: 303 | AK50: Pool Fence (Newer) - Repair/Replace | AL50: 15 | AM50: $7,550 | AN50: $503 | AO50: 1.4% | AP50: =SUM(AV$31:AV50) -> $325,707 | AQ50: 303 | AR50: Pool Fence (Newer) - Repair/Replace | AS50: 15 | AT50: 0 | AU50: $7,550 | AV50: =DV50+(1-Main!$D$61)*(DW50-DV50) -> $7,550 | AW50: =IF(Main!D$26>1,Main!D$26*AV50,IF((AP50-AV50)>=Main!D$20,0,IF(AP50<=Main!D$20,AV50,Main!D$20-AP50+AV50))) -> $7,550 | AX50: =AO50*Main!RecommendContrib -> $837.17 | AZ50: 303 | BA50: Pool Fence (Newer) - Repair/Replace | BB50: $7,550 | BC50: $0 | BD50: $0 | BE50: $0 | BF50: $0 | BG50: 303 | BH50: Pool Fence (Newer) - Repair/Replace | BI50: $0 | BJ50: $0 | BK50: $0 | BL50: $0 | BM50: $0 | BN50: 303 | BO50: Pool Fence (Newer) - Repair/Replace | BP50: $0 | BQ50: $0 | BR50: $0 | BS50: $0 | BT50: $0 | BU50: 303 | BV50: Pool Fence (Newer) - Repair/Replace | BW50: $11,763 | BX50: $0 | BY50: $0 | BZ50: $0 | CA50: $0 | CB50: 303 | CC50: Pool Fence (Newer) - Repair/Replace | CD50: $0 | CE50: $0 | CF50: $0 | CG50: $0 | CH50: $0 | CI50: 303 | CJ50: Pool Fence (Newer) - Repair/Replace | CK50: $0 | CL50: $0 | CM50: $0 | CN50: $0 | CO50: $0 | CP50: $18,326 | CQ50: 0 | CR50: =IF(AND($H50>0,$I50-CR$28>=$H50),$H50,IF(CQ50=999,999,IF(CQ50-1<0,IF($H50=0,999,$H50-1),CQ50-1))) -> 14 | CS50: 13 | CT50: 12 | CU50: 11 | CV50: 10 | CW50: 9 | CX50: 8 | CY50: 7 | CZ50: 6 | DA50: 5 | DB50: 4 | DC50: 3 | DD50: 2 | DE50: 1 | DF50: 0 | DG50: 14 | DH50: 13 | DI50: 12 | DJ50: 11 | DK50: 10 | DL50: 9 | DM50: 8 | DN50: 7 | DO50: 6 | DP50: 5 | DQ50: 4 | DR50: 3 | DS50: 2 | DT50: 1 | DU50: 0 | DV50: 7550.0 | DW50: 518.4 | DX50: 1068.0 | DY50: 1650.0 | DZ50: 2266.0 | EA50: 2917.5 | EB50: 3606.0 | EC50: 4333.3 | ED50: 5100.9 | EE50: 5910.6 | EF50: 6764.4 | EG50: 7664.0 | EH50: 8611.6 | EI50: 9609.1 | EJ50: 10658.7 | EK50: 11762.7 | EL50: 807.7 | EM50: 1663.9 | EN50: 2570.7 | EO50: 3530.4 | EP50: 4545.4 | EQ50: 5618.1 | ER50: 6751.1 | ES50: 7947.0 | ET50: 9208.6 | EU50: 10538.7 | EV50: 11940.3 | EW50: 13416.6 | EX50: 14970.7 | EY50: 16605.9 | EZ50: 18325.8 | FD50: 0 | FE50: $8,600
A51: FALSE | C51: 21 | E51: 304 | F51: Pool Fence (Older) - Repair/Replace | G51: ~115 Ln. Ft., Wood | H51: 15 | I51: 12 | J51: $3,500 | K51: $4,600 | M51: $4,050 | N51: 304 | O51: Pool Fence (Older) - Repair/Replace | P51: 15 | Q51: 12 | R51: $4,050 | S51: 304 | T51: Pool Fence (Older) - Repair/Replace | U51: ~115 Ln. Ft., Wood | V51: 15 | W51: 12 | X51: $3,500 | Y51: $4,600 | Z51: 304 | AA51: Pool Fence (Older) - Repair/Replace | AB51: $4,050 | AC51: X | AD51: 3 | AE51: / | AF51: 15 | AG51: = | AH51: =DV51+(1-Main!$D$61)*(DW51-DV51) -> $810 | AJ51: 304 | AK51: Pool Fence (Older) - Repair/Replace | AL51: 15 | AM51: $4,050 | AN51: $270 | AO51: 0.7% | AP51: =SUM(AV$31:AV51) -> $326,517 | AQ51: 304 | AR51: Pool Fence (Older) - Repair/Replace | AS51: 15 | AT51: 12 | AU51: $4,050 | AV51: =DV51+(1-Main!$D$61)*(DW51-DV51) -> $810 | AW51: =IF(Main!D$26>1,Main!D$26*AV51,IF((AP51-AV51)>=Main!D$20,0,IF(AP51<=Main!D$20,AV51,Main!D$20-AP51+AV51))) -> $810 | AX51: =AO51*Main!RecommendContrib -> $449.08 | AZ51: 304 | BA51: Pool Fence (Older) - Repair/Replace | BB51: $0 | BC51: $0 | BD51: $0 | BE51: $0 | BF51: $0 | BG51: 304 | BH51: Pool Fence (Older) - Repair/Replace | BI51: $0 | BJ51: $0 | BK51: $0 | BL51: $0 | BM51: $0 | BN51: 304 | BO51: Pool Fence (Older) - Repair/Replace | BP51: $0 | BQ51: $0 | BR51: $5,774 | BS51: $0 | BT51: $0 | BU51: 304 | BV51: Pool Fence (Older) - Repair/Replace | BW51: $0 | BX51: $0 | BY51: $0 | BZ51: $0 | CA51: $0 | CB51: 304 | CC51: Pool Fence (Older) - Repair/Replace | CD51: $0 | CE51: $0 | CF51: $0 | CG51: $0 | CH51: $0 | CI51: 304 | CJ51: Pool Fence (Older) - Repair/Replace | CK51: $0 | CL51: $0 | CM51: $8,996 | CN51: $0 | CO51: $0 | CP51: $0 | CQ51: 12 | CR51: =IF(AND($H51>0,$I51-CR$28>=$H51),$H51,IF(CQ51=999,999,IF(CQ51-1<0,IF($H51=0,999,$H51-1),CQ51-1))) -> 11 | CS51: 10 | CT51: 9 | CU51: 8 | CV51: 7 | CW51: 6 | CX51: 5 | CY51: 4 | CZ51: 3 | DA51: 2 | DB51: 1 | DC51: 0 | DD51: 14 | DE51: 13 | DF51: 12 | DG51: 11 | DH51: 10 | DI51: 9 | DJ51: 8 | DK51: 7 | DL51: 6 | DM51: 5 | DN51: 4 | DO51: 3 | DP51: 2 | DQ51: 1 | DR51: 0 | DS51: 14 | DT51: 13 | DU51: 12 | DV51: 810.0 | DW51: 1112.4 | DX51: 1432.2 | DY51: 1770.2 | DZ51: 2127.2 | EA51: 2504.0 | EB51: 2901.5 | EC51: 3320.7 | ED51: 3762.3 | EE51: 4227.5 | EF51: 4717.1 | EG51: 5232.4 | EH51: 5774.3 | EI51: 396.5 | EJ51: 816.8 | EK51: 1262.0 | EL51: 1733.1 | EM51: 2231.3 | EN51: 2757.9 | EO51: 3314.1 | EP51: 3901.2 | EQ51: 4520.5 | ER51: 5173.5 | ES51: 5861.6 | ET51: 6586.3 | EU51: 7349.2 | EV51: 8151.9 | EW51: 8996.2 | EX51: 617.7 | EY51: 1272.5 | EZ51: 1966.1 | FD51: 12 | FE51: $4,600
A52: FALSE | C52: 22 | E52: 305 | F52: Pool - Resurface | G52: ~2,220 Sq Ft, plaster | H52: 20 | I52: 17 | J52: $25,000 | K52: $35,000 | M52: $30,000 | N52: 305 | O52: Pool - Resurface | P52: 20 | Q52: 17 | R52: $30,000 | S52: 305 | T52: Pool - Resurface | U52: ~2,220 Sq Ft, plaster | V52: 20 | W52: 17 | X52: $25,000 | Y52: $35,000 | Z52: 305 | AA52: Pool - Resurface | AB52: $30,000 | AC52: X | AD52: 3 | AE52: / | AF52: 20 | AG52: = | AH52: =DV52+(1-Main!$D$61)*(DW52-DV52) -> $4,500 | AJ52: 305 | AK52: Pool - Resurface | AL52: 20 | AM52: $30,000 | AN52: $1,500 | AO52: 4.2% | AP52: =SUM(AV$31:AV52) -> $331,017 | AQ52: 305 | AR52: Pool - Resurface | AS52: 20 | AT52: 17 | AU52: $30,000 | AV52: =DV52+(1-Main!$D$61)*(DW52-DV52) -> $4,500 | AW52: =IF(Main!D$26>1,Main!D$26*AV52,IF((AP52-AV52)>=Main!D$20,0,IF(AP52<=Main!D$20,AV52,Main!D$20-AP52+AV52))) -> $4,500 | AX52: =AO52*Main!RecommendContrib -> $2,494.89 | AZ52: 305 | BA52: Pool - Resurface | BB52: $0 | BC52: $0 | BD52: $0 | BE52: $0 | BF52: $0 | BG52: 305 | BH52: Pool - Resurface | BI52: $0 | BJ52: $0 | BK52: $0 | BL52: $0 | BM52: $0 | BN52: 305 | BO52: Pool - Resurface | BP52: $0 | BQ52: $0 | BR52: $0 | BS52: $0 | BT52: $0 | BU52: 305 | BV52: Pool - Resurface | BW52: $0 | BX52: $0 | BY52: $49,585 | BZ52: $0 | CA52: $0 | CB52: 305 | CC52: Pool - Resurface | CD52: $0 | CE52: $0 | CF52: $0 | CG52: $0 | CH52: $0 | CI52: 305 | CJ52: Pool - Resurface | CK52: $0 | CL52: $0 | CM52: $0 | CN52: $0 | CO52: $0 | CP52: $0 | CQ52: 17 | CR52: =IF(AND($H52>0,$I52-CR$28>=$H52),$H52,IF(CQ52=999,999,IF(CQ52-1<0,IF($H52=0,999,$H52-1),CQ52-1))) -> 16 | CS52: 15 | CT52: 14 | CU52: 13 | CV52: 12 | CW52: 11 | CX52: 10 | CY52: 9 | CZ52: 8 | DA52: 7 | DB52: 6 | DC52: 5 | DD52: 4 | DE52: 3 | DF52: 2 | DG52: 1 | DH52: 0 | DI52: 19 | DJ52: 18 | DK52: 17 | DL52: 16 | DM52: 15 | DN52: 14 | DO52: 13 | DP52: 12 | DQ52: 11 | DR52: 10 | DS52: 9 | DT52: 8 | DU52: 7 | DV52: 4500.0 | DW52: 6180.0 | DX52: 7956.8 | DY52: 9834.5 | DZ52: 11817.8 | EA52: 13911.3 | EB52: 16119.7 | EC52: 18448.1 | ED52: 20901.7 | EE52: 23485.9 | EF52: 26206.4 | EG52: 29068.9 | EH52: 32079.6 | EI52: 35244.8 | EJ52: 38571.0 | EK52: 42065.1 | EL52: 45734.1 | EM52: 49585.4 | EN52: 2553.6 | EO52: 5260.5 | EP52: 8127.5 | EQ52: 11161.8 | ER52: 14370.8 | ES52: 17762.3 | ET52: 21344.3 | EU52: 25125.3 | EV52: 29114.0 | EW52: 33319.3 | EX52: 37750.8 | EY52: 42418.2 | EZ52: 47331.6 | FD52: 17 | FE52: $35,000
A53: FALSE | C53: 23 | E53: 306 | F53: Pool - Tile/Coping | G53: ~215 perimeter, depth,etc | H53: 15 | I53: 12 | J53: $7,000 | K53: $9,000 | M53: $8,000 | N53: 306 | O53: Pool - Tile/Coping | P53: 15 | Q53: 12 | R53: $8,000 | S53: 306 | T53: Pool - Tile/Coping | U53: ~215 perimeter, depth,etc | V53: 15 | W53: 12 | X53: $7,000 | Y53: $9,000 | Z53: 306 | AA53: Pool - Tile/Coping | AB53: $8,000 | AC53: X | AD53: 3 | AE53: / | AF53: 15 | AG53: = | AH53: =DV53+(1-Main!$D$61)*(DW53-DV53) -> $1,600 | AJ53: 306 | AK53: Pool - Tile/Coping | AL53: 15 | AM53: $8,000 | AN53: $533 | AO53: 1.5% | AP53: =SUM(AV$31:AV53) -> $332,617 | AQ53: 306 | AR53: Pool - Tile/Coping | AS53: 15 | AT53: 12 | AU53: $8,000 | AV53: =DV53+(1-Main!$D$61)*(DW53-DV53) -> $1,600 | AW53: =IF(Main!D$26>1,Main!D$26*AV53,IF((AP53-AV53)>=Main!D$20,0,IF(AP53<=Main!D$20,AV53,Main!D$20-AP53+AV53))) -> $1,600 | AX53: =AO53*Main!RecommendContrib -> $887.07 | AZ53: 306 | BA53: Pool - Tile/Coping | BB53: $0 | BC53: $0 | BD53: $0 | BE53: $0 | BF53: $0 | BG53: 306 | BH53: Pool - Tile/Coping | BI53: $0 | BJ53: $0 | BK53: $0 | BL53: $0 | BM53: $0 | BN53: 306 | BO53: Pool - Tile/Coping | BP53: $0 | BQ53: $0 | BR53: $11,406 | BS53: $0 | BT53: $0 | BU53: 306 | BV53: Pool - Tile/Coping | BW53: $0 | BX53: $0 | BY53: $0 | BZ53: $0 | CA53: $0 | CB53: 306 | CC53: Pool - Tile/Coping | CD53: $0 | CE53: $0 | CF53: $0 | CG53: $0 | CH53: $0 | CI53: 306 | CJ53: Pool - Tile/Coping | CK53: $0 | CL53: $0 | CM53: $17,770 | CN53: $0 | CO53: $0 | CP53: $0 | CQ53: 12 | CR53: =IF(AND($H53>0,$I53-CR$28>=$H53),$H53,IF(CQ53=999,999,IF(CQ53-1<0,IF($H53=0,999,$H53-1),CQ53-1))) -> 11 | CS53: 10 | CT53: 9 | CU53: 8 | CV53: 7 | CW53: 6 | CX53: 5 | CY53: 4 | CZ53: 3 | DA53: 2 | DB53: 1 | DC53: 0 | DD53: 14 | DE53: 13 | DF53: 12 | DG53: 11 | DH53: 10 | DI53: 9 | DJ53: 8 | DK53: 7 | DL53: 6 | DM53: 5 | DN53: 4 | DO53: 3 | DP53: 2 | DQ53: 1 | DR53: 0 | DS53: 14 | DT53: 13 | DU53: 12 | DV53: 1600.0 | DW53: 2197.3 | DX53: 2829.1 | DY53: 3496.7 | DZ53: 4201.9 | EA53: 4946.2 | EB53: 5731.5 | EC53: 6559.3 | ED53: 7431.7 | EE53: 8350.5 | EF53: 9317.8 | EG53: 10335.6 | EH53: 11406.1 | EI53: 783.2 | EJ53: 1613.4 | EK53: 2492.7 | EL53: 3423.4 | EM53: 4407.6 | EN53: 5447.8 | EO53: 6546.4 | EP53: 7706.1 | EQ53: 8929.4 | ER53: 10219.2 | ES53: 11578.4 | ET53: 13009.9 | EU53: 14516.9 | EV53: 16102.5 | EW53: 17770.3 | EX53: 1220.2 | EY53: 2513.7 | EZ53: 3883.6 | FD53: 12 | FE53: $9,000
A54: FALSE | C54: 24 | E54: 307 | F54: Pool Heater - Replace | G54: (1) pool heater | H54: 15 | I54: 12 | J54: $30,000 | K54: $35,000 | M54: $32,500 | N54: 307 | O54: Pool Heater - Replace | P54: 15 | Q54: 12 | R54: $32,500 | S54: 307 | T54: Pool Heater - Replace | U54: (1) pool heater | V54: 15 | W54: 12 | X54: $30,000 | Y54: $35,000 | Z54: 307 | AA54: Pool Heater - Replace | AB54: $32,500 | AC54: X | AD54: 3 | AE54: / | AF54: 15 | AG54: = | AH54: =DV54+(1-Main!$D$61)*(DW54-DV54) -> $6,500 | AJ54: 307 | AK54: Pool Heater - Replace | AL54: 15 | AM54: $32,500 | AN54: $2,167 | AO54: 6.0% | AP54: =SUM(AV$31:AV54) -> $339,117 | AQ54: 307 | AR54: Pool Heater - Replace | AS54: 15 | AT54: 12 | AU54: $32,500 | AV54: =DV54+(1-Main!$D$61)*(DW54-DV54) -> $6,500 | AW54: =IF(Main!D$26>1,Main!D$26*AV54,IF((AP54-AV54)>=Main!D$20,0,IF(AP54<=Main!D$20,AV54,Main!D$20-AP54+AV54))) -> $6,500 | AX54: =AO54*Main!RecommendContrib -> $3,603.73 | AZ54: 307 | BA54: Pool Heater - Replace | BB54: $0 | BC54: $0 | BD54: $0 | BE54: $0 | BF54: $0 | BG54: 307 | BH54: Pool Heater - Replace | BI54: $0 | BJ54: $0 | BK54: $0 | BL54: $0 | BM54: $0 | BN54: 307 | BO54: Pool Heater - Replace | BP54: $0 | BQ54: $0 | BR54: $46,337 | BS54: $0 | BT54: $0 | BU54: 307 | BV54: Pool Heater - Replace | BW54: $0 | BX54: $0 | BY54: $0 | BZ54: $0 | CA54: $0 | CB54: 307 | CC54: Pool Heater - Replace | CD54: $0 | CE54: $0 | CF54: $0 | CG54: $0 | CH54: $0 | CI54: 307 | CJ54: Pool Heater - Replace | CK54: $0 | CL54: $0 | CM54: $72,192 | CN54: $0 | CO54: $0 | CP54: $0 | CQ54: 12 | CR54: =IF(AND($H54>0,$I54-CR$28>=$H54),$H54,IF(CQ54=999,999,IF(CQ54-1<0,IF($H54=0,999,$H54-1),CQ54-1))) -> 11 | CS54: 10 | CT54: 9 | CU54: 8 | CV54: 7 | CW54: 6 | CX54: 5 | CY54: 4 | CZ54: 3 | DA54: 2 | DB54: 1 | DC54: 0 | DD54: 14 | DE54: 13 | DF54: 12 | DG54: 11 | DH54: 10 | DI54: 9 | DJ54: 8 | DK54: 7 | DL54: 6 | DM54: 5 | DN54: 4 | DO54: 3 | DP54: 2 | DQ54: 1 | DR54: 0 | DS54: 14 | DT54: 13 | DU54: 12 | DV54: 6500.0 | DW54: 8926.7 | DX54: 11493.1 | DY54: 14205.5 | DZ54: 17070.2 | EA54: 20094.1 | EB54: 23284.0 | EC54: 26647.3 | ED54: 30191.4 | EE54: 33924.1 | EF54: 37853.6 | EG54: 41988.4 | EH54: 46337.2 | EI54: 3181.8 | EJ54: 6554.6 | EK54: 10126.8 | EL54: 13907.5 | EM54: 17905.8 | EN54: 22131.6 | EO54: 26594.8 | EP54: 31305.9 | EQ54: 36275.7 | ER54: 41515.6 | ES54: 47037.1 | ET54: 52852.6 | EU54: 58974.7 | EV54: 65416.6 | EW54: 72191.9 | EX54: 4957.2 | EY54: 10211.8 | EZ54: 15777.2 | FD54: 12 | FE54: $35,000
A55: FALSE | C55: 25 | E55: 308 | F55: Pool Filters - Replace | G55: (3) Jandy Cartridge | H55: 10 | I55: 7 | J55: $5,500 | K55: $6,500 | M55: $6,000 | N55: 308 | O55: Pool Filters - Replace | P55: 10 | Q55: 7 | R55: $6,000 | S55: 308 | T55: Pool Filters - Replace | U55: (3) Jandy Cartridge | V55: 10 | W55: 7 | X55: $5,500 | Y55: $6,500 | Z55: 308 | AA55: Pool Filters - Replace | AB55: $6,000 | AC55: X | AD55: 3 | AE55: / | AF55: 10 | AG55: = | AH55: =DV55+(1-Main!$D$61)*(DW55-DV55) -> $1,800 | AJ55: 308 | AK55: Pool Filters - Replace | AL55: 10 | AM55: $6,000 | AN55: $600 | AO55: 1.7% | AP55: =SUM(AV$31:AV55) -> $340,917 | AQ55: 308 | AR55: Pool Filters - Replace | AS55: 10 | AT55: 7 | AU55: $6,000 | AV55: =DV55+(1-Main!$D$61)*(DW55-DV55) -> $1,800 | AW55: =IF(Main!D$26>1,Main!D$26*AV55,IF((AP55-AV55)>=Main!D$20,0,IF(AP55<=Main!D$20,AV55,Main!D$20-AP55+AV55))) -> $1,800 | AX55: =AO55*Main!RecommendContrib -> $997.96 | AZ55: 308 | BA55: Pool Filters - Replace | BB55: $0 | BC55: $0 | BD55: $0 | BE55: $0 | BF55: $0 | BG55: 308 | BH55: Pool Filters - Replace | BI55: $0 | BJ55: $0 | BK55: $7,379 | BL55: $0 | BM55: $0 | BN55: 308 | BO55: Pool Filters - Replace | BP55: $0 | BQ55: $0 | BR55: $0 | BS55: $0 | BT55: $0 | BU55: 308 | BV55: Pool Filters - Replace | BW55: $0 | BX55: $0 | BY55: $9,917 | BZ55: $0 | CA55: $0 | CB55: 308 | CC55: Pool Filters - Replace | CD55: $0 | CE55: $0 | CF55: $0 | CG55: $0 | CH55: $0 | CI55: 308 | CJ55: Pool Filters - Replace | CK55: $0 | CL55: $0 | CM55: $13,328 | CN55: $0 | CO55: $0 | CP55: $0 | CQ55: 7 | CR55: =IF(AND($H55>0,$I55-CR$28>=$H55),$H55,IF(CQ55=999,999,IF(CQ55-1<0,IF($H55=0,999,$H55-1),CQ55-1))) -> 6 | CS55: 5 | CT55: 4 | CU55: 3 | CV55: 2 | CW55: 1 | CX55: 0 | CY55: 9 | CZ55: 8 | DA55: 7 | DB55: 6 | DC55: 5 | DD55: 4 | DE55: 3 | DF55: 2 | DG55: 1 | DH55: 0 | DI55: 9 | DJ55: 8 | DK55: 7 | DL55: 6 | DM55: 5 | DN55: 4 | DO55: 3 | DP55: 2 | DQ55: 1 | DR55: 0 | DS55: 9 | DT55: 8 | DU55: 7 | DV55: 1800.0 | DW55: 2472.0 | DX55: 3182.7 | DY55: 3933.8 | DZ55: 4727.1 | EA55: 5564.5 | EB55: 6447.9 | EC55: 7379.2 | ED55: 760.1 | EE55: 1565.7 | EF55: 2419.0 | EG55: 3322.2 | EH55: 4277.3 | EI55: 5286.7 | EJ55: 6352.9 | EK55: 7478.2 | EL55: 8665.4 | EM55: 9917.1 | EN55: 1021.5 | EO55: 2104.2 | EP55: 3251.0 | EQ55: 4464.7 | ER55: 5748.3 | ES55: 7104.9 | ET55: 8537.7 | EU55: 10050.1 | EV55: 11645.6 | EW55: 13327.7 | EX55: 1372.8 | EY55: 2827.9 | EZ55: 4369.1 | FD55: 7 | FE55: $6,500
A56: FALSE | C56: 26 | E56: 309 | F56: Pool Pump - Replace | G56: (1) 5 HP | H56: 8 | I56: 5 | J56: $9,500 | K56: $10,500 | M56: =(J56+K56)/2 -> $10,000 | N56: =E56 -> 309 | O56: =F56 -> Pool Pump - Replace | P56: =H56 -> 8 | Q56: =I56 -> 5 | R56: =M56 -> $10,000 | S56: =E56 -> 309 | T56: =F56 -> Pool Pump - Replace | U56: =G56 -> (1) 5 HP | V56: =H56 -> 8 | W56: =I56 -> 5 | X56: =J56 -> $9,500 | Y56: =K56 -> $10,500 | Z56: =E56 -> 309 | AA56: =F56 -> Pool Pump - Replace | AB56: =M56 -> $10,000 | AC56: X | AD56: =IF(H56-I56<0,0,H56-I56) -> 3 | AE56: / | AF56: =H56 -> 8 | AG56: = | AH56: =DV56+(1-Main!$D$61)*(DW56-DV56) -> $3,750 | AJ56: =E56 -> 309 | AK56: =F56 -> Pool Pump - Replace | AL56: =H56 -> 8 | AM56: =M56 -> $10,000 | AN56: =IF(H56>0,M56/H56,0) -> $1,250 | AO56: 3.5% | AP56: =SUM(AV$31:AV56) -> $344,667 | AQ56: =E56 -> 309 | AR56: =F56 -> Pool Pump - Replace | AS56: =H56 -> 8 | AT56: =I56 -> 5 | AU56: =M56 -> $10,000 | AV56: =DV56+(1-Main!$D$61)*(DW56-DV56) -> $3,750 | AW56: =IF(Main!D$26>1,Main!D$26*AV56,IF((AP56-AV56)>=Main!D$20,0,IF(AP56<=Main!D$20,AV56,Main!D$20-AP56+AV56))) -> $3,750 | AX56: =AO56*Main!RecommendContrib -> $2,079.07 | AZ56: 309 | BA56: Pool Pump - Replace | BB56: =IF(CQ56=0,$M56*BB$3,0) -> $0 | BC56: =IF(CR56=0,$M56*BC$3,0) -> $0 | BD56: =IF(CS56=0,$M56*BD$3,0) -> $0 | BE56: =IF(CT56=0,$M56*BE$3,0) -> $0 | BF56: =IF(CU56=0,$M56*BF$3,0) -> $0 | BG56: 309 | BH56: Pool Pump - Replace | BI56: =IF(CV56=0,$M56*BI$3,0) -> $11,593 | BJ56: =IF(CW56=0,$M56*BJ$3,0) -> $0 | BK56: =IF(CX56=0,$M56*BK$3,0) -> $0 | BL56: =IF(CY56=0,$M56*BL$3,0) -> $0 | BM56: =IF(CZ56=0,$M56*BM$3,0) -> $0 | BN56: 309 | BO56: Pool Pump - Replace | BP56: =IF(DA56=0,$M56*BP$3,0) -> $0 | BQ56: =IF(DB56=0,$M56*BQ$3,0) -> $0 | BR56: =IF(DC56=0,$M56*BR$3,0) -> $0 | BS56: =IF(DD56=0,$M56*BS$3,0) -> $14,685 | BT56: =IF(DE56=0,$M56*BT$3,0) -> $0 | BU56: 309 | BV56: Pool Pump - Replace | BW56: =IF(DF56=0,$M56*BW$3,0) -> $0 | BX56: =IF(DG56=0,$M56*BX$3,0) -> $0 | BY56: =IF(DH56=0,$M56*BY$3,0) -> $0 | BZ56: =IF(DI56=0,$M56*BZ$3,0) -> $0 | CA56: =IF(DJ56=0,$M56*CA$3,0) -> $0 | CB56: 309 | CC56: Pool Pump - Replace | CD56: =IF(DK56=0,$M56*CD$3,0) -> $0 | CE56: =IF(DL56=0,$M56*CE$3,0) -> $18,603 | CF56: =IF(DM56=0,$M56*CF$3,0) -> $0 | CG56: =IF(DN56=0,$M56*CG$3,0) -> $0 | CH56: =IF(DO56=0,$M56*CH$3,0) -> $0 | CI56: 309 | CJ56: Pool Pump - Replace | CK56: =IF(DP56=0,$M56*CK$3,0) -> $0 | CL56: =IF(DQ56=0,$M56*CL$3,0) -> $0 | CM56: =IF(DR56=0,$M56*CM$3,0) -> $0 | CN56: =IF(DS56=0,$M56*CN$3,0) -> $0 | CO56: =IF(DT56=0,$M56*CO$3,0) -> $23,566 | CP56: =IF(DU56=0,$M56*CP$3,0) -> $0 | CQ56: =IF(H56=0,I56,IF($I56>$H56,$H56,$I56)) -> 5 | CR56: =IF(AND($H56>0,$I56-CR$28>=$H56),$H56,IF(CQ56=999,999,IF(CQ56-1<0,IF($H56=0,999,$H56-1),CQ56-1))) -> 4 | CS56: =IF(AND($H56>0,$I56-CS$28>=$H56),$H56,IF(CR56=999,999,IF(CR56-1<0,IF($H56=0,999,$H56-1),CR56-1))) -> 3 | CT56: =IF(AND($H56>0,$I56-CT$28>=$H56),$H56,IF(CS56=999,999,IF(CS56-1<0,IF($H56=0,999,$H56-1),CS56-1))) -> 2 | CU56: =IF(AND($H56>0,$I56-CU$28>=$H56),$H56,IF(CT56=999,999,IF(CT56-1<0,IF($H56=0,999,$H56-1),CT56-1))) -> 1 | CV56: =IF(AND($H56>0,$I56-CV$28>=$H56),$H56,IF(CU56=999,999,IF(CU56-1<0,IF($H56=0,999,$H56-1),CU56-1))) -> 0 | CW56: =IF(AND($H56>0,$I56-CW$28>=$H56),$H56,IF(CV56=999,999,IF(CV56-1<0,IF($H56=0,999,$H56-1),CV56-1))) -> 7 | CX56: =IF(AND($H56>0,$I56-CX$28>=$H56),$H56,IF(CW56=999,999,IF(CW56-1<0,IF($H56=0,999,$H56-1),CW56-1))) -> 6 | CY56: =IF(AND($H56>0,$I56-CY$28>=$H56),$H56,IF(CX56=999,999,IF(CX56-1<0,IF($H56=0,999,$H56-1),CX56-1))) -> 5 | CZ56: =IF(AND($H56>0,$I56-CZ$28>=$H56),$H56,IF(CY56=999,999,IF(CY56-1<0,IF($H56=0,999,$H56-1),CY56-1))) -> 4 | DA56: =IF(AND($H56>0,$I56-DA$28>=$H56),$H56,IF(CZ56=999,999,IF(CZ56-1<0,IF($H56=0,999,$H56-1),CZ56-1))) -> 3 | DB56: =IF(AND($H56>0,$I56-DB$28>=$H56),$H56,IF(DA56=999,999,IF(DA56-1<0,IF($H56=0,999,$H56-1),DA56-1))) -> 2 | DC56: =IF(AND($H56>0,$I56-DC$28>=$H56),$H56,IF(DB56=999,999,IF(DB56-1<0,IF($H56=0,999,$H56-1),DB56-1))) -> 1 | DD56: =IF(AND($H56>0,$I56-DD$28>=$H56),$H56,IF(DC56=999,999,IF(DC56-1<0,IF($H56=0,999,$H56-1),DC56-1))) -> 0 | DE56: =IF(AND($H56>0,$I56-DE$28>=$H56),$H56,IF(DD56=999,999,IF(DD56-1<0,IF($H56=0,999,$H56-1),DD56-1))) -> 7 | DF56: =IF(AND($H56>0,$I56-DF$28>=$H56),$H56,IF(DE56=999,999,IF(DE56-1<0,IF($H56=0,999,$H56-1),DE56-1))) -> 6 | DG56: =IF(AND($H56>0,$I56-DG$28>=$H56),$H56,IF(DF56=999,999,IF(DF56-1<0,IF($H56=0,999,$H56-1),DF56-1))) -> 5 | DH56: =IF(AND($H56>0,$I56-DH$28>=$H56),$H56,IF(DG56=999,999,IF(DG56-1<0,IF($H56=0,999,$H56-1),DG56-1))) -> 4 | DI56: =IF(AND($H56>0,$I56-DI$28>=$H56),$H56,IF(DH56=999,999,IF(DH56-1<0,IF($H56=0,999,$H56-1),DH56-1))) -> 3 | DJ56: =IF(AND($H56>0,$I56-DJ$28>=$H56),$H56,IF(DI56=999,999,IF(DI56-1<0,IF($H56=0,999,$H56-1),DI56-1))) -> 2 | DK56: =IF(AND($H56>0,$I56-DK$28>=$H56),$H56,IF(DJ56=999,999,IF(DJ56-1<0,IF($H56=0,999,$H56-1),DJ56-1))) -> 1 | DL56: =IF(AND($H56>0,$I56-DL$28>=$H56),$H56,IF(DK56=999,999,IF(DK56-1<0,IF($H56=0,999,$H56-1),DK56-1))) -> 0 | DM56: =IF(AND($H56>0,$I56-DM$28>=$H56),$H56,IF(DL56=999,999,IF(DL56-1<0,IF($H56=0,999,$H56-1),DL56-1))) -> 7 | DN56: =IF(AND($H56>0,$I56-DN$28>=$H56),$H56,IF(DM56=999,999,IF(DM56-1<0,IF($H56=0,999,$H56-1),DM56-1))) -> 6 | DO56: =IF(AND($H56>0,$I56-DO$28>=$H56),$H56,IF(DN56=999,999,IF(DN56-1<0,IF($H56=0,999,$H56-1),DN56-1))) -> 5 | DP56: =IF(AND($H56>0,$I56-DP$28>=$H56),$H56,IF(DO56=999,999,IF(DO56-1<0,IF($H56=0,999,$H56-1),DO56-1))) -> 4 | DQ56: =IF(AND($H56>0,$I56-DQ$28>=$H56),$H56,IF(DP56=999,999,IF(DP56-1<0,IF($H56=0,999,$H56-1),DP56-1))) -> 3 | DR56: =IF(AND($H56>0,$I56-DR$28>=$H56),$H56,IF(DQ56=999,999,IF(DQ56-1<0,IF($H56=0,999,$H56-1),DQ56-1))) -> 2 | DS56: =IF(AND($H56>0,$I56-DS$28>=$H56),$H56,IF(DR56=999,999,IF(DR56-1<0,IF($H56=0,999,$H56-1),DR56-1))) -> 1 | DT56: =IF(AND($H56>0,$I56-DT$28>=$H56),$H56,IF(DS56=999,999,IF(DS56-1<0,IF($H56=0,999,$H56-1),DS56-1))) -> 0 | DU56: =IF(AND($H56>0,$I56-DU$28>=$H56),$H56,IF(DT56=999,999,IF(DT56-1<0,IF($H56=0,999,$H56-1),DT56-1))) -> 7 | DV56: =IF($H56>0,$M56*($H56-CQ56)/$H56,$M56/(CQ56+1)) -> 3750.0 | DW56: =IF(CR56=999,0,IF($H56>0,DW$28*$M56*($H56-CR56)/$H56,DW$28*$M56/(CR56+1))) -> 5150.0 | DX56: =IF(CS56=999,0,IF($H56>0,DX$28*$M56*($H56-CS56)/$H56,DX$28*$M56/(CS56+1))) -> 6630.6 | DY56: =IF(CT56=999,0,IF($H56>0,DY$28*$M56*($H56-CT56)/$H56,DY$28*$M56/(CT56+1))) -> 8195.5 | DZ56: =IF(CU56=999,0,IF($H56>0,DZ$28*$M56*($H56-CU56)/$H56,DZ$28*$M56/(CU56+1))) -> 9848.2 | EA56: =IF(CV56=999,0,IF($H56>0,EA$28*$M56*($H56-CV56)/$H56,EA$28*$M56/(CV56+1))) -> 11592.7 | EB56: =IF(CW56=999,0,IF($H56>0,EB$28*$M56*($H56-CW56)/$H56,EB$28*$M56/(CW56+1))) -> 1492.6 | EC56: =IF(CX56=999,0,IF($H56>0,EC$28*$M56*($H56-CX56)/$H56,EC$28*$M56/(CX56+1))) -> 3074.7 | ED56: =IF(CY56=999,0,IF($H56>0,ED$28*$M56*($H56-CY56)/$H56,ED$28*$M56/(CY56+1))) -> 4750.4 | EE56: =IF(CZ56=999,0,IF($H56>0,EE$28*$M56*($H56-CZ56)/$H56,EE$28*$M56/(CZ56+1))) -> 6523.9 | EF56: =IF(DA56=999,0,IF($H56>0,EF$28*$M56*($H56-DA56)/$H56,EF$28*$M56/(DA56+1))) -> 8399.5 | EG56: =IF(DB56=999,0,IF($H56>0,EG$28*$M56*($H56-DB56)/$H56,EG$28*$M56/(DB56+1))) -> 10381.8 | EH56: =IF(DC56=999,0,IF($H56>0,EH$28*$M56*($H56-DC56)/$H56,EH$28*$M56/(DC56+1))) -> 12475.4 | EI56: =IF(DD56=999,0,IF($H56>0,EI$28*$M56*($H56-DD56)/$H56,EI$28*$M56/(DD56+1))) -> 14685.3 | EJ56: =IF(DE56=999,0,IF($H56>0,EJ$28*$M56*($H56-DE56)/$H56,EJ$28*$M56/(DE56+1))) -> 1890.7 | EK56: =IF(DF56=999,0,IF($H56>0,EK$28*$M56*($H56-DF56)/$H56,EK$28*$M56/(DF56+1))) -> 3894.9 | EL56: =IF(DG56=999,0,IF($H56>0,EL$28*$M56*($H56-DG56)/$H56,EL$28*$M56/(DG56+1))) -> 6017.6 | EM56: =IF(DH56=999,0,IF($H56>0,EM$28*$M56*($H56-DH56)/$H56,EM$28*$M56/(DH56+1))) -> 8264.2 | EN56: =IF(DI56=999,0,IF($H56>0,EN$28*$M56*($H56-DI56)/$H56,EN$28*$M56/(DI56+1))) -> 10640.2 | EO56: =IF(DJ56=999,0,IF($H56>0,EO$28*$M56*($H56-DJ56)/$H56,EO$28*$M56/(DJ56+1))) -> 13151.3 | EP56: =IF(DK56=999,0,IF($H56>0,EP$28*$M56*($H56-DK56)/$H56,EP$28*$M56/(DK56+1))) -> 15803.5 | EQ56: =IF(DL56=999,0,IF($H56>0,EQ$28*$M56*($H56-DL56)/$H56,EQ$28*$M56/(DL56+1))) -> 18602.9 | ER56: =IF(DM56=999,0,IF($H56>0,ER$28*$M56*($H56-DM56)/$H56,ER$28*$M56/(DM56+1))) -> 2395.1 | ES56: =IF(DN56=999,0,IF($H56>0,ES$28*$M56*($H56-DN56)/$H56,ES$28*$M56/(DN56+1))) -> 4934.0 | ET56: =IF(DO56=999,0,IF($H56>0,ET$28*$M56*($H56-DO56)/$H56,ET$28*$M56/(DO56+1))) -> 7623.0 | EU56: =IF(DP56=999,0,IF($H56>0,EU$28*$M56*($H56-DP56)/$H56,EU$28*$M56/(DP56+1))) -> 10468.9 | EV56: =IF(DQ56=999,0,IF($H56>0,EV$28*$M56*($H56-DQ56)/$H56,EV$28*$M56/(DQ56+1))) -> 13478.7 | EW56: =IF(DR56=999,0,IF($H56>0,EW$28*$M56*($H56-DR56)/$H56,EW$28*$M56/(DR56+1))) -> 16659.7 | EX56: =IF(DS56=999,0,IF($H56>0,EX$28*$M56*($H56-DS56)/$H56,EX$28*$M56/(DS56+1))) -> 20019.4 | EY56: =IF(DT56=999,0,IF($H56>0,EY$28*$M56*($H56-DT56)/$H56,EY$28*$M56/(DT56+1))) -> 23565.7 | EZ56: =IF(DU56=999,0,IF($H56>0,EZ$28*$M56*($H56-DU56)/$H56,EZ$28*$M56/(DU56+1))) -> 3034.1 | FD56: =MAX(0,I56-Years) -> 5 | FE56: =K56*(1+Inflation/100)^Years -> $10,500
A57: FALSE | C57: 27 | E57: 312 | F57: Pool Chlorinator - Replace | G57: (1) Versachlor System | H57: 8 | I57: 5 | J57: $3,000 | K57: $5,000 | M57: =(J57+K57)/2 -> $4,000 | N57: =E57 -> 312 | O57: =F57 -> Pool Chlorinator - Replace | P57: =H57 -> 8 | Q57: =I57 -> 5 | R57: =M57 -> $4,000 | S57: =E57 -> 312 | T57: =F57 -> Pool Chlorinator - Replace | U57: =G57 -> (1) Versachlor System | V57: =H57 -> 8 | W57: =I57 -> 5 | X57: =J57 -> $3,000 | Y57: =K57 -> $5,000 | Z57: =E57 -> 312 | AA57: =F57 -> Pool Chlorinator - Replace | AB57: =M57 -> $4,000 | AC57: X | AD57: =IF(H57-I57<0,0,H57-I57) -> 3 | AE57: / | AF57: =H57 -> 8 | AG57: = | AH57: =DV57+(1-Main!$D$61)*(DW57-DV57) -> $1,500 | AJ57: =E57 -> 312 | AK57: =F57 -> Pool Chlorinator - Replace | AL57: =H57 -> 8 | AM57: =M57 -> $4,000 | AN57: =IF(H57>0,M57/H57,0) -> $500 | AO57: 1.4% | AP57: =SUM(AV$31:AV57) -> $346,167 | AQ57: =E57 -> 312 | AR57: =F57 -> Pool Chlorinator - Replace | AS57: =H57 -> 8 | AT57: =I57 -> 5 | AU57: =M57 -> $4,000 | AV57: =DV57+(1-Main!$D$61)*(DW57-DV57) -> $1,500 | AW57: =IF(Main!D$26>1,Main!D$26*AV57,IF((AP57-AV57)>=Main!D$20,0,IF(AP57<=Main!D$20,AV57,Main!D$20-AP57+AV57))) -> $1,500 | AX57: =AO57*Main!RecommendContrib -> $831.63 | AZ57: 312 | BA57: Pool Chlorinator - Replace | BB57: =IF(CQ57=0,$M57*BB$3,0) -> $0 | BC57: =IF(CR57=0,$M57*BC$3,0) -> $0 | BD57: =IF(CS57=0,$M57*BD$3,0) -> $0 | BE57: =IF(CT57=0,$M57*BE$3,0) -> $0 | BF57: =IF(CU57=0,$M57*BF$3,0) -> $0 | BG57: 312 | BH57: Pool Chlorinator - Replace | BI57: =IF(CV57=0,$M57*BI$3,0) -> $4,637 | BJ57: =IF(CW57=0,$M57*BJ$3,0) -> $0 | BK57: =IF(CX57=0,$M57*BK$3,0) -> $0 | BL57: =IF(CY57=0,$M57*BL$3,0) -> $0 | BM57: =IF(CZ57=0,$M57*BM$3,0) -> $0 | BN57: 312 | BO57: Pool Chlorinator - Replace | BP57: =IF(DA57=0,$M57*BP$3,0) -> $0 | BQ57: =IF(DB57=0,$M57*BQ$3,0) -> $0 | BR57: =IF(DC57=0,$M57*BR$3,0) -> $0 | BS57: =IF(DD57=0,$M57*BS$3,0) -> $5,874 | BT57: =IF(DE57=0,$M57*BT$3,0) -> $0 | BU57: 312 | BV57: Pool Chlorinator - Replace | BW57: =IF(DF57=0,$M57*BW$3,0) -> $0 | BX57: =IF(DG57=0,$M57*BX$3,0) -> $0 | BY57: =IF(DH57=0,$M57*BY$3,0) -> $0 | BZ57: =IF(DI57=0,$M57*BZ$3,0) -> $0 | CA57: =IF(DJ57=0,$M57*CA$3,0) -> $0 | CB57: 312 | CC57: Pool Chlorinator - Replace | CD57: =IF(DK57=0,$M57*CD$3,0) -> $0 | CE57: =IF(DL57=0,$M57*CE$3,0) -> $7,441 | CF57: =IF(DM57=0,$M57*CF$3,0) -> $0 | CG57: =IF(DN57=0,$M57*CG$3,0) -> $0 | CH57: =IF(DO57=0,$M57*CH$3,0) -> $0 | CI57: 312 | CJ57: Pool Chlorinator - Replace | CK57: =IF(DP57=0,$M57*CK$3,0) -> $0 | CL57: =IF(DQ57=0,$M57*CL$3,0) -> $0 | CM57: =IF(DR57=0,$M57*CM$3,0) -> $0 | CN57: =IF(DS57=0,$M57*CN$3,0) -> $0 | CO57: =IF(DT57=0,$M57*CO$3,0) -> $9,426 | CP57: =IF(DU57=0,$M57*CP$3,0) -> $0 | CQ57: =IF(H57=0,I57,IF($I57>$H57,$H57,$I57)) -> 5 | CR57: =IF(AND($H57>0,$I57-CR$28>=$H57),$H57,IF(CQ57=999,999,IF(CQ57-1<0,IF($H57=0,999,$H57-1),CQ57-1))) -> 4 | CS57: =IF(AND($H57>0,$I57-CS$28>=$H57),$H57,IF(CR57=999,999,IF(CR57-1<0,IF($H57=0,999,$H57-1),CR57-1))) -> 3 | CT57: =IF(AND($H57>0,$I57-CT$28>=$H57),$H57,IF(CS57=999,999,IF(CS57-1<0,IF($H57=0,999,$H57-1),CS57-1))) -> 2 | CU57: =IF(AND($H57>0,$I57-CU$28>=$H57),$H57,IF(CT57=999,999,IF(CT57-1<0,IF($H57=0,999,$H57-1),CT57-1))) -> 1 | CV57: =IF(AND($H57>0,$I57-CV$28>=$H57),$H57,IF(CU57=999,999,IF(CU57-1<0,IF($H57=0,999,$H57-1),CU57-1))) -> 0 | CW57: =IF(AND($H57>0,$I57-CW$28>=$H57),$H57,IF(CV57=999,999,IF(CV57-1<0,IF($H57=0,999,$H57-1),CV57-1))) -> 7 | CX57: =IF(AND($H57>0,$I57-CX$28>=$H57),$H57,IF(CW57=999,999,IF(CW57-1<0,IF($H57=0,999,$H57-1),CW57-1))) -> 6 | CY57: =IF(AND($H57>0,$I57-CY$28>=$H57),$H57,IF(CX57=999,999,IF(CX57-1<0,IF($H57=0,999,$H57-1),CX57-1))) -> 5 | CZ57: =IF(AND($H57>0,$I57-CZ$28>=$H57),$H57,IF(CY57=999,999,IF(CY57-1<0,IF($H57=0,999,$H57-1),CY57-1))) -> 4 | DA57: =IF(AND($H57>0,$I57-DA$28>=$H57),$H57,IF(CZ57=999,999,IF(CZ57-1<0,IF($H57=0,999,$H57-1),CZ57-1))) -> 3 | DB57: =IF(AND($H57>0,$I57-DB$28>=$H57),$H57,IF(DA57=999,999,IF(DA57-1<0,IF($H57=0,999,$H57-1),DA57-1))) -> 2 | DC57: =IF(AND($H57>0,$I57-DC$28>=$H57),$H57,IF(DB57=999,999,IF(DB57-1<0,IF($H57=0,999,$H57-1),DB57-1))) -> 1 | DD57: =IF(AND($H57>0,$I57-DD$28>=$H57),$H57,IF(DC57=999,999,IF(DC57-1<0,IF($H57=0,999,$H57-1),DC57-1))) -> 0 | DE57: =IF(AND($H57>0,$I57-DE$28>=$H57),$H57,IF(DD57=999,999,IF(DD57-1<0,IF($H57=0,999,$H57-1),DD57-1))) -> 7 | DF57: =IF(AND($H57>0,$I57-DF$28>=$H57),$H57,IF(DE57=999,999,IF(DE57-1<0,IF($H57=0,999,$H57-1),DE57-1))) -> 6 | DG57: =IF(AND($H57>0,$I57-DG$28>=$H57),$H57,IF(DF57=999,999,IF(DF57-1<0,IF($H57=0,999,$H57-1),DF57-1))) -> 5 | DH57: =IF(AND($H57>0,$I57-DH$28>=$H57),$H57,IF(DG57=999,999,IF(DG57-1<0,IF($H57=0,999,$H57-1),DG57-1))) -> 4 | DI57: =IF(AND($H57>0,$I57-DI$28>=$H57),$H57,IF(DH57=999,999,IF(DH57-1<0,IF($H57=0,999,$H57-1),DH57-1))) -> 3 | DJ57: =IF(AND($H57>0,$I57-DJ$28>=$H57),$H57,IF(DI57=999,999,IF(DI57-1<0,IF($H57=0,999,$H57-1),DI57-1))) -> 2 | DK57: =IF(AND($H57>0,$I57-DK$28>=$H57),$H57,IF(DJ57=999,999,IF(DJ57-1<0,IF($H57=0,999,$H57-1),DJ57-1))) -> 1 | DL57: =IF(AND($H57>0,$I57-DL$28>=$H57),$H57,IF(DK57=999,999,IF(DK57-1<0,IF($H57=0,999,$H57-1),DK57-1))) -> 0 | DM57: =IF(AND($H57>0,$I57-DM$28>=$H57),$H57,IF(DL57=999,999,IF(DL57-1<0,IF($H57=0,999,$H57-1),DL57-1))) -> 7 | DN57: =IF(AND($H57>0,$I57-DN$28>=$H57),$H57,IF(DM57=999,999,IF(DM57-1<0,IF($H57=0,999,$H57-1),DM57-1))) -> 6 | DO57: =IF(AND($H57>0,$I57-DO$28>=$H57),$H57,IF(DN57=999,999,IF(DN57-1<0,IF($H57=0,999,$H57-1),DN57-1))) -> 5 | DP57: =IF(AND($H57>0,$I57-DP$28>=$H57),$H57,IF(DO57=999,999,IF(DO57-1<0,IF($H57=0,999,$H57-1),DO57-1))) -> 4 | DQ57: =IF(AND($H57>0,$I57-DQ$28>=$H57),$H57,IF(DP57=999,999,IF(DP57-1<0,IF($H57=0,999,$H57-1),DP57-1))) -> 3 | DR57: =IF(AND($H57>0,$I57-DR$28>=$H57),$H57,IF(DQ57=999,999,IF(DQ57-1<0,IF($H57=0,999,$H57-1),DQ57-1))) -> 2 | DS57: =IF(AND($H57>0,$I57-DS$28>=$H57),$H57,IF(DR57=999,999,IF(DR57-1<0,IF($H57=0,999,$H57-1),DR57-1))) -> 1 | DT57: =IF(AND($H57>0,$I57-DT$28>=$H57),$H57,IF(DS57=999,999,IF(DS57-1<0,IF($H57=0,999,$H57-1),DS57-1))) -> 0 | DU57: =IF(AND($H57>0,$I57-DU$28>=$H57),$H57,IF(DT57=999,999,IF(DT57-1<0,IF($H57=0,999,$H57-1),DT57-1))) -> 7 | DV57: =IF($H57>0,$M57*($H57-CQ57)/$H57,$M57/(CQ57+1)) -> 1500.0 | DW57: =IF(CR57=999,0,IF($H57>0,DW$28*$M57*($H57-CR57)/$H57,DW$28*$M57/(CR57+1))) -> 2060.0 | DX57: =IF(CS57=999,0,IF($H57>0,DX$28*$M57*($H57-CS57)/$H57,DX$28*$M57/(CS57+1))) -> 2652.3 | DY57: =IF(CT57=999,0,IF($H57>0,DY$28*$M57*($H57-CT57)/$H57,DY$28*$M57/(CT57+1))) -> 3278.2 | DZ57: =IF(CU57=999,0,IF($H57>0,DZ$28*$M57*($H57-CU57)/$H57,DZ$28*$M57/(CU57+1))) -> 3939.3 | EA57: =IF(CV57=999,0,IF($H57>0,EA$28*$M57*($H57-CV57)/$H57,EA$28*$M57/(CV57+1))) -> 4637.1 | EB57: =IF(CW57=999,0,IF($H57>0,EB$28*$M57*($H57-CW57)/$H57,EB$28*$M57/(CW57+1))) -> 597.0 | EC57: =IF(CX57=999,0,IF($H57>0,EC$28*$M57*($H57-CX57)/$H57,EC$28*$M57/(CX57+1))) -> 1229.9 | ED57: =IF(CY57=999,0,IF($H57>0,ED$28*$M57*($H57-CY57)/$H57,ED$28*$M57/(CY57+1))) -> 1900.2 | EE57: =IF(CZ57=999,0,IF($H57>0,EE$28*$M57*($H57-CZ57)/$H57,EE$28*$M57/(CZ57+1))) -> 2609.5 | EF57: =IF(DA57=999,0,IF($H57>0,EF$28*$M57*($H57-DA57)/$H57,EF$28*$M57/(DA57+1))) -> 3359.8 | EG57: =IF(DB57=999,0,IF($H57>0,EG$28*$M57*($H57-DB57)/$H57,EG$28*$M57/(DB57+1))) -> 4152.7 | EH57: =IF(DC57=999,0,IF($H57>0,EH$28*$M57*($H57-DC57)/$H57,EH$28*$M57/(DC57+1))) -> 4990.2 | EI57: =IF(DD57=999,0,IF($H57>0,EI$28*$M57*($H57-DD57)/$H57,EI$28*$M57/(DD57+1))) -> 5874.1 | EJ57: =IF(DE57=999,0,IF($H57>0,EJ$28*$M57*($H57-DE57)/$H57,EJ$28*$M57/(DE57+1))) -> 756.3 | EK57: =IF(DF57=999,0,IF($H57>0,EK$28*$M57*($H57-DF57)/$H57,EK$28*$M57/(DF57+1))) -> 1558.0 | EL57: =IF(DG57=999,0,IF($H57>0,EL$28*$M57*($H57-DG57)/$H57,EL$28*$M57/(DG57+1))) -> 2407.1 | EM57: =IF(DH57=999,0,IF($H57>0,EM$28*$M57*($H57-DH57)/$H57,EM$28*$M57/(DH57+1))) -> 3305.7 | EN57: =IF(DI57=999,0,IF($H57>0,EN$28*$M57*($H57-DI57)/$H57,EN$28*$M57/(DI57+1))) -> 4256.1 | EO57: =IF(DJ57=999,0,IF($H57>0,EO$28*$M57*($H57-DJ57)/$H57,EO$28*$M57/(DJ57+1))) -> 5260.5 | EP57: =IF(DK57=999,0,IF($H57>0,EP$28*$M57*($H57-DK57)/$H57,EP$28*$M57/(DK57+1))) -> 6321.4 | EQ57: =IF(DL57=999,0,IF($H57>0,EQ$28*$M57*($H57-DL57)/$H57,EQ$28*$M57/(DL57+1))) -> 7441.2 | ER57: =IF(DM57=999,0,IF($H57>0,ER$28*$M57*($H57-DM57)/$H57,ER$28*$M57/(DM57+1))) -> 958.1 | ES57: =IF(DN57=999,0,IF($H57>0,ES$28*$M57*($H57-DN57)/$H57,ES$28*$M57/(DN57+1))) -> 1973.6 | ET57: =IF(DO57=999,0,IF($H57>0,ET$28*$M57*($H57-DO57)/$H57,ET$28*$M57/(DO57+1))) -> 3049.2 | EU57: =IF(DP57=999,0,IF($H57>0,EU$28*$M57*($H57-DP57)/$H57,EU$28*$M57/(DP57+1))) -> 4187.6 | EV57: =IF(DQ57=999,0,IF($H57>0,EV$28*$M57*($H57-DQ57)/$H57,EV$28*$M57/(DQ57+1))) -> 5391.5 | EW57: =IF(DR57=999,0,IF($H57>0,EW$28*$M57*($H57-DR57)/$H57,EW$28*$M57/(DR57+1))) -> 6663.9 | EX57: =IF(DS57=999,0,IF($H57>0,EX$28*$M57*($H57-DS57)/$H57,EX$28*$M57/(DS57+1))) -> 8007.7 | EY57: =IF(DT57=999,0,IF($H57>0,EY$28*$M57*($H57-DT57)/$H57,EY$28*$M57/(DT57+1))) -> 9426.3 | EZ57: =IF(DU57=999,0,IF($H57>0,EZ$28*$M57*($H57-DU57)/$H57,EZ$28*$M57/(DU57+1))) -> 1213.6 | FD57: =MAX(0,I57-Years) -> 5 | FE57: =K57*(1+Inflation/100)^Years -> $5,000
A58: FALSE | C58: 28 | E58: 314 | F58: Pool Cover - Replace | G58: (1) reel, cover | H58: 10 | I58: 7 | J58: $6,500 | K58: $8,500 | M58: =(J58+K58)/2 -> $7,500 | N58: =E58 -> 314 | O58: =F58 -> Pool Cover - Replace | P58: =H58 -> 10 | Q58: =I58 -> 7 | R58: =M58 -> $7,500 | S58: =E58 -> 314 | T58: =F58 -> Pool Cover - Replace | U58: =G58 -> (1) reel, cover | V58: =H58 -> 10 | W58: =I58 -> 7 | X58: =J58 -> $6,500 | Y58: =K58 -> $8,500 | Z58: =E58 -> 314 | AA58: =F58 -> Pool Cover - Replace | AB58: =M58 -> $7,500 | AC58: X | AD58: =IF(H58-I58<0,0,H58-I58) -> 3 | AE58: / | AF58: =H58 -> 10 | AG58: = | AH58: =DV58+(1-Main!$D$61)*(DW58-DV58) -> $2,250 | AJ58: =E58 -> 314 | AK58: =F58 -> Pool Cover - Replace | AL58: =H58 -> 10 | AM58: =M58 -> $7,500 | AN58: =IF(H58>0,M58/H58,0) -> $750 | AO58: 2.1% | AP58: =SUM(AV$31:AV58) -> $348,417 | AQ58: =E58 -> 314 | AR58: =F58 -> Pool Cover - Replace | AS58: =H58 -> 10 | AT58: =I58 -> 7 | AU58: =M58 -> $7,500 | AV58: =DV58+(1-Main!$D$61)*(DW58-DV58) -> $2,250 | AW58: =IF(Main!D$26>1,Main!D$26*AV58,IF((AP58-AV58)>=Main!D$20,0,IF(AP58<=Main!D$20,AV58,Main!D$20-AP58+AV58))) -> $2,250 | AX58: =AO58*Main!RecommendContrib -> $1,247.44 | AZ58: 314 | BA58: Pool Cover - Replace | BB58: =IF(CQ58=0,$M58*BB$3,0) -> $0 | BC58: =IF(CR58=0,$M58*BC$3,0) -> $0 | BD58: =IF(CS58=0,$M58*BD$3,0) -> $0 | BE58: =IF(CT58=0,$M58*BE$3,0) -> $0 | BF58: =IF(CU58=0,$M58*BF$3,0) -> $0 | BG58: 314 | BH58: Pool Cover - Replace | BI58: =IF(CV58=0,$M58*BI$3,0) -> $0 | BJ58: =IF(CW58=0,$M58*BJ$3,0) -> $0 | BK58: =IF(CX58=0,$M58*BK$3,0) -> $9,224 | BL58: =IF(CY58=0,$M58*BL$3,0) -> $0 | BM58: =IF(CZ58=0,$M58*BM$3,0) -> $0 | BN58: 314 | BO58: Pool Cover - Replace | BP58: =IF(DA58=0,$M58*BP$3,0) -> $0 | BQ58: =IF(DB58=0,$M58*BQ$3,0) -> $0 | BR58: =IF(DC58=0,$M58*BR$3,0) -> $0 | BS58: =IF(DD58=0,$M58*BS$3,0) -> $0 | BT58: =IF(DE58=0,$M58*BT$3,0) -> $0 | BU58: 314 | BV58: Pool Cover - Replace | BW58: =IF(DF58=0,$M58*BW$3,0) -> $0 | BX58: =IF(DG58=0,$M58*BX$3,0) -> $0 | BY58: =IF(DH58=0,$M58*BY$3,0) -> $12,396 | BZ58: =IF(DI58=0,$M58*BZ$3,0) -> $0 | CA58: =IF(DJ58=0,$M58*CA$3,0) -> $0 | CB58: 314 | CC58: Pool Cover - Replace | CD58: =IF(DK58=0,$M58*CD$3,0) -> $0 | CE58: =IF(DL58=0,$M58*CE$3,0) -> $0 | CF58: =IF(DM58=0,$M58*CF$3,0) -> $0 | CG58: =IF(DN58=0,$M58*CG$3,0) -> $0 | CH58: =IF(DO58=0,$M58*CH$3,0) -> $0 | CI58: 314 | CJ58: Pool Cover - Replace | CK58: =IF(DP58=0,$M58*CK$3,0) -> $0 | CL58: =IF(DQ58=0,$M58*CL$3,0) -> $0 | CM58: =IF(DR58=0,$M58*CM$3,0) -> $16,660 | CN58: =IF(DS58=0,$M58*CN$3,0) -> $0 | CO58: =IF(DT58=0,$M58*CO$3,0) -> $0 | CP58: =IF(DU58=0,$M58*CP$3,0) -> $0 | CQ58: =IF(H58=0,I58,IF($I58>$H58,$H58,$I58)) -> 7 | CR58: =IF(AND($H58>0,$I58-CR$28>=$H58),$H58,IF(CQ58=999,999,IF(CQ58-1<0,IF($H58=0,999,$H58-1),CQ58-1))) -> 6 | CS58: =IF(AND($H58>0,$I58-CS$28>=$H58),$H58,IF(CR58=999,999,IF(CR58-1<0,IF($H58=0,999,$H58-1),CR58-1))) -> 5 | CT58: =IF(AND($H58>0,$I58-CT$28>=$H58),$H58,IF(CS58=999,999,IF(CS58-1<0,IF($H58=0,999,$H58-1),CS58-1))) -> 4 | CU58: =IF(AND($H58>0,$I58-CU$28>=$H58),$H58,IF(CT58=999,999,IF(CT58-1<0,IF($H58=0,999,$H58-1),CT58-1))) -> 3 | CV58: =IF(AND($H58>0,$I58-CV$28>=$H58),$H58,IF(CU58=999,999,IF(CU58-1<0,IF($H58=0,999,$H58-1),CU58-1))) -> 2 | CW58: =IF(AND($H58>0,$I58-CW$28>=$H58),$H58,IF(CV58=999,999,IF(CV58-1<0,IF($H58=0,999,$H58-1),CV58-1))) -> 1 | CX58: =IF(AND($H58>0,$I58-CX$28>=$H58),$H58,IF(CW58=999,999,IF(CW58-1<0,IF($H58=0,999,$H58-1),CW58-1))) -> 0 | CY58: =IF(AND($H58>0,$I58-CY$28>=$H58),$H58,IF(CX58=999,999,IF(CX58-1<0,IF($H58=0,999,$H58-1),CX58-1))) -> 9 | CZ58: =IF(AND($H58>0,$I58-CZ$28>=$H58),$H58,IF(CY58=999,999,IF(CY58-1<0,IF($H58=0,999,$H58-1),CY58-1))) -> 8 | DA58: =IF(AND($H58>0,$I58-DA$28>=$H58),$H58,IF(CZ58=999,999,IF(CZ58-1<0,IF($H58=0,999,$H58-1),CZ58-1))) -> 7 | DB58: =IF(AND($H58>0,$I58-DB$28>=$H58),$H58,IF(DA58=999,999,IF(DA58-1<0,IF($H58=0,999,$H58-1),DA58-1))) -> 6 | DC58: =IF(AND($H58>0,$I58-DC$28>=$H58),$H58,IF(DB58=999,999,IF(DB58-1<0,IF($H58=0,999,$H58-1),DB58-1))) -> 5 | DD58: =IF(AND($H58>0,$I58-DD$28>=$H58),$H58,IF(DC58=999,999,IF(DC58-1<0,IF($H58=0,999,$H58-1),DC58-1))) -> 4 | DE58: =IF(AND($H58>0,$I58-DE$28>=$H58),$H58,IF(DD58=999,999,IF(DD58-1<0,IF($H58=0,999,$H58-1),DD58-1))) -> 3 | DF58: =IF(AND($H58>0,$I58-DF$28>=$H58),$H58,IF(DE58=999,999,IF(DE58-1<0,IF($H58=0,999,$H58-1),DE58-1))) -> 2 | DG58: =IF(AND($H58>0,$I58-DG$28>=$H58),$H58,IF(DF58=999,999,IF(DF58-1<0,IF($H58=0,999,$H58-1),DF58-1))) -> 1 | DH58: =IF(AND($H58>0,$I58-DH$28>=$H58),$H58,IF(DG58=999,999,IF(DG58-1<0,IF($H58=0,999,$H58-1),DG58-1))) -> 0 | DI58: =IF(AND($H58>0,$I58-DI$28>=$H58),$H58,IF(DH58=999,999,IF(DH58-1<0,IF($H58=0,999,$H58-1),DH58-1))) -> 9 | DJ58: =IF(AND($H58>0,$I58-DJ$28>=$H58),$H58,IF(DI58=999,999,IF(DI58-1<0,IF($H58=0,999,$H58-1),DI58-1))) -> 8 | DK58: =IF(AND($H58>0,$I58-DK$28>=$H58),$H58,IF(DJ58=999,999,IF(DJ58-1<0,IF($H58=0,999,$H58-1),DJ58-1))) -> 7 | DL58: =IF(AND($H58>0,$I58-DL$28>=$H58),$H58,IF(DK58=999,999,IF(DK58-1<0,IF($H58=0,999,$H58-1),DK58-1))) -> 6 | DM58: =IF(AND($H58>0,$I58-DM$28>=$H58),$H58,IF(DL58=999,999,IF(DL58-1<0,IF($H58=0,999,$H58-1),DL58-1))) -> 5 | DN58: =IF(AND($H58>0,$I58-DN$28>=$H58),$H58,IF(DM58=999,999,IF(DM58-1<0,IF($H58=0,999,$H58-1),DM58-1))) -> 4 | DO58: =IF(AND($H58>0,$I58-DO$28>=$H58),$H58,IF(DN58=999,999,IF(DN58-1<0,IF($H58=0,999,$H58-1),DN58-1))) -> 3 | DP58: =IF(AND($H58>0,$I58-DP$28>=$H58),$H58,IF(DO58=999,999,IF(DO58-1<0,IF($H58=0,999,$H58-1),DO58-1))) -> 2 | DQ58: =IF(AND($H58>0,$I58-DQ$28>=$H58),$H58,IF(DP58=999,999,IF(DP58-1<0,IF($H58=0,999,$H58-1),DP58-1))) -> 1 | DR58: =IF(AND($H58>0,$I58-DR$28>=$H58),$H58,IF(DQ58=999,999,IF(DQ58-1<0,IF($H58=0,999,$H58-1),DQ58-1))) -> 0 | DS58: =IF(AND($H58>0,$I58-DS$28>=$H58),$H58,IF(DR58=999,999,IF(DR58-1<0,IF($H58=0,999,$H58-1),DR58-1))) -> 9 | DT58: =IF(AND($H58>0,$I58-DT$28>=$H58),$H58,IF(DS58=999,999,IF(DS58-1<0,IF($H58=0,999,$H58-1),DS58-1))) -> 8 | DU58: =IF(AND($H58>0,$I58-DU$28>=$H58),$H58,IF(DT58=999,999,IF(DT58-1<0,IF($H58=0,999,$H58-1),DT58-1))) -> 7 | DV58: =IF($H58>0,$M58*($H58-CQ58)/$H58,$M58/(CQ58+1)) -> 2250.0 | DW58: =IF(CR58=999,0,IF($H58>0,DW$28*$M58*($H58-CR58)/$H58,DW$28*$M58/(CR58+1))) -> 3090.0 | DX58: =IF(CS58=999,0,IF($H58>0,DX$28*$M58*($H58-CS58)/$H58,DX$28*$M58/(CS58+1))) -> 3978.4 | DY58: =IF(CT58=999,0,IF($H58>0,DY$28*$M58*($H58-CT58)/$H58,DY$28*$M58/(CT58+1))) -> 4917.3 | DZ58: =IF(CU58=999,0,IF($H58>0,DZ$28*$M58*($H58-CU58)/$H58,DZ$28*$M58/(CU58+1))) -> 5908.9 | EA58: =IF(CV58=999,0,IF($H58>0,EA$28*$M58*($H58-CV58)/$H58,EA$28*$M58/(CV58+1))) -> 6955.6 | EB58: =IF(CW58=999,0,IF($H58>0,EB$28*$M58*($H58-CW58)/$H58,EB$28*$M58/(CW58+1))) -> 8059.9 | EC58: =IF(CX58=999,0,IF($H58>0,EC$28*$M58*($H58-CX58)/$H58,EC$28*$M58/(CX58+1))) -> 9224.1 | ED58: =IF(CY58=999,0,IF($H58>0,ED$28*$M58*($H58-CY58)/$H58,ED$28*$M58/(CY58+1))) -> 950.1 | EE58: =IF(CZ58=999,0,IF($H58>0,EE$28*$M58*($H58-CZ58)/$H58,EE$28*$M58/(CZ58+1))) -> 1957.2 | EF58: =IF(DA58=999,0,IF($H58>0,EF$28*$M58*($H58-DA58)/$H58,EF$28*$M58/(DA58+1))) -> 3023.8 | EG58: =IF(DB58=999,0,IF($H58>0,EG$28*$M58*($H58-DB58)/$H58,EG$28*$M58/(DB58+1))) -> 4152.7 | EH58: =IF(DC58=999,0,IF($H58>0,EH$28*$M58*($H58-DC58)/$H58,EH$28*$M58/(DC58+1))) -> 5346.6 | EI58: =IF(DD58=999,0,IF($H58>0,EI$28*$M58*($H58-DD58)/$H58,EI$28*$M58/(DD58+1))) -> 6608.4 | EJ58: =IF(DE58=999,0,IF($H58>0,EJ$28*$M58*($H58-DE58)/$H58,EJ$28*$M58/(DE58+1))) -> 7941.1 | EK58: =IF(DF58=999,0,IF($H58>0,EK$28*$M58*($H58-DF58)/$H58,EK$28*$M58/(DF58+1))) -> 9347.8 | EL58: =IF(DG58=999,0,IF($H58>0,EL$28*$M58*($H58-DG58)/$H58,EL$28*$M58/(DG58+1))) -> 10831.8 | EM58: =IF(DH58=999,0,IF($H58>0,EM$28*$M58*($H58-DH58)/$H58,EM$28*$M58/(DH58+1))) -> 12396.4 | EN58: =IF(DI58=999,0,IF($H58>0,EN$28*$M58*($H58-DI58)/$H58,EN$28*$M58/(DI58+1))) -> 1276.8 | EO58: =IF(DJ58=999,0,IF($H58>0,EO$28*$M58*($H58-DJ58)/$H58,EO$28*$M58/(DJ58+1))) -> 2630.3 | EP58: =IF(DK58=999,0,IF($H58>0,EP$28*$M58*($H58-DK58)/$H58,EP$28*$M58/(DK58+1))) -> 4063.8 | EQ58: =IF(DL58=999,0,IF($H58>0,EQ$28*$M58*($H58-DL58)/$H58,EQ$28*$M58/(DL58+1))) -> 5580.9 | ER58: =IF(DM58=999,0,IF($H58>0,ER$28*$M58*($H58-DM58)/$H58,ER$28*$M58/(DM58+1))) -> 7185.4 | ES58: =IF(DN58=999,0,IF($H58>0,ES$28*$M58*($H58-DN58)/$H58,ES$28*$M58/(DN58+1))) -> 8881.1 | ET58: =IF(DO58=999,0,IF($H58>0,ET$28*$M58*($H58-DO58)/$H58,ET$28*$M58/(DO58+1))) -> 10672.2 | EU58: =IF(DP58=999,0,IF($H58>0,EU$28*$M58*($H58-DP58)/$H58,EU$28*$M58/(DP58+1))) -> 12562.7 | EV58: =IF(DQ58=999,0,IF($H58>0,EV$28*$M58*($H58-DQ58)/$H58,EV$28*$M58/(DQ58+1))) -> 14557.0 | EW58: =IF(DR58=999,0,IF($H58>0,EW$28*$M58*($H58-DR58)/$H58,EW$28*$M58/(DR58+1))) -> 16659.7 | EX58: =IF(DS58=999,0,IF($H58>0,EX$28*$M58*($H58-DS58)/$H58,EX$28*$M58/(DS58+1))) -> 1715.9 | EY58: =IF(DT58=999,0,IF($H58>0,EY$28*$M58*($H58-DT58)/$H58,EY$28*$M58/(DT58+1))) -> 3534.8 | EZ58: =IF(DU58=999,0,IF($H58>0,EZ$28*$M58*($H58-DU58)/$H58,EZ$28*$M58/(DU58+1))) -> 5461.3 | FD58: =MAX(0,I58-Years) -> 7 | FE58: =K58*(1+Inflation/100)^Years -> $8,500
A59: FALSE | C59: 29 | E59: 315 | F59: Pool Cover - Replace | H59: 5 | I59: 0 | J59: $2,000 | K59: $3,000 | M59: =(J59+K59)/2 -> $2,500 | N59: =E59 -> 315 | O59: =F59 -> Pool Cover - Replace | P59: =H59 -> 5 | Q59: =I59 -> 0 | R59: =M59 -> $2,500 | S59: =E59 -> 315 | T59: =F59 -> Pool Cover - Replace | U59: =G59 -> 0 | V59: =H59 -> 5 | W59: =I59 -> 0 | X59: =J59 -> $2,000 | Y59: =K59 -> $3,000 | Z59: =E59 -> 315 | AA59: =F59 -> Pool Cover - Replace | AB59: =M59 -> $2,500 | AC59: X | AD59: =IF(H59-I59<0,0,H59-I59) -> 5 | AE59: / | AF59: =H59 -> 5 | AG59: = | AH59: =DV59+(1-Main!$D$61)*(DW59-DV59) -> $2,500 | AJ59: =E59 -> 315 | AK59: =F59 -> Pool Cover - Replace | AL59: =H59 -> 5 | AM59: =M59 -> $2,500 | AN59: =IF(H59>0,M59/H59,0) -> $500 | AO59: 1.4% | AP59: =SUM(AV$31:AV59) -> $350,917 | AQ59: =E59 -> 315 | AR59: =F59 -> Pool Cover - Replace | AS59: =H59 -> 5 | AT59: =I59 -> 0 | AU59: =M59 -> $2,500 | AV59: =DV59+(1-Main!$D$61)*(DW59-DV59) -> $2,500 | AW59: =IF(Main!D$26>1,Main!D$26*AV59,IF((AP59-AV59)>=Main!D$20,0,IF(AP59<=Main!D$20,AV59,Main!D$20-AP59+AV59))) -> $2,500 | AX59: =AO59*Main!RecommendContrib -> $831.63 | AZ59: 315 | BA59: Pool Cover - Replace | BB59: =IF(CQ59=0,$M59*BB$3,0) -> $2,500 | BC59: =IF(CR59=0,$M59*BC$3,0) -> $0 | BD59: =IF(CS59=0,$M59*BD$3,0) -> $0 | BE59: =IF(CT59=0,$M59*BE$3,0) -> $0 | BF59: =IF(CU59=0,$M59*BF$3,0) -> $0 | BG59: 315 | BH59: Pool Cover - Replace | BI59: =IF(CV59=0,$M59*BI$3,0) -> $2,898 | BJ59: =IF(CW59=0,$M59*BJ$3,0) -> $0 | BK59: =IF(CX59=0,$M59*BK$3,0) -> $0 | BL59: =IF(CY59=0,$M59*BL$3,0) -> $0 | BM59: =IF(CZ59=0,$M59*BM$3,0) -> $0 | BN59: 315 | BO59: Pool Cover - Replace | BP59: =IF(DA59=0,$M59*BP$3,0) -> $3,360 | BQ59: =IF(DB59=0,$M59*BQ$3,0) -> $0 | BR59: =IF(DC59=0,$M59*BR$3,0) -> $0 | BS59: =IF(DD59=0,$M59*BS$3,0) -> $0 | BT59: =IF(DE59=0,$M59*BT$3,0) -> $0 | BU59: 315 | BV59: Pool Cover - Replace | BW59: =IF(DF59=0,$M59*BW$3,0) -> $3,895 | BX59: =IF(DG59=0,$M59*BX$3,0) -> $0 | BY59: =IF(DH59=0,$M59*BY$3,0) -> $0 | BZ59: =IF(DI59=0,$M59*BZ$3,0) -> $0 | CA59: =IF(DJ59=0,$M59*CA$3,0) -> $0 | CB59: 315 | CC59: Pool Cover - Replace | CD59: =IF(DK59=0,$M59*CD$3,0) -> $4,515 | CE59: =IF(DL59=0,$M59*CE$3,0) -> $0 | CF59: =IF(DM59=0,$M59*CF$3,0) -> $0 | CG59: =IF(DN59=0,$M59*CG$3,0) -> $0 | CH59: =IF(DO59=0,$M59*CH$3,0) -> $0 | CI59: 315 | CJ59: Pool Cover - Replace | CK59: =IF(DP59=0,$M59*CK$3,0) -> $5,234 | CL59: =IF(DQ59=0,$M59*CL$3,0) -> $0 | CM59: =IF(DR59=0,$M59*CM$3,0) -> $0 | CN59: =IF(DS59=0,$M59*CN$3,0) -> $0 | CO59: =IF(DT59=0,$M59*CO$3,0) -> $0 | CP59: =IF(DU59=0,$M59*CP$3,0) -> $6,068 | CQ59: =IF(H59=0,I59,IF($I59>$H59,$H59,$I59)) -> 0 | CR59: =IF(AND($H59>0,$I59-CR$28>=$H59),$H59,IF(CQ59=999,999,IF(CQ59-1<0,IF($H59=0,999,$H59-1),CQ59-1))) -> 4 | CS59: =IF(AND($H59>0,$I59-CS$28>=$H59),$H59,IF(CR59=999,999,IF(CR59-1<0,IF($H59=0,999,$H59-1),CR59-1))) -> 3 | CT59: =IF(AND($H59>0,$I59-CT$28>=$H59),$H59,IF(CS59=999,999,IF(CS59-1<0,IF($H59=0,999,$H59-1),CS59-1))) -> 2 | CU59: =IF(AND($H59>0,$I59-CU$28>=$H59),$H59,IF(CT59=999,999,IF(CT59-1<0,IF($H59=0,999,$H59-1),CT59-1))) -> 1 | CV59: =IF(AND($H59>0,$I59-CV$28>=$H59),$H59,IF(CU59=999,999,IF(CU59-1<0,IF($H59=0,999,$H59-1),CU59-1))) -> 0 | CW59: =IF(AND($H59>0,$I59-CW$28>=$H59),$H59,IF(CV59=999,999,IF(CV59-1<0,IF($H59=0,999,$H59-1),CV59-1))) -> 4 | CX59: =IF(AND($H59>0,$I59-CX$28>=$H59),$H59,IF(CW59=999,999,IF(CW59-1<0,IF($H59=0,999,$H59-1),CW59-1))) -> 3 | CY59: =IF(AND($H59>0,$I59-CY$28>=$H59),$H59,IF(CX59=999,999,IF(CX59-1<0,IF($H59=0,999,$H59-1),CX59-1))) -> 2 | CZ59: =IF(AND($H59>0,$I59-CZ$28>=$H59),$H59,IF(CY59=999,999,IF(CY59-1<0,IF($H59=0,999,$H59-1),CY59-1))) -> 1 | DA59: =IF(AND($H59>0,$I59-DA$28>=$H59),$H59,IF(CZ59=999,999,IF(CZ59-1<0,IF($H59=0,999,$H59-1),CZ59-1))) -> 0 | DB59: =IF(AND($H59>0,$I59-DB$28>=$H59),$H59,IF(DA59=999,999,IF(DA59-1<0,IF($H59=0,999,$H59-1),DA59-1))) -> 4 | DC59: =IF(AND($H59>0,$I59-DC$28>=$H59),$H59,IF(DB59=999,999,IF(DB59-1<0,IF($H59=0,999,$H59-1),DB59-1))) -> 3 | DD59: =IF(AND($H59>0,$I59-DD$28>=$H59),$H59,IF(DC59=999,999,IF(DC59-1<0,IF($H59=0,999,$H59-1),DC59-1))) -> 2 | DE59: =IF(AND($H59>0,$I59-DE$28>=$H59),$H59,IF(DD59=999,999,IF(DD59-1<0,IF($H59=0,999,$H59-1),DD59-1))) -> 1 | DF59: =IF(AND($H59>0,$I59-DF$28>=$H59),$H59,IF(DE59=999,999,IF(DE59-1<0,IF($H59=0,999,$H59-1),DE59-1))) -> 0 | DG59: =IF(AND($H59>0,$I59-DG$28>=$H59),$H59,IF(DF59=999,999,IF(DF59-1<0,IF($H59=0,999,$H59-1),DF59-1))) -> 4 | DH59: =IF(AND($H59>0,$I59-DH$28>=$H59),$H59,IF(DG59=999,999,IF(DG59-1<0,IF($H59=0,999,$H59-1),DG59-1))) -> 3 | DI59: =IF(AND($H59>0,$I59-DI$28>=$H59),$H59,IF(DH59=999,999,IF(DH59-1<0,IF($H59=0,999,$H59-1),DH59-1))) -> 2 | DJ59: =IF(AND($H59>0,$I59-DJ$28>=$H59),$H59,IF(DI59=999,999,IF(DI59-1<0,IF($H59=0,999,$H59-1),DI59-1))) -> 1 | DK59: =IF(AND($H59>0,$I59-DK$28>=$H59),$H59,IF(DJ59=999,999,IF(DJ59-1<0,IF($H59=0,999,$H59-1),DJ59-1))) -> 0 | DL59: =IF(AND($H59>0,$I59-DL$28>=$H59),$H59,IF(DK59=999,999,IF(DK59-1<0,IF($H59=0,999,$H59-1),DK59-1))) -> 4 | DM59: =IF(AND($H59>0,$I59-DM$28>=$H59),$H59,IF(DL59=999,999,IF(DL59-1<0,IF($H59=0,999,$H59-1),DL59-1))) -> 3 | DN59: =IF(AND($H59>0,$I59-DN$28>=$H59),$H59,IF(DM59=999,999,IF(DM59-1<0,IF($H59=0,999,$H59-1),DM59-1))) -> 2 | DO59: =IF(AND($H59>0,$I59-DO$28>=$H59),$H59,IF(DN59=999,999,IF(DN59-1<0,IF($H59=0,999,$H59-1),DN59-1))) -> 1 | DP59: =IF(AND($H59>0,$I59-DP$28>=$H59),$H59,IF(DO59=999,999,IF(DO59-1<0,IF($H59=0,999,$H59-1),DO59-1))) -> 0 | DQ59: =IF(AND($H59>0,$I59-DQ$28>=$H59),$H59,IF(DP59=999,999,IF(DP59-1<0,IF($H59=0,999,$H59-1),DP59-1))) -> 4 | DR59: =IF(AND($H59>0,$I59-DR$28>=$H59),$H59,IF(DQ59=999,999,IF(DQ59-1<0,IF($H59=0,999,$H59-1),DQ59-1))) -> 3 | DS59: =IF(AND($H59>0,$I59-DS$28>=$H59),$H59,IF(DR59=999,999,IF(DR59-1<0,IF($H59=0,999,$H59-1),DR59-1))) -> 2 | DT59: =IF(AND($H59>0,$I59-DT$28>=$H59),$H59,IF(DS59=999,999,IF(DS59-1<0,IF($H59=0,999,$H59-1),DS59-1))) -> 1 | DU59: =IF(AND($H59>0,$I59-DU$28>=$H59),$H59,IF(DT59=999,999,IF(DT59-1<0,IF($H59=0,999,$H59-1),DT59-1))) -> 0 | DV59: =IF($H59>0,$M59*($H59-CQ59)/$H59,$M59/(CQ59+1)) -> 2500.0 | DW59: =IF(CR59=999,0,IF($H59>0,DW$28*$M59*($H59-CR59)/$H59,DW$28*$M59/(CR59+1))) -> 515.0 | DX59: =IF(CS59=999,0,IF($H59>0,DX$28*$M59*($H59-CS59)/$H59,DX$28*$M59/(CS59+1))) -> 1060.9 | DY59: =IF(CT59=999,0,IF($H59>0,DY$28*$M59*($H59-CT59)/$H59,DY$28*$M59/(CT59+1))) -> 1639.1 | DZ59: =IF(CU59=999,0,IF($H59>0,DZ$28*$M59*($H59-CU59)/$H59,DZ$28*$M59/(CU59+1))) -> 2251.0 | EA59: =IF(CV59=999,0,IF($H59>0,EA$28*$M59*($H59-CV59)/$H59,EA$28*$M59/(CV59+1))) -> 2898.2 | EB59: =IF(CW59=999,0,IF($H59>0,EB$28*$M59*($H59-CW59)/$H59,EB$28*$M59/(CW59+1))) -> 597.0 | EC59: =IF(CX59=999,0,IF($H59>0,EC$28*$M59*($H59-CX59)/$H59,EC$28*$M59/(CX59+1))) -> 1229.9 | ED59: =IF(CY59=999,0,IF($H59>0,ED$28*$M59*($H59-CY59)/$H59,ED$28*$M59/(CY59+1))) -> 1900.2 | EE59: =IF(CZ59=999,0,IF($H59>0,EE$28*$M59*($H59-CZ59)/$H59,EE$28*$M59/(CZ59+1))) -> 2609.5 | EF59: =IF(DA59=999,0,IF($H59>0,EF$28*$M59*($H59-DA59)/$H59,EF$28*$M59/(DA59+1))) -> 3359.8 | EG59: =IF(DB59=999,0,IF($H59>0,EG$28*$M59*($H59-DB59)/$H59,EG$28*$M59/(DB59+1))) -> 692.1 | EH59: =IF(DC59=999,0,IF($H59>0,EH$28*$M59*($H59-DC59)/$H59,EH$28*$M59/(DC59+1))) -> 1425.8 | EI59: =IF(DD59=999,0,IF($H59>0,EI$28*$M59*($H59-DD59)/$H59,EI$28*$M59/(DD59+1))) -> 2202.8 | EJ59: =IF(DE59=999,0,IF($H59>0,EJ$28*$M59*($H59-DE59)/$H59,EJ$28*$M59/(DE59+1))) -> 3025.2 | EK59: =IF(DF59=999,0,IF($H59>0,EK$28*$M59*($H59-DF59)/$H59,EK$28*$M59/(DF59+1))) -> 3894.9 | EL59: =IF(DG59=999,0,IF($H59>0,EL$28*$M59*($H59-DG59)/$H59,EL$28*$M59/(DG59+1))) -> 802.4 | EM59: =IF(DH59=999,0,IF($H59>0,EM$28*$M59*($H59-DH59)/$H59,EM$28*$M59/(DH59+1))) -> 1652.8 | EN59: =IF(DI59=999,0,IF($H59>0,EN$28*$M59*($H59-DI59)/$H59,EN$28*$M59/(DI59+1))) -> 2553.6 | EO59: =IF(DJ59=999,0,IF($H59>0,EO$28*$M59*($H59-DJ59)/$H59,EO$28*$M59/(DJ59+1))) -> 3507.0 | EP59: =IF(DK59=999,0,IF($H59>0,EP$28*$M59*($H59-DK59)/$H59,EP$28*$M59/(DK59+1))) -> 4515.3 | EQ59: =IF(DL59=999,0,IF($H59>0,EQ$28*$M59*($H59-DL59)/$H59,EQ$28*$M59/(DL59+1))) -> 930.1 | ER59: =IF(DM59=999,0,IF($H59>0,ER$28*$M59*($H59-DM59)/$H59,ER$28*$M59/(DM59+1))) -> 1916.1 | ES59: =IF(DN59=999,0,IF($H59>0,ES$28*$M59*($H59-DN59)/$H59,ES$28*$M59/(DN59+1))) -> 2960.4 | ET59: =IF(DO59=999,0,IF($H59>0,ET$28*$M59*($H59-DO59)/$H59,ET$28*$M59/(DO59+1))) -> 4065.6 | EU59: =IF(DP59=999,0,IF($H59>0,EU$28*$M59*($H59-DP59)/$H59,EU$28*$M59/(DP59+1))) -> 5234.4 | EV59: =IF(DQ59=999,0,IF($H59>0,EV$28*$M59*($H59-DQ59)/$H59,EV$28*$M59/(DQ59+1))) -> 1078.3 | EW59: =IF(DR59=999,0,IF($H59>0,EW$28*$M59*($H59-DR59)/$H59,EW$28*$M59/(DR59+1))) -> 2221.3 | EX59: =IF(DS59=999,0,IF($H59>0,EX$28*$M59*($H59-DS59)/$H59,EX$28*$M59/(DS59+1))) -> 3431.9 | EY59: =IF(DT59=999,0,IF($H59>0,EY$28*$M59*($H59-DT59)/$H59,EY$28*$M59/(DT59+1))) -> 4713.1 | EZ59: =IF(DU59=999,0,IF($H59>0,EZ$28*$M59*($H59-DU59)/$H59,EZ$28*$M59/(DU59+1))) -> 6068.2 | FD59: =MAX(0,I59-Years) -> 0 | FE59: =K59*(1+Inflation/100)^Years -> $3,000
A60: FALSE | C60: 30 | E60: 316 | F60: Pool Lift - Replace | G60: (1) ADA Lift/Anchor | H60: 10 | I60: 7 | J60: $6,000 | K60: $7,000 | M60: =(J60+K60)/2 -> $6,500 | N60: =E60 -> 316 | O60: =F60 -> Pool Lift - Replace | P60: =H60 -> 10 | Q60: =I60 -> 7 | R60: =M60 -> $6,500 | S60: =E60 -> 316 | T60: =F60 -> Pool Lift - Replace | U60: =G60 -> (1) ADA Lift/Anchor | V60: =H60 -> 10 | W60: =I60 -> 7 | X60: =J60 -> $6,000 | Y60: =K60 -> $7,000 | Z60: =E60 -> 316 | AA60: =F60 -> Pool Lift - Replace | AB60: =M60 -> $6,500 | AC60: X | AD60: =IF(H60-I60<0,0,H60-I60) -> 3 | AE60: / | AF60: =H60 -> 10 | AG60: = | AH60: =DV60+(1-Main!$D$61)*(DW60-DV60) -> $1,950 | AJ60: =E60 -> 316 | AK60: =F60 -> Pool Lift - Replace | AL60: =H60 -> 10 | AM60: =M60 -> $6,500 | AN60: =IF(H60>0,M60/H60,0) -> $650 | AO60: 1.8% | AP60: =SUM(AV$31:AV60) -> $352,867 | AQ60: =E60 -> 316 | AR60: =F60 -> Pool Lift - Replace | AS60: =H60 -> 10 | AT60: =I60 -> 7 | AU60: =M60 -> $6,500 | AV60: =DV60+(1-Main!$D$61)*(DW60-DV60) -> $1,950 | AW60: =IF(Main!D$26>1,Main!D$26*AV60,IF((AP60-AV60)>=Main!D$20,0,IF(AP60<=Main!D$20,AV60,Main!D$20-AP60+AV60))) -> $1,950 | AX60: =AO60*Main!RecommendContrib -> $1,081.12 | AZ60: 316 | BA60: Pool Lift - Replace | BB60: =IF(CQ60=0,$M60*BB$3,0) -> $0 | BC60: =IF(CR60=0,$M60*BC$3,0) -> $0 | BD60: =IF(CS60=0,$M60*BD$3,0) -> $0 | BE60: =IF(CT60=0,$M60*BE$3,0) -> $0 | BF60: =IF(CU60=0,$M60*BF$3,0) -> $0 | BG60: 316 | BH60: Pool Lift - Replace | BI60: =IF(CV60=0,$M60*BI$3,0) -> $0 | BJ60: =IF(CW60=0,$M60*BJ$3,0) -> $0 | BK60: =IF(CX60=0,$M60*BK$3,0) -> $7,994 | BL60: =IF(CY60=0,$M60*BL$3,0) -> $0 | BM60: =IF(CZ60=0,$M60*BM$3,0) -> $0 | BN60: 316 | BO60: Pool Lift - Replace | BP60: =IF(DA60=0,$M60*BP$3,0) -> $0 | BQ60: =IF(DB60=0,$M60*BQ$3,0) -> $0 | BR60: =IF(DC60=0,$M60*BR$3,0) -> $0 | BS60: =IF(DD60=0,$M60*BS$3,0) -> $0 | BT60: =IF(DE60=0,$M60*BT$3,0) -> $0 | BU60: 316 | BV60: Pool Lift - Replace | BW60: =IF(DF60=0,$M60*BW$3,0) -> $0 | BX60: =IF(DG60=0,$M60*BX$3,0) -> $0 | BY60: =IF(DH60=0,$M60*BY$3,0) -> $10,744 | BZ60: =IF(DI60=0,$M60*BZ$3,0) -> $0 | CA60: =IF(DJ60=0,$M60*CA$3,0) -> $0 | CB60: 316 | CC60: Pool Lift - Replace | CD60: =IF(DK60=0,$M60*CD$3,0) -> $0 | CE60: =IF(DL60=0,$M60*CE$3,0) -> $0 | CF60: =IF(DM60=0,$M60*CF$3,0) -> $0 | CG60: =IF(DN60=0,$M60*CG$3,0) -> $0 | CH60: =IF(DO60=0,$M60*CH$3,0) -> $0 | CI60: 316 | CJ60: Pool Lift - Replace | CK60: =IF(DP60=0,$M60*CK$3,0) -> $0 | CL60: =IF(DQ60=0,$M60*CL$3,0) -> $0 | CM60: =IF(DR60=0,$M60*CM$3,0) -> $14,438 | CN60: =IF(DS60=0,$M60*CN$3,0) -> $0 | CO60: =IF(DT60=0,$M60*CO$3,0) -> $0 | CP60: =IF(DU60=0,$M60*CP$3,0) -> $0 | CQ60: =IF(H60=0,I60,IF($I60>$H60,$H60,$I60)) -> 7 | CR60: =IF(AND($H60>0,$I60-CR$28>=$H60),$H60,IF(CQ60=999,999,IF(CQ60-1<0,IF($H60=0,999,$H60-1),CQ60-1))) -> 6 | CS60: =IF(AND($H60>0,$I60-CS$28>=$H60),$H60,IF(CR60=999,999,IF(CR60-1<0,IF($H60=0,999,$H60-1),CR60-1))) -> 5 | CT60: =IF(AND($H60>0,$I60-CT$28>=$H60),$H60,IF(CS60=999,999,IF(CS60-1<0,IF($H60=0,999,$H60-1),CS60-1))) -> 4 | CU60: =IF(AND($H60>0,$I60-CU$28>=$H60),$H60,IF(CT60=999,999,IF(CT60-1<0,IF($H60=0,999,$H60-1),CT60-1))) -> 3 | CV60: =IF(AND($H60>0,$I60-CV$28>=$H60),$H60,IF(CU60=999,999,IF(CU60-1<0,IF($H60=0,999,$H60-1),CU60-1))) -> 2 | CW60: =IF(AND($H60>0,$I60-CW$28>=$H60),$H60,IF(CV60=999,999,IF(CV60-1<0,IF($H60=0,999,$H60-1),CV60-1))) -> 1 | CX60: =IF(AND($H60>0,$I60-CX$28>=$H60),$H60,IF(CW60=999,999,IF(CW60-1<0,IF($H60=0,999,$H60-1),CW60-1))) -> 0 | CY60: =IF(AND($H60>0,$I60-CY$28>=$H60),$H60,IF(CX60=999,999,IF(CX60-1<0,IF($H60=0,999,$H60-1),CX60-1))) -> 9 | CZ60: =IF(AND($H60>0,$I60-CZ$28>=$H60),$H60,IF(CY60=999,999,IF(CY60-1<0,IF($H60=0,999,$H60-1),CY60-1))) -> 8 | DA60: =IF(AND($H60>0,$I60-DA$28>=$H60),$H60,IF(CZ60=999,999,IF(CZ60-1<0,IF($H60=0,999,$H60-1),CZ60-1))) -> 7 | DB60: =IF(AND($H60>0,$I60-DB$28>=$H60),$H60,IF(DA60=999,999,IF(DA60-1<0,IF($H60=0,999,$H60-1),DA60-1))) -> 6 | DC60: =IF(AND($H60>0,$I60-DC$28>=$H60),$H60,IF(DB60=999,999,IF(DB60-1<0,IF($H60=0,999,$H60-1),DB60-1))) -> 5 | DD60: =IF(AND($H60>0,$I60-DD$28>=$H60),$H60,IF(DC60=999,999,IF(DC60-1<0,IF($H60=0,999,$H60-1),DC60-1))) -> 4 | DE60: =IF(AND($H60>0,$I60-DE$28>=$H60),$H60,IF(DD60=999,999,IF(DD60-1<0,IF($H60=0,999,$H60-1),DD60-1))) -> 3 | DF60: =IF(AND($H60>0,$I60-DF$28>=$H60),$H60,IF(DE60=999,999,IF(DE60-1<0,IF($H60=0,999,$H60-1),DE60-1))) -> 2 | DG60: =IF(AND($H60>0,$I60-DG$28>=$H60),$H60,IF(DF60=999,999,IF(DF60-1<0,IF($H60=0,999,$H60-1),DF60-1))) -> 1 | DH60: =IF(AND($H60>0,$I60-DH$28>=$H60),$H60,IF(DG60=999,999,IF(DG60-1<0,IF($H60=0,999,$H60-1),DG60-1))) -> 0 | DI60: =IF(AND($H60>0,$I60-DI$28>=$H60),$H60,IF(DH60=999,999,IF(DH60-1<0,IF($H60=0,999,$H60-1),DH60-1))) -> 9 | DJ60: =IF(AND($H60>0,$I60-DJ$28>=$H60),$H60,IF(DI60=999,999,IF(DI60-1<0,IF($H60=0,999,$H60-1),DI60-1))) -> 8 | DK60: =IF(AND($H60>0,$I60-DK$28>=$H60),$H60,IF(DJ60=999,999,IF(DJ60-1<0,IF($H60=0,999,$H60-1),DJ60-1))) -> 7 | DL60: =IF(AND($H60>0,$I60-DL$28>=$H60),$H60,IF(DK60=999,999,IF(DK60-1<0,IF($H60=0,999,$H60-1),DK60-1))) -> 6 | DM60: =IF(AND($H60>0,$I60-DM$28>=$H60),$H60,IF(DL60=999,999,IF(DL60-1<0,IF($H60=0,999,$H60-1),DL60-1))) -> 5 | DN60: =IF(AND($H60>0,$I60-DN$28>=$H60),$H60,IF(DM60=999,999,IF(DM60-1<0,IF($H60=0,999,$H60-1),DM60-1))) -> 4 | DO60: =IF(AND($H60>0,$I60-DO$28>=$H60),$H60,IF(DN60=999,999,IF(DN60-1<0,IF($H60=0,999,$H60-1),DN60-1))) -> 3 | DP60: =IF(AND($H60>0,$I60-DP$28>=$H60),$H60,IF(DO60=999,999,IF(DO60-1<0,IF($H60=0,999,$H60-1),DO60-1))) -> 2 | DQ60: =IF(AND($H60>0,$I60-DQ$28>=$H60),$H60,IF(DP60=999,999,IF(DP60-1<0,IF($H60=0,999,$H60-1),DP60-1))) -> 1 | DR60: =IF(AND($H60>0,$I60-DR$28>=$H60),$H60,IF(DQ60=999,999,IF(DQ60-1<0,IF($H60=0,999,$H60-1),DQ60-1))) -> 0 | DS60: =IF(AND($H60>0,$I60-DS$28>=$H60),$H60,IF(DR60=999,999,IF(DR60-1<0,IF($H60=0,999,$H60-1),DR60-1))) -> 9 | DT60: =IF(AND($H60>0,$I60-DT$28>=$H60),$H60,IF(DS60=999,999,IF(DS60-1<0,IF($H60=0,999,$H60-1),DS60-1))) -> 8 | DU60: =IF(AND($H60>0,$I60-DU$28>=$H60),$H60,IF(DT60=999,999,IF(DT60-1<0,IF($H60=0,999,$H60-1),DT60-1))) -> 7 | DV60: =IF($H60>0,$M60*($H60-CQ60)/$H60,$M60/(CQ60+1)) -> 1950.0 | DW60: =IF(CR60=999,0,IF($H60>0,DW$28*$M60*($H60-CR60)/$H60,DW$28*$M60/(CR60+1))) -> 2678.0 | DX60: =IF(CS60=999,0,IF($H60>0,DX$28*$M60*($H60-CS60)/$H60,DX$28*$M60/(CS60+1))) -> 3447.9 | DY60: =IF(CT60=999,0,IF($H60>0,DY$28*$M60*($H60-CT60)/$H60,DY$28*$M60/(CT60+1))) -> 4261.6 | DZ60: =IF(CU60=999,0,IF($H60>0,DZ$28*$M60*($H60-CU60)/$H60,DZ$28*$M60/(CU60+1))) -> 5121.1 | EA60: =IF(CV60=999,0,IF($H60>0,EA$28*$M60*($H60-CV60)/$H60,EA$28*$M60/(CV60+1))) -> 6028.2 | EB60: =IF(CW60=999,0,IF($H60>0,EB$28*$M60*($H60-CW60)/$H60,EB$28*$M60/(CW60+1))) -> 6985.2 | EC60: =IF(CX60=999,0,IF($H60>0,EC$28*$M60*($H60-CX60)/$H60,EC$28*$M60/(CX60+1))) -> 7994.2 | ED60: =IF(CY60=999,0,IF($H60>0,ED$28*$M60*($H60-CY60)/$H60,ED$28*$M60/(CY60+1))) -> 823.4 | EE60: =IF(CZ60=999,0,IF($H60>0,EE$28*$M60*($H60-CZ60)/$H60,EE$28*$M60/(CZ60+1))) -> 1696.2 | EF60: =IF(DA60=999,0,IF($H60>0,EF$28*$M60*($H60-DA60)/$H60,EF$28*$M60/(DA60+1))) -> 2620.6 | EG60: =IF(DB60=999,0,IF($H60>0,EG$28*$M60*($H60-DB60)/$H60,EG$28*$M60/(DB60+1))) -> 3599.0 | EH60: =IF(DC60=999,0,IF($H60>0,EH$28*$M60*($H60-DC60)/$H60,EH$28*$M60/(DC60+1))) -> 4633.7 | EI60: =IF(DD60=999,0,IF($H60>0,EI$28*$M60*($H60-DD60)/$H60,EI$28*$M60/(DD60+1))) -> 5727.3 | EJ60: =IF(DE60=999,0,IF($H60>0,EJ$28*$M60*($H60-DE60)/$H60,EJ$28*$M60/(DE60+1))) -> 6882.3 | EK60: =IF(DF60=999,0,IF($H60>0,EK$28*$M60*($H60-DF60)/$H60,EK$28*$M60/(DF60+1))) -> 8101.4 | EL60: =IF(DG60=999,0,IF($H60>0,EL$28*$M60*($H60-DG60)/$H60,EL$28*$M60/(DG60+1))) -> 9387.5 | EM60: =IF(DH60=999,0,IF($H60>0,EM$28*$M60*($H60-DH60)/$H60,EM$28*$M60/(DH60+1))) -> 10743.5 | EN60: =IF(DI60=999,0,IF($H60>0,EN$28*$M60*($H60-DI60)/$H60,EN$28*$M60/(DI60+1))) -> 1106.6 | EO60: =IF(DJ60=999,0,IF($H60>0,EO$28*$M60*($H60-DJ60)/$H60,EO$28*$M60/(DJ60+1))) -> 2279.6 | EP60: =IF(DK60=999,0,IF($H60>0,EP$28*$M60*($H60-DK60)/$H60,EP$28*$M60/(DK60+1))) -> 3521.9 | EQ60: =IF(DL60=999,0,IF($H60>0,EQ$28*$M60*($H60-DL60)/$H60,EQ$28*$M60/(DL60+1))) -> 4836.8 | ER60: =IF(DM60=999,0,IF($H60>0,ER$28*$M60*($H60-DM60)/$H60,ER$28*$M60/(DM60+1))) -> 6227.3 | ES60: =IF(DN60=999,0,IF($H60>0,ES$28*$M60*($H60-DN60)/$H60,ES$28*$M60/(DN60+1))) -> 7697.0 | ET60: =IF(DO60=999,0,IF($H60>0,ET$28*$M60*($H60-DO60)/$H60,ET$28*$M60/(DO60+1))) -> 9249.2 | EU60: =IF(DP60=999,0,IF($H60>0,EU$28*$M60*($H60-DP60)/$H60,EU$28*$M60/(DP60+1))) -> 10887.6 | EV60: =IF(DQ60=999,0,IF($H60>0,EV$28*$M60*($H60-DQ60)/$H60,EV$28*$M60/(DQ60+1))) -> 12616.1 | EW60: =IF(DR60=999,0,IF($H60>0,EW$28*$M60*($H60-DR60)/$H60,EW$28*$M60/(DR60+1))) -> 14438.4 | EX60: =IF(DS60=999,0,IF($H60>0,EX$28*$M60*($H60-DS60)/$H60,EX$28*$M60/(DS60+1))) -> 1487.2 | EY60: =IF(DT60=999,0,IF($H60>0,EY$28*$M60*($H60-DT60)/$H60,EY$28*$M60/(DT60+1))) -> 3063.5 | EZ60: =IF(DU60=999,0,IF($H60>0,EZ$28*$M60*($H60-DU60)/$H60,EZ$28*$M60/(DU60+1))) -> 4733.2 | FD60: =MAX(0,I60-Years) -> 7 | FE60: =K60*(1+Inflation/100)^Years -> $7,000
A61: FALSE | C61: 31 | E61: 317 | F61: Pool Cleaning Robot MAX" - Replace" | G61: MAX Robot | H61: 10 | I61: 9 | J61: $2,500 | K61: $3,500 | M61: =(J61+K61)/2 -> $3,000 | N61: =E61 -> 317 | O61: =F61 -> Pool Cleaning Robot MAX" - Replace" | P61: =H61 -> 10 | Q61: =I61 -> 9 | R61: =M61 -> $3,000 | S61: =E61 -> 317 | T61: =F61 -> Pool Cleaning Robot MAX" - Replace" | U61: =G61 -> MAX Robot | V61: =H61 -> 10 | W61: =I61 -> 9 | X61: =J61 -> $2,500 | Y61: =K61 -> $3,500 | Z61: =E61 -> 317 | AA61: =F61 -> Pool Cleaning Robot MAX" - Replace" | AB61: =M61 -> $3,000 | AC61: X | AD61: =IF(H61-I61<0,0,H61-I61) -> 1 | AE61: / | AF61: =H61 -> 10 | AG61: = | AH61: =DV61+(1-Main!$D$61)*(DW61-DV61) -> $300 | AJ61: =E61 -> 317 | AK61: =F61 -> Pool Cleaning Robot MAX" - Replace" | AL61: =H61 -> 10 | AM61: =M61 -> $3,000 | AN61: =IF(H61>0,M61/H61,0) -> $300 | AO61: 0.8% | AP61: =SUM(AV$31:AV61) -> $353,167 | AQ61: =E61 -> 317 | AR61: =F61 -> Pool Cleaning Robot MAX" - Replace" | AS61: =H61 -> 10 | AT61: =I61 -> 9 | AU61: =M61 -> $3,000 | AV61: =DV61+(1-Main!$D$61)*(DW61-DV61) -> $300 | AW61: =IF(Main!D$26>1,Main!D$26*AV61,IF((AP61-AV61)>=Main!D$20,0,IF(AP61<=Main!D$20,AV61,Main!D$20-AP61+AV61))) -> $300 | AX61: =AO61*Main!RecommendContrib -> $498.98 | AZ61: 317 | BA61: Pool Cleaning Robot MAX" - Replace" | BB61: =IF(CQ61=0,$M61*BB$3,0) -> $0 | BC61: =IF(CR61=0,$M61*BC$3,0) -> $0 | BD61: =IF(CS61=0,$M61*BD$3,0) -> $0 | BE61: =IF(CT61=0,$M61*BE$3,0) -> $0 | BF61: =IF(CU61=0,$M61*BF$3,0) -> $0 | BG61: 317 | BH61: Pool Cleaning Robot MAX" - Replace" | BI61: =IF(CV61=0,$M61*BI$3,0) -> $0 | BJ61: =IF(CW61=0,$M61*BJ$3,0) -> $0 | BK61: =IF(CX61=0,$M61*BK$3,0) -> $0 | BL61: =IF(CY61=0,$M61*BL$3,0) -> $0 | BM61: =IF(CZ61=0,$M61*BM$3,0) -> $3,914 | BN61: 317 | BO61: Pool Cleaning Robot MAX" - Replace" | BP61: =IF(DA61=0,$M61*BP$3,0) -> $0 | BQ61: =IF(DB61=0,$M61*BQ$3,0) -> $0 | BR61: =IF(DC61=0,$M61*BR$3,0) -> $0 | BS61: =IF(DD61=0,$M61*BS$3,0) -> $0 | BT61: =IF(DE61=0,$M61*BT$3,0) -> $0 | BU61: 317 | BV61: Pool Cleaning Robot MAX" - Replace" | BW61: =IF(DF61=0,$M61*BW$3,0) -> $0 | BX61: =IF(DG61=0,$M61*BX$3,0) -> $0 | BY61: =IF(DH61=0,$M61*BY$3,0) -> $0 | BZ61: =IF(DI61=0,$M61*BZ$3,0) -> $0 | CA61: =IF(DJ61=0,$M61*CA$3,0) -> $5,261 | CB61: 317 | CC61: Pool Cleaning Robot MAX" - Replace" | CD61: =IF(DK61=0,$M61*CD$3,0) -> $0 | CE61: =IF(DL61=0,$M61*CE$3,0) -> $0 | CF61: =IF(DM61=0,$M61*CF$3,0) -> $0 | CG61: =IF(DN61=0,$M61*CG$3,0) -> $0 | CH61: =IF(DO61=0,$M61*CH$3,0) -> $0 | CI61: 317 | CJ61: Pool Cleaning Robot MAX" - Replace" | CK61: =IF(DP61=0,$M61*CK$3,0) -> $0 | CL61: =IF(DQ61=0,$M61*CL$3,0) -> $0 | CM61: =IF(DR61=0,$M61*CM$3,0) -> $0 | CN61: =IF(DS61=0,$M61*CN$3,0) -> $0 | CO61: =IF(DT61=0,$M61*CO$3,0) -> $7,070 | CP61: =IF(DU61=0,$M61*CP$3,0) -> $0 | CQ61: =IF(H61=0,I61,IF($I61>$H61,$H61,$I61)) -> 9 | CR61: =IF(AND($H61>0,$I61-CR$28>=$H61),$H61,IF(CQ61=999,999,IF(CQ61-1<0,IF($H61=0,999,$H61-1),CQ61-1))) -> 8 | CS61: =IF(AND($H61>0,$I61-CS$28>=$H61),$H61,IF(CR61=999,999,IF(CR61-1<0,IF($H61=0,999,$H61-1),CR61-1))) -> 7 | CT61: =IF(AND($H61>0,$I61-CT$28>=$H61),$H61,IF(CS61=999,999,IF(CS61-1<0,IF($H61=0,999,$H61-1),CS61-1))) -> 6 | CU61: =IF(AND($H61>0,$I61-CU$28>=$H61),$H61,IF(CT61=999,999,IF(CT61-1<0,IF($H61=0,999,$H61-1),CT61-1))) -> 5 | CV61: =IF(AND($H61>0,$I61-CV$28>=$H61),$H61,IF(CU61=999,999,IF(CU61-1<0,IF($H61=0,999,$H61-1),CU61-1))) -> 4 | CW61: =IF(AND($H61>0,$I61-CW$28>=$H61),$H61,IF(CV61=999,999,IF(CV61-1<0,IF($H61=0,999,$H61-1),CV61-1))) -> 3 | CX61: =IF(AND($H61>0,$I61-CX$28>=$H61),$H61,IF(CW61=999,999,IF(CW61-1<0,IF($H61=0,999,$H61-1),CW61-1))) -> 2 | CY61: =IF(AND($H61>0,$I61-CY$28>=$H61),$H61,IF(CX61=999,999,IF(CX61-1<0,IF($H61=0,999,$H61-1),CX61-1))) -> 1 | CZ61: =IF(AND($H61>0,$I61-CZ$28>=$H61),$H61,IF(CY61=999,999,IF(CY61-1<0,IF($H61=0,999,$H61-1),CY61-1))) -> 0 | DA61: =IF(AND($H61>0,$I61-DA$28>=$H61),$H61,IF(CZ61=999,999,IF(CZ61-1<0,IF($H61=0,999,$H61-1),CZ61-1))) -> 9 | DB61: =IF(AND($H61>0,$I61-DB$28>=$H61),$H61,IF(DA61=999,999,IF(DA61-1<0,IF($H61=0,999,$H61-1),DA61-1))) -> 8 | DC61: =IF(AND($H61>0,$I61-DC$28>=$H61),$H61,IF(DB61=999,999,IF(DB61-1<0,IF($H61=0,999,$H61-1),DB61-1))) -> 7 | DD61: =IF(AND($H61>0,$I61-DD$28>=$H61),$H61,IF(DC61=999,999,IF(DC61-1<0,IF($H61=0,999,$H61-1),DC61-1))) -> 6 | DE61: =IF(AND($H61>0,$I61-DE$28>=$H61),$H61,IF(DD61=999,999,IF(DD61-1<0,IF($H61=0,999,$H61-1),DD61-1))) -> 5 | DF61: =IF(AND($H61>0,$I61-DF$28>=$H61),$H61,IF(DE61=999,999,IF(DE61-1<0,IF($H61=0,999,$H61-1),DE61-1))) -> 4 | DG61: =IF(AND($H61>0,$I61-DG$28>=$H61),$H61,IF(DF61=999,999,IF(DF61-1<0,IF($H61=0,999,$H61-1),DF61-1))) -> 3 | DH61: =IF(AND($H61>0,$I61-DH$28>=$H61),$H61,IF(DG61=999,999,IF(DG61-1<0,IF($H61=0,999,$H61-1),DG61-1))) -> 2 | DI61: =IF(AND($H61>0,$I61-DI$28>=$H61),$H61,IF(DH61=999,999,IF(DH61-1<0,IF($H61=0,999,$H61-1),DH61-1))) -> 1 | DJ61: =IF(AND($H61>0,$I61-DJ$28>=$H61),$H61,IF(DI61=999,999,IF(DI61-1<0,IF($H61=0,999,$H61-1),DI61-1))) -> 0 | DK61: =IF(AND($H61>0,$I61-DK$28>=$H61),$H61,IF(DJ61=999,999,IF(DJ61-1<0,IF($H61=0,999,$H61-1),DJ61-1))) -> 9 | DL61: =IF(AND($H61>0,$I61-DL$28>=$H61),$H61,IF(DK61=999,999,IF(DK61-1<0,IF($H61=0,999,$H61-1),DK61-1))) -> 8 | DM61: =IF(AND($H61>0,$I61-DM$28>=$H61),$H61,IF(DL61=999,999,IF(DL61-1<0,IF($H61=0,999,$H61-1),DL61-1))) -> 7 | DN61: =IF(AND($H61>0,$I61-DN$28>=$H61),$H61,IF(DM61=999,999,IF(DM61-1<0,IF($H61=0,999,$H61-1),DM61-1))) -> 6 | DO61: =IF(AND($H61>0,$I61-DO$28>=$H61),$H61,IF(DN61=999,999,IF(DN61-1<0,IF($H61=0,999,$H61-1),DN61-1))) -> 5 | DP61: =IF(AND($H61>0,$I61-DP$28>=$H61),$H61,IF(DO61=999,999,IF(DO61-1<0,IF($H61=0,999,$H61-1),DO61-1))) -> 4 | DQ61: =IF(AND($H61>0,$I61-DQ$28>=$H61),$H61,IF(DP61=999,999,IF(DP61-1<0,IF($H61=0,999,$H61-1),DP61-1))) -> 3 | DR61: =IF(AND($H61>0,$I61-DR$28>=$H61),$H61,IF(DQ61=999,999,IF(DQ61-1<0,IF($H61=0,999,$H61-1),DQ61-1))) -> 2 | DS61: =IF(AND($H61>0,$I61-DS$28>=$H61),$H61,IF(DR61=999,999,IF(DR61-1<0,IF($H61=0,999,$H61-1),DR61-1))) -> 1 | DT61: =IF(AND($H61>0,$I61-DT$28>=$H61),$H61,IF(DS61=999,999,IF(DS61-1<0,IF($H61=0,999,$H61-1),DS61-1))) -> 0 | DU61: =IF(AND($H61>0,$I61-DU$28>=$H61),$H61,IF(DT61=999,999,IF(DT61-1<0,IF($H61=0,999,$H61-1),DT61-1))) -> 9 | DV61: =IF($H61>0,$M61*($H61-CQ61)/$H61,$M61/(CQ61+1)) -> 300.0 | DW61: =IF(CR61=999,0,IF($H61>0,DW$28*$M61*($H61-CR61)/$H61,DW$28*$M61/(CR61+1))) -> 618.0 | DX61: =IF(CS61=999,0,IF($H61>0,DX$28*$M61*($H61-CS61)/$H61,DX$28*$M61/(CS61+1))) -> 954.8 | DY61: =IF(CT61=999,0,IF($H61>0,DY$28*$M61*($H61-CT61)/$H61,DY$28*$M61/(CT61+1))) -> 1311.3 | DZ61: =IF(CU61=999,0,IF($H61>0,DZ$28*$M61*($H61-CU61)/$H61,DZ$28*$M61/(CU61+1))) -> 1688.3 | EA61: =IF(CV61=999,0,IF($H61>0,EA$28*$M61*($H61-CV61)/$H61,EA$28*$M61/(CV61+1))) -> 2086.7 | EB61: =IF(CW61=999,0,IF($H61>0,EB$28*$M61*($H61-CW61)/$H61,EB$28*$M61/(CW61+1))) -> 2507.5 | EC61: =IF(CX61=999,0,IF($H61>0,EC$28*$M61*($H61-CX61)/$H61,EC$28*$M61/(CX61+1))) -> 2951.7 | ED61: =IF(CY61=999,0,IF($H61>0,ED$28*$M61*($H61-CY61)/$H61,ED$28*$M61/(CY61+1))) -> 3420.3 | EE61: =IF(CZ61=999,0,IF($H61>0,EE$28*$M61*($H61-CZ61)/$H61,EE$28*$M61/(CZ61+1))) -> 3914.3 | EF61: =IF(DA61=999,0,IF($H61>0,EF$28*$M61*($H61-DA61)/$H61,EF$28*$M61/(DA61+1))) -> 403.2 | EG61: =IF(DB61=999,0,IF($H61>0,EG$28*$M61*($H61-DB61)/$H61,EG$28*$M61/(DB61+1))) -> 830.5 | EH61: =IF(DC61=999,0,IF($H61>0,EH$28*$M61*($H61-DC61)/$H61,EH$28*$M61/(DC61+1))) -> 1283.2 | EI61: =IF(DD61=999,0,IF($H61>0,EI$28*$M61*($H61-DD61)/$H61,EI$28*$M61/(DD61+1))) -> 1762.2 | EJ61: =IF(DE61=999,0,IF($H61>0,EJ$28*$M61*($H61-DE61)/$H61,EJ$28*$M61/(DE61+1))) -> 2268.9 | EK61: =IF(DF61=999,0,IF($H61>0,EK$28*$M61*($H61-DF61)/$H61,EK$28*$M61/(DF61+1))) -> 2804.3 | EL61: =IF(DG61=999,0,IF($H61>0,EL$28*$M61*($H61-DG61)/$H61,EL$28*$M61/(DG61+1))) -> 3369.9 | EM61: =IF(DH61=999,0,IF($H61>0,EM$28*$M61*($H61-DH61)/$H61,EM$28*$M61/(DH61+1))) -> 3966.8 | EN61: =IF(DI61=999,0,IF($H61>0,EN$28*$M61*($H61-DI61)/$H61,EN$28*$M61/(DI61+1))) -> 4596.6 | EO61: =IF(DJ61=999,0,IF($H61>0,EO$28*$M61*($H61-DJ61)/$H61,EO$28*$M61/(DJ61+1))) -> 5260.5 | EP61: =IF(DK61=999,0,IF($H61>0,EP$28*$M61*($H61-DK61)/$H61,EP$28*$M61/(DK61+1))) -> 541.8 | EQ61: =IF(DL61=999,0,IF($H61>0,EQ$28*$M61*($H61-DL61)/$H61,EQ$28*$M61/(DL61+1))) -> 1116.2 | ER61: =IF(DM61=999,0,IF($H61>0,ER$28*$M61*($H61-DM61)/$H61,ER$28*$M61/(DM61+1))) -> 1724.5 | ES61: =IF(DN61=999,0,IF($H61>0,ES$28*$M61*($H61-DN61)/$H61,ES$28*$M61/(DN61+1))) -> 2368.3 | ET61: =IF(DO61=999,0,IF($H61>0,ET$28*$M61*($H61-DO61)/$H61,ET$28*$M61/(DO61+1))) -> 3049.2 | EU61: =IF(DP61=999,0,IF($H61>0,EU$28*$M61*($H61-DP61)/$H61,EU$28*$M61/(DP61+1))) -> 3768.8 | EV61: =IF(DQ61=999,0,IF($H61>0,EV$28*$M61*($H61-DQ61)/$H61,EV$28*$M61/(DQ61+1))) -> 4528.8 | EW61: =IF(DR61=999,0,IF($H61>0,EW$28*$M61*($H61-DR61)/$H61,EW$28*$M61/(DR61+1))) -> 5331.1 | EX61: =IF(DS61=999,0,IF($H61>0,EX$28*$M61*($H61-DS61)/$H61,EX$28*$M61/(DS61+1))) -> 6177.4 | EY61: =IF(DT61=999,0,IF($H61>0,EY$28*$M61*($H61-DT61)/$H61,EY$28*$M61/(DT61+1))) -> 7069.7 | EZ61: =IF(DU61=999,0,IF($H61>0,EZ$28*$M61*($H61-DU61)/$H61,EZ$28*$M61/(DU61+1))) -> 728.2 | FD61: =MAX(0,I61-Years) -> 9 | FE61: =K61*(1+Inflation/100)^Years -> $3,500
A62: TRUE | C62: 32 | F62: Pool Building | M62: $0 | O62: Pool Building | T62: Pool Building | AA62: Pool Building | AK62: Pool Building | AP62: =SUM(AV$31:AV62) -> $353,167 | AR62: Pool Building | BA62: Pool Building | BH62: Pool Building | BO62: Pool Building | BV62: Pool Building | CC62: Pool Building | CJ62: Pool Building | CQ62: 0 | CR62: 999 | CS62: 999 | CT62: 999 | CU62: 999 | CV62: 999 | CW62: 999 | CX62: 999 | CY62: 999 | CZ62: 999 | DA62: 999 | DB62: 999 | DC62: 999 | DD62: 999 | DE62: 999 | DF62: 999 | DG62: 999 | DH62: 999 | DI62: 999 | DJ62: 999 | DK62: 999 | DL62: 999 | DM62: 999 | DN62: 999 | DO62: 999 | DP62: 999 | DQ62: 999 | DR62: 999 | DS62: 999 | DT62: 999 | DU62: 999 | DV62: 0.0 | DW62: 0.0 | DX62: 0.0 | DY62: 0.0 | DZ62: 0.0 | EA62: 0.0 | EB62: =IF(CW62=999,0,IF($H62>0,EB$28*$M62*($H62-CW62)/$H62,EB$28*$M62/(CW62+1))) -> 0.0 | EC62: =IF(CX62=999,0,IF($H62>0,EC$28*$M62*($H62-CX62)/$H62,EC$28*$M62/(CX62+1))) -> 0.0 | ED62: =IF(CY62=999,0,IF($H62>0,ED$28*$M62*($H62-CY62)/$H62,ED$28*$M62/(CY62+1))) -> 0.0 | EE62: =IF(CZ62=999,0,IF($H62>0,EE$28*$M62*($H62-CZ62)/$H62,EE$28*$M62/(CZ62+1))) -> 0.0 | EF62: =IF(DA62=999,0,IF($H62>0,EF$28*$M62*($H62-DA62)/$H62,EF$28*$M62/(DA62+1))) -> 0.0 | EG62: =IF(DB62=999,0,IF($H62>0,EG$28*$M62*($H62-DB62)/$H62,EG$28*$M62/(DB62+1))) -> 0.0 | EH62: =IF(DC62=999,0,IF($H62>0,EH$28*$M62*($H62-DC62)/$H62,EH$28*$M62/(DC62+1))) -> 0.0 | EI62: =IF(DD62=999,0,IF($H62>0,EI$28*$M62*($H62-DD62)/$H62,EI$28*$M62/(DD62+1))) -> 0.0 | EJ62: =IF(DE62=999,0,IF($H62>0,EJ$28*$M62*($H62-DE62)/$H62,EJ$28*$M62/(DE62+1))) -> 0.0 | EK62: =IF(DF62=999,0,IF($H62>0,EK$28*$M62*($H62-DF62)/$H62,EK$28*$M62/(DF62+1))) -> 0.0 | EL62: =IF(DG62=999,0,IF($H62>0,EL$28*$M62*($H62-DG62)/$H62,EL$28*$M62/(DG62+1))) -> 0.0 | EM62: =IF(DH62=999,0,IF($H62>0,EM$28*$M62*($H62-DH62)/$H62,EM$28*$M62/(DH62+1))) -> 0.0 | EN62: =IF(DI62=999,0,IF($H62>0,EN$28*$M62*($H62-DI62)/$H62,EN$28*$M62/(DI62+1))) -> 0.0 | EO62: =IF(DJ62=999,0,IF($H62>0,EO$28*$M62*($H62-DJ62)/$H62,EO$28*$M62/(DJ62+1))) -> 0.0 | EP62: =IF(DK62=999,0,IF($H62>0,EP$28*$M62*($H62-DK62)/$H62,EP$28*$M62/(DK62+1))) -> 0.0 | EQ62: =IF(DL62=999,0,IF($H62>0,EQ$28*$M62*($H62-DL62)/$H62,EQ$28*$M62/(DL62+1))) -> 0.0 | ER62: =IF(DM62=999,0,IF($H62>0,ER$28*$M62*($H62-DM62)/$H62,ER$28*$M62/(DM62+1))) -> 0.0 | ES62: =IF(DN62=999,0,IF($H62>0,ES$28*$M62*($H62-DN62)/$H62,ES$28*$M62/(DN62+1))) -> 0.0 | ET62: =IF(DO62=999,0,IF($H62>0,ET$28*$M62*($H62-DO62)/$H62,ET$28*$M62/(DO62+1))) -> 0.0 | EU62: =IF(DP62=999,0,IF($H62>0,EU$28*$M62*($H62-DP62)/$H62,EU$28*$M62/(DP62+1))) -> 0.0 | EV62: =IF(DQ62=999,0,IF($H62>0,EV$28*$M62*($H62-DQ62)/$H62,EV$28*$M62/(DQ62+1))) -> 0.0 | EW62: =IF(DR62=999,0,IF($H62>0,EW$28*$M62*($H62-DR62)/$H62,EW$28*$M62/(DR62+1))) -> 0.0 | EX62: =IF(DS62=999,0,IF($H62>0,EX$28*$M62*($H62-DS62)/$H62,EX$28*$M62/(DS62+1))) -> 0.0 | EY62: =IF(DT62=999,0,IF($H62>0,EY$28*$M62*($H62-DT62)/$H62,EY$28*$M62/(DT62+1))) -> 0.0 | EZ62: =IF(DU62=999,0,IF($H62>0,EZ$28*$M62*($H62-DU62)/$H62,EZ$28*$M62/(DU62+1))) -> 0.0 | FD62: =MAX(0,I62-Years) -> 0 | FE62: =K62*(1+Inflation/100)^Years -> $0
A63: FALSE | C63: 33 | E63: 500 | F63: Pool Building - Remodel Project | G63: Potential project | H63: 0 | I63: 7 | J63: $500,000 | K63: $600,000 | M63: =(J63+K63)/2 -> $550,000 | N63: =E63 -> 500 | O63: =F63 -> Pool Building - Remodel Project | P63: =H63 -> 0 | Q63: =I63 -> 7 | R63: =M63 -> $550,000 | S63: =E63 -> 500 | T63: =F63 -> Pool Building - Remodel Project | U63: =G63 -> Potential project | V63: =H63 -> 0 | W63: =I63 -> 7 | X63: =J63 -> $500,000 | Y63: =K63 -> $600,000 | Z63: =E63 -> 500 | AA63: =F63 -> Pool Building - Remodel Project | AB63: =M63 -> $550,000 | AC63: X | AD63: =IF(H63-I63<0,0,H63-I63) -> 0 | AE63: / | AF63: =H63 -> 0 | AG63: = | AH63: =DV63+(1-Main!$D$61)*(DW63-DV63) -> $68,750 | AJ63: =E63 -> 500 | AK63: =F63 -> Pool Building - Remodel Project | AL63: =H63 -> 0 | AM63: =M63 -> $550,000 | AN63: =IF(H63>0,M63/H63,0) -> $0 | AO63: =AN63/AN$77 -> 0.0% | AP63: =SUM(AV$31:AV63) -> $421,917 | AQ63: =E63 -> 500 | AR63: =F63 -> Pool Building - Remodel Project | AS63: =H63 -> 0 | AT63: =I63 -> 7 | AU63: =M63 -> $550,000 | AV63: =DV63+(1-Main!$D$61)*(DW63-DV63) -> $68,750 | AW63: =IF(Main!D$26>1,Main!D$26*AV63,IF((AP63-AV63)>=Main!D$20,0,IF(AP63<=Main!D$20,AV63,Main!D$20-AP63+AV63))) -> $68,750 | AX63: =AO63*Main!RecommendContrib -> $0.00 | AZ63: 500 | BA63: Pool Building - Remodel Project | BB63: =IF(CQ63=0,$M63*BB$3,0) -> $0 | BC63: =IF(CR63=0,$M63*BC$3,0) -> $0 | BD63: =IF(CS63=0,$M63*BD$3,0) -> $0 | BE63: =IF(CT63=0,$M63*BE$3,0) -> $0 | BF63: =IF(CU63=0,$M63*BF$3,0) -> $0 | BG63: 500 | BH63: Pool Building - Remodel Project | BI63: =IF(CV63=0,$M63*BI$3,0) -> $0 | BJ63: =IF(CW63=0,$M63*BJ$3,0) -> $0 | BK63: =IF(CX63=0,$M63*BK$3,0) -> $676,431 | BL63: =IF(CY63=0,$M63*BL$3,0) -> $0 | BM63: =IF(CZ63=0,$M63*BM$3,0) -> $0 | BN63: 500 | BO63: Pool Building - Remodel Project | BP63: =IF(DA63=0,$M63*BP$3,0) -> $0 | BQ63: =IF(DB63=0,$M63*BQ$3,0) -> $0 | BR63: =IF(DC63=0,$M63*BR$3,0) -> $0 | BS63: =IF(DD63=0,$M63*BS$3,0) -> $0 | BT63: =IF(DE63=0,$M63*BT$3,0) -> $0 | BU63: 500 | BV63: Pool Building - Remodel Project | BW63: =IF(DF63=0,$M63*BW$3,0) -> $0 | BX63: =IF(DG63=0,$M63*BX$3,0) -> $0 | BY63: =IF(DH63=0,$M63*BY$3,0) -> $0 | BZ63: =IF(DI63=0,$M63*BZ$3,0) -> $0 | CA63: =IF(DJ63=0,$M63*CA$3,0) -> $0 | CB63: 500 | CC63: Pool Building - Remodel Project | CD63: =IF(DK63=0,$M63*CD$3,0) -> $0 | CE63: =IF(DL63=0,$M63*CE$3,0) -> $0 | CF63: =IF(DM63=0,$M63*CF$3,0) -> $0 | CG63: =IF(DN63=0,$M63*CG$3,0) -> $0 | CH63: =IF(DO63=0,$M63*CH$3,0) -> $0 | CI63: 500 | CJ63: Pool Building - Remodel Project | CK63: =IF(DP63=0,$M63*CK$3,0) -> $0 | CL63: =IF(DQ63=0,$M63*CL$3,0) -> $0 | CM63: =IF(DR63=0,$M63*CM$3,0) -> $0 | CN63: =IF(DS63=0,$M63*CN$3,0) -> $0 | CO63: =IF(DT63=0,$M63*CO$3,0) -> $0 | CP63: =IF(DU63=0,$M63*CP$3,0) -> $0 | CQ63: =IF(H63=0,I63,IF($I63>$H63,$H63,$I63)) -> 7 | CR63: =IF(AND($H63>0,$I63-CR$28>=$H63),$H63,IF(CQ63=999,999,IF(CQ63-1<0,IF($H63=0,999,$H63-1),CQ63-1))) -> 6 | CS63: =IF(AND($H63>0,$I63-CS$28>=$H63),$H63,IF(CR63=999,999,IF(CR63-1<0,IF($H63=0,999,$H63-1),CR63-1))) -> 5 | CT63: =IF(AND($H63>0,$I63-CT$28>=$H63),$H63,IF(CS63=999,999,IF(CS63-1<0,IF($H63=0,999,$H63-1),CS63-1))) -> 4 | CU63: =IF(AND($H63>0,$I63-CU$28>=$H63),$H63,IF(CT63=999,999,IF(CT63-1<0,IF($H63=0,999,$H63-1),CT63-1))) -> 3 | CV63: =IF(AND($H63>0,$I63-CV$28>=$H63),$H63,IF(CU63=999,999,IF(CU63-1<0,IF($H63=0,999,$H63-1),CU63-1))) -> 2 | CW63: =IF(AND($H63>0,$I63-CW$28>=$H63),$H63,IF(CV63=999,999,IF(CV63-1<0,IF($H63=0,999,$H63-1),CV63-1))) -> 1 | CX63: =IF(AND($H63>0,$I63-CX$28>=$H63),$H63,IF(CW63=999,999,IF(CW63-1<0,IF($H63=0,999,$H63-1),CW63-1))) -> 0 | CY63: =IF(AND($H63>0,$I63-CY$28>=$H63),$H63,IF(CX63=999,999,IF(CX63-1<0,IF($H63=0,999,$H63-1),CX63-1))) -> 999 | CZ63: =IF(AND($H63>0,$I63-CZ$28>=$H63),$H63,IF(CY63=999,999,IF(CY63-1<0,IF($H63=0,999,$H63-1),CY63-1))) -> 999 | DA63: =IF(AND($H63>0,$I63-DA$28>=$H63),$H63,IF(CZ63=999,999,IF(CZ63-1<0,IF($H63=0,999,$H63-1),CZ63-1))) -> 999 | DB63: =IF(AND($H63>0,$I63-DB$28>=$H63),$H63,IF(DA63=999,999,IF(DA63-1<0,IF($H63=0,999,$H63-1),DA63-1))) -> 999 | DC63: =IF(AND($H63>0,$I63-DC$28>=$H63),$H63,IF(DB63=999,999,IF(DB63-1<0,IF($H63=0,999,$H63-1),DB63-1))) -> 999 | DD63: =IF(AND($H63>0,$I63-DD$28>=$H63),$H63,IF(DC63=999,999,IF(DC63-1<0,IF($H63=0,999,$H63-1),DC63-1))) -> 999 | DE63: =IF(AND($H63>0,$I63-DE$28>=$H63),$H63,IF(DD63=999,999,IF(DD63-1<0,IF($H63=0,999,$H63-1),DD63-1))) -> 999 | DF63: =IF(AND($H63>0,$I63-DF$28>=$H63),$H63,IF(DE63=999,999,IF(DE63-1<0,IF($H63=0,999,$H63-1),DE63-1))) -> 999 | DG63: =IF(AND($H63>0,$I63-DG$28>=$H63),$H63,IF(DF63=999,999,IF(DF63-1<0,IF($H63=0,999,$H63-1),DF63-1))) -> 999 | DH63: =IF(AND($H63>0,$I63-DH$28>=$H63),$H63,IF(DG63=999,999,IF(DG63-1<0,IF($H63=0,999,$H63-1),DG63-1))) -> 999 | DI63: =IF(AND($H63>0,$I63-DI$28>=$H63),$H63,IF(DH63=999,999,IF(DH63-1<0,IF($H63=0,999,$H63-1),DH63-1))) -> 999 | DJ63: =IF(AND($H63>0,$I63-DJ$28>=$H63),$H63,IF(DI63=999,999,IF(DI63-1<0,IF($H63=0,999,$H63-1),DI63-1))) -> 999 | DK63: =IF(AND($H63>0,$I63-DK$28>=$H63),$H63,IF(DJ63=999,999,IF(DJ63-1<0,IF($H63=0,999,$H63-1),DJ63-1))) -> 999 | DL63: =IF(AND($H63>0,$I63-DL$28>=$H63),$H63,IF(DK63=999,999,IF(DK63-1<0,IF($H63=0,999,$H63-1),DK63-1))) -> 999 | DM63: =IF(AND($H63>0,$I63-DM$28>=$H63),$H63,IF(DL63=999,999,IF(DL63-1<0,IF($H63=0,999,$H63-1),DL63-1))) -> 999 | DN63: =IF(AND($H63>0,$I63-DN$28>=$H63),$H63,IF(DM63=999,999,IF(DM63-1<0,IF($H63=0,999,$H63-1),DM63-1))) -> 999 | DO63: =IF(AND($H63>0,$I63-DO$28>=$H63),$H63,IF(DN63=999,999,IF(DN63-1<0,IF($H63=0,999,$H63-1),DN63-1))) -> 999 | DP63: =IF(AND($H63>0,$I63-DP$28>=$H63),$H63,IF(DO63=999,999,IF(DO63-1<0,IF($H63=0,999,$H63-1),DO63-1))) -> 999 | DQ63: =IF(AND($H63>0,$I63-DQ$28>=$H63),$H63,IF(DP63=999,999,IF(DP63-1<0,IF($H63=0,999,$H63-1),DP63-1))) -> 999 | DR63: =IF(AND($H63>0,$I63-DR$28>=$H63),$H63,IF(DQ63=999,999,IF(DQ63-1<0,IF($H63=0,999,$H63-1),DQ63-1))) -> 999 | DS63: =IF(AND($H63>0,$I63-DS$28>=$H63),$H63,IF(DR63=999,999,IF(DR63-1<0,IF($H63=0,999,$H63-1),DR63-1))) -> 999 | DT63: =IF(AND($H63>0,$I63-DT$28>=$H63),$H63,IF(DS63=999,999,IF(DS63-1<0,IF($H63=0,999,$H63-1),DS63-1))) -> 999 | DU63: =IF(AND($H63>0,$I63-DU$28>=$H63),$H63,IF(DT63=999,999,IF(DT63-1<0,IF($H63=0,999,$H63-1),DT63-1))) -> 999 | DV63: =IF($H63>0,$M63*($H63-CQ63)/$H63,$M63/(CQ63+1)) -> 68750.0 | DW63: =IF(CR63=999,0,IF($H63>0,DW$28*$M63*($H63-CR63)/$H63,DW$28*$M63/(CR63+1))) -> 80928.6 | DX63: =IF(CS63=999,0,IF($H63>0,DX$28*$M63*($H63-CS63)/$H63,DX$28*$M63/(CS63+1))) -> 97249.2 | DY63: =IF(CT63=999,0,IF($H63>0,DY$28*$M63*($H63-CT63)/$H63,DY$28*$M63/(CT63+1))) -> 120200.0 | DZ63: =IF(CU63=999,0,IF($H63>0,DZ$28*$M63*($H63-CU63)/$H63,DZ$28*$M63/(CU63+1))) -> 154757.5 | EA63: =IF(CV63=999,0,IF($H63>0,EA$28*$M63*($H63-CV63)/$H63,EA$28*$M63/(CV63+1))) -> 212533.6 | EB63: =IF(CW63=999,0,IF($H63>0,EB$28*$M63*($H63-CW63)/$H63,EB$28*$M63/(CW63+1))) -> 328364.4 | EC63: =IF(CX63=999,0,IF($H63>0,EC$28*$M63*($H63-CX63)/$H63,EC$28*$M63/(CX63+1))) -> 676430.6 | ED63: =IF(CY63=999,0,IF($H63>0,ED$28*$M63*($H63-CY63)/$H63,ED$28*$M63/(CY63+1))) -> 0.0 | EE63: =IF(CZ63=999,0,IF($H63>0,EE$28*$M63*($H63-CZ63)/$H63,EE$28*$M63/(CZ63+1))) -> 0.0 | EF63: =IF(DA63=999,0,IF($H63>0,EF$28*$M63*($H63-DA63)/$H63,EF$28*$M63/(DA63+1))) -> 0.0 | EG63: =IF(DB63=999,0,IF($H63>0,EG$28*$M63*($H63-DB63)/$H63,EG$28*$M63/(DB63+1))) -> 0.0 | EH63: =IF(DC63=999,0,IF($H63>0,EH$28*$M63*($H63-DC63)/$H63,EH$28*$M63/(DC63+1))) -> 0.0 | EI63: =IF(DD63=999,0,IF($H63>0,EI$28*$M63*($H63-DD63)/$H63,EI$28*$M63/(DD63+1))) -> 0.0 | EJ63: =IF(DE63=999,0,IF($H63>0,EJ$28*$M63*($H63-DE63)/$H63,EJ$28*$M63/(DE63+1))) -> 0.0 | EK63: =IF(DF63=999,0,IF($H63>0,EK$28*$M63*($H63-DF63)/$H63,EK$28*$M63/(DF63+1))) -> 0.0 | EL63: =IF(DG63=999,0,IF($H63>0,EL$28*$M63*($H63-DG63)/$H63,EL$28*$M63/(DG63+1))) -> 0.0 | EM63: =IF(DH63=999,0,IF($H63>0,EM$28*$M63*($H63-DH63)/$H63,EM$28*$M63/(DH63+1))) -> 0.0 | EN63: =IF(DI63=999,0,IF($H63>0,EN$28*$M63*($H63-DI63)/$H63,EN$28*$M63/(DI63+1))) -> 0.0 | EO63: =IF(DJ63=999,0,IF($H63>0,EO$28*$M63*($H63-DJ63)/$H63,EO$28*$M63/(DJ63+1))) -> 0.0 | EP63: =IF(DK63=999,0,IF($H63>0,EP$28*$M63*($H63-DK63)/$H63,EP$28*$M63/(DK63+1))) -> 0.0 | EQ63: =IF(DL63=999,0,IF($H63>0,EQ$28*$M63*($H63-DL63)/$H63,EQ$28*$M63/(DL63+1))) -> 0.0 | ER63: =IF(DM63=999,0,IF($H63>0,ER$28*$M63*($H63-DM63)/$H63,ER$28*$M63/(DM63+1))) -> 0.0 | ES63: =IF(DN63=999,0,IF($H63>0,ES$28*$M63*($H63-DN63)/$H63,ES$28*$M63/(DN63+1))) -> 0.0 | ET63: =IF(DO63=999,0,IF($H63>0,ET$28*$M63*($H63-DO63)/$H63,ET$28*$M63/(DO63+1))) -> 0.0 | EU63: =IF(DP63=999,0,IF($H63>0,EU$28*$M63*($H63-DP63)/$H63,EU$28*$M63/(DP63+1))) -> 0.0 | EV63: =IF(DQ63=999,0,IF($H63>0,EV$28*$M63*($H63-DQ63)/$H63,EV$28*$M63/(DQ63+1))) -> 0.0 | EW63: =IF(DR63=999,0,IF($H63>0,EW$28*$M63*($H63-DR63)/$H63,EW$28*$M63/(DR63+1))) -> 0.0 | EX63: =IF(DS63=999,0,IF($H63>0,EX$28*$M63*($H63-DS63)/$H63,EX$28*$M63/(DS63+1))) -> 0.0 | EY63: =IF(DT63=999,0,IF($H63>0,EY$28*$M63*($H63-DT63)/$H63,EY$28*$M63/(DT63+1))) -> 0.0 | EZ63: =IF(DU63=999,0,IF($H63>0,EZ$28*$M63*($H63-DU63)/$H63,EZ$28*$M63/(DU63+1))) -> 0.0 | FD63: =MAX(0,I63-Years) -> 7 | FE63: =K63*(1+Inflation/100)^Years -> $600,000
A64: FALSE | C64: 34 | E64: 502 | F64: Pool Bldg. Exterior - Caulk/Paint | G64: Approx 2,500 GSF | H64: 8 | I64: 0 | J64: $2,500 | K64: $3,800 | M64: =(J64+K64)/2 -> $3,150 | N64: =E64 -> 502 | O64: =F64 -> Pool Bldg. Exterior - Caulk/Paint | P64: =H64 -> 8 | Q64: =I64 -> 0 | R64: =M64 -> $3,150 | S64: =E64 -> 502 | T64: =F64 -> Pool Bldg. Exterior - Caulk/Paint | U64: =G64 -> Approx 2,500 GSF | V64: =H64 -> 8 | W64: =I64 -> 0 | X64: =J64 -> $2,500 | Y64: =K64 -> $3,800 | Z64: =E64 -> 502 | AA64: =F64 -> Pool Bldg. Exterior - Caulk/Paint | AB64: =M64 -> $3,150 | AC64: X | AD64: =IF(H64-I64<0,0,H64-I64) -> 8 | AE64: / | AF64: =H64 -> 8 | AG64: = | AH64: =DV64+(1-Main!$D$61)*(DW64-DV64) -> $3,150 | AJ64: =E64 -> 502 | AK64: =F64 -> Pool Bldg. Exterior - Caulk/Paint | AL64: =H64 -> 8 | AM64: =M64 -> $3,150 | AN64: =IF(H64>0,M64/H64,0) -> $394 | AO64: 1.1% | AP64: =SUM(AV$31:AV64) -> $425,067 | AQ64: =E64 -> 502 | AR64: =F64 -> Pool Bldg. Exterior - Caulk/Paint | AS64: =H64 -> 8 | AT64: =I64 -> 0 | AU64: =M64 -> $3,150 | AV64: =DV64+(1-Main!$D$61)*(DW64-DV64) -> $3,150 | AW64: =IF(Main!D$26>1,Main!D$26*AV64,IF((AP64-AV64)>=Main!D$20,0,IF(AP64<=Main!D$20,AV64,Main!D$20-AP64+AV64))) -> $3,150 | AX64: =AO64*Main!RecommendContrib -> $654.91 | AZ64: 502 | BA64: Pool Bldg. Exterior - Caulk/Paint | BB64: =IF(CQ64=0,$M64*BB$3,0) -> $3,150 | BC64: =IF(CR64=0,$M64*BC$3,0) -> $0 | BD64: =IF(CS64=0,$M64*BD$3,0) -> $0 | BE64: =IF(CT64=0,$M64*BE$3,0) -> $0 | BF64: =IF(CU64=0,$M64*BF$3,0) -> $0 | BG64: 502 | BH64: Pool Bldg. Exterior - Caulk/Paint | BI64: =IF(CV64=0,$M64*BI$3,0) -> $0 | BJ64: =IF(CW64=0,$M64*BJ$3,0) -> $0 | BK64: =IF(CX64=0,$M64*BK$3,0) -> $0 | BL64: =IF(CY64=0,$M64*BL$3,0) -> $3,990 | BM64: =IF(CZ64=0,$M64*BM$3,0) -> $0 | BN64: 502 | BO64: Pool Bldg. Exterior - Caulk/Paint | BP64: =IF(DA64=0,$M64*BP$3,0) -> $0 | BQ64: =IF(DB64=0,$M64*BQ$3,0) -> $0 | BR64: =IF(DC64=0,$M64*BR$3,0) -> $0 | BS64: =IF(DD64=0,$M64*BS$3,0) -> $0 | BT64: =IF(DE64=0,$M64*BT$3,0) -> $0 | BU64: 502 | BV64: Pool Bldg. Exterior - Caulk/Paint | BW64: =IF(DF64=0,$M64*BW$3,0) -> $0 | BX64: =IF(DG64=0,$M64*BX$3,0) -> $5,055 | BY64: =IF(DH64=0,$M64*BY$3,0) -> $0 | BZ64: =IF(DI64=0,$M64*BZ$3,0) -> $0 | CA64: =IF(DJ64=0,$M64*CA$3,0) -> $0 | CB64: 502 | CC64: Pool Bldg. Exterior - Caulk/Paint | CD64: =IF(DK64=0,$M64*CD$3,0) -> $0 | CE64: =IF(DL64=0,$M64*CE$3,0) -> $0 | CF64: =IF(DM64=0,$M64*CF$3,0) -> $0 | CG64: =IF(DN64=0,$M64*CG$3,0) -> $0 | CH64: =IF(DO64=0,$M64*CH$3,0) -> $6,403 | CI64: 502 | CJ64: Pool Bldg. Exterior - Caulk/Paint | CK64: =IF(DP64=0,$M64*CK$3,0) -> $0 | CL64: =IF(DQ64=0,$M64*CL$3,0) -> $0 | CM64: =IF(DR64=0,$M64*CM$3,0) -> $0 | CN64: =IF(DS64=0,$M64*CN$3,0) -> $0 | CO64: =IF(DT64=0,$M64*CO$3,0) -> $0 | CP64: =IF(DU64=0,$M64*CP$3,0) -> $0 | CQ64: =IF(H64=0,I64,IF($I64>$H64,$H64,$I64)) -> 0 | CR64: =IF(AND($H64>0,$I64-CR$28>=$H64),$H64,IF(CQ64=999,999,IF(CQ64-1<0,IF($H64=0,999,$H64-1),CQ64-1))) -> 7 | CS64: =IF(AND($H64>0,$I64-CS$28>=$H64),$H64,IF(CR64=999,999,IF(CR64-1<0,IF($H64=0,999,$H64-1),CR64-1))) -> 6 | CT64: =IF(AND($H64>0,$I64-CT$28>=$H64),$H64,IF(CS64=999,999,IF(CS64-1<0,IF($H64=0,999,$H64-1),CS64-1))) -> 5 | CU64: =IF(AND($H64>0,$I64-CU$28>=$H64),$H64,IF(CT64=999,999,IF(CT64-1<0,IF($H64=0,999,$H64-1),CT64-1))) -> 4 | CV64: =IF(AND($H64>0,$I64-CV$28>=$H64),$H64,IF(CU64=999,999,IF(CU64-1<0,IF($H64=0,999,$H64-1),CU64-1))) -> 3 | CW64: =IF(AND($H64>0,$I64-CW$28>=$H64),$H64,IF(CV64=999,999,IF(CV64-1<0,IF($H64=0,999,$H64-1),CV64-1))) -> 2 | CX64: =IF(AND($H64>0,$I64-CX$28>=$H64),$H64,IF(CW64=999,999,IF(CW64-1<0,IF($H64=0,999,$H64-1),CW64-1))) -> 1 | CY64: =IF(AND($H64>0,$I64-CY$28>=$H64),$H64,IF(CX64=999,999,IF(CX64-1<0,IF($H64=0,999,$H64-1),CX64-1))) -> 0 | CZ64: =IF(AND($H64>0,$I64-CZ$28>=$H64),$H64,IF(CY64=999,999,IF(CY64-1<0,IF($H64=0,999,$H64-1),CY64-1))) -> 7 | DA64: =IF(AND($H64>0,$I64-DA$28>=$H64),$H64,IF(CZ64=999,999,IF(CZ64-1<0,IF($H64=0,999,$H64-1),CZ64-1))) -> 6 | DB64: =IF(AND($H64>0,$I64-DB$28>=$H64),$H64,IF(DA64=999,999,IF(DA64-1<0,IF($H64=0,999,$H64-1),DA64-1))) -> 5 | DC64: =IF(AND($H64>0,$I64-DC$28>=$H64),$H64,IF(DB64=999,999,IF(DB64-1<0,IF($H64=0,999,$H64-1),DB64-1))) -> 4 | DD64: =IF(AND($H64>0,$I64-DD$28>=$H64),$H64,IF(DC64=999,999,IF(DC64-1<0,IF($H64=0,999,$H64-1),DC64-1))) -> 3 | DE64: =IF(AND($H64>0,$I64-DE$28>=$H64),$H64,IF(DD64=999,999,IF(DD64-1<0,IF($H64=0,999,$H64-1),DD64-1))) -> 2 | DF64: =IF(AND($H64>0,$I64-DF$28>=$H64),$H64,IF(DE64=999,999,IF(DE64-1<0,IF($H64=0,999,$H64-1),DE64-1))) -> 1 | DG64: =IF(AND($H64>0,$I64-DG$28>=$H64),$H64,IF(DF64=999,999,IF(DF64-1<0,IF($H64=0,999,$H64-1),DF64-1))) -> 0 | DH64: =IF(AND($H64>0,$I64-DH$28>=$H64),$H64,IF(DG64=999,999,IF(DG64-1<0,IF($H64=0,999,$H64-1),DG64-1))) -> 7 | DI64: =IF(AND($H64>0,$I64-DI$28>=$H64),$H64,IF(DH64=999,999,IF(DH64-1<0,IF($H64=0,999,$H64-1),DH64-1))) -> 6 | DJ64: =IF(AND($H64>0,$I64-DJ$28>=$H64),$H64,IF(DI64=999,999,IF(DI64-1<0,IF($H64=0,999,$H64-1),DI64-1))) -> 5 | DK64: =IF(AND($H64>0,$I64-DK$28>=$H64),$H64,IF(DJ64=999,999,IF(DJ64-1<0,IF($H64=0,999,$H64-1),DJ64-1))) -> 4 | DL64: =IF(AND($H64>0,$I64-DL$28>=$H64),$H64,IF(DK64=999,999,IF(DK64-1<0,IF($H64=0,999,$H64-1),DK64-1))) -> 3 | DM64: =IF(AND($H64>0,$I64-DM$28>=$H64),$H64,IF(DL64=999,999,IF(DL64-1<0,IF($H64=0,999,$H64-1),DL64-1))) -> 2 | DN64: =IF(AND($H64>0,$I64-DN$28>=$H64),$H64,IF(DM64=999,999,IF(DM64-1<0,IF($H64=0,999,$H64-1),DM64-1))) -> 1 | DO64: =IF(AND($H64>0,$I64-DO$28>=$H64),$H64,IF(DN64=999,999,IF(DN64-1<0,IF($H64=0,999,$H64-1),DN64-1))) -> 0 | DP64: =IF(AND($H64>0,$I64-DP$28>=$H64),$H64,IF(DO64=999,999,IF(DO64-1<0,IF($H64=0,999,$H64-1),DO64-1))) -> 7 | DQ64: =IF(AND($H64>0,$I64-DQ$28>=$H64),$H64,IF(DP64=999,999,IF(DP64-1<0,IF($H64=0,999,$H64-1),DP64-1))) -> 6 | DR64: =IF(AND($H64>0,$I64-DR$28>=$H64),$H64,IF(DQ64=999,999,IF(DQ64-1<0,IF($H64=0,999,$H64-1),DQ64-1))) -> 5 | DS64: =IF(AND($H64>0,$I64-DS$28>=$H64),$H64,IF(DR64=999,999,IF(DR64-1<0,IF($H64=0,999,$H64-1),DR64-1))) -> 4 | DT64: =IF(AND($H64>0,$I64-DT$28>=$H64),$H64,IF(DS64=999,999,IF(DS64-1<0,IF($H64=0,999,$H64-1),DS64-1))) -> 3 | DU64: =IF(AND($H64>0,$I64-DU$28>=$H64),$H64,IF(DT64=999,999,IF(DT64-1<0,IF($H64=0,999,$H64-1),DT64-1))) -> 2 | DV64: =IF($H64>0,$M64*($H64-CQ64)/$H64,$M64/(CQ64+1)) -> 3150.0 | DW64: =IF(CR64=999,0,IF($H64>0,DW$28*$M64*($H64-CR64)/$H64,DW$28*$M64/(CR64+1))) -> 405.6 | DX64: =IF(CS64=999,0,IF($H64>0,DX$28*$M64*($H64-CS64)/$H64,DX$28*$M64/(CS64+1))) -> 835.5 | DY64: =IF(CT64=999,0,IF($H64>0,DY$28*$M64*($H64-CT64)/$H64,DY$28*$M64/(CT64+1))) -> 1290.8 | DZ64: =IF(CU64=999,0,IF($H64>0,DZ$28*$M64*($H64-CU64)/$H64,DZ$28*$M64/(CU64+1))) -> 1772.7 | EA64: =IF(CV64=999,0,IF($H64>0,EA$28*$M64*($H64-CV64)/$H64,EA$28*$M64/(CV64+1))) -> 2282.3 | EB64: =IF(CW64=999,0,IF($H64>0,EB$28*$M64*($H64-CW64)/$H64,EB$28*$M64/(CW64+1))) -> 2820.9 | EC64: =IF(CX64=999,0,IF($H64>0,EC$28*$M64*($H64-CX64)/$H64,EC$28*$M64/(CX64+1))) -> 3389.8 | ED64: =IF(CY64=999,0,IF($H64>0,ED$28*$M64*($H64-CY64)/$H64,ED$28*$M64/(CY64+1))) -> 3990.3 | EE64: =IF(CZ64=999,0,IF($H64>0,EE$28*$M64*($H64-CZ64)/$H64,EE$28*$M64/(CZ64+1))) -> 513.8 | EF64: =IF(DA64=999,0,IF($H64>0,EF$28*$M64*($H64-DA64)/$H64,EF$28*$M64/(DA64+1))) -> 1058.3 | EG64: =IF(DB64=999,0,IF($H64>0,EG$28*$M64*($H64-DB64)/$H64,EG$28*$M64/(DB64+1))) -> 1635.1 | EH64: =IF(DC64=999,0,IF($H64>0,EH$28*$M64*($H64-DC64)/$H64,EH$28*$M64/(DC64+1))) -> 2245.6 | EI64: =IF(DD64=999,0,IF($H64>0,EI$28*$M64*($H64-DD64)/$H64,EI$28*$M64/(DD64+1))) -> 2891.2 | EJ64: =IF(DE64=999,0,IF($H64>0,EJ$28*$M64*($H64-DE64)/$H64,EJ$28*$M64/(DE64+1))) -> 3573.5 | EK64: =IF(DF64=999,0,IF($H64>0,EK$28*$M64*($H64-DF64)/$H64,EK$28*$M64/(DF64+1))) -> 4294.1 | EL64: =IF(DG64=999,0,IF($H64>0,EL$28*$M64*($H64-DG64)/$H64,EL$28*$M64/(DG64+1))) -> 5054.8 | EM64: =IF(DH64=999,0,IF($H64>0,EM$28*$M64*($H64-DH64)/$H64,EM$28*$M64/(DH64+1))) -> 650.8 | EN64: =IF(DI64=999,0,IF($H64>0,EN$28*$M64*($H64-DI64)/$H64,EN$28*$M64/(DI64+1))) -> 1340.7 | EO64: =IF(DJ64=999,0,IF($H64>0,EO$28*$M64*($H64-DJ64)/$H64,EO$28*$M64/(DJ64+1))) -> 2071.3 | EP64: =IF(DK64=999,0,IF($H64>0,EP$28*$M64*($H64-DK64)/$H64,EP$28*$M64/(DK64+1))) -> 2844.6 | EQ64: =IF(DL64=999,0,IF($H64>0,EQ$28*$M64*($H64-DL64)/$H64,EQ$28*$M64/(DL64+1))) -> 3662.5 | ER64: =IF(DM64=999,0,IF($H64>0,ER$28*$M64*($H64-DM64)/$H64,ER$28*$M64/(DM64+1))) -> 4526.8 | ES64: =IF(DN64=999,0,IF($H64>0,ES$28*$M64*($H64-DN64)/$H64,ES$28*$M64/(DN64+1))) -> 5439.7 | ET64: =IF(DO64=999,0,IF($H64>0,ET$28*$M64*($H64-DO64)/$H64,ET$28*$M64/(DO64+1))) -> 6403.3 | EU64: =IF(DP64=999,0,IF($H64>0,EU$28*$M64*($H64-DP64)/$H64,EU$28*$M64/(DP64+1))) -> 824.4 | EV64: =IF(DQ64=999,0,IF($H64>0,EV$28*$M64*($H64-DQ64)/$H64,EV$28*$M64/(DQ64+1))) -> 1698.3 | EW64: =IF(DR64=999,0,IF($H64>0,EW$28*$M64*($H64-DR64)/$H64,EW$28*$M64/(DR64+1))) -> 2623.9 | EX64: =IF(DS64=999,0,IF($H64>0,EX$28*$M64*($H64-DS64)/$H64,EX$28*$M64/(DS64+1))) -> 3603.5 | EY64: =IF(DT64=999,0,IF($H64>0,EY$28*$M64*($H64-DT64)/$H64,EY$28*$M64/(DT64+1))) -> 4639.5 | EZ64: =IF(DU64=999,0,IF($H64>0,EZ$28*$M64*($H64-DU64)/$H64,EZ$28*$M64/(DU64+1))) -> 5734.4 | FD64: =MAX(0,I64-Years) -> 0 | FE64: =K64*(1+Inflation/100)^Years -> $3,800
A65: FALSE | C65: 35 | E65: 504 | F65: Pool Bldg Roof - Replace | G65: Approx 2,500 SF | H65: 25 | I65: 2 | J65: $10,000 | K65: $15,000 | M65: =(J65+K65)/2 -> $12,500 | N65: =E65 -> 504 | O65: =F65 -> Pool Bldg Roof - Replace | P65: =H65 -> 25 | Q65: =I65 -> 2 | R65: =M65 -> $12,500 | S65: =E65 -> 504 | T65: =F65 -> Pool Bldg Roof - Replace | U65: =G65 -> Approx 2,500 SF | V65: =H65 -> 25 | W65: =I65 -> 2 | X65: =J65 -> $10,000 | Y65: =K65 -> $15,000 | Z65: =E65 -> 504 | AA65: =F65 -> Pool Bldg Roof - Replace | AB65: =M65 -> $12,500 | AC65: X | AD65: =IF(H65-I65<0,0,H65-I65) -> 23 | AE65: / | AF65: =H65 -> 25 | AG65: = | AH65: =DV65+(1-Main!$D$61)*(DW65-DV65) -> $11,500 | AJ65: =E65 -> 504 | AK65: =F65 -> Pool Bldg Roof - Replace | AL65: =H65 -> 25 | AM65: =M65 -> $12,500 | AN65: =IF(H65>0,M65/H65,0) -> $500 | AO65: 1.4% | AP65: =SUM(AV$31:AV65) -> $436,567 | AQ65: =E65 -> 504 | AR65: =F65 -> Pool Bldg Roof - Replace | AS65: =H65 -> 25 | AT65: =I65 -> 2 | AU65: =M65 -> $12,500 | AV65: =DV65+(1-Main!$D$61)*(DW65-DV65) -> $11,500 | AW65: =IF(Main!D$26>1,Main!D$26*AV65,IF((AP65-AV65)>=Main!D$20,0,IF(AP65<=Main!D$20,AV65,Main!D$20-AP65+AV65))) -> $11,500 | AX65: =AO65*Main!RecommendContrib -> $831.63 | AZ65: 504 | BA65: Pool Bldg Roof - Replace | BB65: =IF(CQ65=0,$M65*BB$3,0) -> $0 | BC65: =IF(CR65=0,$M65*BC$3,0) -> $0 | BD65: =IF(CS65=0,$M65*BD$3,0) -> $13,261 | BE65: =IF(CT65=0,$M65*BE$3,0) -> $0 | BF65: =IF(CU65=0,$M65*BF$3,0) -> $0 | BG65: 504 | BH65: Pool Bldg Roof - Replace | BI65: =IF(CV65=0,$M65*BI$3,0) -> $0 | BJ65: =IF(CW65=0,$M65*BJ$3,0) -> $0 | BK65: =IF(CX65=0,$M65*BK$3,0) -> $0 | BL65: =IF(CY65=0,$M65*BL$3,0) -> $0 | BM65: =IF(CZ65=0,$M65*BM$3,0) -> $0 | BN65: 504 | BO65: Pool Bldg Roof - Replace | BP65: =IF(DA65=0,$M65*BP$3,0) -> $0 | BQ65: =IF(DB65=0,$M65*BQ$3,0) -> $0 | BR65: =IF(DC65=0,$M65*BR$3,0) -> $0 | BS65: =IF(DD65=0,$M65*BS$3,0) -> $0 | BT65: =IF(DE65=0,$M65*BT$3,0) -> $0 | BU65: 504 | BV65: Pool Bldg Roof - Replace | BW65: =IF(DF65=0,$M65*BW$3,0) -> $0 | BX65: =IF(DG65=0,$M65*BX$3,0) -> $0 | BY65: =IF(DH65=0,$M65*BY$3,0) -> $0 | BZ65: =IF(DI65=0,$M65*BZ$3,0) -> $0 | CA65: =IF(DJ65=0,$M65*CA$3,0) -> $0 | CB65: 504 | CC65: Pool Bldg Roof - Replace | CD65: =IF(DK65=0,$M65*CD$3,0) -> $0 | CE65: =IF(DL65=0,$M65*CE$3,0) -> $0 | CF65: =IF(DM65=0,$M65*CF$3,0) -> $0 | CG65: =IF(DN65=0,$M65*CG$3,0) -> $0 | CH65: =IF(DO65=0,$M65*CH$3,0) -> $0 | CI65: 504 | CJ65: Pool Bldg Roof - Replace | CK65: =IF(DP65=0,$M65*CK$3,0) -> $0 | CL65: =IF(DQ65=0,$M65*CL$3,0) -> $0 | CM65: =IF(DR65=0,$M65*CM$3,0) -> $27,766 | CN65: =IF(DS65=0,$M65*CN$3,0) -> $0 | CO65: =IF(DT65=0,$M65*CO$3,0) -> $0 | CP65: =IF(DU65=0,$M65*CP$3,0) -> $0 | CQ65: =IF(H65=0,I65,IF($I65>$H65,$H65,$I65)) -> 2 | CR65: =IF(AND($H65>0,$I65-CR$28>=$H65),$H65,IF(CQ65=999,999,IF(CQ65-1<0,IF($H65=0,999,$H65-1),CQ65-1))) -> 1 | CS65: =IF(AND($H65>0,$I65-CS$28>=$H65),$H65,IF(CR65=999,999,IF(CR65-1<0,IF($H65=0,999,$H65-1),CR65-1))) -> 0 | CT65: =IF(AND($H65>0,$I65-CT$28>=$H65),$H65,IF(CS65=999,999,IF(CS65-1<0,IF($H65=0,999,$H65-1),CS65-1))) -> 24 | CU65: =IF(AND($H65>0,$I65-CU$28>=$H65),$H65,IF(CT65=999,999,IF(CT65-1<0,IF($H65=0,999,$H65-1),CT65-1))) -> 23 | CV65: =IF(AND($H65>0,$I65-CV$28>=$H65),$H65,IF(CU65=999,999,IF(CU65-1<0,IF($H65=0,999,$H65-1),CU65-1))) -> 22 | CW65: =IF(AND($H65>0,$I65-CW$28>=$H65),$H65,IF(CV65=999,999,IF(CV65-1<0,IF($H65=0,999,$H65-1),CV65-1))) -> 21 | CX65: =IF(AND($H65>0,$I65-CX$28>=$H65),$H65,IF(CW65=999,999,IF(CW65-1<0,IF($H65=0,999,$H65-1),CW65-1))) -> 20 | CY65: =IF(AND($H65>0,$I65-CY$28>=$H65),$H65,IF(CX65=999,999,IF(CX65-1<0,IF($H65=0,999,$H65-1),CX65-1))) -> 19 | CZ65: =IF(AND($H65>0,$I65-CZ$28>=$H65),$H65,IF(CY65=999,999,IF(CY65-1<0,IF($H65=0,999,$H65-1),CY65-1))) -> 18 | DA65: =IF(AND($H65>0,$I65-DA$28>=$H65),$H65,IF(CZ65=999,999,IF(CZ65-1<0,IF($H65=0,999,$H65-1),CZ65-1))) -> 17 | DB65: =IF(AND($H65>0,$I65-DB$28>=$H65),$H65,IF(DA65=999,999,IF(DA65-1<0,IF($H65=0,999,$H65-1),DA65-1))) -> 16 | DC65: =IF(AND($H65>0,$I65-DC$28>=$H65),$H65,IF(DB65=999,999,IF(DB65-1<0,IF($H65=0,999,$H65-1),DB65-1))) -> 15 | DD65: =IF(AND($H65>0,$I65-DD$28>=$H65),$H65,IF(DC65=999,999,IF(DC65-1<0,IF($H65=0,999,$H65-1),DC65-1))) -> 14 | DE65: =IF(AND($H65>0,$I65-DE$28>=$H65),$H65,IF(DD65=999,999,IF(DD65-1<0,IF($H65=0,999,$H65-1),DD65-1))) -> 13 | DF65: =IF(AND($H65>0,$I65-DF$28>=$H65),$H65,IF(DE65=999,999,IF(DE65-1<0,IF($H65=0,999,$H65-1),DE65-1))) -> 12 | DG65: =IF(AND($H65>0,$I65-DG$28>=$H65),$H65,IF(DF65=999,999,IF(DF65-1<0,IF($H65=0,999,$H65-1),DF65-1))) -> 11 | DH65: =IF(AND($H65>0,$I65-DH$28>=$H65),$H65,IF(DG65=999,999,IF(DG65-1<0,IF($H65=0,999,$H65-1),DG65-1))) -> 10 | DI65: =IF(AND($H65>0,$I65-DI$28>=$H65),$H65,IF(DH65=999,999,IF(DH65-1<0,IF($H65=0,999,$H65-1),DH65-1))) -> 9 | DJ65: =IF(AND($H65>0,$I65-DJ$28>=$H65),$H65,IF(DI65=999,999,IF(DI65-1<0,IF($H65=0,999,$H65-1),DI65-1))) -> 8 | DK65: =IF(AND($H65>0,$I65-DK$28>=$H65),$H65,IF(DJ65=999,999,IF(DJ65-1<0,IF($H65=0,999,$H65-1),DJ65-1))) -> 7 | DL65: =IF(AND($H65>0,$I65-DL$28>=$H65),$H65,IF(DK65=999,999,IF(DK65-1<0,IF($H65=0,999,$H65-1),DK65-1))) -> 6 | DM65: =IF(AND($H65>0,$I65-DM$28>=$H65),$H65,IF(DL65=999,999,IF(DL65-1<0,IF($H65=0,999,$H65-1),DL65-1))) -> 5 | DN65: =IF(AND($H65>0,$I65-DN$28>=$H65),$H65,IF(DM65=999,999,IF(DM65-1<0,IF($H65=0,999,$H65-1),DM65-1))) -> 4 | DO65: =IF(AND($H65>0,$I65-DO$28>=$H65),$H65,IF(DN65=999,999,IF(DN65-1<0,IF($H65=0,999,$H65-1),DN65-1))) -> 3 | DP65: =IF(AND($H65>0,$I65-DP$28>=$H65),$H65,IF(DO65=999,999,IF(DO65-1<0,IF($H65=0,999,$H65-1),DO65-1))) -> 2 | DQ65: =IF(AND($H65>0,$I65-DQ$28>=$H65),$H65,IF(DP65=999,999,IF(DP65-1<0,IF($H65=0,999,$H65-1),DP65-1))) -> 1 | DR65: =IF(AND($H65>0,$I65-DR$28>=$H65),$H65,IF(DQ65=999,999,IF(DQ65-1<0,IF($H65=0,999,$H65-1),DQ65-1))) -> 0 | DS65: =IF(AND($H65>0,$I65-DS$28>=$H65),$H65,IF(DR65=999,999,IF(DR65-1<0,IF($H65=0,999,$H65-1),DR65-1))) -> 24 | DT65: =IF(AND($H65>0,$I65-DT$28>=$H65),$H65,IF(DS65=999,999,IF(DS65-1<0,IF($H65=0,999,$H65-1),DS65-1))) -> 23 | DU65: =IF(AND($H65>0,$I65-DU$28>=$H65),$H65,IF(DT65=999,999,IF(DT65-1<0,IF($H65=0,999,$H65-1),DT65-1))) -> 22 | DV65: =IF($H65>0,$M65*($H65-CQ65)/$H65,$M65/(CQ65+1)) -> 11500.0 | DW65: =IF(CR65=999,0,IF($H65>0,DW$28*$M65*($H65-CR65)/$H65,DW$28*$M65/(CR65+1))) -> 12360.0 | DX65: =IF(CS65=999,0,IF($H65>0,DX$28*$M65*($H65-CS65)/$H65,DX$28*$M65/(CS65+1))) -> 13261.3 | DY65: =IF(CT65=999,0,IF($H65>0,DY$28*$M65*($H65-CT65)/$H65,DY$28*$M65/(CT65+1))) -> 546.4 | DZ65: =IF(CU65=999,0,IF($H65>0,DZ$28*$M65*($H65-CU65)/$H65,DZ$28*$M65/(CU65+1))) -> 1125.5 | EA65: =IF(CV65=999,0,IF($H65>0,EA$28*$M65*($H65-CV65)/$H65,EA$28*$M65/(CV65+1))) -> 1738.9 | EB65: =IF(CW65=999,0,IF($H65>0,EB$28*$M65*($H65-CW65)/$H65,EB$28*$M65/(CW65+1))) -> 2388.1 | EC65: =IF(CX65=999,0,IF($H65>0,EC$28*$M65*($H65-CX65)/$H65,EC$28*$M65/(CX65+1))) -> 3074.7 | ED65: =IF(CY65=999,0,IF($H65>0,ED$28*$M65*($H65-CY65)/$H65,ED$28*$M65/(CY65+1))) -> 3800.3 | EE65: =IF(CZ65=999,0,IF($H65>0,EE$28*$M65*($H65-CZ65)/$H65,EE$28*$M65/(CZ65+1))) -> 4566.7 | EF65: =IF(DA65=999,0,IF($H65>0,EF$28*$M65*($H65-DA65)/$H65,EF$28*$M65/(DA65+1))) -> 5375.7 | EG65: =IF(DB65=999,0,IF($H65>0,EG$28*$M65*($H65-DB65)/$H65,EG$28*$M65/(DB65+1))) -> 6229.1 | EH65: =IF(DC65=999,0,IF($H65>0,EH$28*$M65*($H65-DC65)/$H65,EH$28*$M65/(DC65+1))) -> 7128.8 | EI65: =IF(DD65=999,0,IF($H65>0,EI$28*$M65*($H65-DD65)/$H65,EI$28*$M65/(DD65+1))) -> 8076.9 | EJ65: =IF(DE65=999,0,IF($H65>0,EJ$28*$M65*($H65-DE65)/$H65,EJ$28*$M65/(DE65+1))) -> 9075.5 | EK65: =IF(DF65=999,0,IF($H65>0,EK$28*$M65*($H65-DF65)/$H65,EK$28*$M65/(DF65+1))) -> 10126.8 | EL65: =IF(DG65=999,0,IF($H65>0,EL$28*$M65*($H65-DG65)/$H65,EL$28*$M65/(DG65+1))) -> 11232.9 | EM65: =IF(DH65=999,0,IF($H65>0,EM$28*$M65*($H65-DH65)/$H65,EM$28*$M65/(DH65+1))) -> 12396.4 | EN65: =IF(DI65=999,0,IF($H65>0,EN$28*$M65*($H65-DI65)/$H65,EN$28*$M65/(DI65+1))) -> 13619.5 | EO65: =IF(DJ65=999,0,IF($H65>0,EO$28*$M65*($H65-DJ65)/$H65,EO$28*$M65/(DJ65+1))) -> 14904.8 | EP65: =IF(DK65=999,0,IF($H65>0,EP$28*$M65*($H65-DK65)/$H65,EP$28*$M65/(DK65+1))) -> 16255.0 | EQ65: =IF(DL65=999,0,IF($H65>0,EQ$28*$M65*($H65-DL65)/$H65,EQ$28*$M65/(DL65+1))) -> 17672.8 | ER65: =IF(DM65=999,0,IF($H65>0,ER$28*$M65*($H65-DM65)/$H65,ER$28*$M65/(DM65+1))) -> 19161.0 | ES65: =IF(DN65=999,0,IF($H65>0,ES$28*$M65*($H65-DN65)/$H65,ES$28*$M65/(DN65+1))) -> 20722.7 | ET65: =IF(DO65=999,0,IF($H65>0,ET$28*$M65*($H65-DO65)/$H65,ET$28*$M65/(DO65+1))) -> 22360.7 | EU65: =IF(DP65=999,0,IF($H65>0,EU$28*$M65*($H65-DP65)/$H65,EU$28*$M65/(DP65+1))) -> 24078.4 | EV65: =IF(DQ65=999,0,IF($H65>0,EV$28*$M65*($H65-DQ65)/$H65,EV$28*$M65/(DQ65+1))) -> 25879.1 | EW65: =IF(DR65=999,0,IF($H65>0,EW$28*$M65*($H65-DR65)/$H65,EW$28*$M65/(DR65+1))) -> 27766.1 | EX65: =IF(DS65=999,0,IF($H65>0,EX$28*$M65*($H65-DS65)/$H65,EX$28*$M65/(DS65+1))) -> 1144.0 | EY65: =IF(DT65=999,0,IF($H65>0,EY$28*$M65*($H65-DT65)/$H65,EY$28*$M65/(DT65+1))) -> 2356.6 | EZ65: =IF(DU65=999,0,IF($H65>0,EZ$28*$M65*($H65-DU65)/$H65,EZ$28*$M65/(DU65+1))) -> 3640.9 | FD65: =MAX(0,I65-Years) -> 2 | FE65: =K65*(1+Inflation/100)^Years -> $15,000
A66: FALSE | C66: 36 | E66: 512 | F66: Pool Bldg Shower Rooms - Remodel | G66: (2)/Men's/Womens | H66: 25 | I66: 25 | J66: $45,000 | K66: $55,000 | M66: =(J66+K66)/2 -> $50,000 | N66: =E66 -> 512 | O66: =F66 -> Pool Bldg Shower Rooms - Remodel | P66: =H66 -> 25 | Q66: =I66 -> 25 | R66: =M66 -> $50,000 | S66: =E66 -> 512 | T66: =F66 -> Pool Bldg Shower Rooms - Remodel | U66: =G66 -> (2)/Men's/Womens | V66: =H66 -> 25 | W66: =I66 -> 25 | X66: =J66 -> $45,000 | Y66: =K66 -> $55,000 | Z66: =E66 -> 512 | AA66: =F66 -> Pool Bldg Shower Rooms - Remodel | AB66: =M66 -> $50,000 | AC66: X | AD66: =IF(H66-I66<0,0,H66-I66) -> 0 | AE66: / | AF66: =H66 -> 25 | AG66: = | AH66: =DV66+(1-Main!$D$61)*(DW66-DV66) -> $0 | AJ66: =E66 -> 512 | AK66: =F66 -> Pool Bldg Shower Rooms - Remodel | AL66: =H66 -> 25 | AM66: =M66 -> $50,000 | AN66: =IF(H66>0,M66/H66,0) -> $2,000 | AO66: 5.6% | AP66: =SUM(AV$31:AV66) -> $436,567 | AQ66: =E66 -> 512 | AR66: =F66 -> Pool Bldg Shower Rooms - Remodel | AS66: =H66 -> 25 | AT66: =I66 -> 25 | AU66: =M66 -> $50,000 | AV66: =DV66+(1-Main!$D$61)*(DW66-DV66) -> $0 | AW66: =IF(Main!D$26>1,Main!D$26*AV66,IF((AP66-AV66)>=Main!D$20,0,IF(AP66<=Main!D$20,AV66,Main!D$20-AP66+AV66))) -> $0 | AX66: =AO66*Main!RecommendContrib -> $3,326.52 | AZ66: 512 | BA66: Pool Bldg Shower Rooms - Remodel | BB66: =IF(CQ66=0,$M66*BB$3,0) -> $0 | BC66: =IF(CR66=0,$M66*BC$3,0) -> $0 | BD66: =IF(CS66=0,$M66*BD$3,0) -> $0 | BE66: =IF(CT66=0,$M66*BE$3,0) -> $0 | BF66: =IF(CU66=0,$M66*BF$3,0) -> $0 | BG66: 512 | BH66: Pool Bldg Shower Rooms - Remodel | BI66: =IF(CV66=0,$M66*BI$3,0) -> $0 | BJ66: =IF(CW66=0,$M66*BJ$3,0) -> $0 | BK66: =IF(CX66=0,$M66*BK$3,0) -> $0 | BL66: =IF(CY66=0,$M66*BL$3,0) -> $0 | BM66: =IF(CZ66=0,$M66*BM$3,0) -> $0 | BN66: 512 | BO66: Pool Bldg Shower Rooms - Remodel | BP66: =IF(DA66=0,$M66*BP$3,0) -> $0 | BQ66: =IF(DB66=0,$M66*BQ$3,0) -> $0 | BR66: =IF(DC66=0,$M66*BR$3,0) -> $0 | BS66: =IF(DD66=0,$M66*BS$3,0) -> $0 | BT66: =IF(DE66=0,$M66*BT$3,0) -> $0 | BU66: 512 | BV66: Pool Bldg Shower Rooms - Remodel | BW66: =IF(DF66=0,$M66*BW$3,0) -> $0 | BX66: =IF(DG66=0,$M66*BX$3,0) -> $0 | BY66: =IF(DH66=0,$M66*BY$3,0) -> $0 | BZ66: =IF(DI66=0,$M66*BZ$3,0) -> $0 | CA66: =IF(DJ66=0,$M66*CA$3,0) -> $0 | CB66: 512 | CC66: Pool Bldg Shower Rooms - Remodel | CD66: =IF(DK66=0,$M66*CD$3,0) -> $0 | CE66: =IF(DL66=0,$M66*CE$3,0) -> $0 | CF66: =IF(DM66=0,$M66*CF$3,0) -> $0 | CG66: =IF(DN66=0,$M66*CG$3,0) -> $0 | CH66: =IF(DO66=0,$M66*CH$3,0) -> $0 | CI66: 512 | CJ66: Pool Bldg Shower Rooms - Remodel | CK66: =IF(DP66=0,$M66*CK$3,0) -> $104,689 | CL66: =IF(DQ66=0,$M66*CL$3,0) -> $0 | CM66: =IF(DR66=0,$M66*CM$3,0) -> $0 | CN66: =IF(DS66=0,$M66*CN$3,0) -> $0 | CO66: =IF(DT66=0,$M66*CO$3,0) -> $0 | CP66: =IF(DU66=0,$M66*CP$3,0) -> $0 | CQ66: =IF(H66=0,I66,IF($I66>$H66,$H66,$I66)) -> 25 | CR66: =IF(AND($H66>0,$I66-CR$28>=$H66),$H66,IF(CQ66=999,999,IF(CQ66-1<0,IF($H66=0,999,$H66-1),CQ66-1))) -> 24 | CS66: =IF(AND($H66>0,$I66-CS$28>=$H66),$H66,IF(CR66=999,999,IF(CR66-1<0,IF($H66=0,999,$H66-1),CR66-1))) -> 23 | CT66: =IF(AND($H66>0,$I66-CT$28>=$H66),$H66,IF(CS66=999,999,IF(CS66-1<0,IF($H66=0,999,$H66-1),CS66-1))) -> 22 | CU66: =IF(AND($H66>0,$I66-CU$28>=$H66),$H66,IF(CT66=999,999,IF(CT66-1<0,IF($H66=0,999,$H66-1),CT66-1))) -> 21 | CV66: =IF(AND($H66>0,$I66-CV$28>=$H66),$H66,IF(CU66=999,999,IF(CU66-1<0,IF($H66=0,999,$H66-1),CU66-1))) -> 20 | CW66: =IF(AND($H66>0,$I66-CW$28>=$H66),$H66,IF(CV66=999,999,IF(CV66-1<0,IF($H66=0,999,$H66-1),CV66-1))) -> 19 | CX66: =IF(AND($H66>0,$I66-CX$28>=$H66),$H66,IF(CW66=999,999,IF(CW66-1<0,IF($H66=0,999,$H66-1),CW66-1))) -> 18 | CY66: =IF(AND($H66>0,$I66-CY$28>=$H66),$H66,IF(CX66=999,999,IF(CX66-1<0,IF($H66=0,999,$H66-1),CX66-1))) -> 17 | CZ66: =IF(AND($H66>0,$I66-CZ$28>=$H66),$H66,IF(CY66=999,999,IF(CY66-1<0,IF($H66=0,999,$H66-1),CY66-1))) -> 16 | DA66: =IF(AND($H66>0,$I66-DA$28>=$H66),$H66,IF(CZ66=999,999,IF(CZ66-1<0,IF($H66=0,999,$H66-1),CZ66-1))) -> 15 | DB66: =IF(AND($H66>0,$I66-DB$28>=$H66),$H66,IF(DA66=999,999,IF(DA66-1<0,IF($H66=0,999,$H66-1),DA66-1))) -> 14 | DC66: =IF(AND($H66>0,$I66-DC$28>=$H66),$H66,IF(DB66=999,999,IF(DB66-1<0,IF($H66=0,999,$H66-1),DB66-1))) -> 13 | DD66: =IF(AND($H66>0,$I66-DD$28>=$H66),$H66,IF(DC66=999,999,IF(DC66-1<0,IF($H66=0,999,$H66-1),DC66-1))) -> 12 | DE66: =IF(AND($H66>0,$I66-DE$28>=$H66),$H66,IF(DD66=999,999,IF(DD66-1<0,IF($H66=0,999,$H66-1),DD66-1))) -> 11 | DF66: =IF(AND($H66>0,$I66-DF$28>=$H66),$H66,IF(DE66=999,999,IF(DE66-1<0,IF($H66=0,999,$H66-1),DE66-1))) -> 10 | DG66: =IF(AND($H66>0,$I66-DG$28>=$H66),$H66,IF(DF66=999,999,IF(DF66-1<0,IF($H66=0,999,$H66-1),DF66-1))) -> 9 | DH66: =IF(AND($H66>0,$I66-DH$28>=$H66),$H66,IF(DG66=999,999,IF(DG66-1<0,IF($H66=0,999,$H66-1),DG66-1))) -> 8 | DI66: =IF(AND($H66>0,$I66-DI$28>=$H66),$H66,IF(DH66=999,999,IF(DH66-1<0,IF($H66=0,999,$H66-1),DH66-1))) -> 7 | DJ66: =IF(AND($H66>0,$I66-DJ$28>=$H66),$H66,IF(DI66=999,999,IF(DI66-1<0,IF($H66=0,999,$H66-1),DI66-1))) -> 6 | DK66: =IF(AND($H66>0,$I66-DK$28>=$H66),$H66,IF(DJ66=999,999,IF(DJ66-1<0,IF($H66=0,999,$H66-1),DJ66-1))) -> 5 | DL66: =IF(AND($H66>0,$I66-DL$28>=$H66),$H66,IF(DK66=999,999,IF(DK66-1<0,IF($H66=0,999,$H66-1),DK66-1))) -> 4 | DM66: =IF(AND($H66>0,$I66-DM$28>=$H66),$H66,IF(DL66=999,999,IF(DL66-1<0,IF($H66=0,999,$H66-1),DL66-1))) -> 3 | DN66: =IF(AND($H66>0,$I66-DN$28>=$H66),$H66,IF(DM66=999,999,IF(DM66-1<0,IF($H66=0,999,$H66-1),DM66-1))) -> 2 | DO66: =IF(AND($H66>0,$I66-DO$28>=$H66),$H66,IF(DN66=999,999,IF(DN66-1<0,IF($H66=0,999,$H66-1),DN66-1))) -> 1 | DP66: =IF(AND($H66>0,$I66-DP$28>=$H66),$H66,IF(DO66=999,999,IF(DO66-1<0,IF($H66=0,999,$H66-1),DO66-1))) -> 0 | DQ66: =IF(AND($H66>0,$I66-DQ$28>=$H66),$H66,IF(DP66=999,999,IF(DP66-1<0,IF($H66=0,999,$H66-1),DP66-1))) -> 24 | DR66: =IF(AND($H66>0,$I66-DR$28>=$H66),$H66,IF(DQ66=999,999,IF(DQ66-1<0,IF($H66=0,999,$H66-1),DQ66-1))) -> 23 | DS66: =IF(AND($H66>0,$I66-DS$28>=$H66),$H66,IF(DR66=999,999,IF(DR66-1<0,IF($H66=0,999,$H66-1),DR66-1))) -> 22 | DT66: =IF(AND($H66>0,$I66-DT$28>=$H66),$H66,IF(DS66=999,999,IF(DS66-1<0,IF($H66=0,999,$H66-1),DS66-1))) -> 21 | DU66: =IF(AND($H66>0,$I66-DU$28>=$H66),$H66,IF(DT66=999,999,IF(DT66-1<0,IF($H66=0,999,$H66-1),DT66-1))) -> 20 | DV66: =IF($H66>0,$M66*($H66-CQ66)/$H66,$M66/(CQ66+1)) -> 0.0 | DW66: =IF(CR66=999,0,IF($H66>0,DW$28*$M66*($H66-CR66)/$H66,DW$28*$M66/(CR66+1))) -> 2060.0 | DX66: =IF(CS66=999,0,IF($H66>0,DX$28*$M66*($H66-CS66)/$H66,DX$28*$M66/(CS66+1))) -> 4243.6 | DY66: =IF(CT66=999,0,IF($H66>0,DY$28*$M66*($H66-CT66)/$H66,DY$28*$M66/(CT66+1))) -> 6556.4 | DZ66: =IF(CU66=999,0,IF($H66>0,DZ$28*$M66*($H66-CU66)/$H66,DZ$28*$M66/(CU66+1))) -> 9004.1 | EA66: =IF(CV66=999,0,IF($H66>0,EA$28*$M66*($H66-CV66)/$H66,EA$28*$M66/(CV66+1))) -> 11592.7 | EB66: =IF(CW66=999,0,IF($H66>0,EB$28*$M66*($H66-CW66)/$H66,EB$28*$M66/(CW66+1))) -> 14328.6 | EC66: =IF(CX66=999,0,IF($H66>0,EC$28*$M66*($H66-CX66)/$H66,EC$28*$M66/(CX66+1))) -> 17218.2 | ED66: =IF(CY66=999,0,IF($H66>0,ED$28*$M66*($H66-CY66)/$H66,ED$28*$M66/(CY66+1))) -> 20268.3 | EE66: =IF(CZ66=999,0,IF($H66>0,EE$28*$M66*($H66-CZ66)/$H66,EE$28*$M66/(CZ66+1))) -> 23485.9 | EF66: =IF(DA66=999,0,IF($H66>0,EF$28*$M66*($H66-DA66)/$H66,EF$28*$M66/(DA66+1))) -> 26878.3 | EG66: =IF(DB66=999,0,IF($H66>0,EG$28*$M66*($H66-DB66)/$H66,EG$28*$M66/(DB66+1))) -> 30453.1 | EH66: =IF(DC66=999,0,IF($H66>0,EH$28*$M66*($H66-DC66)/$H66,EH$28*$M66/(DC66+1))) -> 34218.3 | EI66: =IF(DD66=999,0,IF($H66>0,EI$28*$M66*($H66-DD66)/$H66,EI$28*$M66/(DD66+1))) -> 38181.9 | EJ66: =IF(DE66=999,0,IF($H66>0,EJ$28*$M66*($H66-DE66)/$H66,EJ$28*$M66/(DE66+1))) -> 42352.5 | EK66: =IF(DF66=999,0,IF($H66>0,EK$28*$M66*($H66-DF66)/$H66,EK$28*$M66/(DF66+1))) -> 46739.0 | EL66: =IF(DG66=999,0,IF($H66>0,EL$28*$M66*($H66-DG66)/$H66,EL$28*$M66/(DG66+1))) -> 51350.6 | EM66: =IF(DH66=999,0,IF($H66>0,EM$28*$M66*($H66-DH66)/$H66,EM$28*$M66/(DH66+1))) -> 56196.8 | EN66: =IF(DI66=999,0,IF($H66>0,EN$28*$M66*($H66-DI66)/$H66,EN$28*$M66/(DI66+1))) -> 61287.6 | EO66: =IF(DJ66=999,0,IF($H66>0,EO$28*$M66*($H66-DJ66)/$H66,EO$28*$M66/(DJ66+1))) -> 66633.2 | EP66: =IF(DK66=999,0,IF($H66>0,EP$28*$M66*($H66-DK66)/$H66,EP$28*$M66/(DK66+1))) -> 72244.4 | EQ66: =IF(DL66=999,0,IF($H66>0,EQ$28*$M66*($H66-DL66)/$H66,EQ$28*$M66/(DL66+1))) -> 78132.4 | ER66: =IF(DM66=999,0,IF($H66>0,ER$28*$M66*($H66-DM66)/$H66,ER$28*$M66/(DM66+1))) -> 84308.5 | ES66: =IF(DN66=999,0,IF($H66>0,ES$28*$M66*($H66-DN66)/$H66,ES$28*$M66/(DN66+1))) -> 90785.0 | ET66: =IF(DO66=999,0,IF($H66>0,ET$28*$M66*($H66-DO66)/$H66,ET$28*$M66/(DO66+1))) -> 97574.1 | EU66: =IF(DP66=999,0,IF($H66>0,EU$28*$M66*($H66-DP66)/$H66,EU$28*$M66/(DP66+1))) -> 104688.9 | EV66: =IF(DQ66=999,0,IF($H66>0,EV$28*$M66*($H66-DQ66)/$H66,EV$28*$M66/(DQ66+1))) -> 4313.2 | EW66: =IF(DR66=999,0,IF($H66>0,EW$28*$M66*($H66-DR66)/$H66,EW$28*$M66/(DR66+1))) -> 8885.2 | EX66: =IF(DS66=999,0,IF($H66>0,EX$28*$M66*($H66-DS66)/$H66,EX$28*$M66/(DS66+1))) -> 13727.6 | EY66: =IF(DT66=999,0,IF($H66>0,EY$28*$M66*($H66-DT66)/$H66,EY$28*$M66/(DT66+1))) -> 18852.5 | EZ66: =IF(DU66=999,0,IF($H66>0,EZ$28*$M66*($H66-DU66)/$H66,EZ$28*$M66/(DU66+1))) -> 24272.6 | FD66: =MAX(0,I66-Years) -> 25 | FE66: =K66*(1+Inflation/100)^Years -> $55,000
A67: FALSE | C67: 37 | E67: 516 | F67: Pool Bldg Half Baths - Refurbish | G67: (2) half baths | H67: 25 | I67: 25 | J67: $6,000 | K67: $10,000 | M67: =(J67+K67)/2 -> $8,000 | N67: =E67 -> 516 | O67: =F67 -> Pool Bldg Half Baths - Refurbish | P67: =H67 -> 25 | Q67: =I67 -> 25 | R67: =M67 -> $8,000 | S67: =E67 -> 516 | T67: =F67 -> Pool Bldg Half Baths - Refurbish | U67: =G67 -> (2) half baths | V67: =H67 -> 25 | W67: =I67 -> 25 | X67: =J67 -> $6,000 | Y67: =K67 -> $10,000 | Z67: =E67 -> 516 | AA67: =F67 -> Pool Bldg Half Baths - Refurbish | AB67: =M67 -> $8,000 | AC67: X | AD67: =IF(H67-I67<0,0,H67-I67) -> 0 | AE67: / | AF67: =H67 -> 25 | AG67: = | AH67: =DV67+(1-Main!$D$61)*(DW67-DV67) -> $0 | AJ67: =E67 -> 516 | AK67: =F67 -> Pool Bldg Half Baths - Refurbish | AL67: =H67 -> 25 | AM67: =M67 -> $8,000 | AN67: =IF(H67>0,M67/H67,0) -> $320 | AO67: 0.9% | AP67: =SUM(AV$31:AV67) -> $436,567 | AQ67: =E67 -> 516 | AR67: =F67 -> Pool Bldg Half Baths - Refurbish | AS67: =H67 -> 25 | AT67: =I67 -> 25 | AU67: =M67 -> $8,000 | AV67: =DV67+(1-Main!$D$61)*(DW67-DV67) -> $0 | AW67: =IF(Main!D$26>1,Main!D$26*AV67,IF((AP67-AV67)>=Main!D$20,0,IF(AP67<=Main!D$20,AV67,Main!D$20-AP67+AV67))) -> $0 | AX67: =AO67*Main!RecommendContrib -> $532.24 | AZ67: 516 | BA67: Pool Bldg Half Baths - Refurbish | BB67: =IF(CQ67=0,$M67*BB$3,0) -> $0 | BC67: =IF(CR67=0,$M67*BC$3,0) -> $0 | BD67: =IF(CS67=0,$M67*BD$3,0) -> $0 | BE67: =IF(CT67=0,$M67*BE$3,0) -> $0 | BF67: =IF(CU67=0,$M67*BF$3,0) -> $0 | BG67: 516 | BH67: Pool Bldg Half Baths - Refurbish | BI67: =IF(CV67=0,$M67*BI$3,0) -> $0 | BJ67: =IF(CW67=0,$M67*BJ$3,0) -> $0 | BK67: =IF(CX67=0,$M67*BK$3,0) -> $0 | BL67: =IF(CY67=0,$M67*BL$3,0) -> $0 | BM67: =IF(CZ67=0,$M67*BM$3,0) -> $0 | BN67: 516 | BO67: Pool Bldg Half Baths - Refurbish | BP67: =IF(DA67=0,$M67*BP$3,0) -> $0 | BQ67: =IF(DB67=0,$M67*BQ$3,0) -> $0 | BR67: =IF(DC67=0,$M67*BR$3,0) -> $0 | BS67: =IF(DD67=0,$M67*BS$3,0) -> $0 | BT67: =IF(DE67=0,$M67*BT$3,0) -> $0 | BU67: 516 | BV67: Pool Bldg Half Baths - Refurbish | BW67: =IF(DF67=0,$M67*BW$3,0) -> $0 | BX67: =IF(DG67=0,$M67*BX$3,0) -> $0 | BY67: =IF(DH67=0,$M67*BY$3,0) -> $0 | BZ67: =IF(DI67=0,$M67*BZ$3,0) -> $0 | CA67: =IF(DJ67=0,$M67*CA$3,0) -> $0 | CB67: 516 | CC67: Pool Bldg Half Baths - Refurbish | CD67: =IF(DK67=0,$M67*CD$3,0) -> $0 | CE67: =IF(DL67=0,$M67*CE$3,0) -> $0 | CF67: =IF(DM67=0,$M67*CF$3,0) -> $0 | CG67: =IF(DN67=0,$M67*CG$3,0) -> $0 | CH67: =IF(DO67=0,$M67*CH$3,0) -> $0 | CI67: 516 | CJ67: Pool Bldg Half Baths - Refurbish | CK67: =IF(DP67=0,$M67*CK$3,0) -> $16,750 | CL67: =IF(DQ67=0,$M67*CL$3,0) -> $0 | CM67: =IF(DR67=0,$M67*CM$3,0) -> $0 | CN67: =IF(DS67=0,$M67*CN$3,0) -> $0 | CO67: =IF(DT67=0,$M67*CO$3,0) -> $0 | CP67: =IF(DU67=0,$M67*CP$3,0) -> $0 | CQ67: =IF(H67=0,I67,IF($I67>$H67,$H67,$I67)) -> 25 | CR67: =IF(AND($H67>0,$I67-CR$28>=$H67),$H67,IF(CQ67=999,999,IF(CQ67-1<0,IF($H67=0,999,$H67-1),CQ67-1))) -> 24 | CS67: =IF(AND($H67>0,$I67-CS$28>=$H67),$H67,IF(CR67=999,999,IF(CR67-1<0,IF($H67=0,999,$H67-1),CR67-1))) -> 23 | CT67: =IF(AND($H67>0,$I67-CT$28>=$H67),$H67,IF(CS67=999,999,IF(CS67-1<0,IF($H67=0,999,$H67-1),CS67-1))) -> 22 | CU67: =IF(AND($H67>0,$I67-CU$28>=$H67),$H67,IF(CT67=999,999,IF(CT67-1<0,IF($H67=0,999,$H67-1),CT67-1))) -> 21 | CV67: =IF(AND($H67>0,$I67-CV$28>=$H67),$H67,IF(CU67=999,999,IF(CU67-1<0,IF($H67=0,999,$H67-1),CU67-1))) -> 20 | CW67: =IF(AND($H67>0,$I67-CW$28>=$H67),$H67,IF(CV67=999,999,IF(CV67-1<0,IF($H67=0,999,$H67-1),CV67-1))) -> 19 | CX67: =IF(AND($H67>0,$I67-CX$28>=$H67),$H67,IF(CW67=999,999,IF(CW67-1<0,IF($H67=0,999,$H67-1),CW67-1))) -> 18 | CY67: =IF(AND($H67>0,$I67-CY$28>=$H67),$H67,IF(CX67=999,999,IF(CX67-1<0,IF($H67=0,999,$H67-1),CX67-1))) -> 17 | CZ67: =IF(AND($H67>0,$I67-CZ$28>=$H67),$H67,IF(CY67=999,999,IF(CY67-1<0,IF($H67=0,999,$H67-1),CY67-1))) -> 16 | DA67: =IF(AND($H67>0,$I67-DA$28>=$H67),$H67,IF(CZ67=999,999,IF(CZ67-1<0,IF($H67=0,999,$H67-1),CZ67-1))) -> 15 | DB67: =IF(AND($H67>0,$I67-DB$28>=$H67),$H67,IF(DA67=999,999,IF(DA67-1<0,IF($H67=0,999,$H67-1),DA67-1))) -> 14 | DC67: =IF(AND($H67>0,$I67-DC$28>=$H67),$H67,IF(DB67=999,999,IF(DB67-1<0,IF($H67=0,999,$H67-1),DB67-1))) -> 13 | DD67: =IF(AND($H67>0,$I67-DD$28>=$H67),$H67,IF(DC67=999,999,IF(DC67-1<0,IF($H67=0,999,$H67-1),DC67-1))) -> 12 | DE67: =IF(AND($H67>0,$I67-DE$28>=$H67),$H67,IF(DD67=999,999,IF(DD67-1<0,IF($H67=0,999,$H67-1),DD67-1))) -> 11 | DF67: =IF(AND($H67>0,$I67-DF$28>=$H67),$H67,IF(DE67=999,999,IF(DE67-1<0,IF($H67=0,999,$H67-1),DE67-1))) -> 10 | DG67: =IF(AND($H67>0,$I67-DG$28>=$H67),$H67,IF(DF67=999,999,IF(DF67-1<0,IF($H67=0,999,$H67-1),DF67-1))) -> 9 | DH67: =IF(AND($H67>0,$I67-DH$28>=$H67),$H67,IF(DG67=999,999,IF(DG67-1<0,IF($H67=0,999,$H67-1),DG67-1))) -> 8 | DI67: =IF(AND($H67>0,$I67-DI$28>=$H67),$H67,IF(DH67=999,999,IF(DH67-1<0,IF($H67=0,999,$H67-1),DH67-1))) -> 7 | DJ67: =IF(AND($H67>0,$I67-DJ$28>=$H67),$H67,IF(DI67=999,999,IF(DI67-1<0,IF($H67=0,999,$H67-1),DI67-1))) -> 6 | DK67: =IF(AND($H67>0,$I67-DK$28>=$H67),$H67,IF(DJ67=999,999,IF(DJ67-1<0,IF($H67=0,999,$H67-1),DJ67-1))) -> 5 | DL67: =IF(AND($H67>0,$I67-DL$28>=$H67),$H67,IF(DK67=999,999,IF(DK67-1<0,IF($H67=0,999,$H67-1),DK67-1))) -> 4 | DM67: =IF(AND($H67>0,$I67-DM$28>=$H67),$H67,IF(DL67=999,999,IF(DL67-1<0,IF($H67=0,999,$H67-1),DL67-1))) -> 3 | DN67: =IF(AND($H67>0,$I67-DN$28>=$H67),$H67,IF(DM67=999,999,IF(DM67-1<0,IF($H67=0,999,$H67-1),DM67-1))) -> 2 | DO67: =IF(AND($H67>0,$I67-DO$28>=$H67),$H67,IF(DN67=999,999,IF(DN67-1<0,IF($H67=0,999,$H67-1),DN67-1))) -> 1 | DP67: =IF(AND($H67>0,$I67-DP$28>=$H67),$H67,IF(DO67=999,999,IF(DO67-1<0,IF($H67=0,999,$H67-1),DO67-1))) -> 0 | DQ67: =IF(AND($H67>0,$I67-DQ$28>=$H67),$H67,IF(DP67=999,999,IF(DP67-1<0,IF($H67=0,999,$H67-1),DP67-1))) -> 24 | DR67: =IF(AND($H67>0,$I67-DR$28>=$H67),$H67,IF(DQ67=999,999,IF(DQ67-1<0,IF($H67=0,999,$H67-1),DQ67-1))) -> 23 | DS67: =IF(AND($H67>0,$I67-DS$28>=$H67),$H67,IF(DR67=999,999,IF(DR67-1<0,IF($H67=0,999,$H67-1),DR67-1))) -> 22 | DT67: =IF(AND($H67>0,$I67-DT$28>=$H67),$H67,IF(DS67=999,999,IF(DS67-1<0,IF($H67=0,999,$H67-1),DS67-1))) -> 21 | DU67: =IF(AND($H67>0,$I67-DU$28>=$H67),$H67,IF(DT67=999,999,IF(DT67-1<0,IF($H67=0,999,$H67-1),DT67-1))) -> 20 | DV67: =IF($H67>0,$M67*($H67-CQ67)/$H67,$M67/(CQ67+1)) -> 0.0 | DW67: =IF(CR67=999,0,IF($H67>0,DW$28*$M67*($H67-CR67)/$H67,DW$28*$M67/(CR67+1))) -> 329.6 | DX67: =IF(CS67=999,0,IF($H67>0,DX$28*$M67*($H67-CS67)/$H67,DX$28*$M67/(CS67+1))) -> 679.0 | DY67: =IF(CT67=999,0,IF($H67>0,DY$28*$M67*($H67-CT67)/$H67,DY$28*$M67/(CT67+1))) -> 1049.0 | DZ67: =IF(CU67=999,0,IF($H67>0,DZ$28*$M67*($H67-CU67)/$H67,DZ$28*$M67/(CU67+1))) -> 1440.7 | EA67: =IF(CV67=999,0,IF($H67>0,EA$28*$M67*($H67-CV67)/$H67,EA$28*$M67/(CV67+1))) -> 1854.8 | EB67: =IF(CW67=999,0,IF($H67>0,EB$28*$M67*($H67-CW67)/$H67,EB$28*$M67/(CW67+1))) -> 2292.6 | EC67: =IF(CX67=999,0,IF($H67>0,EC$28*$M67*($H67-CX67)/$H67,EC$28*$M67/(CX67+1))) -> 2754.9 | ED67: =IF(CY67=999,0,IF($H67>0,ED$28*$M67*($H67-CY67)/$H67,ED$28*$M67/(CY67+1))) -> 3242.9 | EE67: =IF(CZ67=999,0,IF($H67>0,EE$28*$M67*($H67-CZ67)/$H67,EE$28*$M67/(CZ67+1))) -> 3757.7 | EF67: =IF(DA67=999,0,IF($H67>0,EF$28*$M67*($H67-DA67)/$H67,EF$28*$M67/(DA67+1))) -> 4300.5 | EG67: =IF(DB67=999,0,IF($H67>0,EG$28*$M67*($H67-DB67)/$H67,EG$28*$M67/(DB67+1))) -> 4872.5 | EH67: =IF(DC67=999,0,IF($H67>0,EH$28*$M67*($H67-DC67)/$H67,EH$28*$M67/(DC67+1))) -> 5474.9 | EI67: =IF(DD67=999,0,IF($H67>0,EI$28*$M67*($H67-DD67)/$H67,EI$28*$M67/(DD67+1))) -> 6109.1 | EJ67: =IF(DE67=999,0,IF($H67>0,EJ$28*$M67*($H67-DE67)/$H67,EJ$28*$M67/(DE67+1))) -> 6776.4 | EK67: =IF(DF67=999,0,IF($H67>0,EK$28*$M67*($H67-DF67)/$H67,EK$28*$M67/(DF67+1))) -> 7478.2 | EL67: =IF(DG67=999,0,IF($H67>0,EL$28*$M67*($H67-DG67)/$H67,EL$28*$M67/(DG67+1))) -> 8216.1 | EM67: =IF(DH67=999,0,IF($H67>0,EM$28*$M67*($H67-DH67)/$H67,EM$28*$M67/(DH67+1))) -> 8991.5 | EN67: =IF(DI67=999,0,IF($H67>0,EN$28*$M67*($H67-DI67)/$H67,EN$28*$M67/(DI67+1))) -> 9806.0 | EO67: =IF(DJ67=999,0,IF($H67>0,EO$28*$M67*($H67-DJ67)/$H67,EO$28*$M67/(DJ67+1))) -> 10661.3 | EP67: =IF(DK67=999,0,IF($H67>0,EP$28*$M67*($H67-DK67)/$H67,EP$28*$M67/(DK67+1))) -> 11559.1 | EQ67: =IF(DL67=999,0,IF($H67>0,EQ$28*$M67*($H67-DL67)/$H67,EQ$28*$M67/(DL67+1))) -> 12501.2 | ER67: =IF(DM67=999,0,IF($H67>0,ER$28*$M67*($H67-DM67)/$H67,ER$28*$M67/(DM67+1))) -> 13489.4 | ES67: =IF(DN67=999,0,IF($H67>0,ES$28*$M67*($H67-DN67)/$H67,ES$28*$M67/(DN67+1))) -> 14525.6 | ET67: =IF(DO67=999,0,IF($H67>0,ET$28*$M67*($H67-DO67)/$H67,ET$28*$M67/(DO67+1))) -> 15611.9 | EU67: =IF(DP67=999,0,IF($H67>0,EU$28*$M67*($H67-DP67)/$H67,EU$28*$M67/(DP67+1))) -> 16750.2 | EV67: =IF(DQ67=999,0,IF($H67>0,EV$28*$M67*($H67-DQ67)/$H67,EV$28*$M67/(DQ67+1))) -> 690.1 | EW67: =IF(DR67=999,0,IF($H67>0,EW$28*$M67*($H67-DR67)/$H67,EW$28*$M67/(DR67+1))) -> 1421.6 | EX67: =IF(DS67=999,0,IF($H67>0,EX$28*$M67*($H67-DS67)/$H67,EX$28*$M67/(DS67+1))) -> 2196.4 | EY67: =IF(DT67=999,0,IF($H67>0,EY$28*$M67*($H67-DT67)/$H67,EY$28*$M67/(DT67+1))) -> 3016.4 | EZ67: =IF(DU67=999,0,IF($H67>0,EZ$28*$M67*($H67-DU67)/$H67,EZ$28*$M67/(DU67+1))) -> 3883.6 | FD67: =MAX(0,I67-Years) -> 25 | FE67: =K67*(1+Inflation/100)^Years -> $10,000
A68: FALSE | C68: 38 | E68: 530 | F68: Pool Bldg Elect./Lighting - Replc | G68: Fixtures, panels, etc. | H68: 25 | I68: 25 | J68: $5,000 | K68: $6,000 | M68: $5,500 | N68: 530 | O68: Pool Bldg Elect./Lighting - Replc | P68: 25 | Q68: 25 | R68: $5,500 | S68: 530 | T68: Pool Bldg Elect./Lighting - Replc | U68: Fixtures, panels, etc. | V68: 25 | W68: 25 | X68: $5,000 | Y68: $6,000 | Z68: 530 | AA68: Pool Bldg Elect./Lighting - Replc | AB68: $5,500 | AC68: X | AD68: 0 | AE68: / | AF68: 25 | AG68: = | AH68: =DV68+(1-Main!$D$61)*(DW68-DV68) -> $0 | AJ68: 530 | AK68: Pool Bldg Elect./Lighting - Replc | AL68: 25 | AM68: $5,500 | AN68: $220 | AO68: 0.6% | AP68: =SUM(AV$31:AV68) -> $436,567 | AQ68: 530 | AR68: Pool Bldg Elect./Lighting - Replc | AS68: 25 | AT68: 25 | AU68: $5,500 | AV68: =DV68+(1-Main!$D$61)*(DW68-DV68) -> $0 | AW68: =IF(Main!D$26>1,Main!D$26*AV68,IF((AP68-AV68)>=Main!D$20,0,IF(AP68<=Main!D$20,AV68,Main!D$20-AP68+AV68))) -> $0 | AX68: =AO68*Main!RecommendContrib -> $365.92 | AZ68: 530 | BA68: Pool Bldg Elect./Lighting - Replc | BB68: $0 | BC68: $0 | BD68: $0 | BE68: $0 | BF68: $0 | BG68: 530 | BH68: Pool Bldg Elect./Lighting - Replc | BI68: $0 | BJ68: $0 | BK68: $0 | BL68: $0 | BM68: $0 | BN68: 530 | BO68: Pool Bldg Elect./Lighting - Replc | BP68: $0 | BQ68: $0 | BR68: $0 | BS68: $0 | BT68: $0 | BU68: 530 | BV68: Pool Bldg Elect./Lighting - Replc | BW68: $0 | BX68: $0 | BY68: $0 | BZ68: $0 | CA68: $0 | CB68: 530 | CC68: Pool Bldg Elect./Lighting - Replc | CD68: $0 | CE68: $0 | CF68: $0 | CG68: $0 | CH68: $0 | CI68: 530 | CJ68: Pool Bldg Elect./Lighting - Replc | CK68: $11,516 | CL68: $0 | CM68: $0 | CN68: $0 | CO68: $0 | CP68: $0 | CQ68: 25 | CR68: 24 | CS68: 23 | CT68: 22 | CU68: 21 | CV68: 20 | CW68: 19 | CX68: 18 | CY68: 17 | CZ68: 16 | DA68: 15 | DB68: 14 | DC68: 13 | DD68: 12 | DE68: 11 | DF68: 10 | DG68: 9 | DH68: 8 | DI68: 7 | DJ68: 6 | DK68: 5 | DL68: 4 | DM68: 3 | DN68: 2 | DO68: 1 | DP68: 0 | DQ68: 24 | DR68: 23 | DS68: 22 | DT68: 21 | DU68: 20 | DV68: 0.0 | DW68: 226.6 | DX68: 466.8 | DY68: 721.2 | DZ68: 990.4 | EA68: 1275.2 | EB68: 1576.1 | EC68: 1894.0 | ED68: 2229.5 | EE68: 2583.5 | EF68: 2956.6 | EG68: 3349.8 | EH68: 3764.0 | EI68: 4200.0 | EJ68: 4658.8 | EK68: 5141.3 | EL68: 5648.6 | EM68: 6181.7 | EN68: 6741.6 | EO68: 7329.7 | EP68: 7946.9 | EQ68: 8594.6 | ER68: 9273.9 | ES68: 9986.3 | ET68: 10733.2 | EU68: 11515.8 | EV68: 474.5 | EW68: 977.4 | EX68: 1510.0 | EY68: 2073.8 | EZ68: 2670.0 | FD68: =MAX(0,I68-Years) -> 25 | FE68: =K68*(1+Inflation/100)^Years -> $6,000
A69: FALSE | C69: 39 | E69: 532 | F69: Pool Bldg Water Heater - Replace | G69: (1) Bradford White 75 Gal | H69: 10 | I69: 9 | J69: $4,000 | K69: $5,000 | M69: $4,500 | N69: 532 | O69: Pool Bldg Water Heater - Replace | P69: 10 | Q69: 9 | R69: $4,500 | S69: 532 | T69: Pool Bldg Water Heater - Replace | U69: (1) Bradford White 75 Gal | V69: 10 | W69: 9 | X69: $4,000 | Y69: $5,000 | Z69: 532 | AA69: Pool Bldg Water Heater - Replace | AB69: $4,500 | AC69: X | AD69: 1 | AE69: / | AF69: 10 | AG69: = | AH69: =DV69+(1-Main!$D$61)*(DW69-DV69) -> $450 | AJ69: 532 | AK69: Pool Bldg Water Heater - Replace | AL69: 10 | AM69: $4,500 | AN69: $450 | AO69: 1.2% | AP69: =SUM(AV$31:AV69) -> $437,017 | AQ69: 532 | AR69: Pool Bldg Water Heater - Replace | AS69: 10 | AT69: 9 | AU69: $4,500 | AV69: =DV69+(1-Main!$D$61)*(DW69-DV69) -> $450 | AW69: =IF(Main!D$26>1,Main!D$26*AV69,IF((AP69-AV69)>=Main!D$20,0,IF(AP69<=Main!D$20,AV69,Main!D$20-AP69+AV69))) -> $450 | AX69: =AO69*Main!RecommendContrib -> $748.47 | AZ69: 532 | BA69: Pool Bldg Water Heater - Replace | BB69: $0 | BC69: $0 | BD69: $0 | BE69: $0 | BF69: $0 | BG69: 532 | BH69: Pool Bldg Water Heater - Replace | BI69: $0 | BJ69: $0 | BK69: $0 | BL69: $0 | BM69: $5,871 | BN69: 532 | BO69: Pool Bldg Water Heater - Replace | BP69: $0 | BQ69: $0 | BR69: $0 | BS69: $0 | BT69: $0 | BU69: 532 | BV69: Pool Bldg Water Heater - Replace | BW69: $0 | BX69: $0 | BY69: $0 | BZ69: $0 | CA69: $7,891 | CB69: 532 | CC69: Pool Bldg Water Heater - Replace | CD69: $0 | CE69: $0 | CF69: $0 | CG69: $0 | CH69: $0 | CI69: 532 | CJ69: Pool Bldg Water Heater - Replace | CK69: $0 | CL69: $0 | CM69: $0 | CN69: $0 | CO69: $10,605 | CP69: $0 | CQ69: 9 | CR69: 8 | CS69: 7 | CT69: 6 | CU69: 5 | CV69: 4 | CW69: 3 | CX69: 2 | CY69: 1 | CZ69: 0 | DA69: 9 | DB69: 8 | DC69: 7 | DD69: 6 | DE69: 5 | DF69: 4 | DG69: 3 | DH69: 2 | DI69: 1 | DJ69: 0 | DK69: 9 | DL69: 8 | DM69: 7 | DN69: 6 | DO69: 5 | DP69: 4 | DQ69: 3 | DR69: 2 | DS69: 1 | DT69: 0 | DU69: 9 | DV69: 450.0 | DW69: 927.0 | DX69: 1432.2 | DY69: 1966.9 | DZ69: 2532.4 | EA69: 3130.0 | EB69: 3761.3 | EC69: 4427.5 | ED69: 5130.4 | EE69: 5871.5 | EF69: 604.8 | EG69: 1245.8 | EH69: 1924.8 | EI69: 2643.4 | EJ69: 3403.3 | EK69: 4206.5 | EL69: 5054.8 | EM69: 5950.3 | EN69: 6894.9 | EO69: 7890.8 | EP69: 812.8 | EQ69: 1674.3 | ER69: 2586.7 | ES69: 3552.5 | ET69: 4573.8 | EU69: 5653.2 | EV69: 6793.3 | EW69: 7996.6 | EX69: 9266.1 | EY69: 10604.5 | EZ69: 1092.3 | FD69: =MAX(0,I69-Years) -> 9 | FE69: =K69*(1+Inflation/100)^Years -> $5,000
A70: FALSE | C70: 40 | E70: 533 | F70: Shore Armoring | M70: $0 | O70: Shore Armoring | T70: Shore Armoring | AA70: Shore Armoring | AK70: Shore Armoring | AP70: =SUM(AV$31:AV70) -> $437,017 | AR70: Shore Armoring | BA70: Shore Armoring | BH70: Shore Armoring | BO70: Shore Armoring | BV70: Shore Armoring | CC70: Shore Armoring | CJ70: Shore Armoring | CQ70: 0 | CR70: 999 | CS70: 999 | CT70: 999 | CU70: 999 | CV70: 999 | CW70: 999 | CX70: 999 | CY70: 999 | CZ70: 999 | DA70: 999 | DB70: 999 | DC70: 999 | DD70: 999 | DE70: 999 | DF70: 999 | DG70: 999 | DH70: 999 | DI70: 999 | DJ70: 999 | DK70: 999 | DL70: 999 | DM70: 999 | DN70: 999 | DO70: 999 | DP70: 999 | DQ70: 999 | DR70: 999 | DS70: 999 | DT70: 999 | DU70: 999 | DV70: 0.0 | DW70: 0.0 | DX70: 0.0 | DY70: 0.0 | DZ70: 0.0 | EA70: 0.0 | EB70: =IF(CW70=999,0,IF($H70>0,EB$28*$M70*($H70-CW70)/$H70,EB$28*$M70/(CW70+1))) -> 0.0 | EC70: =IF(CX70=999,0,IF($H70>0,EC$28*$M70*($H70-CX70)/$H70,EC$28*$M70/(CX70+1))) -> 0.0 | ED70: =IF(CY70=999,0,IF($H70>0,ED$28*$M70*($H70-CY70)/$H70,ED$28*$M70/(CY70+1))) -> 0.0 | EE70: =IF(CZ70=999,0,IF($H70>0,EE$28*$M70*($H70-CZ70)/$H70,EE$28*$M70/(CZ70+1))) -> 0.0 | EF70: =IF(DA70=999,0,IF($H70>0,EF$28*$M70*($H70-DA70)/$H70,EF$28*$M70/(DA70+1))) -> 0.0 | EG70: =IF(DB70=999,0,IF($H70>0,EG$28*$M70*($H70-DB70)/$H70,EG$28*$M70/(DB70+1))) -> 0.0 | EH70: =IF(DC70=999,0,IF($H70>0,EH$28*$M70*($H70-DC70)/$H70,EH$28*$M70/(DC70+1))) -> 0.0 | EI70: =IF(DD70=999,0,IF($H70>0,EI$28*$M70*($H70-DD70)/$H70,EI$28*$M70/(DD70+1))) -> 0.0 | EJ70: =IF(DE70=999,0,IF($H70>0,EJ$28*$M70*($H70-DE70)/$H70,EJ$28*$M70/(DE70+1))) -> 0.0 | EK70: =IF(DF70=999,0,IF($H70>0,EK$28*$M70*($H70-DF70)/$H70,EK$28*$M70/(DF70+1))) -> 0.0 | EL70: =IF(DG70=999,0,IF($H70>0,EL$28*$M70*($H70-DG70)/$H70,EL$28*$M70/(DG70+1))) -> 0.0 | EM70: =IF(DH70=999,0,IF($H70>0,EM$28*$M70*($H70-DH70)/$H70,EM$28*$M70/(DH70+1))) -> 0.0 | EN70: =IF(DI70=999,0,IF($H70>0,EN$28*$M70*($H70-DI70)/$H70,EN$28*$M70/(DI70+1))) -> 0.0 | EO70: =IF(DJ70=999,0,IF($H70>0,EO$28*$M70*($H70-DJ70)/$H70,EO$28*$M70/(DJ70+1))) -> 0.0 | EP70: =IF(DK70=999,0,IF($H70>0,EP$28*$M70*($H70-DK70)/$H70,EP$28*$M70/(DK70+1))) -> 0.0 | EQ70: =IF(DL70=999,0,IF($H70>0,EQ$28*$M70*($H70-DL70)/$H70,EQ$28*$M70/(DL70+1))) -> 0.0 | ER70: =IF(DM70=999,0,IF($H70>0,ER$28*$M70*($H70-DM70)/$H70,ER$28*$M70/(DM70+1))) -> 0.0 | ES70: =IF(DN70=999,0,IF($H70>0,ES$28*$M70*($H70-DN70)/$H70,ES$28*$M70/(DN70+1))) -> 0.0 | ET70: =IF(DO70=999,0,IF($H70>0,ET$28*$M70*($H70-DO70)/$H70,ET$28*$M70/(DO70+1))) -> 0.0 | EU70: =IF(DP70=999,0,IF($H70>0,EU$28*$M70*($H70-DP70)/$H70,EU$28*$M70/(DP70+1))) -> 0.0 | EV70: =IF(DQ70=999,0,IF($H70>0,EV$28*$M70*($H70-DQ70)/$H70,EV$28*$M70/(DQ70+1))) -> 0.0 | EW70: =IF(DR70=999,0,IF($H70>0,EW$28*$M70*($H70-DR70)/$H70,EW$28*$M70/(DR70+1))) -> 0.0 | EX70: =IF(DS70=999,0,IF($H70>0,EX$28*$M70*($H70-DS70)/$H70,EX$28*$M70/(DS70+1))) -> 0.0 | EY70: =IF(DT70=999,0,IF($H70>0,EY$28*$M70*($H70-DT70)/$H70,EY$28*$M70/(DT70+1))) -> 0.0 | EZ70: =IF(DU70=999,0,IF($H70>0,EZ$28*$M70*($H70-DU70)/$H70,EZ$28*$M70/(DU70+1))) -> 0.0 | FD70: =MAX(0,I70-Years) -> 0 | FE70: =K70*(1+Inflation/100)^Years -> $0
A71: FALSE | C71: 41 | E71: 601 | F71: Clubhouse Siding/Trim - Repr/Replc | G71: ~1,800 SF | H71: 30 | I71: 4 | J71: $17,000 | K71: $23,000 | M71: =(J71+K71)/2 -> $20,000 | N71: =E71 -> 601 | O71: =F71 -> Clubhouse Siding/Trim - Repr/Replc | P71: =H71 -> 30 | Q71: =I71 -> 4 | R71: =M71 -> $20,000 | S71: =E71 -> 601 | T71: =F71 -> Clubhouse Siding/Trim - Repr/Replc | U71: =G71 -> ~1,800 SF | V71: =H71 -> 30 | W71: =I71 -> 4 | X71: =J71 -> $17,000 | Y71: =K71 -> $23,000 | Z71: =E71 -> 601 | AA71: =F71 -> Clubhouse Siding/Trim - Repr/Replc | AB71: =M71 -> $20,000 | AC71: X | AD71: =IF(H71-I71<0,0,H71-I71) -> 26 | AE71: / | AF71: =H71 -> 30 | AG71: = | AH71: =DV71+(1-Main!$D$61)*(DW71-DV71) -> $17,333 | AJ71: =E71 -> 601 | AK71: =F71 -> Clubhouse Siding/Trim - Repr/Replc | AL71: =H71 -> 30 | AM71: =M71 -> $20,000 | AN71: =IF(H71>0,M71/H71,0) -> $667 | AO71: =AN71/AN$77 -> 1.9% | AP71: =SUM(AV$31:AV71) -> $454,350 | AQ71: =E71 -> 601 | AR71: =F71 -> Clubhouse Siding/Trim - Repr/Replc | AS71: =H71 -> 30 | AT71: =I71 -> 4 | AU71: =M71 -> $20,000 | AV71: =DV71+(1-Main!$D$61)*(DW71-DV71) -> $17,333 | AW71: =IF(Main!D$26>1,Main!D$26*AV71,IF((AP71-AV71)>=Main!D$20,0,IF(AP71<=Main!D$20,AV71,Main!D$20-AP71+AV71))) -> $7,106 | AX71: =AO71*Main!RecommendContrib -> $1,108.84 | AZ71: 601 | BA71: Clubhouse Siding/Trim - Repr/Replc | BB71: =IF(CQ71=0,$M71*BB$3,0) -> $0 | BC71: =IF(CR71=0,$M71*BC$3,0) -> $0 | BD71: =IF(CS71=0,$M71*BD$3,0) -> $0 | BE71: =IF(CT71=0,$M71*BE$3,0) -> $0 | BF71: =IF(CU71=0,$M71*BF$3,0) -> $22,510 | BG71: 601 | BH71: Clubhouse Siding/Trim - Repr/Replc | BI71: =IF(CV71=0,$M71*BI$3,0) -> $0 | BJ71: =IF(CW71=0,$M71*BJ$3,0) -> $0 | BK71: =IF(CX71=0,$M71*BK$3,0) -> $0 | BL71: =IF(CY71=0,$M71*BL$3,0) -> $0 | BM71: =IF(CZ71=0,$M71*BM$3,0) -> $0 | BN71: 601 | BO71: Clubhouse Siding/Trim - Repr/Replc | BP71: =IF(DA71=0,$M71*BP$3,0) -> $0 | BQ71: =IF(DB71=0,$M71*BQ$3,0) -> $0 | BR71: =IF(DC71=0,$M71*BR$3,0) -> $0 | BS71: =IF(DD71=0,$M71*BS$3,0) -> $0 | BT71: =IF(DE71=0,$M71*BT$3,0) -> $0 | BU71: 601 | BV71: Clubhouse Siding/Trim - Repr/Replc | BW71: =IF(DF71=0,$M71*BW$3,0) -> $0 | BX71: =IF(DG71=0,$M71*BX$3,0) -> $0 | BY71: =IF(DH71=0,$M71*BY$3,0) -> $0 | BZ71: =IF(DI71=0,$M71*BZ$3,0) -> $0 | CA71: =IF(DJ71=0,$M71*CA$3,0) -> $0 | CB71: 601 | CC71: Clubhouse Siding/Trim - Repr/Replc | CD71: =IF(DK71=0,$M71*CD$3,0) -> $0 | CE71: =IF(DL71=0,$M71*CE$3,0) -> $0 | CF71: =IF(DM71=0,$M71*CF$3,0) -> $0 | CG71: =IF(DN71=0,$M71*CG$3,0) -> $0 | CH71: =IF(DO71=0,$M71*CH$3,0) -> $0 | CI71: 601 | CJ71: Clubhouse Siding/Trim - Repr/Replc | CK71: =IF(DP71=0,$M71*CK$3,0) -> $0 | CL71: =IF(DQ71=0,$M71*CL$3,0) -> $0 | CM71: =IF(DR71=0,$M71*CM$3,0) -> $0 | CN71: =IF(DS71=0,$M71*CN$3,0) -> $0 | CO71: =IF(DT71=0,$M71*CO$3,0) -> $0 | CP71: =IF(DU71=0,$M71*CP$3,0) -> $0 | CQ71: =IF(H71=0,I71,IF($I71>$H71,$H71,$I71)) -> 4 | CR71: =IF(AND($H71>0,$I71-CR$28>=$H71),$H71,IF(CQ71=999,999,IF(CQ71-1<0,IF($H71=0,999,$H71-1),CQ71-1))) -> 3 | CS71: =IF(AND($H71>0,$I71-CS$28>=$H71),$H71,IF(CR71=999,999,IF(CR71-1<0,IF($H71=0,999,$H71-1),CR71-1))) -> 2 | CT71: =IF(AND($H71>0,$I71-CT$28>=$H71),$H71,IF(CS71=999,999,IF(CS71-1<0,IF($H71=0,999,$H71-1),CS71-1))) -> 1 | CU71: =IF(AND($H71>0,$I71-CU$28>=$H71),$H71,IF(CT71=999,999,IF(CT71-1<0,IF($H71=0,999,$H71-1),CT71-1))) -> 0 | CV71: =IF(AND($H71>0,$I71-CV$28>=$H71),$H71,IF(CU71=999,999,IF(CU71-1<0,IF($H71=0,999,$H71-1),CU71-1))) -> 29 | CW71: =IF(AND($H71>0,$I71-CW$28>=$H71),$H71,IF(CV71=999,999,IF(CV71-1<0,IF($H71=0,999,$H71-1),CV71-1))) -> 28 | CX71: =IF(AND($H71>0,$I71-CX$28>=$H71),$H71,IF(CW71=999,999,IF(CW71-1<0,IF($H71=0,999,$H71-1),CW71-1))) -> 27 | CY71: =IF(AND($H71>0,$I71-CY$28>=$H71),$H71,IF(CX71=999,999,IF(CX71-1<0,IF($H71=0,999,$H71-1),CX71-1))) -> 26 | CZ71: =IF(AND($H71>0,$I71-CZ$28>=$H71),$H71,IF(CY71=999,999,IF(CY71-1<0,IF($H71=0,999,$H71-1),CY71-1))) -> 25 | DA71: =IF(AND($H71>0,$I71-DA$28>=$H71),$H71,IF(CZ71=999,999,IF(CZ71-1<0,IF($H71=0,999,$H71-1),CZ71-1))) -> 24 | DB71: =IF(AND($H71>0,$I71-DB$28>=$H71),$H71,IF(DA71=999,999,IF(DA71-1<0,IF($H71=0,999,$H71-1),DA71-1))) -> 23 | DC71: =IF(AND($H71>0,$I71-DC$28>=$H71),$H71,IF(DB71=999,999,IF(DB71-1<0,IF($H71=0,999,$H71-1),DB71-1))) -> 22 | DD71: =IF(AND($H71>0,$I71-DD$28>=$H71),$H71,IF(DC71=999,999,IF(DC71-1<0,IF($H71=0,999,$H71-1),DC71-1))) -> 21 | DE71: =IF(AND($H71>0,$I71-DE$28>=$H71),$H71,IF(DD71=999,999,IF(DD71-1<0,IF($H71=0,999,$H71-1),DD71-1))) -> 20 | DF71: =IF(AND($H71>0,$I71-DF$28>=$H71),$H71,IF(DE71=999,999,IF(DE71-1<0,IF($H71=0,999,$H71-1),DE71-1))) -> 19 | DG71: =IF(AND($H71>0,$I71-DG$28>=$H71),$H71,IF(DF71=999,999,IF(DF71-1<0,IF($H71=0,999,$H71-1),DF71-1))) -> 18 | DH71: =IF(AND($H71>0,$I71-DH$28>=$H71),$H71,IF(DG71=999,999,IF(DG71-1<0,IF($H71=0,999,$H71-1),DG71-1))) -> 17 | DI71: =IF(AND($H71>0,$I71-DI$28>=$H71),$H71,IF(DH71=999,999,IF(DH71-1<0,IF($H71=0,999,$H71-1),DH71-1))) -> 16 | DJ71: =IF(AND($H71>0,$I71-DJ$28>=$H71),$H71,IF(DI71=999,999,IF(DI71-1<0,IF($H71=0,999,$H71-1),DI71-1))) -> 15 | DK71: =IF(AND($H71>0,$I71-DK$28>=$H71),$H71,IF(DJ71=999,999,IF(DJ71-1<0,IF($H71=0,999,$H71-1),DJ71-1))) -> 14 | DL71: =IF(AND($H71>0,$I71-DL$28>=$H71),$H71,IF(DK71=999,999,IF(DK71-1<0,IF($H71=0,999,$H71-1),DK71-1))) -> 13 | DM71: =IF(AND($H71>0,$I71-DM$28>=$H71),$H71,IF(DL71=999,999,IF(DL71-1<0,IF($H71=0,999,$H71-1),DL71-1))) -> 12 | DN71: =IF(AND($H71>0,$I71-DN$28>=$H71),$H71,IF(DM71=999,999,IF(DM71-1<0,IF($H71=0,999,$H71-1),DM71-1))) -> 11 | DO71: =IF(AND($H71>0,$I71-DO$28>=$H71),$H71,IF(DN71=999,999,IF(DN71-1<0,IF($H71=0,999,$H71-1),DN71-1))) -> 10 | DP71: =IF(AND($H71>0,$I71-DP$28>=$H71),$H71,IF(DO71=999,999,IF(DO71-1<0,IF($H71=0,999,$H71-1),DO71-1))) -> 9 | DQ71: =IF(AND($H71>0,$I71-DQ$28>=$H71),$H71,IF(DP71=999,999,IF(DP71-1<0,IF($H71=0,999,$H71-1),DP71-1))) -> 8 | DR71: =IF(AND($H71>0,$I71-DR$28>=$H71),$H71,IF(DQ71=999,999,IF(DQ71-1<0,IF($H71=0,999,$H71-1),DQ71-1))) -> 7 | DS71: =IF(AND($H71>0,$I71-DS$28>=$H71),$H71,IF(DR71=999,999,IF(DR71-1<0,IF($H71=0,999,$H71-1),DR71-1))) -> 6 | DT71: =IF(AND($H71>0,$I71-DT$28>=$H71),$H71,IF(DS71=999,999,IF(DS71-1<0,IF($H71=0,999,$H71-1),DS71-1))) -> 5 | DU71: =IF(AND($H71>0,$I71-DU$28>=$H71),$H71,IF(DT71=999,999,IF(DT71-1<0,IF($H71=0,999,$H71-1),DT71-1))) -> 4 | DV71: =IF($H71>0,$M71*($H71-CQ71)/$H71,$M71/(CQ71+1)) -> 17333.3 | DW71: =IF(CR71=999,0,IF($H71>0,DW$28*$M71*($H71-CR71)/$H71,DW$28*$M71/(CR71+1))) -> 18540.0 | DX71: =IF(CS71=999,0,IF($H71>0,DX$28*$M71*($H71-CS71)/$H71,DX$28*$M71/(CS71+1))) -> 19803.5 | DY71: =IF(CT71=999,0,IF($H71>0,DY$28*$M71*($H71-CT71)/$H71,DY$28*$M71/(CT71+1))) -> 21126.1 | DZ71: =IF(CU71=999,0,IF($H71>0,DZ$28*$M71*($H71-CU71)/$H71,DZ$28*$M71/(CU71+1))) -> 22510.2 | EA71: =IF(CV71=999,0,IF($H71>0,EA$28*$M71*($H71-CV71)/$H71,EA$28*$M71/(CV71+1))) -> 772.8 | EB71: =IF(CW71=999,0,IF($H71>0,EB$28*$M71*($H71-CW71)/$H71,EB$28*$M71/(CW71+1))) -> 1592.1 | EC71: =IF(CX71=999,0,IF($H71>0,EC$28*$M71*($H71-CX71)/$H71,EC$28*$M71/(CX71+1))) -> 2459.7 | ED71: =IF(CY71=999,0,IF($H71>0,ED$28*$M71*($H71-CY71)/$H71,ED$28*$M71/(CY71+1))) -> 3378.1 | EE71: =IF(CZ71=999,0,IF($H71>0,EE$28*$M71*($H71-CZ71)/$H71,EE$28*$M71/(CZ71+1))) -> 4349.2 | EF71: =IF(DA71=999,0,IF($H71>0,EF$28*$M71*($H71-DA71)/$H71,EF$28*$M71/(DA71+1))) -> 5375.7 | EG71: =IF(DB71=999,0,IF($H71>0,EG$28*$M71*($H71-DB71)/$H71,EG$28*$M71/(DB71+1))) -> 6459.8 | EH71: =IF(DC71=999,0,IF($H71>0,EH$28*$M71*($H71-DC71)/$H71,EH$28*$M71/(DC71+1))) -> 7604.1 | EI71: =IF(DD71=999,0,IF($H71>0,EI$28*$M71*($H71-DD71)/$H71,EI$28*$M71/(DD71+1))) -> 8811.2 | EJ71: =IF(DE71=999,0,IF($H71>0,EJ$28*$M71*($H71-DE71)/$H71,EJ$28*$M71/(DE71+1))) -> 10083.9 | EK71: =IF(DF71=999,0,IF($H71>0,EK$28*$M71*($H71-DF71)/$H71,EK$28*$M71/(DF71+1))) -> 11425.1 | EL71: =IF(DG71=999,0,IF($H71>0,EL$28*$M71*($H71-DG71)/$H71,EL$28*$M71/(DG71+1))) -> 12837.7 | EM71: =IF(DH71=999,0,IF($H71>0,EM$28*$M71*($H71-DH71)/$H71,EM$28*$M71/(DH71+1))) -> 14324.7 | EN71: =IF(DI71=999,0,IF($H71>0,EN$28*$M71*($H71-DI71)/$H71,EN$28*$M71/(DI71+1))) -> 15889.4 | EO71: =IF(DJ71=999,0,IF($H71>0,EO$28*$M71*($H71-DJ71)/$H71,EO$28*$M71/(DJ71+1))) -> 17535.1 | EP71: =IF(DK71=999,0,IF($H71>0,EP$28*$M71*($H71-DK71)/$H71,EP$28*$M71/(DK71+1))) -> 19265.2 | EQ71: =IF(DL71=999,0,IF($H71>0,EQ$28*$M71*($H71-DL71)/$H71,EQ$28*$M71/(DL71+1))) -> 21083.3 | ER71: =IF(DM71=999,0,IF($H71>0,ER$28*$M71*($H71-DM71)/$H71,ER$28*$M71/(DM71+1))) -> 22993.2 | ES71: =IF(DN71=999,0,IF($H71>0,ES$28*$M71*($H71-DN71)/$H71,ES$28*$M71/(DN71+1))) -> 24998.8 | ET71: =IF(DO71=999,0,IF($H71>0,ET$28*$M71*($H71-DO71)/$H71,ET$28*$M71/(DO71+1))) -> 27103.9 | EU71: =IF(DP71=999,0,IF($H71>0,EU$28*$M71*($H71-DP71)/$H71,EU$28*$M71/(DP71+1))) -> 29312.9 | EV71: =IF(DQ71=999,0,IF($H71>0,EV$28*$M71*($H71-DQ71)/$H71,EV$28*$M71/(DQ71+1))) -> 31630.0 | EW71: =IF(DR71=999,0,IF($H71>0,EW$28*$M71*($H71-DR71)/$H71,EW$28*$M71/(DR71+1))) -> 34059.8 | EX71: =IF(DS71=999,0,IF($H71>0,EX$28*$M71*($H71-DS71)/$H71,EX$28*$M71/(DS71+1))) -> 36606.8 | EY71: =IF(DT71=999,0,IF($H71>0,EY$28*$M71*($H71-DT71)/$H71,EY$28*$M71/(DT71+1))) -> 39276.1 | EZ71: =IF(DU71=999,0,IF($H71>0,EZ$28*$M71*($H71-DU71)/$H71,EZ$28*$M71/(DU71+1))) -> 42072.5 | FD71: =MAX(0,I71-Years) -> 4 | FE71: =K71*(1+Inflation/100)^Years -> $23,000
A72: FALSE | C72: 42 | E72: 602 | F72: Clubhouse Exterior - Caulk/Paint | G72: Approx 1,800 GSF | H72: 8 | I72: 0 | J72: $1,800 | K72: $2,700 | M72: =(J72+K72)/2 -> $2,250 | N72: =E72 -> 602 | O72: =F72 -> Clubhouse Exterior - Caulk/Paint | P72: =H72 -> 8 | Q72: =I72 -> 0 | R72: =M72 -> $2,250 | S72: =E72 -> 602 | T72: =F72 -> Clubhouse Exterior - Caulk/Paint | U72: =G72 -> Approx 1,800 GSF | V72: =H72 -> 8 | W72: =I72 -> 0 | X72: =J72 -> $1,800 | Y72: =K72 -> $2,700 | Z72: =E72 -> 602 | AA72: =F72 -> Clubhouse Exterior - Caulk/Paint | AB72: =M72 -> $2,250 | AC72: X | AD72: =IF(H72-I72<0,0,H72-I72) -> 8 | AE72: / | AF72: =H72 -> 8 | AG72: = | AH72: =DV72+(1-Main!$D$61)*(DW72-DV72) -> $2,250 | AJ72: =E72 -> 602 | AK72: =F72 -> Clubhouse Exterior - Caulk/Paint | AL72: =H72 -> 8 | AM72: =M72 -> $2,250 | AN72: =IF(H72>0,M72/H72,0) -> $281 | AO72: =AN72/AN$77 -> 0.8% | AP72: =SUM(AV$31:AV72) -> $456,600 | AQ72: =E72 -> 602 | AR72: =F72 -> Clubhouse Exterior - Caulk/Paint | AS72: =H72 -> 8 | AT72: =I72 -> 0 | AU72: =M72 -> $2,250 | AV72: =DV72+(1-Main!$D$61)*(DW72-DV72) -> $2,250 | AW72: =IF(Main!D$26>1,Main!D$26*AV72,IF((AP72-AV72)>=Main!D$20,0,IF(AP72<=Main!D$20,AV72,Main!D$20-AP72+AV72))) -> $0 | AX72: =AO72*Main!RecommendContrib -> $467.79 | AZ72: 602 | BA72: Clubhouse Exterior - Caulk/Paint | BB72: =IF(CQ72=0,$M72*BB$3,0) -> $2,250 | BC72: =IF(CR72=0,$M72*BC$3,0) -> $0 | BD72: =IF(CS72=0,$M72*BD$3,0) -> $0 | BE72: =IF(CT72=0,$M72*BE$3,0) -> $0 | BF72: =IF(CU72=0,$M72*BF$3,0) -> $0 | BG72: 602 | BH72: Clubhouse Exterior - Caulk/Paint | BI72: =IF(CV72=0,$M72*BI$3,0) -> $0 | BJ72: =IF(CW72=0,$M72*BJ$3,0) -> $0 | BK72: =IF(CX72=0,$M72*BK$3,0) -> $0 | BL72: =IF(CY72=0,$M72*BL$3,0) -> $2,850 | BM72: =IF(CZ72=0,$M72*BM$3,0) -> $0 | BN72: 602 | BO72: Clubhouse Exterior - Caulk/Paint | BP72: =IF(DA72=0,$M72*BP$3,0) -> $0 | BQ72: =IF(DB72=0,$M72*BQ$3,0) -> $0 | BR72: =IF(DC72=0,$M72*BR$3,0) -> $0 | BS72: =IF(DD72=0,$M72*BS$3,0) -> $0 | BT72: =IF(DE72=0,$M72*BT$3,0) -> $0 | BU72: 602 | BV72: Clubhouse Exterior - Caulk/Paint | BW72: =IF(DF72=0,$M72*BW$3,0) -> $0 | BX72: =IF(DG72=0,$M72*BX$3,0) -> $3,611 | BY72: =IF(DH72=0,$M72*BY$3,0) -> $0 | BZ72: =IF(DI72=0,$M72*BZ$3,0) -> $0 | CA72: =IF(DJ72=0,$M72*CA$3,0) -> $0 | CB72: 602 | CC72: Clubhouse Exterior - Caulk/Paint | CD72: =IF(DK72=0,$M72*CD$3,0) -> $0 | CE72: =IF(DL72=0,$M72*CE$3,0) -> $0 | CF72: =IF(DM72=0,$M72*CF$3,0) -> $0 | CG72: =IF(DN72=0,$M72*CG$3,0) -> $0 | CH72: =IF(DO72=0,$M72*CH$3,0) -> $4,574 | CI72: 602 | CJ72: Clubhouse Exterior - Caulk/Paint | CK72: =IF(DP72=0,$M72*CK$3,0) -> $0 | CL72: =IF(DQ72=0,$M72*CL$3,0) -> $0 | CM72: =IF(DR72=0,$M72*CM$3,0) -> $0 | CN72: =IF(DS72=0,$M72*CN$3,0) -> $0 | CO72: =IF(DT72=0,$M72*CO$3,0) -> $0 | CP72: =IF(DU72=0,$M72*CP$3,0) -> $0 | CQ72: =IF(H72=0,I72,IF($I72>$H72,$H72,$I72)) -> 0 | CR72: =IF(AND($H72>0,$I72-CR$28>=$H72),$H72,IF(CQ72=999,999,IF(CQ72-1<0,IF($H72=0,999,$H72-1),CQ72-1))) -> 7 | CS72: =IF(AND($H72>0,$I72-CS$28>=$H72),$H72,IF(CR72=999,999,IF(CR72-1<0,IF($H72=0,999,$H72-1),CR72-1))) -> 6 | CT72: =IF(AND($H72>0,$I72-CT$28>=$H72),$H72,IF(CS72=999,999,IF(CS72-1<0,IF($H72=0,999,$H72-1),CS72-1))) -> 5 | CU72: =IF(AND($H72>0,$I72-CU$28>=$H72),$H72,IF(CT72=999,999,IF(CT72-1<0,IF($H72=0,999,$H72-1),CT72-1))) -> 4 | CV72: =IF(AND($H72>0,$I72-CV$28>=$H72),$H72,IF(CU72=999,999,IF(CU72-1<0,IF($H72=0,999,$H72-1),CU72-1))) -> 3 | CW72: =IF(AND($H72>0,$I72-CW$28>=$H72),$H72,IF(CV72=999,999,IF(CV72-1<0,IF($H72=0,999,$H72-1),CV72-1))) -> 2 | CX72: =IF(AND($H72>0,$I72-CX$28>=$H72),$H72,IF(CW72=999,999,IF(CW72-1<0,IF($H72=0,999,$H72-1),CW72-1))) -> 1 | CY72: =IF(AND($H72>0,$I72-CY$28>=$H72),$H72,IF(CX72=999,999,IF(CX72-1<0,IF($H72=0,999,$H72-1),CX72-1))) -> 0 | CZ72: =IF(AND($H72>0,$I72-CZ$28>=$H72),$H72,IF(CY72=999,999,IF(CY72-1<0,IF($H72=0,999,$H72-1),CY72-1))) -> 7 | DA72: =IF(AND($H72>0,$I72-DA$28>=$H72),$H72,IF(CZ72=999,999,IF(CZ72-1<0,IF($H72=0,999,$H72-1),CZ72-1))) -> 6 | DB72: =IF(AND($H72>0,$I72-DB$28>=$H72),$H72,IF(DA72=999,999,IF(DA72-1<0,IF($H72=0,999,$H72-1),DA72-1))) -> 5 | DC72: =IF(AND($H72>0,$I72-DC$28>=$H72),$H72,IF(DB72=999,999,IF(DB72-1<0,IF($H72=0,999,$H72-1),DB72-1))) -> 4 | DD72: =IF(AND($H72>0,$I72-DD$28>=$H72),$H72,IF(DC72=999,999,IF(DC72-1<0,IF($H72=0,999,$H72-1),DC72-1))) -> 3 | DE72: =IF(AND($H72>0,$I72-DE$28>=$H72),$H72,IF(DD72=999,999,IF(DD72-1<0,IF($H72=0,999,$H72-1),DD72-1))) -> 2 | DF72: =IF(AND($H72>0,$I72-DF$28>=$H72),$H72,IF(DE72=999,999,IF(DE72-1<0,IF($H72=0,999,$H72-1),DE72-1))) -> 1 | DG72: =IF(AND($H72>0,$I72-DG$28>=$H72),$H72,IF(DF72=999,999,IF(DF72-1<0,IF($H72=0,999,$H72-1),DF72-1))) -> 0 | DH72: =IF(AND($H72>0,$I72-DH$28>=$H72),$H72,IF(DG72=999,999,IF(DG72-1<0,IF($H72=0,999,$H72-1),DG72-1))) -> 7 | DI72: =IF(AND($H72>0,$I72-DI$28>=$H72),$H72,IF(DH72=999,999,IF(DH72-1<0,IF($H72=0,999,$H72-1),DH72-1))) -> 6 | DJ72: =IF(AND($H72>0,$I72-DJ$28>=$H72),$H72,IF(DI72=999,999,IF(DI72-1<0,IF($H72=0,999,$H72-1),DI72-1))) -> 5 | DK72: =IF(AND($H72>0,$I72-DK$28>=$H72),$H72,IF(DJ72=999,999,IF(DJ72-1<0,IF($H72=0,999,$H72-1),DJ72-1))) -> 4 | DL72: =IF(AND($H72>0,$I72-DL$28>=$H72),$H72,IF(DK72=999,999,IF(DK72-1<0,IF($H72=0,999,$H72-1),DK72-1))) -> 3 | DM72: =IF(AND($H72>0,$I72-DM$28>=$H72),$H72,IF(DL72=999,999,IF(DL72-1<0,IF($H72=0,999,$H72-1),DL72-1))) -> 2 | DN72: =IF(AND($H72>0,$I72-DN$28>=$H72),$H72,IF(DM72=999,999,IF(DM72-1<0,IF($H72=0,999,$H72-1),DM72-1))) -> 1 | DO72: =IF(AND($H72>0,$I72-DO$28>=$H72),$H72,IF(DN72=999,999,IF(DN72-1<0,IF($H72=0,999,$H72-1),DN72-1))) -> 0 | DP72: =IF(AND($H72>0,$I72-DP$28>=$H72),$H72,IF(DO72=999,999,IF(DO72-1<0,IF($H72=0,999,$H72-1),DO72-1))) -> 7 | DQ72: =IF(AND($H72>0,$I72-DQ$28>=$H72),$H72,IF(DP72=999,999,IF(DP72-1<0,IF($H72=0,999,$H72-1),DP72-1))) -> 6 | DR72: =IF(AND($H72>0,$I72-DR$28>=$H72),$H72,IF(DQ72=999,999,IF(DQ72-1<0,IF($H72=0,999,$H72-1),DQ72-1))) -> 5 | DS72: =IF(AND($H72>0,$I72-DS$28>=$H72),$H72,IF(DR72=999,999,IF(DR72-1<0,IF($H72=0,999,$H72-1),DR72-1))) -> 4 | DT72: =IF(AND($H72>0,$I72-DT$28>=$H72),$H72,IF(DS72=999,999,IF(DS72-1<0,IF($H72=0,999,$H72-1),DS72-1))) -> 3 | DU72: =IF(AND($H72>0,$I72-DU$28>=$H72),$H72,IF(DT72=999,999,IF(DT72-1<0,IF($H72=0,999,$H72-1),DT72-1))) -> 2 | DV72: =IF($H72>0,$M72*($H72-CQ72)/$H72,$M72/(CQ72+1)) -> 2250.0 | DW72: =IF(CR72=999,0,IF($H72>0,DW$28*$M72*($H72-CR72)/$H72,DW$28*$M72/(CR72+1))) -> 289.7 | DX72: =IF(CS72=999,0,IF($H72>0,DX$28*$M72*($H72-CS72)/$H72,DX$28*$M72/(CS72+1))) -> 596.8 | DY72: =IF(CT72=999,0,IF($H72>0,DY$28*$M72*($H72-CT72)/$H72,DY$28*$M72/(CT72+1))) -> 922.0 | DZ72: =IF(CU72=999,0,IF($H72>0,DZ$28*$M72*($H72-CU72)/$H72,DZ$28*$M72/(CU72+1))) -> 1266.2 | EA72: =IF(CV72=999,0,IF($H72>0,EA$28*$M72*($H72-CV72)/$H72,EA$28*$M72/(CV72+1))) -> 1630.2 | EB72: =IF(CW72=999,0,IF($H72>0,EB$28*$M72*($H72-CW72)/$H72,EB$28*$M72/(CW72+1))) -> 2015.0 | EC72: =IF(CX72=999,0,IF($H72>0,EC$28*$M72*($H72-CX72)/$H72,EC$28*$M72/(CX72+1))) -> 2421.3 | ED72: =IF(CY72=999,0,IF($H72>0,ED$28*$M72*($H72-CY72)/$H72,ED$28*$M72/(CY72+1))) -> 2850.2 | EE72: =IF(CZ72=999,0,IF($H72>0,EE$28*$M72*($H72-CZ72)/$H72,EE$28*$M72/(CZ72+1))) -> 367.0 | EF72: =IF(DA72=999,0,IF($H72>0,EF$28*$M72*($H72-DA72)/$H72,EF$28*$M72/(DA72+1))) -> 756.0 | EG72: =IF(DB72=999,0,IF($H72>0,EG$28*$M72*($H72-DB72)/$H72,EG$28*$M72/(DB72+1))) -> 1167.9 | EH72: =IF(DC72=999,0,IF($H72>0,EH$28*$M72*($H72-DC72)/$H72,EH$28*$M72/(DC72+1))) -> 1604.0 | EI72: =IF(DD72=999,0,IF($H72>0,EI$28*$M72*($H72-DD72)/$H72,EI$28*$M72/(DD72+1))) -> 2065.1 | EJ72: =IF(DE72=999,0,IF($H72>0,EJ$28*$M72*($H72-DE72)/$H72,EJ$28*$M72/(DE72+1))) -> 2552.5 | EK72: =IF(DF72=999,0,IF($H72>0,EK$28*$M72*($H72-DF72)/$H72,EK$28*$M72/(DF72+1))) -> 3067.2 | EL72: =IF(DG72=999,0,IF($H72>0,EL$28*$M72*($H72-DG72)/$H72,EL$28*$M72/(DG72+1))) -> 3610.6 | EM72: =IF(DH72=999,0,IF($H72>0,EM$28*$M72*($H72-DH72)/$H72,EM$28*$M72/(DH72+1))) -> 464.9 | EN72: =IF(DI72=999,0,IF($H72>0,EN$28*$M72*($H72-DI72)/$H72,EN$28*$M72/(DI72+1))) -> 957.6 | EO72: =IF(DJ72=999,0,IF($H72>0,EO$28*$M72*($H72-DJ72)/$H72,EO$28*$M72/(DJ72+1))) -> 1479.5 | EP72: =IF(DK72=999,0,IF($H72>0,EP$28*$M72*($H72-DK72)/$H72,EP$28*$M72/(DK72+1))) -> 2031.9 | EQ72: =IF(DL72=999,0,IF($H72>0,EQ$28*$M72*($H72-DL72)/$H72,EQ$28*$M72/(DL72+1))) -> 2616.0 | ER72: =IF(DM72=999,0,IF($H72>0,ER$28*$M72*($H72-DM72)/$H72,ER$28*$M72/(DM72+1))) -> 3233.4 | ES72: =IF(DN72=999,0,IF($H72>0,ES$28*$M72*($H72-DN72)/$H72,ES$28*$M72/(DN72+1))) -> 3885.5 | ET72: =IF(DO72=999,0,IF($H72>0,ET$28*$M72*($H72-DO72)/$H72,ET$28*$M72/(DO72+1))) -> 4573.8 | EU72: =IF(DP72=999,0,IF($H72>0,EU$28*$M72*($H72-DP72)/$H72,EU$28*$M72/(DP72+1))) -> 588.9 | EV72: =IF(DQ72=999,0,IF($H72>0,EV$28*$M72*($H72-DQ72)/$H72,EV$28*$M72/(DQ72+1))) -> 1213.1 | EW72: =IF(DR72=999,0,IF($H72>0,EW$28*$M72*($H72-DR72)/$H72,EW$28*$M72/(DR72+1))) -> 1874.2 | EX72: =IF(DS72=999,0,IF($H72>0,EX$28*$M72*($H72-DS72)/$H72,EX$28*$M72/(DS72+1))) -> 2573.9 | EY72: =IF(DT72=999,0,IF($H72>0,EY$28*$M72*($H72-DT72)/$H72,EY$28*$M72/(DT72+1))) -> 3313.9 | EZ72: =IF(DU72=999,0,IF($H72>0,EZ$28*$M72*($H72-DU72)/$H72,EZ$28*$M72/(DU72+1))) -> 4096.0 | FD72: =MAX(0,I72-Years) -> 0 | FE72: =K72*(1+Inflation/100)^Years -> $2,700
A73: FALSE | C73: 43 | E73: 605 | F73: Clubhouse Windows - Replace | G73: (13) plexiglass/glass | H73: 30 | I73: 0 | J73: $5,200 | K73: $7,800 | M73: =(J73+K73)/2 -> $6,500 | N73: =E73 -> 605 | O73: =F73 -> Clubhouse Windows - Replace | P73: =H73 -> 30 | Q73: =I73 -> 0 | R73: =M73 -> $6,500 | S73: =E73 -> 605 | T73: =F73 -> Clubhouse Windows - Replace | U73: =G73 -> (13) plexiglass/glass | V73: =H73 -> 30 | W73: =I73 -> 0 | X73: =J73 -> $5,200 | Y73: =K73 -> $7,800 | Z73: =E73 -> 605 | AA73: =F73 -> Clubhouse Windows - Replace | AB73: =M73 -> $6,500 | AC73: X | AD73: =IF(H73-I73<0,0,H73-I73) -> 30 | AE73: / | AF73: =H73 -> 30 | AG73: = | AH73: =DV73+(1-Main!$D$61)*(DW73-DV73) -> $6,500 | AJ73: =E73 -> 605 | AK73: =F73 -> Clubhouse Windows - Replace | AL73: =H73 -> 30 | AM73: =M73 -> $6,500 | AN73: =IF(H73>0,M73/H73,0) -> $217 | AO73: =AN73/AN$77 -> 0.6% | AP73: =SUM(AV$31:AV73) -> $463,100 | AQ73: =E73 -> 605 | AR73: =F73 -> Clubhouse Windows - Replace | AS73: =H73 -> 30 | AT73: =I73 -> 0 | AU73: =M73 -> $6,500 | AV73: =DV73+(1-Main!$D$61)*(DW73-DV73) -> $6,500 | AW73: =IF(Main!D$26>1,Main!D$26*AV73,IF((AP73-AV73)>=Main!D$20,0,IF(AP73<=Main!D$20,AV73,Main!D$20-AP73+AV73))) -> $0 | AX73: =AO73*Main!RecommendContrib -> $360.37 | AZ73: 605 | BA73: Clubhouse Windows - Replace | BB73: =IF(CQ73=0,$M73*BB$3,0) -> $6,500 | BC73: =IF(CR73=0,$M73*BC$3,0) -> $0 | BD73: =IF(CS73=0,$M73*BD$3,0) -> $0 | BE73: =IF(CT73=0,$M73*BE$3,0) -> $0 | BF73: =IF(CU73=0,$M73*BF$3,0) -> $0 | BG73: 605 | BH73: Clubhouse Windows - Replace | BI73: =IF(CV73=0,$M73*BI$3,0) -> $0 | BJ73: =IF(CW73=0,$M73*BJ$3,0) -> $0 | BK73: =IF(CX73=0,$M73*BK$3,0) -> $0 | BL73: =IF(CY73=0,$M73*BL$3,0) -> $0 | BM73: =IF(CZ73=0,$M73*BM$3,0) -> $0 | BN73: 605 | BO73: Clubhouse Windows - Replace | BP73: =IF(DA73=0,$M73*BP$3,0) -> $0 | BQ73: =IF(DB73=0,$M73*BQ$3,0) -> $0 | BR73: =IF(DC73=0,$M73*BR$3,0) -> $0 | BS73: =IF(DD73=0,$M73*BS$3,0) -> $0 | BT73: =IF(DE73=0,$M73*BT$3,0) -> $0 | BU73: 605 | BV73: Clubhouse Windows - Replace | BW73: =IF(DF73=0,$M73*BW$3,0) -> $0 | BX73: =IF(DG73=0,$M73*BX$3,0) -> $0 | BY73: =IF(DH73=0,$M73*BY$3,0) -> $0 | BZ73: =IF(DI73=0,$M73*BZ$3,0) -> $0 | CA73: =IF(DJ73=0,$M73*CA$3,0) -> $0 | CB73: 605 | CC73: Clubhouse Windows - Replace | CD73: =IF(DK73=0,$M73*CD$3,0) -> $0 | CE73: =IF(DL73=0,$M73*CE$3,0) -> $0 | CF73: =IF(DM73=0,$M73*CF$3,0) -> $0 | CG73: =IF(DN73=0,$M73*CG$3,0) -> $0 | CH73: =IF(DO73=0,$M73*CH$3,0) -> $0 | CI73: 605 | CJ73: Clubhouse Windows - Replace | CK73: =IF(DP73=0,$M73*CK$3,0) -> $0 | CL73: =IF(DQ73=0,$M73*CL$3,0) -> $0 | CM73: =IF(DR73=0,$M73*CM$3,0) -> $0 | CN73: =IF(DS73=0,$M73*CN$3,0) -> $0 | CO73: =IF(DT73=0,$M73*CO$3,0) -> $0 | CP73: =IF(DU73=0,$M73*CP$3,0) -> $15,777 | CQ73: =IF(H73=0,I73,IF($I73>$H73,$H73,$I73)) -> 0 | CR73: =IF(AND($H73>0,$I73-CR$28>=$H73),$H73,IF(CQ73=999,999,IF(CQ73-1<0,IF($H73=0,999,$H73-1),CQ73-1))) -> 29 | CS73: =IF(AND($H73>0,$I73-CS$28>=$H73),$H73,IF(CR73=999,999,IF(CR73-1<0,IF($H73=0,999,$H73-1),CR73-1))) -> 28 | CT73: =IF(AND($H73>0,$I73-CT$28>=$H73),$H73,IF(CS73=999,999,IF(CS73-1<0,IF($H73=0,999,$H73-1),CS73-1))) -> 27 | CU73: =IF(AND($H73>0,$I73-CU$28>=$H73),$H73,IF(CT73=999,999,IF(CT73-1<0,IF($H73=0,999,$H73-1),CT73-1))) -> 26 | CV73: =IF(AND($H73>0,$I73-CV$28>=$H73),$H73,IF(CU73=999,999,IF(CU73-1<0,IF($H73=0,999,$H73-1),CU73-1))) -> 25 | CW73: =IF(AND($H73>0,$I73-CW$28>=$H73),$H73,IF(CV73=999,999,IF(CV73-1<0,IF($H73=0,999,$H73-1),CV73-1))) -> 24 | CX73: =IF(AND($H73>0,$I73-CX$28>=$H73),$H73,IF(CW73=999,999,IF(CW73-1<0,IF($H73=0,999,$H73-1),CW73-1))) -> 23 | CY73: =IF(AND($H73>0,$I73-CY$28>=$H73),$H73,IF(CX73=999,999,IF(CX73-1<0,IF($H73=0,999,$H73-1),CX73-1))) -> 22 | CZ73: =IF(AND($H73>0,$I73-CZ$28>=$H73),$H73,IF(CY73=999,999,IF(CY73-1<0,IF($H73=0,999,$H73-1),CY73-1))) -> 21 | DA73: =IF(AND($H73>0,$I73-DA$28>=$H73),$H73,IF(CZ73=999,999,IF(CZ73-1<0,IF($H73=0,999,$H73-1),CZ73-1))) -> 20 | DB73: =IF(AND($H73>0,$I73-DB$28>=$H73),$H73,IF(DA73=999,999,IF(DA73-1<0,IF($H73=0,999,$H73-1),DA73-1))) -> 19 | DC73: =IF(AND($H73>0,$I73-DC$28>=$H73),$H73,IF(DB73=999,999,IF(DB73-1<0,IF($H73=0,999,$H73-1),DB73-1))) -> 18 | DD73: =IF(AND($H73>0,$I73-DD$28>=$H73),$H73,IF(DC73=999,999,IF(DC73-1<0,IF($H73=0,999,$H73-1),DC73-1))) -> 17 | DE73: =IF(AND($H73>0,$I73-DE$28>=$H73),$H73,IF(DD73=999,999,IF(DD73-1<0,IF($H73=0,999,$H73-1),DD73-1))) -> 16 | DF73: =IF(AND($H73>0,$I73-DF$28>=$H73),$H73,IF(DE73=999,999,IF(DE73-1<0,IF($H73=0,999,$H73-1),DE73-1))) -> 15 | DG73: =IF(AND($H73>0,$I73-DG$28>=$H73),$H73,IF(DF73=999,999,IF(DF73-1<0,IF($H73=0,999,$H73-1),DF73-1))) -> 14 | DH73: =IF(AND($H73>0,$I73-DH$28>=$H73),$H73,IF(DG73=999,999,IF(DG73-1<0,IF($H73=0,999,$H73-1),DG73-1))) -> 13 | DI73: =IF(AND($H73>0,$I73-DI$28>=$H73),$H73,IF(DH73=999,999,IF(DH73-1<0,IF($H73=0,999,$H73-1),DH73-1))) -> 12 | DJ73: =IF(AND($H73>0,$I73-DJ$28>=$H73),$H73,IF(DI73=999,999,IF(DI73-1<0,IF($H73=0,999,$H73-1),DI73-1))) -> 11 | DK73: =IF(AND($H73>0,$I73-DK$28>=$H73),$H73,IF(DJ73=999,999,IF(DJ73-1<0,IF($H73=0,999,$H73-1),DJ73-1))) -> 10 | DL73: =IF(AND($H73>0,$I73-DL$28>=$H73),$H73,IF(DK73=999,999,IF(DK73-1<0,IF($H73=0,999,$H73-1),DK73-1))) -> 9 | DM73: =IF(AND($H73>0,$I73-DM$28>=$H73),$H73,IF(DL73=999,999,IF(DL73-1<0,IF($H73=0,999,$H73-1),DL73-1))) -> 8 | DN73: =IF(AND($H73>0,$I73-DN$28>=$H73),$H73,IF(DM73=999,999,IF(DM73-1<0,IF($H73=0,999,$H73-1),DM73-1))) -> 7 | DO73: =IF(AND($H73>0,$I73-DO$28>=$H73),$H73,IF(DN73=999,999,IF(DN73-1<0,IF($H73=0,999,$H73-1),DN73-1))) -> 6 | DP73: =IF(AND($H73>0,$I73-DP$28>=$H73),$H73,IF(DO73=999,999,IF(DO73-1<0,IF($H73=0,999,$H73-1),DO73-1))) -> 5 | DQ73: =IF(AND($H73>0,$I73-DQ$28>=$H73),$H73,IF(DP73=999,999,IF(DP73-1<0,IF($H73=0,999,$H73-1),DP73-1))) -> 4 | DR73: =IF(AND($H73>0,$I73-DR$28>=$H73),$H73,IF(DQ73=999,999,IF(DQ73-1<0,IF($H73=0,999,$H73-1),DQ73-1))) -> 3 | DS73: =IF(AND($H73>0,$I73-DS$28>=$H73),$H73,IF(DR73=999,999,IF(DR73-1<0,IF($H73=0,999,$H73-1),DR73-1))) -> 2 | DT73: =IF(AND($H73>0,$I73-DT$28>=$H73),$H73,IF(DS73=999,999,IF(DS73-1<0,IF($H73=0,999,$H73-1),DS73-1))) -> 1 | DU73: =IF(AND($H73>0,$I73-DU$28>=$H73),$H73,IF(DT73=999,999,IF(DT73-1<0,IF($H73=0,999,$H73-1),DT73-1))) -> 0 | DV73: =IF($H73>0,$M73*($H73-CQ73)/$H73,$M73/(CQ73+1)) -> 6500.0 | DW73: =IF(CR73=999,0,IF($H73>0,DW$28*$M73*($H73-CR73)/$H73,DW$28*$M73/(CR73+1))) -> 223.2 | DX73: =IF(CS73=999,0,IF($H73>0,DX$28*$M73*($H73-CS73)/$H73,DX$28*$M73/(CS73+1))) -> 459.7 | DY73: =IF(CT73=999,0,IF($H73>0,DY$28*$M73*($H73-CT73)/$H73,DY$28*$M73/(CT73+1))) -> 710.3 | DZ73: =IF(CU73=999,0,IF($H73>0,DZ$28*$M73*($H73-CU73)/$H73,DZ$28*$M73/(CU73+1))) -> 975.4 | EA73: =IF(CV73=999,0,IF($H73>0,EA$28*$M73*($H73-CV73)/$H73,EA$28*$M73/(CV73+1))) -> 1255.9 | EB73: =IF(CW73=999,0,IF($H73>0,EB$28*$M73*($H73-CW73)/$H73,EB$28*$M73/(CW73+1))) -> 1552.3 | EC73: =IF(CX73=999,0,IF($H73>0,EC$28*$M73*($H73-CX73)/$H73,EC$28*$M73/(CX73+1))) -> 1865.3 | ED73: =IF(CY73=999,0,IF($H73>0,ED$28*$M73*($H73-CY73)/$H73,ED$28*$M73/(CY73+1))) -> 2195.7 | EE73: =IF(CZ73=999,0,IF($H73>0,EE$28*$M73*($H73-CZ73)/$H73,EE$28*$M73/(CZ73+1))) -> 2544.3 | EF73: =IF(DA73=999,0,IF($H73>0,EF$28*$M73*($H73-DA73)/$H73,EF$28*$M73/(DA73+1))) -> 2911.8 | EG73: =IF(DB73=999,0,IF($H73>0,EG$28*$M73*($H73-DB73)/$H73,EG$28*$M73/(DB73+1))) -> 3299.1 | EH73: =IF(DC73=999,0,IF($H73>0,EH$28*$M73*($H73-DC73)/$H73,EH$28*$M73/(DC73+1))) -> 3707.0 | EI73: =IF(DD73=999,0,IF($H73>0,EI$28*$M73*($H73-DD73)/$H73,EI$28*$M73/(DD73+1))) -> 4136.4 | EJ73: =IF(DE73=999,0,IF($H73>0,EJ$28*$M73*($H73-DE73)/$H73,EJ$28*$M73/(DE73+1))) -> 4588.2 | EK73: =IF(DF73=999,0,IF($H73>0,EK$28*$M73*($H73-DF73)/$H73,EK$28*$M73/(DF73+1))) -> 5063.4 | EL73: =IF(DG73=999,0,IF($H73>0,EL$28*$M73*($H73-DG73)/$H73,EL$28*$M73/(DG73+1))) -> 5563.0 | EM73: =IF(DH73=999,0,IF($H73>0,EM$28*$M73*($H73-DH73)/$H73,EM$28*$M73/(DH73+1))) -> 6088.0 | EN73: =IF(DI73=999,0,IF($H73>0,EN$28*$M73*($H73-DI73)/$H73,EN$28*$M73/(DI73+1))) -> 6639.5 | EO73: =IF(DJ73=999,0,IF($H73>0,EO$28*$M73*($H73-DJ73)/$H73,EO$28*$M73/(DJ73+1))) -> 7218.6 | EP73: =IF(DK73=999,0,IF($H73>0,EP$28*$M73*($H73-DK73)/$H73,EP$28*$M73/(DK73+1))) -> 7826.5 | EQ73: =IF(DL73=999,0,IF($H73>0,EQ$28*$M73*($H73-DL73)/$H73,EQ$28*$M73/(DL73+1))) -> 8464.3 | ER73: =IF(DM73=999,0,IF($H73>0,ER$28*$M73*($H73-DM73)/$H73,ER$28*$M73/(DM73+1))) -> 9133.4 | ES73: =IF(DN73=999,0,IF($H73>0,ES$28*$M73*($H73-DN73)/$H73,ES$28*$M73/(DN73+1))) -> 9835.0 | ET73: =IF(DO73=999,0,IF($H73>0,ET$28*$M73*($H73-DO73)/$H73,ET$28*$M73/(DO73+1))) -> 10570.5 | EU73: =IF(DP73=999,0,IF($H73>0,EU$28*$M73*($H73-DP73)/$H73,EU$28*$M73/(DP73+1))) -> 11341.3 | EV73: =IF(DQ73=999,0,IF($H73>0,EV$28*$M73*($H73-DQ73)/$H73,EV$28*$M73/(DQ73+1))) -> 12148.8 | EW73: =IF(DR73=999,0,IF($H73>0,EW$28*$M73*($H73-DR73)/$H73,EW$28*$M73/(DR73+1))) -> 12994.5 | EX73: =IF(DS73=999,0,IF($H73>0,EX$28*$M73*($H73-DS73)/$H73,EX$28*$M73/(DS73+1))) -> 13880.1 | EY73: =IF(DT73=999,0,IF($H73>0,EY$28*$M73*($H73-DT73)/$H73,EY$28*$M73/(DT73+1))) -> 14807.1 | EZ73: =IF(DU73=999,0,IF($H73>0,EZ$28*$M73*($H73-DU73)/$H73,EZ$28*$M73/(DU73+1))) -> 15777.2 | FD73: =MAX(0,I73-Years) -> 0 | FE73: =K73*(1+Inflation/100)^Years -> $7,800
A74: FALSE | C74: 44 | E74: 606 | F74: Clubhouse Roof - Replace | G74: Approx 1,800 SF | H74: 20 | I74: 4 | J74: $7,200 | K74: $10,800 | M74: $9,000 | N74: 606 | O74: Clubhouse Roof - Replace | P74: 20 | Q74: 4 | R74: $9,000 | S74: 606 | T74: Clubhouse Roof - Replace | U74: Approx 1,800 SF | V74: 20 | W74: 4 | X74: $7,200 | Y74: $10,800 | Z74: 606 | AA74: Clubhouse Roof - Replace | AB74: $9,000 | AC74: X | AD74: 16 | AE74: / | AF74: 20 | AG74: = | AH74: =DV74+(1-Main!$D$61)*(DW74-DV74) -> $7,200 | AJ74: 606 | AK74: Clubhouse Roof - Replace | AL74: 20 | AM74: $9,000 | AN74: $450 | AO74: =AN74/AN$77 -> 1.2% | AP74: =SUM(AV$31:AV74) -> $470,300 | AQ74: 606 | AR74: Clubhouse Roof - Replace | AS74: 20 | AT74: 4 | AU74: $9,000 | AV74: =DV74+(1-Main!$D$61)*(DW74-DV74) -> $7,200 | AW74: =IF(Main!D$26>1,Main!D$26*AV74,IF((AP74-AV74)>=Main!D$20,0,IF(AP74<=Main!D$20,AV74,Main!D$20-AP74+AV74))) -> $0 | AX74: =AO74*Main!RecommendContrib -> $748.47 | AZ74: 606 | BA74: Clubhouse Roof - Replace | BB74: $0 | BC74: $0 | BD74: $0 | BE74: $0 | BF74: $10,130 | BG74: 606 | BH74: Clubhouse Roof - Replace | BI74: $0 | BJ74: $0 | BK74: $0 | BL74: $0 | BM74: $0 | BN74: 606 | BO74: Clubhouse Roof - Replace | BP74: $0 | BQ74: $0 | BR74: $0 | BS74: $0 | BT74: $0 | BU74: 606 | BV74: Clubhouse Roof - Replace | BW74: $0 | BX74: $0 | BY74: $0 | BZ74: $0 | CA74: $0 | CB74: 606 | CC74: Clubhouse Roof - Replace | CD74: $0 | CE74: $0 | CF74: $0 | CG74: $0 | CH74: $18,295 | CI74: 606 | CJ74: Clubhouse Roof - Replace | CK74: $0 | CL74: $0 | CM74: $0 | CN74: $0 | CO74: $0 | CP74: $0 | CQ74: 4 | CR74: 3 | CS74: 2 | CT74: 1 | CU74: 0 | CV74: 19 | CW74: 18 | CX74: 17 | CY74: 16 | CZ74: 15 | DA74: 14 | DB74: 13 | DC74: 12 | DD74: 11 | DE74: 10 | DF74: 9 | DG74: 8 | DH74: 7 | DI74: 6 | DJ74: 5 | DK74: 4 | DL74: 3 | DM74: 2 | DN74: 1 | DO74: 0 | DP74: 19 | DQ74: 18 | DR74: 17 | DS74: 16 | DT74: 15 | DU74: 14 | DV74: 7200.0 | DW74: 7879.5 | DX74: 8593.3 | DY74: 9342.8 | DZ74: 10129.6 | EA74: 521.7 | EB74: 1074.6 | EC74: 1660.3 | ED74: 2280.2 | EE74: 2935.7 | EF74: 3628.6 | EG74: 4360.3 | EH74: 5132.7 | EI74: 5947.6 | EJ74: 6806.7 | EK74: 7711.9 | EL74: 8665.4 | EM74: 9669.2 | EN74: 10725.3 | EO74: 11836.2 | EP74: 13004.0 | EQ74: 14231.3 | ER74: 15520.4 | ES74: 16874.2 | ET74: 18295.1 | EU74: 942.2 | EV74: 1940.9 | EW74: 2998.7 | EX74: 4118.3 | EY74: 5302.3 | EZ74: 6553.6 | FD74: 4 | FE74: $10,800
A75: FALSE | C75: 45 | E75: 610 | F75: Clubhouse Propane FP - Replace | G75: (1) freestanding unit | H75: 20 | I75: 9 | J75: $1,500 | K75: $2,500 | M75: $2,000 | N75: 610 | O75: Clubhouse Propane FP - Replace | P75: 20 | Q75: 9 | R75: $2,000 | S75: 610 | T75: Clubhouse Propane FP - Replace | U75: (1) freestanding unit | V75: 20 | W75: 9 | X75: $1,500 | Y75: $2,500 | Z75: 610 | AA75: Clubhouse Propane FP - Replace | AB75: $2,000 | AC75: X | AD75: 11 | AE75: / | AF75: 20 | AG75: = | AH75: =DV75+(1-Main!$D$61)*(DW75-DV75) -> $1,100 | AJ75: 610 | AK75: Clubhouse Propane FP - Replace | AL75: 20 | AM75: $2,000 | AN75: $100 | AO75: 0.3% | AP75: =SUM(AV$31:AV75) -> $471,400 | AQ75: 610 | AR75: Clubhouse Propane FP - Replace | AS75: 20 | AT75: 9 | AU75: $2,000 | AV75: =DV75+(1-Main!$D$61)*(DW75-DV75) -> $1,100 | AW75: =IF(Main!D$26>1,Main!D$26*AV75,IF((AP75-AV75)>=Main!D$20,0,IF(AP75<=Main!D$20,AV75,Main!D$20-AP75+AV75))) -> $0 | AX75: =AO75*Main!RecommendContrib -> $166.33 | AZ75: 610 | BA75: Clubhouse Propane FP - Replace | BB75: $0 | BC75: $0 | BD75: $0 | BE75: $0 | BF75: $0 | BG75: 610 | BH75: Clubhouse Propane FP - Replace | BI75: $0 | BJ75: $0 | BK75: $0 | BL75: $0 | BM75: $2,610 | BN75: 610 | BO75: Clubhouse Propane FP - Replace | BP75: $0 | BQ75: $0 | BR75: $0 | BS75: $0 | BT75: $0 | BU75: 610 | BV75: Clubhouse Propane FP - Replace | BW75: $0 | BX75: $0 | BY75: $0 | BZ75: $0 | CA75: $0 | CB75: 610 | CC75: Clubhouse Propane FP - Replace | CD75: $0 | CE75: $0 | CF75: $0 | CG75: $0 | CH75: $0 | CI75: 610 | CJ75: Clubhouse Propane FP - Replace | CK75: $0 | CL75: $0 | CM75: $0 | CN75: $0 | CO75: $4,713 | CP75: $0 | CQ75: 9 | CR75: 8 | CS75: 7 | CT75: 6 | CU75: 5 | CV75: 4 | CW75: 3 | CX75: 2 | CY75: 1 | CZ75: 0 | DA75: 19 | DB75: 18 | DC75: 17 | DD75: 16 | DE75: 15 | DF75: 14 | DG75: 13 | DH75: 12 | DI75: 11 | DJ75: 10 | DK75: 9 | DL75: 8 | DM75: 7 | DN75: 6 | DO75: 5 | DP75: 4 | DQ75: 3 | DR75: 2 | DS75: 1 | DT75: 0 | DU75: 19 | DV75: 1100.0 | DW75: 1236.0 | DX75: 1379.2 | DY75: 1529.8 | DZ75: 1688.3 | EA75: 1854.8 | EB75: 2029.9 | EC75: 2213.8 | ED75: 2406.9 | EE75: 2609.5 | EF75: 134.4 | EG75: 276.8 | EH75: 427.7 | EI75: 587.4 | EJ75: 756.3 | EK75: 934.8 | EL75: 1123.3 | EM75: 1322.3 | EN75: 1532.2 | EO75: 1753.5 | EP75: 1986.7 | EQ75: 2232.4 | ER75: 2490.9 | ES75: 2763.0 | ET75: 3049.2 | EU75: 3350.0 | EV75: 3666.2 | EW75: 3998.3 | EX75: 4347.1 | EY75: 4713.1 | EZ75: 242.7 | FD75: 9 | FE75: $2,500
A76: FALSE | C76: 46 | E76: 618 | F76: Clubhouse - Periodic Refurbishing | G76: Varying, miscellaneous | H76: 3 | I76: 0 | J76: $1,500 | K76: $2,500 | M76: =(J76+K76)/2 -> $2,000 | N76: =E76 -> 618 | O76: =F76 -> Clubhouse - Periodic Refurbishing | P76: =H76 -> 3 | Q76: =I76 -> 0 | R76: =M76 -> $2,000 | S76: =E76 -> 618 | T76: =F76 -> Clubhouse - Periodic Refurbishing | U76: =G76 -> Varying, miscellaneous | V76: =H76 -> 3 | W76: =I76 -> 0 | X76: =J76 -> $1,500 | Y76: =K76 -> $2,500 | Z76: =E76 -> 618 | AA76: =F76 -> Clubhouse - Periodic Refurbishing | AB76: =M76 -> $2,000 | AC76: X | AD76: =IF(H76-I76<0,0,H76-I76) -> 3 | AE76: / | AF76: =H76 -> 3 | AG76: = | AH76: =DV76+(1-Main!$D$61)*(DW76-DV76) -> $2,000 | AJ76: =E76 -> 618 | AK76: =F76 -> Clubhouse - Periodic Refurbishing | AL76: =H76 -> 3 | AM76: =M76 -> $2,000 | AN76: =IF(H76>0,M76/H76,0) -> $667 | AO76: =AN76/AN$77 -> 1.9% | AP76: =SUM(AV$31:AV76) -> $473,400 | AQ76: =E76 -> 618 | AR76: =F76 -> Clubhouse - Periodic Refurbishing | AS76: =H76 -> 3 | AT76: =I76 -> 0 | AU76: =M76 -> $2,000 | AV76: =DV76+(1-Main!$D$61)*(DW76-DV76) -> $2,000 | AW76: =IF(Main!D$26>1,Main!D$26*AV76,IF((AP76-AV76)>=Main!D$20,0,IF(AP76<=Main!D$20,AV76,Main!D$20-AP76+AV76))) -> $0 | AX76: =AO76*Main!RecommendContrib -> $1,108.84 | AZ76: 618 | BA76: Clubhouse - Periodic Refurbishing | BB76: =IF(CQ76=0,$M76*BB$3,0) -> $2,000 | BC76: =IF(CR76=0,$M76*BC$3,0) -> $0 | BD76: =IF(CS76=0,$M76*BD$3,0) -> $0 | BE76: =IF(CT76=0,$M76*BE$3,0) -> $2,185 | BF76: =IF(CU76=0,$M76*BF$3,0) -> $0 | BG76: 618 | BH76: Clubhouse - Periodic Refurbishing | BI76: =IF(CV76=0,$M76*BI$3,0) -> $0 | BJ76: =IF(CW76=0,$M76*BJ$3,0) -> $2,388 | BK76: =IF(CX76=0,$M76*BK$3,0) -> $0 | BL76: =IF(CY76=0,$M76*BL$3,0) -> $0 | BM76: =IF(CZ76=0,$M76*BM$3,0) -> $2,610 | BN76: 618 | BO76: Clubhouse - Periodic Refurbishing | BP76: =IF(DA76=0,$M76*BP$3,0) -> $0 | BQ76: =IF(DB76=0,$M76*BQ$3,0) -> $0 | BR76: =IF(DC76=0,$M76*BR$3,0) -> $2,852 | BS76: =IF(DD76=0,$M76*BS$3,0) -> $0 | BT76: =IF(DE76=0,$M76*BT$3,0) -> $0 | BU76: 618 | BV76: Clubhouse - Periodic Refurbishing | BW76: =IF(DF76=0,$M76*BW$3,0) -> $3,116 | BX76: =IF(DG76=0,$M76*BX$3,0) -> $0 | BY76: =IF(DH76=0,$M76*BY$3,0) -> $0 | BZ76: =IF(DI76=0,$M76*BZ$3,0) -> $3,405 | CA76: =IF(DJ76=0,$M76*CA$3,0) -> $0 | CB76: 618 | CC76: Clubhouse - Periodic Refurbishing | CD76: =IF(DK76=0,$M76*CD$3,0) -> $0 | CE76: =IF(DL76=0,$M76*CE$3,0) -> $3,721 | CF76: =IF(DM76=0,$M76*CF$3,0) -> $0 | CG76: =IF(DN76=0,$M76*CG$3,0) -> $0 | CH76: =IF(DO76=0,$M76*CH$3,0) -> $4,066 | CI76: 618 | CJ76: Clubhouse - Periodic Refurbishing | CK76: =IF(DP76=0,$M76*CK$3,0) -> $0 | CL76: =IF(DQ76=0,$M76*CL$3,0) -> $0 | CM76: =IF(DR76=0,$M76*CM$3,0) -> $4,443 | CN76: =IF(DS76=0,$M76*CN$3,0) -> $0 | CO76: =IF(DT76=0,$M76*CO$3,0) -> $0 | CP76: =IF(DU76=0,$M76*CP$3,0) -> $4,855 | CQ76: =IF(H76=0,I76,IF($I76>$H76,$H76,$I76)) -> 0 | CR76: =IF(AND($H76>0,$I76-CR$28>=$H76),$H76,IF(CQ76=999,999,IF(CQ76-1<0,IF($H76=0,999,$H76-1),CQ76-1))) -> 2 | CS76: =IF(AND($H76>0,$I76-CS$28>=$H76),$H76,IF(CR76=999,999,IF(CR76-1<0,IF($H76=0,999,$H76-1),CR76-1))) -> 1 | CT76: =IF(AND($H76>0,$I76-CT$28>=$H76),$H76,IF(CS76=999,999,IF(CS76-1<0,IF($H76=0,999,$H76-1),CS76-1))) -> 0 | CU76: =IF(AND($H76>0,$I76-CU$28>=$H76),$H76,IF(CT76=999,999,IF(CT76-1<0,IF($H76=0,999,$H76-1),CT76-1))) -> 2 | CV76: =IF(AND($H76>0,$I76-CV$28>=$H76),$H76,IF(CU76=999,999,IF(CU76-1<0,IF($H76=0,999,$H76-1),CU76-1))) -> 1 | CW76: =IF(AND($H76>0,$I76-CW$28>=$H76),$H76,IF(CV76=999,999,IF(CV76-1<0,IF($H76=0,999,$H76-1),CV76-1))) -> 0 | CX76: =IF(AND($H76>0,$I76-CX$28>=$H76),$H76,IF(CW76=999,999,IF(CW76-1<0,IF($H76=0,999,$H76-1),CW76-1))) -> 2 | CY76: =IF(AND($H76>0,$I76-CY$28>=$H76),$H76,IF(CX76=999,999,IF(CX76-1<0,IF($H76=0,999,$H76-1),CX76-1))) -> 1 | CZ76: =IF(AND($H76>0,$I76-CZ$28>=$H76),$H76,IF(CY76=999,999,IF(CY76-1<0,IF($H76=0,999,$H76-1),CY76-1))) -> 0 | DA76: =IF(AND($H76>0,$I76-DA$28>=$H76),$H76,IF(CZ76=999,999,IF(CZ76-1<0,IF($H76=0,999,$H76-1),CZ76-1))) -> 2 | DB76: =IF(AND($H76>0,$I76-DB$28>=$H76),$H76,IF(DA76=999,999,IF(DA76-1<0,IF($H76=0,999,$H76-1),DA76-1))) -> 1 | DC76: =IF(AND($H76>0,$I76-DC$28>=$H76),$H76,IF(DB76=999,999,IF(DB76-1<0,IF($H76=0,999,$H76-1),DB76-1))) -> 0 | DD76: =IF(AND($H76>0,$I76-DD$28>=$H76),$H76,IF(DC76=999,999,IF(DC76-1<0,IF($H76=0,999,$H76-1),DC76-1))) -> 2 | DE76: =IF(AND($H76>0,$I76-DE$28>=$H76),$H76,IF(DD76=999,999,IF(DD76-1<0,IF($H76=0,999,$H76-1),DD76-1))) -> 1 | DF76: =IF(AND($H76>0,$I76-DF$28>=$H76),$H76,IF(DE76=999,999,IF(DE76-1<0,IF($H76=0,999,$H76-1),DE76-1))) -> 0 | DG76: =IF(AND($H76>0,$I76-DG$28>=$H76),$H76,IF(DF76=999,999,IF(DF76-1<0,IF($H76=0,999,$H76-1),DF76-1))) -> 2 | DH76: =IF(AND($H76>0,$I76-DH$28>=$H76),$H76,IF(DG76=999,999,IF(DG76-1<0,IF($H76=0,999,$H76-1),DG76-1))) -> 1 | DI76: =IF(AND($H76>0,$I76-DI$28>=$H76),$H76,IF(DH76=999,999,IF(DH76-1<0,IF($H76=0,999,$H76-1),DH76-1))) -> 0 | DJ76: =IF(AND($H76>0,$I76-DJ$28>=$H76),$H76,IF(DI76=999,999,IF(DI76-1<0,IF($H76=0,999,$H76-1),DI76-1))) -> 2 | DK76: =IF(AND($H76>0,$I76-DK$28>=$H76),$H76,IF(DJ76=999,999,IF(DJ76-1<0,IF($H76=0,999,$H76-1),DJ76-1))) -> 1 | DL76: =IF(AND($H76>0,$I76-DL$28>=$H76),$H76,IF(DK76=999,999,IF(DK76-1<0,IF($H76=0,999,$H76-1),DK76-1))) -> 0 | DM76: =IF(AND($H76>0,$I76-DM$28>=$H76),$H76,IF(DL76=999,999,IF(DL76-1<0,IF($H76=0,999,$H76-1),DL76-1))) -> 2 | DN76: =IF(AND($H76>0,$I76-DN$28>=$H76),$H76,IF(DM76=999,999,IF(DM76-1<0,IF($H76=0,999,$H76-1),DM76-1))) -> 1 | DO76: =IF(AND($H76>0,$I76-DO$28>=$H76),$H76,IF(DN76=999,999,IF(DN76-1<0,IF($H76=0,999,$H76-1),DN76-1))) -> 0 | DP76: =IF(AND($H76>0,$I76-DP$28>=$H76),$H76,IF(DO76=999,999,IF(DO76-1<0,IF($H76=0,999,$H76-1),DO76-1))) -> 2 | DQ76: =IF(AND($H76>0,$I76-DQ$28>=$H76),$H76,IF(DP76=999,999,IF(DP76-1<0,IF($H76=0,999,$H76-1),DP76-1))) -> 1 | DR76: =IF(AND($H76>0,$I76-DR$28>=$H76),$H76,IF(DQ76=999,999,IF(DQ76-1<0,IF($H76=0,999,$H76-1),DQ76-1))) -> 0 | DS76: =IF(AND($H76>0,$I76-DS$28>=$H76),$H76,IF(DR76=999,999,IF(DR76-1<0,IF($H76=0,999,$H76-1),DR76-1))) -> 2 | DT76: =IF(AND($H76>0,$I76-DT$28>=$H76),$H76,IF(DS76=999,999,IF(DS76-1<0,IF($H76=0,999,$H76-1),DS76-1))) -> 1 | DU76: =IF(AND($H76>0,$I76-DU$28>=$H76),$H76,IF(DT76=999,999,IF(DT76-1<0,IF($H76=0,999,$H76-1),DT76-1))) -> 0 | DV76: =IF($H76>0,$M76*($H76-CQ76)/$H76,$M76/(CQ76+1)) -> 2000.0 | DW76: =IF(CR76=999,0,IF($H76>0,DW$28*$M76*($H76-CR76)/$H76,DW$28*$M76/(CR76+1))) -> 686.7 | DX76: =IF(CS76=999,0,IF($H76>0,DX$28*$M76*($H76-CS76)/$H76,DX$28*$M76/(CS76+1))) -> 1414.5 | DY76: =IF(CT76=999,0,IF($H76>0,DY$28*$M76*($H76-CT76)/$H76,DY$28*$M76/(CT76+1))) -> 2185.5 | DZ76: =IF(CU76=999,0,IF($H76>0,DZ$28*$M76*($H76-CU76)/$H76,DZ$28*$M76/(CU76+1))) -> 750.3 | EA76: =IF(CV76=999,0,IF($H76>0,EA$28*$M76*($H76-CV76)/$H76,EA$28*$M76/(CV76+1))) -> 1545.7 | EB76: =IF(CW76=999,0,IF($H76>0,EB$28*$M76*($H76-CW76)/$H76,EB$28*$M76/(CW76+1))) -> 2388.1 | EC76: =IF(CX76=999,0,IF($H76>0,EC$28*$M76*($H76-CX76)/$H76,EC$28*$M76/(CX76+1))) -> 819.9 | ED76: =IF(CY76=999,0,IF($H76>0,ED$28*$M76*($H76-CY76)/$H76,ED$28*$M76/(CY76+1))) -> 1689.0 | EE76: =IF(CZ76=999,0,IF($H76>0,EE$28*$M76*($H76-CZ76)/$H76,EE$28*$M76/(CZ76+1))) -> 2609.5 | EF76: =IF(DA76=999,0,IF($H76>0,EF$28*$M76*($H76-DA76)/$H76,EF$28*$M76/(DA76+1))) -> 895.9 | EG76: =IF(DB76=999,0,IF($H76>0,EG$28*$M76*($H76-DB76)/$H76,EG$28*$M76/(DB76+1))) -> 1845.6 | EH76: =IF(DC76=999,0,IF($H76>0,EH$28*$M76*($H76-DC76)/$H76,EH$28*$M76/(DC76+1))) -> 2851.5 | EI76: =IF(DD76=999,0,IF($H76>0,EI$28*$M76*($H76-DD76)/$H76,EI$28*$M76/(DD76+1))) -> 979.0 | EJ76: =IF(DE76=999,0,IF($H76>0,EJ$28*$M76*($H76-DE76)/$H76,EJ$28*$M76/(DE76+1))) -> 2016.8 | EK76: =IF(DF76=999,0,IF($H76>0,EK$28*$M76*($H76-DF76)/$H76,EK$28*$M76/(DF76+1))) -> 3115.9 | EL76: =IF(DG76=999,0,IF($H76>0,EL$28*$M76*($H76-DG76)/$H76,EL$28*$M76/(DG76+1))) -> 1069.8 | EM76: =IF(DH76=999,0,IF($H76>0,EM$28*$M76*($H76-DH76)/$H76,EM$28*$M76/(DH76+1))) -> 2203.8 | EN76: =IF(DI76=999,0,IF($H76>0,EN$28*$M76*($H76-DI76)/$H76,EN$28*$M76/(DI76+1))) -> 3404.9 | EO76: =IF(DJ76=999,0,IF($H76>0,EO$28*$M76*($H76-DJ76)/$H76,EO$28*$M76/(DJ76+1))) -> 1169.0 | EP76: =IF(DK76=999,0,IF($H76>0,EP$28*$M76*($H76-DK76)/$H76,EP$28*$M76/(DK76+1))) -> 2408.1 | EQ76: =IF(DL76=999,0,IF($H76>0,EQ$28*$M76*($H76-DL76)/$H76,EQ$28*$M76/(DL76+1))) -> 3720.6 | ER76: =IF(DM76=999,0,IF($H76>0,ER$28*$M76*($H76-DM76)/$H76,ER$28*$M76/(DM76+1))) -> 1277.4 | ES76: =IF(DN76=999,0,IF($H76>0,ES$28*$M76*($H76-DN76)/$H76,ES$28*$M76/(DN76+1))) -> 2631.4 | ET76: =IF(DO76=999,0,IF($H76>0,ET$28*$M76*($H76-DO76)/$H76,ET$28*$M76/(DO76+1))) -> 4065.6 | EU76: =IF(DP76=999,0,IF($H76>0,EU$28*$M76*($H76-DP76)/$H76,EU$28*$M76/(DP76+1))) -> 1395.9 | EV76: =IF(DQ76=999,0,IF($H76>0,EV$28*$M76*($H76-DQ76)/$H76,EV$28*$M76/(DQ76+1))) -> 2875.5 | EW76: =IF(DR76=999,0,IF($H76>0,EW$28*$M76*($H76-DR76)/$H76,EW$28*$M76/(DR76+1))) -> 4442.6 | EX76: =IF(DS76=999,0,IF($H76>0,EX$28*$M76*($H76-DS76)/$H76,EX$28*$M76/(DS76+1))) -> 1525.3 | EY76: =IF(DT76=999,0,IF($H76>0,EY$28*$M76*($H76-DT76)/$H76,EY$28*$M76/(DT76+1))) -> 3142.1 | EZ76: =IF(DU76=999,0,IF($H76>0,EZ$28*$M76*($H76-DU76)/$H76,EZ$28*$M76/(DU76+1))) -> 4854.5 | FD76: =MAX(0,I76-Years) -> 0 | FE76: =K76*(1+Inflation/100)^Years -> $2,500
A77: FALSE | N77: =SUM(IF(TopCell:CellAbove<>0,1,0)) -> 42 | O77: Total Funded Components | S77: =N77 -> 42 | T77: Total Funded Components | AH77: =SUM(TopCell:CellAbove) -> $473,400 | AJ77: =N77 -> 42 | AK77: Total Funded Components | AN77: =SUM(TopCell:CellAbove) -> $36,032 | AO77: =IF(ISERROR(SUM(TopCell:CellAbove)),0,SUM(TopCell:CellAbove)) -> 100.0% | AQ77: =N77 -> 42 | AR77: Total Funded Components | AW77: =SUM(TopCell:CellAbove) -> $444,123 | AX77: =SUM(TopCell:CellAbove) -> $59,930.00 | BA77: Total Expenses | BB77: =SUM(TopCell:CellAbove) -> $61,450 | BC77: =SUM(TopCell:CellAbove) -> $12,412 | BD77: =SUM(TopCell:CellAbove) -> $164,440 | BE77: =SUM(TopCell:CellAbove) -> $32,782 | BF77: =SUM(TopCell:CellAbove) -> $35,454 | BH77: Total Expenses | BI77: =SUM(TopCell:CellAbove) -> $19,128 | BJ77: =SUM(TopCell:CellAbove) -> $19,762 | BK77: =SUM(TopCell:CellAbove) -> $701,028 | BL77: =SUM(TopCell:CellAbove) -> $36,990 | BM77: =SUM(TopCell:CellAbove) -> $15,005 | BO77: Total Expenses | BP77: =SUM(TopCell:CellAbove) -> $22,847 | BQ77: =SUM(TopCell:CellAbove) -> $16,680 | BR77: =SUM(TopCell:CellAbove) -> $69,934 | BS77: =SUM(TopCell:CellAbove) -> $24,965 | BT77: =SUM(TopCell:CellAbove) -> $11,344 | BV77: Total Expenses | BW77: =SUM(TopCell:CellAbove) -> $49,933 | BX77: =SUM(TopCell:CellAbove) -> $32,014 | BY77: =SUM(TopCell:CellAbove) -> $82,642 | BZ77: =SUM(TopCell:CellAbove) -> $327,718 | CA77: =SUM(TopCell:CellAbove) -> $13,151 | CC77: Total Expenses | CD77: =SUM(TopCell:CellAbove) -> $54,183 | CE77: =SUM(TopCell:CellAbove) -> $52,181 | CF77: =SUM(TopCell:CellAbove) -> $4,790 | CG77: =SUM(TopCell:CellAbove) -> $59,800 | CH77: =SUM(TopCell:CellAbove) -> $38,420 | CJ77: Total Expenses | CK77: =SUM(TopCell:CellAbove) -> $138,189 | CL77: =SUM(TopCell:CellAbove) -> $31,378 | CM77: =SUM(TopCell:CellAbove) -> $175,593 | CN77: =SUM(TopCell:CellAbove) -> $33,175 | CO77: =SUM(TopCell:CellAbove) -> $67,162 | CP77: =SUM(TopCell:CellAbove) -> $128,766 | DV77: =SUM(TopCell:CellAbove) -> 473400.0 | DW77: =SUM(TopCell:CellAbove) -> 471537.2 | DX77: =SUM(TopCell:CellAbove) -> 525018.2 | DY77: =SUM(TopCell:CellAbove) -> 430802.2 | DZ77: =SUM(TopCell:CellAbove) -> 481466.4 | EA77: =SUM(TopCell:CellAbove) -> 554297.2 | EB77: =SUM(TopCell:CellAbove) -> 703702.8 | EC77: =SUM(TopCell:CellAbove) -> 1086989.2 | ED77: =SUM(TopCell:CellAbove) -> 443183.7 | EE77: =SUM(TopCell:CellAbove) -> 465393.0 | EF77: =SUM(TopCell:CellAbove) -> 512323.3 | EG77: =SUM(TopCell:CellAbove) -> 554037.3 | EH77: =SUM(TopCell:CellAbove) -> 604850.5 | EI77: =SUM(TopCell:CellAbove) -> 603878.2 | EJ77: =SUM(TopCell:CellAbove) -> 650781.6 | EK77: =SUM(TopCell:CellAbove) -> 714756.5 | EL77: =SUM(TopCell:CellAbove) -> 742588.6 | EM77: =SUM(TopCell:CellAbove) -> 791446.8 | EN77: =SUM(TopCell:CellAbove) -> 791410.1 | EO77: =SUM(TopCell:CellAbove) -> 540784.2 | EP77: =SUM(TopCell:CellAbove) -> 608539.1 | EQ77: =SUM(TopCell:CellAbove) -> 638015.9 | ER77: =SUM(TopCell:CellAbove) -> 672450.1 | ES77: =SUM(TopCell:CellAbove) -> 758801.3 | ET77: =SUM(TopCell:CellAbove) -> 793216.6 | EU77: =SUM(TopCell:CellAbove) -> 852883.0 | EV77: =SUM(TopCell:CellAbove) -> 813840.0 | EW77: =SUM(TopCell:CellAbove) -> 885972.2 | EX77: =SUM(TopCell:CellAbove) -> 814128.6 | EY77: =SUM(TopCell:CellAbove) -> 889293.2 | EZ77: =SUM(TopCell:CellAbove) -> 934253.3
BA79: Ending Reserve Balance: | BB79: =BB28-BB77 -> $447,057 | BC79: =BC28-BC77 -> $501,112 | BD79: =BD28-BD77 -> $404,780 | BE79: =BE28-BE77 -> $441,716 | BF79: =BF28-BF77 -> $478,312 | BH79: Ending Reserve Balance: | BI79: =BI28-BI77 -> $659,346 | BJ79: =BJ28-BJ77 -> $718,027 | BK79: =BK28-BK77 -> $94,768 | BL79: =BL28-BL77 -> $134,843 | BM79: =BM28-BM77 -> $199,706 | BO79: Ending Reserve Balance: | BP79: =BP28-BP77 -> $259,696 | BQ79: =BQ28-BQ77 -> $328,105 | BR79: =BR28-BR77 -> $345,332 | BS79: =BS28-BS77 -> $409,611 | BT79: =BT28-BT77 -> $489,943 | BV79: Ending Reserve Balance: | BW79: =BW28-BW77 -> $534,051 | BX79: =BX28-BX77 -> $598,399 | BY79: =BY28-BY77 -> $614,334 | BZ79: =BZ28-BZ77 -> $385,982 | CA79: =CA28-CA77 -> $473,379 | CC79: Ending Reserve Balance: | CD79: =CD28-CD77 -> $522,351 | CE79: =CE28-CE77 -> $575,801 | CF79: =CF28-CF77 -> $679,430 | CG79: =CG28-CG77 -> $730,867 | CH79: =CH28-CH77 -> $806,402 | CJ79: Ending Reserve Balance: | CK79: =CK28-CK77 -> $784,562 | CL79: $872,028 | CM79: $817,657 | CN79: $908,139 | CO79: $967,685 | CP79: $968,274

Sheet 30-yr
B2: Table 5: 30-Year Reserve Plan Summary | L2: =Main!D10 -> 24907-1
B6: Fiscal Year Start: | E6: =Main!StartDate -> 2022-01-01 | I6: Interest: | J6: =Main!InterestRate -> 1.0% | K6: Inflation: | L6: =Main!InflationRate -> 3.0%
B8: Reserve Fund Strength Calculations | I8: Projected Reserve Balance Changes
B9: (All values as of Fiscal Year Start Date)
C11: Starting | D11: Fully | F11: Special | J11: Loans or
C12: Reserve | D12: Funded | E12: Percent | F12: Assmt | I12: Reserve | J12: Special | K12: Interest | L12: Reserve
B13: Year | C13: Balance | D13: Balance | E13: Funded | F13: Risk | I13: Contribs. | J13: Assmts | K13: Income | L13: Expenses
B14: =Data!BB23 -> 2022 | C14: =Data!BB24 -> $444,123 | D14: =Main!FullyFunded -> $473,400 | E14: =Main!PercentFunded -> 93.8% | G14: =IF(E14<D$55,E$55,IF(E14<D$56,E$56,IF(E14<D$57,E$57,E$58))) -> Low | I14: =Data!BB25 -> $59,930 | J14: =Data!BB26 -> $0 | K14: =Data!BB27 -> $4,454 | L14: =Data!BB77 -> $61,450
B15: =Data!BC23 -> 2023 | C15: =Data!BC24 -> $447,057 | D15: =Data!DW77 -> $471,537 | E15: =Data!BC18 -> 94.8% | G15: Low | I15: =Data!BC25 -> $61,728 | J15: =Data!BC26 -> $0 | K15: =Data!BC27 -> $4,739 | L15: =Data!BC77 -> $12,412
B16: =Data!BD23 -> 2024 | C16: =Data!BD24 -> $501,112 | D16: =Data!DX77 -> $525,018 | E16: =Data!BD18 -> 95.4% | G16: Low | I16: =Data!BD25 -> $63,580 | J16: =Data!BD26 -> $0 | K16: =Data!BD27 -> $4,528 | L16: =Data!BD77 -> $164,440
B17: =Data!BE23 -> 2025 | C17: =Data!BE24 -> $404,780 | D17: =Data!DY77 -> $430,802 | E17: =Data!BE18 -> 94.0% | G17: Low | I17: =Data!BE25 -> $65,487 | J17: =Data!BE26 -> $0 | K17: =Data!BE27 -> $4,231 | L17: =Data!BE77 -> $32,782
B18: =Data!BF23 -> 2026 | C18: =Data!BF24 -> $441,716 | D18: =Data!DZ77 -> $481,466 | E18: =Data!BF18 -> 91.7% | G18: Low | I18: =Data!BF25 -> $67,452 | J18: =Data!BF26 -> $0 | K18: =Data!BF27 -> $4,598 | L18: =Data!BF77 -> $35,454
B19: =Data!BI23 -> 2027 | C19: =Data!BI24 -> $478,312 | D19: =Data!EA77 -> $554,297 | E19: =Data!BI18 -> 86.3% | G19: Low | I19: =Data!BI25 -> $69,475 | J19: =Data!BI26 -> $125,000 | K19: =Data!BI27 -> $5,686 | L19: =Data!BI77 -> $19,128
B20: =Data!BJ23 -> 2028 | C20: =Data!BJ24 -> $659,346 | D20: =Data!EB77 -> $703,703 | E20: =Data!BJ18 -> 93.7% | G20: Low | I20: =Data!BJ25 -> $71,560 | J20: =Data!BJ26 -> $0 | K20: =Data!BJ27 -> $6,884 | L20: =Data!BJ77 -> $19,762
B21: =Data!BK23 -> 2029 | C21: =Data!BK24 -> $718,027 | D21: =Data!EC77 -> $1,086,989 | E21: =Data!BK18 -> 66.1% | G21: Med | I21: =Data!BK25 -> $73,706 | J21: =Data!BK26 -> $0 | K21: =Data!BK27 -> $4,062 | L21: =Data!BK77 -> $701,028
B22: =Data!BL23 -> 2030 | C22: =Data!BL24 -> $94,768 | D22: =Data!ED77 -> $443,184 | E22: =Data!BL18 -> 21.4% | G22: High | I22: =Data!BL25 -> $75,918 | J22: =Data!BL26 -> $0 | K22: =Data!BL27 -> $1,148 | L22: =Data!BL77 -> $36,990
B23: =Data!BM23 -> 2031 | C23: =Data!BM24 -> $134,843 | D23: =Data!EE77 -> $465,393 | E23: =Data!BM18 -> 29.0% | G23: High | I23: =Data!BM25 -> $78,195 | J23: =Data!BM26 -> $0 | K23: =Data!BM27 -> $1,672 | L23: =Data!BM77 -> $15,005
B24: =Data!BP23 -> 2032 | C24: =Data!BP24 -> $199,706 | D24: =Data!EF77 -> $512,323 | E24: =Data!BP18 -> 39.0% | G24: Med | I24: =Data!BP25 -> $80,541 | J24: =Data!BP26 -> $0 | K24: =Data!BP27 -> $2,296 | L24: =Data!BP77 -> $22,847
B25: =Data!BQ23 -> 2033 | C25: =Data!BQ24 -> $259,696 | D25: =Data!EG77 -> $554,037 | E25: =Data!BQ18 -> 46.9% | G25: Med | I25: =Data!BQ25 -> $82,152 | J25: =Data!BQ26 -> $0 | K25: =Data!BQ27 -> $2,938 | L25: =Data!BQ77 -> $16,680
B26: =Data!BR23 -> 2034 | C26: =Data!BR24 -> $328,105 | D26: =Data!EH77 -> $604,851 | E26: =Data!BR18 -> 54.2% | G26: Med | I26: =Data!BR25 -> $83,795 | J26: =Data!BR26 -> $0 | K26: =Data!BR27 -> $3,366 | L26: =Data!BR77 -> $69,934
B27: =Data!BS23 -> 2035 | C27: =Data!BS24 -> $345,332 | D27: =Data!EI77 -> $603,878 | E27: =Data!BS18 -> 57.2% | G27: Med | I27: =Data!BS25 -> $85,471 | J27: =Data!BS26 -> $0 | K27: =Data!BS27 -> $3,773 | L27: =Data!BS77 -> $24,965
B28: =Data!BT23 -> 2036 | C28: =Data!BT24 -> $409,611 | D28: =Data!EJ77 -> $650,782 | E28: =Data!BT18 -> 62.9% | G28: Med | I28: =Data!BT25 -> $87,180 | J28: =Data!BT26 -> $0 | K28: =Data!BT27 -> $4,496 | L28: =Data!BT77 -> $11,344
B29: =Data!BW23 -> 2037 | C29: =Data!BW24 -> $489,943 | D29: =Data!EK77 -> $714,757 | E29: =Data!BW18 -> 68.5% | G29: Med | I29: =Data!BW25 -> $88,924 | J29: =Data!BW26 -> $0 | K29: =Data!BW27 -> $5,118 | L29: =Data!BW77 -> $49,933
B30: =Data!BX23 -> 2038 | C30: =Data!BX24 -> $534,051 | D30: =Data!EL77 -> $742,589 | E30: =Data!BX18 -> 71.9% | G30: Low | I30: =Data!BX25 -> $90,702 | J30: =Data!BX26 -> $0 | K30: =Data!BX27 -> $5,660 | L30: =Data!BX77 -> $32,014
B31: =Data!BY23 -> 2039 | C31: =Data!BY24 -> $598,399 | D31: =Data!EM77 -> $791,447 | E31: =Data!BY18 -> 75.6% | G31: Low | I31: =Data!BY25 -> $92,516 | J31: =Data!BY26 -> $0 | K31: =Data!BY27 -> $6,061 | L31: =Data!BY77 -> $82,642
B32: =Data!BZ23 -> 2040 | C32: =Data!BZ24 -> $614,334 | D32: =Data!EN77 -> $791,410 | E32: =Data!BZ18 -> 77.6% | G32: Low | I32: =Data!BZ25 -> $94,367 | J32: =Data!BZ26 -> $0 | K32: =Data!BZ27 -> $4,999 | L32: =Data!BZ77 -> $327,718
B33: =Data!CA23 -> 2041 | C33: =Data!CA24 -> $385,982 | D33: =Data!EO77 -> $540,784 | E33: =Data!CA18 -> 71.4% | G33: Low | I33: =Data!CA25 -> $96,254 | J33: =Data!CA26 -> $0 | K33: =Data!CA27 -> $4,295 | L33: =Data!CA77 -> $13,151
B34: =Data!CD23 -> 2042 | C34: =Data!CD24 -> $473,379 | D34: =Data!EP77 -> $608,539 | E34: =Data!CD18 -> 77.8% | G34: Low | I34: =Data!CD25 -> $98,179 | J34: =Data!CD26 -> $0 | K34: =Data!CD27 -> $4,977 | L34: =Data!CD77 -> $54,183
B35: =Data!CE23 -> 2043 | C35: =Data!CE24 -> $522,351 | D35: =Data!EQ77 -> $638,016 | E35: =Data!CE18 -> 81.9% | G35: Low | I35: =Data!CE25 -> $100,142 | J35: =Data!CE26 -> $0 | K35: =Data!CE27 -> $5,488 | L35: =Data!CE77 -> $52,181
B36: =Data!CF23 -> 2044 | C36: =Data!CF24 -> $575,801 | D36: =Data!ER77 -> $672,450 | E36: =Data!CF18 -> 85.6% | G36: Low | I36: =Data!CF25 -> $102,145 | J36: =Data!CF26 -> $0 | K36: =Data!CF27 -> $6,273 | L36: =Data!CF77 -> $4,790
B37: =Data!CG23 -> 2045 | C37: =Data!CG24 -> $679,430 | D37: =Data!ES77 -> $758,801 | E37: =Data!CG18 -> 89.5% | G37: Low | I37: =Data!CG25 -> $104,188 | J37: =Data!CG26 -> $0 | K37: =Data!CG27 -> $7,048 | L37: =Data!CG77 -> $59,800
B38: =Data!CH23 -> 2046 | C38: =Data!CH24 -> $730,867 | D38: =Data!ET77 -> $793,217 | E38: =Data!CH18 -> 92.1% | G38: Low | I38: =Data!CH25 -> $106,272 | J38: =Data!CH26 -> $0 | K38: =Data!CH27 -> $7,683 | L38: =Data!CH77 -> $38,420
B39: =Data!CK23 -> 2047 | C39: =Data!CK24 -> $806,402 | D39: =Data!EU77 -> $852,883 | E39: =Data!CK18 -> 94.6% | G39: Low | I39: =Data!CK25 -> $108,397 | J39: =Data!CK26 -> $0 | K39: =Data!CK27 -> $7,951 | L39: =Data!CK77 -> $138,189
B40: =Data!CL23 -> 2048 | C40: =Data!CL24 -> $784,562 | D40: =Data!EV77 -> $813,840 | E40: =Data!CL18 -> 96.4% | G40: Low | I40: =Data!CL25 -> $110,565 | J40: =Data!CL26 -> $0 | K40: =Data!CL27 -> $8,279 | L40: =Data!CL77 -> $31,378
B41: =Data!CM23 -> 2049 | C41: =Data!CM24 -> $872,028 | D41: =Data!EW77 -> $885,972 | E41: =Data!CM18 -> 98.4% | G41: Low | I41: =Data!CM25 -> $112,777 | J41: =Data!CM26 -> $0 | K41: =Data!CM27 -> $8,445 | L41: =Data!CM77 -> $175,593
B42: =Data!CN23 -> 2050 | C42: =Data!CN24 -> $817,657 | D42: =Data!EX77 -> $814,129 | E42: =Data!CN18 -> 100.4% | G42: Low | I42: =Data!CN25 -> $115,032 | J42: =Data!CN26 -> $0 | K42: =Data!CN27 -> $8,625 | L42: =Data!CN77 -> $33,175
B43: =Data!CO23 -> 2051 | C43: =Data!CO24 -> $908,139 | D43: =Data!EY77 -> $889,293 | E43: =Data!CO18 -> 102.1% | G43: Low | I43: =Data!CO25 -> $117,333 | J43: =Data!CO26 -> $0 | K43: =Data!CO27 -> $9,375 | L43: =Data!CO77 -> $67,162
B55: Top of Weak Range: | D55: 0.3 | E55: High
B56: Top of Fair Range: | D56: 0.7 | E56: Med
B57: Top of Strong Range: | D57: 1.3 | E57: Low
B58: Named Surplus: | E58: Low

Sheet Addnl Info
B1: =#REF! -> 
B3: Association Name: | D3: =Main!D11 -> Admiral's Cove Beach Club | G3: # | H3: =Main!ClientNumber -> 24907-1
B5: Please enter additional information, as applicable, in the shaded spaces below
B7: Significant Recent Reserve Expenses:
B8: (Description of what, when, $)
B15: Significant Planned Reserve Expenses:
B16: (Description of what, when, $)
B23: Significant Vendors - Roofer, elevator, asphalt, painter, etc.:
B24: (Company Name, Contact Person, phone)

Sheet Budget Sum
E1: 4 | F1: 4 | G1: 5 | H1: 5 | I1: 9 | J1: 50 | K1: 45 | L1: 30 | N1: 46
C3: Reserve Budget Funding Summary
C4: =Main!ClientNumber -> 24907-1 | D4: =Main!ClientName -> Admiral's Cove Beach Club
G7: =Main!BaseYear -> 2022 | I7: Estimated | K7: =Main!StartDate -> 2022-01-01 | L7: =Main!StartDate -> 2022-01-01
E8: Useful Life | G8: Rem. Useful Life | I8: Replacement | J8: =Main!BaseYear -> 2022 | K8: Current Fund | L8: Fully Funded | M8: Remaining Bal. | N8: =Main!BaseYear -> 2022
A9: Code | E9: Min | F9: Max | G9: Min | H9: Max | I9: ="Cost in" & " " & TEXT(Main!BaseYear,0) -> Cost in 2022 | J9: Expenditures | K9: Balance | L9: Balance | M9: to be Funded | N9: Contributions
A10: I | C10: Interiors | E10: =MIN(IF(Data!Category=$A10,OFFSET(Data!Category,0,E$1),"")) -> 0 | F10: =MAX(IF(Data!Category=$A10,OFFSET(Data!Category,0,F$1),"")) -> 0 | G10: =MIN(IF(Data!Category=$A10,OFFSET(Data!Category,0,G$1),"")) -> 0 | H10: =MAX(IF(Data!Category=$A10,OFFSET(Data!Category,0,H$1),"")) -> 0 | I10: =SUMIF(Data!Category,"=" & $A10,OFFSET(Data!Category,0,I$1)) -> 0 | J10: =SUMIF(Data!Category,"=" & $A10,OFFSET(Data!Category,0,J$1)) -> 0 | K10: =SUMIF(Data!Category,"=" & $A10,OFFSET(Data!Category,0,K$1)) -> 0 | L10: =SUMIF(Data!Category,"=" & $A10,OFFSET(Data!Category,0,L$1)) -> 0 | M10: =I10-K10 -> 0 | N10: =SUMIF(Data!Category,"=" & $A10,OFFSET(Data!Category,0,N$1))*Main!D$48 -> 0
A11: R | C11: Roofing | E11: =MIN(IF(Data!Category=$A11,OFFSET(Data!Category,0,E$1),"")) -> 0 | F11: =MAX(IF(Data!Category=$A11,OFFSET(Data!Category,0,F$1),"")) -> 0 | G11: =MIN(IF(Data!Category=$A11,OFFSET(Data!Category,0,G$1),"")) -> 0 | H11: =MAX(IF(Data!Category=$A11,OFFSET(Data!Category,0,H$1),"")) -> 0 | I11: =SUMIF(Data!Category,"=" & $A11,OFFSET(Data!Category,0,I$1)) -> 0 | J11: =SUMIF(Data!Category,"=" & $A11,OFFSET(Data!Category,0,J$1)) -> 0 | K11: =SUMIF(Data!Category,"=" & $A11,OFFSET(Data!Category,0,K$1)) -> 0 | L11: =SUMIF(Data!Category,"=" & $A11,OFFSET(Data!Category,0,L$1)) -> 0 | M11: =I11-K11 -> 0 | N11: =SUMIF(Data!Category,"=" & $A11,OFFSET(Data!Category,0,N$1))*Main!D$48 -> 0
A12: A | C12: Capital Assets | E12: =MIN(IF(Data!Category=$A12,OFFSET(Data!Category,0,E$1),"")) -> 0 | F12: =MAX(IF(Data!Category=$A12,OFFSET(Data!Category,0,F$1),"")) -> 0 | G12: =MIN(IF(Data!Category=$A12,OFFSET(Data!Category,0,G$1),"")) -> 0 | H12: =MAX(IF(Data!Category=$A12,OFFSET(Data!Category,0,H$1),"")) -> 0 | I12: =SUMIF(Data!Category,"=" & $A12,OFFSET(Data!Category,0,I$1)) -> 0 | J12: =SUMIF(Data!Category,"=" & $A12,OFFSET(Data!Category,0,J$1)) -> 0 | K12: =SUMIF(Data!Category,"=" & $A12,OFFSET(Data!Category,0,K$1)) -> 0 | L12: =SUMIF(Data!Category,"=" & $A12,OFFSET(Data!Category,0,L$1)) -> 0 | M12: =I12-K12 -> 0 | N12: =SUMIF(Data!Category,"=" & $A12,OFFSET(Data!Category,0,N$1))*Main!D$48 -> 0
A13: P | C13: Paint | E13: =MIN(IF(Data!Category=$A13,OFFSET(Data!Category,0,E$1),"")) -> 0 | F13: =MAX(IF(Data!Category=$A13,OFFSET(Data!Category,0,F$1),"")) -> 0 | G13: =MIN(IF(Data!Category=$A13,OFFSET(Data!Category,0,G$1),"")) -> 0 | H13: =MAX(IF(Data!Category=$A13,OFFSET(Data!Category,0,H$1),"")) -> 0 | I13: =SUMIF(Data!Category,"=" & $A13,OFFSET(Data!Category,0,I$1)) -> 0 | J13: =SUMIF(Data!Category,"=" & $A13,OFFSET(Data!Category,0,J$1)) -> 0 | K13: =SUMIF(Data!Category,"=" & $A13,OFFSET(Data!Category,0,K$1)) -> 0 | L13: =SUMIF(Data!Category,"=" & $A13,OFFSET(Data!Category,0,L$1)) -> 0 | M13: =I13-K13 -> 0 | N13: =SUMIF(Data!Category,"=" & $A13,OFFSET(Data!Category,0,N$1))*Main!D$48 -> 0
A14: H | C14: Hardscape | E14: =MIN(IF(Data!Category=$A14,OFFSET(Data!Category,0,E$1),"")) -> 0 | F14: =MAX(IF(Data!Category=$A14,OFFSET(Data!Category,0,F$1),"")) -> 0 | G14: =MIN(IF(Data!Category=$A14,OFFSET(Data!Category,0,G$1),"")) -> 0 | H14: =MAX(IF(Data!Category=$A14,OFFSET(Data!Category,0,H$1),"")) -> 0 | I14: =SUMIF(Data!Category,"=" & $A14,OFFSET(Data!Category,0,I$1)) -> 0 | J14: =SUMIF(Data!Category,"=" & $A14,OFFSET(Data!Category,0,J$1)) -> 0 | K14: =SUMIF(Data!Category,"=" & $A14,OFFSET(Data!Category,0,K$1)) -> 0 | L14: =SUMIF(Data!Category,"=" & $A14,OFFSET(Data!Category,0,L$1)) -> 0 | M14: =I14-K14 -> 0 | N14: =SUMIF(Data!Category,"=" & $A14,OFFSET(Data!Category,0,N$1))*Main!D$48 -> 0
I15: =SUM(I10:I14) -> 0 | J15: 0 | K15: 0 | L15: 0 | M15: 0 | N15: 0
K17: Percent Funded: | L17: =IF(L15=0,0,K15/L15) -> 0.0%

Sheet Thermometer
A1: X | B1: Y | C1: Labels
A2: 0.15 | B2: -0.05 | C2: High
A3: 0.5 | B3: -0.05 | C3: Medium
A4: 1 | B4: -0.05 | C4: Low
A5: 1.5 | B5: -0.05
A6: =MIN(A11,C7) -> 0.9381558935 | B6: 0.07 | C6: Max Value
B7: 0 | C7: 1.59
A8: 0.3 | B8: 0
A9: 0.7 | B9: 0
A10: 1.3 | B10: 0
A11: =Main!PercentFunded -> 0.9381558935
A12: ="Reserves % Funded: " & TEXT($A$11,"0%") -> Reserves % Funded: 94%

Sheet Solver
A1: 1 | C1: Initial Settings: | J1: = administrator initial settings
A2: 2 | C2: Initial Contrib: | D2: =Data!AW77/12 -> $37,010.25 | E2: InitialContribution | J2: = computed diagnostics used by solver
A3: 3 | C3: # of units | D3: =Main!NumUnits -> 500 | E3: NumUnits
A4: 4 | C4: 1AI & 2AI | D4: 3.00% | E4: AnnualIncreasePct
A5: 5 | C5: 1AIY & 2AIY | D5: 30 | E5: AnnualIncreaseYears
A6: 6 | C6: Initial Cycle Contrib Change | D6: 1.00% | E6: ContributionChangeCycle1 | H6: Counters
A7: 7 | C7: 2nd Cycle Contrib Change | D7: 0.50% | E7: ContributionChangeCycle2 | H7: Pass # | I7: 1
A8: 8 | C8: Min Expense Remainder | D8: 10.00% | E8: MinExpRemainder | H8: Cycle1 | I8: 45
A9: 9 | C9: SA Rounder (per unit) | D9: $10 | E9: RoundFactor | H9: Cycle2 | I9: 14
A10: 10 | C10: SA Change | D10: 10.00% | E10: SAChangePct | H10: Cycle3 | I10: 2
A11: 11 | C11: Early Special Assmt Range max yr | D11: 4 | E11: MaxEarlyYears
A12: 12 | C12: Contribution rounder | D12: $10 | E12: ContribRound | H12: =Main!RecommendContrib -> $59,930 | I12: Main!d30 | J12: Contrib Rate
A13: 13 | C13: Change in 2AI | D13: 0.50% | E13: ChangeIn2AI | H13: =Main!D33 -> 10 | I13: Main!d32 | J13: # of Initial Years
A14: 14 | C14: 2nd Cycle Contrib Boost | D14: 4.00% | E14: Cycle2ContribBoost | H14: =Main!D34 -> 2.00% | I14: Main!d33 | J14: % of Secondary Increase
A15: 15 | C15: 1AI Change Increment | D15: 5 | E15: YearsIncrement | H15: =Main!SpecialAssessment -> $0 | I15: Main!d35 | J15: Special Assmt
A16: 16 | C16: 1AI minimum yr limit | D16: 5 | E16: YearsMinimum | H16: =D36 -> 0.0303226945 | J16: Std Dev last 5 yrs
A17: 17 | C17: 2AI Lower limit | D17: 0.50% | E17: AnnualIncreaseLowerLimit2 | H17: =D38 -> 0 | J17: #downslope yrs, last 5 yrs
A18: 18 | C18: 2AI upper limit (underfunded) | D18: 6.00% | E18: AnnualIncreaseUpperLimit2 | H18: =AvgPctFunded25_29 -> 98.4% | J18: Avg Pct Funded, last 5 yrs
A19: 19 | C19: Surplus Threshold | D19: 200.00% | E19: SurplusThreshold | H19: =D35 -> 2.00% | J19: Avg Slope, last 5 yrs
A20: 20 | C20: Final Cycle Contrib Change | D20: 0.50% | E20: ContributionChangeCycle3
A21: 21 | C21: Surplus Pct Funded Flatness | D21: 15.00% | E21: SurplusPctFlatness
A22: 22 | C22: Percent Funded Flatness Criteria | D22: 2.00% | E22: FlatnessCriteria
A23: 23 | C23: Baseline Funding Minimum | D23: $0 | E23: BaselineFundingMin
A24: 24 | C24: Year | D24: 0 | E24: 1 | F24: 2 | G24: 3 | H24: 4 | I24: 5 | J24: 6 | K24: 7 | L24: 8 | M24: 9 | N24: 10 | O24: 11 | P24: 12 | Q24: 13 | R24: 14 | S24: 15 | T24: 16 | U24: 17 | V24: 18 | W24: 19 | X24: 20 | Y24: 21 | Z24: 22 | AA24: 23 | AB24: 24 | AC24: 25 | AD24: 26 | AE24: 27 | AF24: 28 | AG24: 29 | AH24: 30
A25: 25 | C25: Expenditure | D25: =Data!BB77 -> $61,450 | E25: =Data!BC77 -> $12,412 | F25: =Data!BD77 -> $164,440 | G25: =Data!BE77 -> $32,782 | H25: =Data!BF77 -> $35,454 | I25: =Data!BI77 -> $19,128 | J25: =Data!BJ77 -> $19,762 | K25: =Data!BK77 -> $701,028 | L25: =Data!BL77 -> $36,990 | M25: =Data!BM77 -> $15,005 | N25: =Data!BP77 -> $22,847 | O25: =Data!BQ77 -> $16,680 | P25: =Data!BR77 -> $69,934 | Q25: =Data!BS77 -> $24,965 | R25: =Data!BT77 -> $11,344 | S25: =Data!BW77 -> $49,933 | T25: =Data!BX77 -> $32,014 | U25: =Data!BY77 -> $82,642 | V25: =Data!BZ77 -> $327,718 | W25: =Data!CA77 -> $13,151 | X25: =Data!CD77 -> $54,183 | Y25: =Data!CE77 -> $52,181 | Z25: =Data!CF77 -> $4,790 | AA25: =Data!CG77 -> $59,800 | AB25: =Data!CH77 -> $38,420 | AC25: =Data!CK77 -> $138,189 | AD25: =Data!CL77 -> $31,378 | AE25: =Data!CM77 -> $175,593 | AF25: =Data!CN77 -> $33,175 | AG25: =Data!CO77 -> $67,162 | AH25: =Data!CP77 -> $128,766
A26: 26 | C26: Ending Balance | D26: =Data!BB79 -> $447,057 | E26: =Data!BC79 -> $501,112 | F26: =Data!BD79 -> $404,780 | G26: =Data!BE79 -> $441,716 | H26: =Data!BF79 -> $478,312 | I26: =Data!BI79 -> $659,346 | J26: =Data!BJ79 -> $718,027 | K26: =Data!BK79 -> $94,768 | L26: =Data!BL79 -> $134,843 | M26: =Data!BM79 -> $199,706 | N26: =Data!BP79 -> $259,696 | O26: =Data!BQ79 -> $328,105 | P26: =Data!BR79 -> $345,332 | Q26: =Data!BS79 -> $409,611 | R26: =Data!BT79 -> $489,943 | S26: =Data!BW79 -> $534,051 | T26: =Data!BX79 -> $598,399 | U26: =Data!BY79 -> $614,334 | V26: =Data!BZ79 -> $385,982 | W26: =Data!CA79 -> $473,379 | X26: =Data!CD79 -> $522,351 | Y26: =Data!CE79 -> $575,801 | Z26: =Data!CF79 -> $679,430 | AA26: =Data!CG79 -> $730,867 | AB26: =Data!CH79 -> $806,402 | AC26: =Data!CK79 -> $784,562 | AD26: =Data!CL79 -> $872,028 | AE26: =Data!CM79 -> $817,657 | AF26: =Data!CN79 -> $908,139 | AG26: =Data!CO79 -> $967,685 | AH26: =Data!CP79 -> $968,274
A27: 27 | C27: Early Ending Bal Minimum | D27: =MIN(OFFSET(D26,0,0,,MaxEarlyYears+1)) -> $404,780 | E27: MinEndBalance
A28: 28 | C28: Ending Balance to expense ratio | D28: =IF(D25>0,D26/D25,1) -> 727.5% | E28: =IF(E25>0,E26/E25,1) -> 4037.5% | F28: 246.2% | G28: 1347.4% | H28: 1349.1% | I28: 3447.0% | J28: 3633.5% | K28: 13.5% | L28: 364.5% | M28: 1330.9% | N28: 1136.7% | O28: 1967.1% | P28: 493.8% | Q28: 1640.7% | R28: 4318.8% | S28: 1069.5% | T28: 1869.2% | U28: 743.4% | V28: 117.8% | W28: 3599.5% | X28: 964.0% | Y28: 1103.5% | Z28: 14183.6% | AA28: 1222.2% | AB28: 2098.9% | AC28: 567.7% | AD28: 2779.1% | AE28: 465.7% | AF28: 2737.4% | AG28: 1440.8% | AH28: 752.0%
A29: 29 | C29: $ to make margin ok | D29: =IF(D28<$D$8,$D$8*D25-D26,0) -> $0 | E29: $0 | F29: $0 | G29: $0 | H29: $0 | I29: $0 | J29: $0 | K29: $0 | L29: $0 | M29: =IF(M28<$D$8,$D$8*M25-M26,0) -> $0 | N29: $0 | O29: $0 | P29: $0 | Q29: $0 | R29: $0 | S29: $0 | T29: $0 | U29: $0 | V29: $0 | W29: $0 | X29: $0 | Y29: $0 | Z29: $0 | AA29: $0 | AB29: $0 | AC29: $0 | AD29: $0 | AE29: $0 | AF29: $0 | AG29: $0 | AH29: $0
A30: 30 | C30: Minimum Ending Balance Margin | D30: =MIN(D28:AG28) -> 13.5% | E30: MinEndBalanceMargin
A31: 31 | C31: Early Min Ending Bal Margin | D31: =MIN(OFFSET(D28,0,0,,MaxEarlyYears+1)) -> 246.2% | E31: MinEndBalanceMarginEarly
A32: 32 | C32: Early Min Ending Bal Needs | D32: =MAX(OFFSET(D29,0,0,,MaxEarlyYears+1)) -> $0 | E32: MinEndBalanceNeeds
A33: 33 | C33: Pct Funded | D33: =Data!BB18 -> 93.8% | E33: =Data!BC18 -> 94.8% | F33: =Data!BD18 -> 95.4% | G33: =Data!BE18 -> 94.0% | H33: =Data!BF18 -> 91.7% | I33: =Data!BI18 -> 86.3% | J33: =Data!BJ18 -> 93.7% | K33: =Data!BK18 -> 66.1% | L33: =Data!BL18 -> 21.4% | M33: =Data!BM18 -> 29.0% | N33: =Data!BP18 -> 39.0% | O33: =Data!BQ18 -> 46.9% | P33: =Data!BR18 -> 54.2% | Q33: =Data!BS18 -> 57.2% | R33: =Data!BT18 -> 62.9% | S33: =Data!BW18 -> 68.5% | T33: =Data!BX18 -> 71.9% | U33: =Data!BY18 -> 75.6% | V33: =Data!BZ18 -> 77.6% | W33: =Data!CA18 -> 71.4% | X33: =Data!CD18 -> 77.8% | Y33: =Data!CE18 -> 81.9% | Z33: =Data!CF18 -> 85.6% | AA33: =Data!CG18 -> 89.5% | AB33: =Data!CH18 -> 92.1% | AC33: =Data!CK18 -> 94.6% | AD33: =Data!CL18 -> 96.4% | AE33: =Data!CM18 -> 98.4% | AF33: =Data!CN18 -> 100.4% | AG33: =Data!CO18 -> 102.1% | AH33: =Data!CP18 -> 103.6%
A34: 34 | C34: Pct Funded Change | E34: =(E33-D33) -> 1.0% | F34: =(F33-E33) -> 0.6% | G34: =(G33-F33) -> -1.5% | H34: =(H33-G33) -> -2.2% | I34: =(I33-H33) -> -5.5% | J34: =(J33-I33) -> 7.4% | K34: -27.6% | L34: -44.7% | M34: 7.6% | N34: 10.0% | O34: 7.9% | P34: 7.4% | Q34: 2.9% | R34: 5.8% | S34: 5.6% | T34: 3.4% | U34: 3.7% | V34: 2.0% | W34: -6.3% | X34: 6.4% | Y34: 4.1% | Z34: 3.8% | AA34: 3.9% | AB34: 2.6% | AC34: 2.4% | AD34: 1.9% | AE34: 2.0% | AF34: 2.0% | AG34: 1.7% | AH34: 1.5%
A35: 35 | C35: Avg % Funded Change 25-29 | D35: =AVERAGE(AC34:AG34) -> 2.00% | E35: AvgPctFundedChange25_29 | H35: ac-ag
A36: 36 | C36: Pct Funded Std Dev 25-29 | D36: =STDEV(AC33:AG33) -> 0.0303226945 | H36: ac-ag
A37: 37 | C37: Avg Pct Funded 25-29 | D37: =AVERAGE(AC33:AG33) -> 98.4% | E37: AvgPctFunded25_29 | H37: ac-ag
A38: 38 | C38: Yrs 25-29 with neg slope | D38: =COUNTIF(AC34:AG34,"<0") -> 0 | E38: NumMonthLessThanZero
A39: 39 | C39: Ending Balance Minimum | D39: =MIN(D26:AH26) -> $94,768 | E39: EndingBalanceMin
A40: 40 | C40: Constraints | D40: Minimum | E40: Maximum
A41: 41 | C41: 1st cycle underfunded | D41: 70% | E41: 120% | F41: ConstraintCycle1UnderMin | G41: ConstraintCycle1UnderMax
A42: 42 | C42: 2nd cycle | D42: 90% | E42: 110% | F42: ConstraintCycle2Min | G42: ConstraintCycle2Max
A43: 43 | C43: Final Year | D43: 98% | E43: 102% | F43: ConstraintFinalYearMin | G43: ConstraintFinalYearMax
A44: 44 | C44: # of allowable Cycle 1 iterations | D44: 500 | E44: MaxCycle1
A45: 45 | C45: # of allowable Cycle 2 iterations | D45: 1000 | E45: MaxCycle2
A46: 46 | C46: # of allowable Cycle 3 iterations | D46: 50 | E46: MaxCycle3
A47: 47 | C47: # of times through the solver | D47: 1 | E47: MaxPass

Sheet Coding-F
A1: Note: all cell references refer to "Solver" worksheet unless otherwise designated
A2: Full Funding Solver
A4: Start | B4: set annual increases
C5: Set 1AI = d4 | E5: (1st ramp annual increase)
C6: Set 1AIY = d5 | E6: (1st ramp annual increase years)
C7: Set 2AI = d4 | E7: (2nd ramp annual increase)
C8: Set 2AIY = d5 | E8: (2nd ramp annual increase years)
B9: set pass counter (integers)
C10: set pass = 0
B11: set cycle counters (integers)
C12: set cycle1 = 0
C13: set cycle2 = 0
C14: set cycle3 = 0
B15: set initial contribution rate
C16: Set contribution (Main!RecommendedContrib) to d2
B17: set flatness check
C18: set flat = 0
B19: set 2nd cycle boost check
C20: set 2boost = 0
B21: set initial special assessment
C22: set special assessment yr 1 (Main!SpecialAssessment) = $0.00
B23: if crash in first few (as defined by 0-d11) yrs, then special assessment
C24: if d27<0, goto Special Assess
C25: Goto Cycle1
A27: Restart | B27: set cycle counters (integers)
C28: set cycle1 = 0
C29: set cycle2 = 0
C30: set cycle3 = 0
C31: set pass = pass + 1
B32: set initial contribution rate
C33: Set contribution (Main!RecommendedContrib) to d2
B34: set initial special assessment
C35: set special assessment yr 1 (Main!SpecialAssessment) = $0.00
B36: if crash in first few (as defined by 0-d11) yrs, then special assessment
C37: if d27<0, goto Special Assess
C38: Goto Cycle1
A40: Special Assess | B40: set special assmt amount needed to keep from going negative
C41: Set special assessment yr 1 (Main!SpecialAssessment) = +d27
C42: divide by d3 to get individual owner special assessment
C43: round above up to nearest d9.
C44: set special assmt yr1 = rounded up individual unit owner special assessment x d3
C45: Goto-Cycle1
A47: Special Assess Small | B47: small nudges to increase special assessment
C48: if d32>0, set special assmt yr1 = special assessment yr 1 + d32, otherwise…
C49: If special assmt yr1 = 0, set special assmt to d2, otherwise…
C50: SA = SA x (1+d10)
C51: divide by d3 to get individual owner special assessment
C52: round above up to nearest d9.
C53: set special assmt yr1 = rounded up individual unit owner special assessment x d3
C54: goto-Cycle1
A56: Cycle1 | B56: begin adjusting
C57: set cycle1 = cycle1 + 1
B58: test to see if too many cycles (looping broken)
C59: if cycle1>d44 goto Cycle2
B60: test to see if early min margin is not met and small special assessment is needed
C61: if d31<d8, goto Special Assess Small
B62: test to see if min margin is not met and max constraints are exceeded
C63: if d30<d8 and d37>e41, go to Special Assess Small
B64: test to see if min margin is not met and contrib needs increasing
C65: if d30<d8 goto-Cycle1-low
B66: test to see if max constraints are exceeded and contrib needs reducing
C67: if d37>e41, goto-Cycle1-high
B68: test to see if min constraints not met and contrib needs increasing
C69: if d37<d41, goto-Cycle1-low
B70: to get here, must be good, so move on to Cycle2
C71: goto-Cycle2
A73: Cycle1-low | B73: contrib needs to be increased
C74: increase Main!D30 by d6
B75: try again to see if it passes the minimum ending balance criteria
C76: goto-Cycle1
A78: Cycle1-high | B78: contrib needs to be decreased
C79: decrease Main!D30 by d6
B80: try again to see if it has dropped down enough to pass along
C81: goto-Cycle1
A83: Cycle2 | B83: tighten up constraints and work on leveling
B84: set cycle counter
A85: A | C85: set Cycle2=Cycle2 + 1
B86: Set/Reset 2AI (Main!d33)
A87: B | C87: set Main!d33=d4
B88: test to see if too many cycles (looping broken)
A89: C | C89: if cycle2>maxcycle2, goto SolverFailure
B90: check # of declining years in final yrs & send to appropriate corrective measures.
A91: D | C91: if NumMonthLessThanZero>2, goto Cycle2-low
C92: if NumMonthLessThanZero<=2, goto Cycle2-high
A94: Cycle2-High | B94: due to increasing trend, try to lower the final slope
B95: first... set initial settings
A96: E | C96: set Main!D32=d5
B97: lower secondary increase a notch, if not too low already
A98: F | C98: if(Main!D33-d13>d17, set Main!d33=Main!D33-d13, otherwise set Main!d33=d17)
A99: Cycle2-High-yr | B99: Now cycle # yrs of secondary increases by dropping years of first increase
A100: G | C100: if(Main!D32-d15>d16, set Main!D32=Main!D32-d15, otherwise set Main!D32=d16)
B101: test to see if it flattened the slope enough
C102: if 2Boost=0, then
C103: if (ABS)d35<=d22, goto Cycle2-constraint
C104: else, it has already been boosted and needs to just hunt for a solution,
A105: H | C105: if (ABS)d35<=d22 and d37<=e42 and d37 >= d42, goto Cycle2-constraint
B106: test to see if flattened slope drops below minimum margin
A107: I | C107: if d30<d8, set 2Boost=1 and goto Cycle2-Boost
B108: test to see if flattened profile falls below ending constraints
A109: J | C109: if flat=0, then if d37<d42, goto Cycle2-Boost
B110: still not flat enough, so try more years of lowered secondary ramp
A111: K | C111: if Main!D32>d16, goto Cycle2-High-yr
B112: Since 1AI-yrs are at minimum, drop secondary ramp value & retry
A113: L | C113: if Main!d33>d17, goto Cycle2-High
B114: Since 1AI-yrs are at minimum and 2AI is at minimum, go to SolverFailure
A115: M | C115: goto SolverFailure
A117: Cycle2-Low | B117: due to decreasing trend, try to increase the final slope
B118: first… set initial settings
A119: E | C119: set Main!D32=d5
B120: increase secondary increase a notch, if not too high already
A121: F | C121: if(Main!D33+d13<d18, set Main!d33=Main!D33+d13, otherwise set Main!d33=d18)
A122: Cycle2-Low-yr | B122: Now test # yrs of secondary increases
A123: G | C123: if(Main!D32-d15>d16, set Main!D32=Main!D32-d15, otherwise set Main!D32=d16)
B124: test to see if it flattened the slope enough
C125: if main!Percent Funded => d19, then
C126: if (ABS)d35<=d21, goto Cycle2-Constraint
C127: else, it not a surplus funded situation,
A128: H | C128: if (ABS)d35<=d22, goto Cycle2-constraint
B129: test to see if flattened profile is too high for ending constraints
A130: I | C130: if flat=0, if d37>e42, goto Cycle2-Trim
B131: still not flat enough, so try more years of raised secondary ramp
A132: J | C132: if Main!D32>d16, goto Cycle2-Low-yr
B133: Since1AI-yrs are at minimum, increase secondary ramp value and retry
A134: K | C134: if Main!d33<d18, goto Cycle2-Low
B135: Since, 1AI yrs are at minimum and 2AI is at maximum, go to SolverFailure
A136: L | C136: goto SolverFailure
A138: Cycle2-Constraint | B138: test to see if flattened profile meets ending criteria
B139: But first, document that it got here (was flat enough)...for use in surplus funded situations,
B140: to avoid ever trimming something that needs to be boosted)
A141: M | C141: set flat = 1
B142: test to see if minimum margin met
A143: N | C143: if d30<d8, set 2Boost=1 and goto Cycle2-Boost
B144: test to see if flattened profile falls below ending constraints
A145: O | C145: if d35<d42, goto Cycle2-Boost
B146: test to see if flattened profile is too high for ending constraints
A147: P | C147: if 2boost=0, if d35>e42, goto Cycle2-Trim
B148: test to see if too many passes
A149: Q | C149: if pass < d71, go to restart
B150: otherwise, must be within acceptable range
C151: goto Cycle3
A153: Cycle2-Boost | B153: flattened profile now too low, so boost contrib a bit
C154: if 2boost=0, then
C155: Increase Main!D30 (contribution) by d7
C156: otherwise increase Main!d30 (contribution) by d14
B157: try again to flatten it out and pass the min ending balance criteria
C158: goto-Cycle2
A160: Cycle2-Trim | B160: flattened profile now too high, so trim contrib a bit
C161: Decrease Main!D30 (contribution) by d7
B162: try again to see if it has dropped down enough to pass along
C163: goto-Cycle2
A165: Cycle3 | B165: Now make minor adjustments to polish contrib & tune in to 100% zone at end
B166: Assume no more slope changes necessary. Contrib tweak only
B167: set Cycle3 counter
C168: set cycle3=cycle3+1
B169: test to see if it is looping almost endlessly
C170: if cycle3=>d46, goto solverfailure
B171: test to see if too low, & if so, boost contribution a bit
C172: if d37<d43, goto Cycle3-Boost
B173: test to see if too high, & if so, drop contribution a bit
C174: if d37>e43, goto Cycle3-Trim
B175: Now create a rounded "final candidate" contribution
C176: Round contribution to nearest d12
B177: otherwise, must be good. Finished
C178: goto SolverDone
